Workbook

Sheet Voorblad
C2: =UPPER(MID(CELL("filename",A1),FIND("[",CELL("filename",A1))+1,FIND("]",CELL("filename",A1))-FIND("[",CELL("filename",A1))-5)) -> LPM MB15 - EPACITY DSL 20170201 OPENBAAR.
C3: =UPPER(MID(CELL("filename",A2),FIND("]",CELL("filename",A2))+1,LEN(CELL("filename",A2)))) -> VOORBLAD
B8: 1. | C8: Beschrijving
C10: Deze openbare ND5 toets bevat separate toetsen voor de access en de VPN.
C11: Voor combinaties van access en VPN(s) moet een optelling worden gemaakt van de uitkomsten van de separate toetsen.
B13: 2. | C13: Navigatie
C15: Cel kleuren
C16: Fictieve getallen

Sheet EDC minus lijst ULL
A1: EDC minus maandbedragen resp LRIC maandbedragen incl en excl TH, E, SEV (interpolatie 2017 uit 2015 en 2018)
A2: product | B2: kosten vvv | D2: kosten vve | E2: kosten vva t/m MC ex vva TH, E en SEV | F2: kosten vva TH t/m MC | G2: kosten vva E t/m MC | H2: kosten vva SEV t/m MC | I2: Technische Huisvesting t/m MC in m2 | J2: kWh Energie t/m MC | K2: kosten vva MC tot core incl TH, E, SEV | L2: kosten vva core +wap incl TH, E, SEV | M2: grondslag kosten | N2: eenheid
A3: WBA central office | D3: 0.10 | E3: 0.10 | F3: 0.10 | G3: 0.10 | H3: 0.10 | I3: 0.01 | J3: 0.01 | K3: 0.10 | L3: 0.10 | M3: EDC minus | N3: aansluiting
A4: WBA FTTH | D4: 0.10 | E4: 0.10 | F4: 0.10 | G4: 0.10 | H4: 0.10 | I4: 0.01 | J4: 0.01 | K4: 0.10 | L4: 0.10 | M4: EDC minus | N4: aansluiting
A5: WBA FTTC | D5: 0.10 | E5: 0.10 | F5: 0.10 | G5: 0.10 | H5: 0.10 | I5: 0.01 | J5: 0.01 | K5: 0.10 | L5: 0.10 | M5: EDC minus | N5: aansluiting
A6: WBA SDSL | D6: 0.10 | E6: 0.10 | F6: 0.10 | G6: 0.10 | H6: 0.10 | I6: 0.01 | J6: 0.01 | K6: 0.10 | L6: 0.10 | M6: EDC minus | N6: aansluiting
A7: WBA VULA (mix van wba co en wba fttc) | K7: 0.10 | L7: 0.10 | M7: EDC minus | N7: aansluiting
A8: WBA ETN p2p met geschat verbruik | D8: 0.10 | E8: 0.10 | F8: 0.10 | G8: 0.10 | H8: 0.10 | I8: 0.01 | J8: 0.01 | K8: 0.10 | L8: 0.10 | M8: EDC minus | N8: aansluiting
A9: WBA pairbonded | D9: 0.10 | E9: 0.10 | F9: 0.10 | G9: 0.10 | H9: 0.10 | I9: 0.01 | J9: 0.01 | K9: 0.10 | L9: 0.10 | M9: EDC minus | N9: aansluiting
A10: WBA ETN p2p met geschat verbruik pb | D10: 0.10 | E10: 0.10 | F10: 0.10 | G10: 0.10 | H10: 0.10 | I10: 0.01 | J10: 0.01 | K10: 0.10 | L10: 0.10 | M10: EDC minus | N10: aansluiting
A12: EOK gemiddeld | D12: 0 | E12: 1.00 | F12: 0.10 | G12: 0.10 | H12: 0.10 | I12: 0.01 | J12: 0.01 | K12: 1.00 | L12: 1.00 | M12: EDC minus | N12: aansluiting
A13: EOK tot 2,3 Mb met één koperpaar | D13: 0 | E13: 1.00 | I13: 0.01 | J13: 0.01 | K13: 1.00 | L13: 1.00 | M13: EDC minus | N13: aansluiting
A14: EOK tot 3 Mb | D14: 0 | E14: 1.00 | I14: 0.01 | J14: 0.01 | K14: 1.00 | L14: 1.00 | M14: EDC minus | N14: aansluiting
A15: EOK tot 5 Mb | D15: 0 | E15: 1.00 | I15: 0.01 | J15: 0.01 | K15: 1.00 | L15: 1.00 | M15: EDC minus | N15: aansluiting
A16: EOK tot 10 Mb | D16: 0 | E16: 1.00 | I16: 0.01 | J16: 0.01 | K16: 1.00 | L16: 1.00 | M16: EDC minus | N16: aansluiting
A17: EOK tot 15 Mb | D17: 0 | E17: 1.00 | I17: 0.01 | J17: 0.01 | K17: 1.00 | L17: 1.00 | M17: EDC minus | N17: aansluiting
A18: EOK tot 20 Mb | D18: 0 | E18: 1.00 | I18: 0.01 | J18: 0.01 | K18: 1.00 | L18: 1.00 | M18: EDC minus | N18: aansluiting
B20: kosten vvv | C20: 0 | D20: kosten vve | E20: kosten vva t/m MC ex vva TH, E en SEV | F20: kosten vva TH t/m MC | G20: kosten vva E t/m MC | H20: kosten vva SEV t/m MC | I20: Technische Huisvesting t/m MC in m2 | J20: kWh Energie t/m MC | K20: kosten vva MC tot core incl TH, E, SEV | L20: kosten vva core +wap incl TH, E, SEV
A21: WEAS BT/FTTO incl collo en BH | D21: 0 | E21: 1.00 | F21: 1.00 | G21: 1.00 | H21: 1.00 | I21: 1.00 | J21: 1.00 | K21: 1.00 | L21: 1.00 | M21: EDC minus | N21: aansluiting
A22: WEAS BT/FTTO excl collo en BH | D22: 0 | E22: 1.00 | F22: 1.00 | G22: 1.00 | H22: 1.00 | I22: 1.00 | J22: 1.00 | K22: 1.00 | L22: 1.00 | M22: EDC minus | N22: aansluiting
A23: WEAS CITY incl collo en BH | D23: 0 | E23: 1.00 | F23: 1.00 | G23: 1.00 | H23: 1.00 | I23: 1.00 | J23: 1.00 | K23: 1.00 | L23: 1.00 | M23: EDC minus | N23: aansluiting
A24: WEAS CITY excl collo en BH | D24: 0 | E24: 1.00 | F24: 1.00 | G24: 1.00 | H24: 1.00 | I24: 1.00 | J24: 1.00 | K24: 1.00 | L24: 1.00 | M24: EDC minus | N24: aansluiting
A25: 0 | B25: kosten vvv | D25: kosten vve | E25: kosten vva t/m MDF | F25: kosten vva TH t/m MDF | G25: kosten vva E t/m MDF | H25: kosten vva SEV t/m MDF | I25: Technische Huisvesting t/m MDF in m2 | J25: kWh Energie t/m MDF | L25: kosten vva evkc/RAC
A26: verkeer evkc to evkc | B26: 0.0100 | M26: EDC minus | N26: minuut
A27: verkeer evkc to host | B27: 0.0100 | M27: EDC minus | N27: minuut
A28: verkeer access netwerk host | B28: 0.0100 | M28: EDC minus | N28: minuut
A29: verkeer voice carrier systeem | B29: 0.0100 | M29: EDC minus | N29: minuut
A30: verkeer premium transit | B30: 0.0100 | M30: EDC minus | N30: minuut
A32: tdm poort 2mbits | D32: 0 | E32: 0 | F32: 0 | G32: 0 | H32: 0 | I32: 0 | J32: 0 | K32: 0 | L32: 1.00 | M32: EDC minus | N32: poort enkel
A33: tdm poort 155mbits | D33: 0 | E33: 0 | F33: 0 | G33: 0 | H33: 0 | I33: 0 | J33: 0 | K33: 0 | L33: 1.00 | M33: EDC minus | N33: poort enkel
A34: isdn 1/2 lijnkaart | B34: 0 | D34: 0.10 | E34: 0.10 | F34: 0.10 | G34: 0.10 | H34: 0.10 | I34: 0.01 | J34: 0.01 | K34: 0 | L34: 0 | M34: EDC minus | N34: aansluiting
A35: isdn 15/20/30 lijnkaart | B35: 0 | D35: 0.10 | E35: 0.10 | F35: 0.10 | G35: 0.10 | H35: 0.10 | I35: 0.01 | J35: 0.01 | K35: 0 | L35: 0 | M35: EDC minus | N35: aansluiting
A36: pstn lijnkaart | B36: 0 | D36: 0.10 | E36: 0.10 | F36: 0.10 | G36: 0.10 | H36: 0.10 | I36: 0.01 | J36: 0.01 | K36: 0 | L36: 0 | M36: EDC minus | N36: aansluiting
A37: hdsl modem isdn 15/20/30 | B37: 0 | D37: 0 | E37: 1.00 | F37: 0 | G37: 1.00 | H37: 1.00 | I37: 0 | J37: 1.00 | K37: 0 | L37: 0 | M37: EDC minus | N37: aansluiting
A39: Voip per minuut | B39: 0.0100 | D39: 0 | E39: 0 | F39: 0 | G39: 0 | H39: 0 | I39: 0 | J39: 0 | K39: 0 | L39: 0 | M39: EDC minus | N39: minuut
A40: Voip transit per minuut | B40: 0.0100 | D40: 0 | E40: 0 | F40: 0 | G40: 0 | H40: 0 | I40: 0 | J40: 0 | K40: 0 | L40: 0 | M40: EDC minus | N40: minuut
A41: 0 | B41: 0 | D41: 0 | E41: 0 | F41: 0 | G41: 0 | H41: 0 | I41: 0 | J41: 0 | K41: 0 | L41: 0
A42: 0 | B42: 0 | D42: 0 | E42: 0 | F42: 0 | G42: 0 | H42: 0 | I42: 0 | J42: 0 | K42: 0 | L42: 0
A43: 0 | B43: 0 | D43: 0 | E43: 0 | F43: 0 | G43: 0 | H43: 0 | I43: 0 | J43: 0 | K43: 0 | L43: 0
A44: vaste transmissie mobiel data | B44: 0.0100 | M44: EDC minus | N44: MB
A45: vaste transmissie mobiel sms | B45: 0.0100 | M45: EDC minus | N45: bericht
A46: vaste transmissie mobiel spraak | B46: 0.0100 | M46: EDC minus | N46: minuut
A47: radionet mobiel data | B47: 0.0100 | M47: LRIC | N47: MB
A48: radionet mobiel sms | B48: 0.0100 | M48: LRIC | N48: bericht
A49: radionet mobiel spraak | B49: 0.0100 | M49: LRIC | N49: minuut
A50: mobiel vast bedrag per maand (LRIC residu) | M50: LRIC | N50: aansluiting
D51: kosten vve | E51: kosten vva t/m MC ex vva TH, E en SEV | F51: kosten vva TH t/m MC | G51: kosten vva E t/m MC | H51: kosten vva SEV t/m MC | I51: Technische Huisvesting t/m MC in m2 | J51: kWh Energie t/m MC | K51: kosten vva MC tot core incl TH, E, SEV | L51: kosten vva core +wap incl TH, E, SEV
A52: broadcast platform kpn retail | B52: 0 | D52: 0 | E52: 0 | F52: 0 | G52: 0 | H52: 0 | I52: 0 | J52: 0 | K52: 0 | L52: 0.10 | M52: EDC minus | N52: aansluiting
A53: broadcast platform kpn whs | B53: 0 | D53: 0 | E53: 0 | F53: 0 | G53: 0 | H53: 0 | I53: 0 | J53: 0 | K53: 0 | L53: 0.10 | M53: EDC minus | N53: aansluiting
A54: broadcast transport | B54: 0 | D54: 0 | E54: 0.10 | F54: 0.10 | G54: 0.10 | H54: 0.10 | I54: 0.01 | J54: 0.01 | K54: 0.10 | L54: 0.10 | M54: EDC minus | N54: aansluiting
A55: unicast platform | B55: 0 | D55: 0 | E55: 0 | F55: 0 | G55: 0 | H55: 0 | I55: 0 | J55: 0 | K55: 0 | L55: 0.10 | M55: EDC minus | N55: aansluiting
A56: w.v.unicast npvr | B56: 0 | D56: 0 | E56: 0 | F56: 0 | G56: 0 | H56: 0 | I56: 0 | J56: 0 | K56: 0 | L56: 0.10 | M56: EDC minus | N56: aansluiting
A57: w.v. unicast vod | B57: 0 | D57: 0 | E57: 0 | F57: 0 | G57: 0 | H57: 0 | I57: 0 | J57: 0 | K57: 0 | L57: 0.10 | M57: EDC minus | N57: aansluiting
B59: kosten vvv | D59: kosten vve | E59: kosten vva t/m MDF | F59: kosten vva TH t/m MDF | G59: kosten vva E t/m MDF | H59: kosten vva SEV t/m MDF | I59: Technische Huisvesting t/m MDF in m2 | J59: kWh Energie t/m MDF | K59: kosten vva MDF t/m cp | L59: kosten vva cp-cp
A60: ILL 2048 kbit/s lokaal collo | D60: 0 | E60: 1.00 | F60: 0 | G60: 1.00 | H60: 1.00 | I60: 0 | J60: 1.00 | K60: 1.00 | L60: 0 | M60: EDC minus | N60: aansluiting
A61: ILL 2048 kbit/s lokaal telco (incl LEP/CP) | D61: 0 | E61: 1.00 | F61: 0 | G61: 1.00 | H61: 1.00 | I61: 0 | J61: 1.00 | K61: 1.00 | L61: 1.00 | M61: EDC minus | N61: aansluiting
A62: ILL 2048 kbit/s regionaal collo | D62: 0 | E62: 1.00 | F62: 0 | G62: 1.00 | H62: 1.00 | I62: 0 | J62: 1.00 | K62: 1.00 | L62: 0 | M62: EDC minus | N62: aansluiting
A63: ILL 2048 kbit/s regionaal telco (incl LEP/CP) | D63: 0 | E63: 1.00 | F63: 0 | G63: 1.00 | H63: 1.00 | I63: 0 | J63: 1.00 | K63: 1.00 | L63: 1.00 | M63: EDC minus | N63: aansluiting
A64: ILL 2 Mbit/s (VC12) AP-CP | D64: 0 | E64: 0 | F64: 0 | G64: 0 | H64: 0 | I64: 0 | J64: 0 | K64: 1.00 | L64: 0 | M64: EDC minus | N64: aansluiting
A65: ILLP 34 Mbit/s (VC3) AP-CP | D65: 0 | E65: 0 | F65: 0 | G65: 0 | H65: 0 | I65: 0 | J65: 0 | K65: 1.00 | L65: 0 | M65: EDC minus | N65: aansluiting
A66: ILL 155 Mbit/s (VC4) AP-CP | D66: 0 | E66: 0 | F66: 0 | G66: 0 | H66: 0 | I66: 0 | J66: 0 | K66: 1.00 | L66: 0 | M66: EDC minus | N66: aansluiting
A67: ILL 622 Mbit/s (4*STM1) UTN-A PAN(SDH) | D67: 0 | E67: 0 | F67: 0 | G67: 0 | H67: 0 | I67: 0 | J67: 0 | K67: 0 | L67: 0 | M67: EDC minus | N67: aansluiting
A68: ILL tie cable | E68: 1.00 | F68: 0 | G68: 0 | H68: 0 | I68: 0 | J68: 0 | K68: 0 | L68: 0 | M68: EDC minus | N68: aansluiting
A69: ILL 2 Mbit/s CP CP | D69: 0 | E69: 0 | F69: 0 | G69: 0 | H69: 0 | I69: 0 | J69: 0 | K69: 0 | L69: 1.00 | M69: EDC minus | N69: aansluiting
A70: ILL 34 Mbit/s (VC3) CP-CP | D70: 0 | E70: 0 | F70: 0 | G70: 0 | H70: 0 | I70: 0 | J70: 0 | K70: 0 | L70: 1.00 | M70: EDC minus | N70: aansluiting
A71: ILL 155 Mbit/s CP_CP | D71: 0 | E71: 0 | F71: 0 | G71: 0 | H71: 0 | I71: 0 | J71: 0 | K71: 0 | L71: 1.00 | M71: EDC minus | N71: aansluiting
M72: EDC minus | N72: aansluiting
B73: kosten vvv | D73: kosten vve | E73: kosten vva t/m MDF | F73: kosten vva TH t/m MDF | G73: kosten vva E t/m MDF | H73: kosten vva SEV t/m MDF | I73: TH t/m MDF in m2 | J73: kWh E t/m MDF | K73: kosten vva MDF t/m cp | L73: kosten vva cp-cp
A74: CPA 34 mbits | D74: 0 | E74: 1.00 | F74: 1.00 | G74: 1.00 | H74: 1.00 | I74: 1.00 | J74: 1.00 | K74: 0 | L74: 0 | M74: EDC minus | N74: aansluiting
A75: CPA 155 mbits | D75: 0 | E75: 1.00 | F75: 1.00 | G75: 1.00 | H75: 1.00 | I75: 1.00 | J75: 1.00 | K75: 0 | L75: 0 | M75: EDC minus | N75: aansluiting
A76: CPA 622 mbits | D76: 0 | E76: 1.00 | F76: 1.00 | G76: 1.00 | H76: 1.00 | I76: 1.00 | J76: 1.00 | K76: 0 | L76: 0 | M76: EDC minus | N76: aansluiting
A77: CPA 2500 mbits | D77: 0 | E77: 1.00 | F77: 1.00 | G77: 1.00 | H77: 1.00 | I77: 1.00 | J77: 1.00 | K77: 0 | L77: 0 | M77: EDC minus | N77: aansluiting
A78: CPA afstapelpunt | D78: 0 | E78: 1.00 | F78: 1.00 | G78: 1.00 | H78: 1.00 | I78: 1.00 | J78: 1.00 | K78: 0 | L78: 0 | M78: EDC minus | N78: aansluiting
B79: kosten vvv | D79: kosten vve | E79: kosten vva t/m MC ex vva TH, E en SEV | F79: kosten vva TH t/m MC | G79: kosten vva E t/m MC | H79: kosten vva SEV t/m MC | I79: TH t/m MC in m2 | J79: kWh E t/m MC | K79: kosten vva MC tot core incl TH, E, SEV | L79: kosten vva core +wap incl TH, E, SEV
A80: dark fiber e2e excl odf per stuk | D80: 0 | E80: 1.00 | F80: 1.00 | G80: 1.00 | H80: 1.00 | I80: 1.00 | J80: 1.00 | K80: 0 | L80: 0 | M80: EDC minus | N80: aansluiting
A81: dark fiber per km vezelpaar boven MB | D81: 0 | E81: 1.00 | F81: 1.00 | G81: 1.00 | H81: 1.00 | I81: 1.00 | J81: 1.00 | K81: 0 | L81: 0 | M81: EDC minus | N81: kilometer vzp
A82: ODF per km vezelpaar (off net en protectie) | D82: 0 | E82: 1.00 | F82: 1.00 | G82: 1.00 | H82: 1.00 | I82: 1.00 | J82: 1.00 | K82: 0 | L82: 0 | M82: EDC minus | N82: kilometer vzp
B83: kosten vvv | D83: kosten vve | E83: kosten vva t/m MC ex vva TH, E en SEV | F83: kosten vva TH t/m MC | G83: kosten vva E t/m MC | H83: kosten vva SEV t/m MC | I83: TH t/m MC in m2 | J83: kWh E t/m MC | K83: kosten vva MC tot core incl TH, E, SEV | L83: kosten vva core +wap incl TH, E, SEV
A84: WDM segment t/m 2,5G passief metro | D84: 0 | E84: 1.00 | F84: 1.00 | G84: 1.00 | H84: 1.00 | I84: 1.00 | J84: 1.00 | K84: 0 | L84: 0 | M84: EDC minus | N84: aansluiting
A85: WDM segment t/m 2,5G metro regionaal | D85: 0 | E85: 0 | F85: 0 | G85: 0 | H85: 0 | K85: 1.00 | L85: 0 | M85: EDC minus | N85: aansluiting
A86: WDM segment t/m 2,5G regionaal nationaal | D86: 0 | E86: 0 | F86: 0 | G86: 0 | H86: 0 | K86: 0 | L86: 1.00 | M86: EDC minus | N86: aansluiting
A87: WDM segment 10G passief metro | D87: 0 | E87: 1.00 | F87: 1.00 | G87: 1.00 | H87: 1.00 | I87: 1.00 | J87: 1.00 | K87: 0 | L87: 0 | M87: EDC minus | N87: aansluiting
A88: WDM segment 10G metro regionaal | D88: 0 | E88: 0 | F88: 0 | G88: 0 | H88: 0 | I88: 0 | J88: 0 | K88: 1.00 | L88: 0 | M88: EDC minus | N88: aansluiting
A89: WDM segment 10G regionaal nationaal | D89: 0 | E89: 0 | F89: 0 | G89: 0 | H89: 0 | I89: 0 | J89: 0 | K89: 0 | L89: 1.00 | M89: EDC minus | N89: aansluiting
B91: kosten vvv | D91: kosten vve | E91: kosten vva t/m MC ex vva TH, E en SEV | F91: kosten vva TH t/m MC | G91: kosten vva E t/m MC | H91: kosten vva SEV t/m MC | I91: TH t/m MC in m2 | J91: kWh E t/m MC | K91: kosten vva MC tot core incl TH, E, SEV | L91: kosten vva core +wap incl TH, E, SEV
A92: generiek IP platform wba internet | D92: 0 | E92: 0 | F92: 0 | G92: 0 | H92: 0 | I92: 0 | J92: 0 | K92: 0 | L92: 1.00 | M92: EDC minus | N92: aansluiting
A93: generiek IP platform wba itv | D93: 0 | E93: 0 | F93: 0 | G93: 0 | H93: 0 | I93: 0 | J93: 0 | K93: 0 | L93: 1.00 | M93: EDC minus | N93: aansluiting
A96: generiek IP platform per 10GB | D96: 0 | E96: 0 | F96: 0 | G96: 0 | H96: 0 | I96: 0 | J96: 0 | K96: 0 | L96: 1.00 | M96: EDC minus | N96: poort
L98: kosten vva
A99: Anti DDOS platformkosten premium | L99: 1.00 | M99: EDC minus | N99: klant
A100: Anti DDOS platformkosten basic | L100: 1.00 | M100: EDC minus | N100: klant
A101: Helpdesk premium | L101: 1.00 | M101: EDC minus | N101: klant
A102: Helpdesk basic | L102: 1.00 | M102: EDC minus | N102: klant
A104: Datacenter_Connect_10Mbps_single | L104: 1.00 | M104: EDC minus | N104: aansluiting
A105: Datacenter_Connect_100Mbps_single | L105: 1.00 | M105: EDC minus | N105: aansluiting
A106: Datacenter_Connect_400Mbps_single | L106: 1.00 | M106: EDC minus | N106: aansluiting
A107: Datacenter_Connect_1Gbps_single | L107: 1.00 | M107: EDC minus | N107: aansluiting
A108: Datacenter_Connect_10Mbps_redundant | L108: 1.00 | M108: EDC minus | N108: aansluiting
A109: Datacenter_Connect_100Mbps_redundant | L109: 1.00 | M109: EDC minus | N109: aansluiting
A110: Datacenter_Connect_400Mbps_redundant | L110: 1.00 | M110: EDC minus | N110: aansluiting
A111: Datacenter_Connect_1Gbps_redundant | L111: 1.00 | M111: EDC minus | N111: aansluiting
I113: TH in MC in m2 | J113: kWh E in MC
A114: WETS TH, E in MC (is gehalveerd, moet nog * 3,8 volgens berekening Carel) | I114: 1.00 | J114: 1.00 | M114: EDC minus | N114: eindpunt
E115: TAN | F115: SAN | G115: PAN
A116: WEAS BT dood glas | E116: 0 | F116: 0 | G116: 1.00 | M116: LRIC | N116: aansluiting
A117: WEAS BT bestaand nieuwe klant | E117: 1.00 | F117: 0 | G117: 1.00 | M117: LRIC | N117: aansluiting
A118: WEAS BT nieuw | E118: 1.00 | F118: 1.00 | G118: 1.00 | M118: LRIC | N118: aansluiting
A119: WEAS BT upgrade snelheid | E119: 0 | F119: 0 | G119: 0 | M119: LRIC | N119: aansluiting
E120: 0 | F120: 0 | G120: 0
A121: WEAS ST dood glas | E121: 0 | F121: 0 | G121: 1.00 | M121: LRIC | N121: aansluiting
A122: WEAS ST nearnet | E122: 1.00 | F122: 1.00 | G122: 1.00 | M122: LRIC | N122: aansluiting
A123: WEAS ST offnet | E123: 1.00 | F123: 1.00 | G123: 1.00 | M123: LRIC | N123: aansluiting
A125: straalverbinding WEAS | D125: 1 | K125: 1 | M125: LRIC | N125: aansluiting/hop
A126: straalverbinding EVENTS met mast | D126: 1 | K126: 1 | M126: LRIC | N126: aansluiting/hop
A127: straalverbindding EVENTS zonder mast | D127: 1 | K127: 1 | M127: LRIC | N127: aansluiting/hop
A129: Newtel platformkosten incl transmissie | B129: 0.0100 | M129: EDC minus | N129: minuut
A130: Newtel IVR Telios | B130: 0 | M130: EDC minus | N130: minuut
A131: Newtel IVR Telios spraakherkenning | B131: 0 | M131: EDC minus | N131: minuut
A132: Storm | B132: 0 | M132: EDC minus | N132: seat?
B133: kosten vvv | D133: kosten vve | E133: kosten vva t/m MC ex vva TH, E en SEV | F133: kosten vva TH t/m MC | G133: kosten vva E t/m MC | H133: kosten vva SEV t/m MC | I133: Technische Huisvesting t/m MC in m2 | J133: kWh Energie t/m MC | K133: kosten vva MC tot core incl TH, E, SEV | L133: kosten vva core +wap incl TH, E, SEV
A134: WEAS FTTH BT excl collo en BH | D134: 0 | E134: 1.00 | F134: 1.00 | G134: 1.00 | H134: 1.00 | I134: 1.00 | J134: 1.00 | K134: 1.00 | L134: 1.00 | M134: EDC minus | N134: aansluiting
A135: WEAS FTTH CITY excl collo en BH | D135: 0 | E135: 1.00 | F135: 1.00 | G135: 1.00 | H135: 1.00 | I135: 1.00 | J135: 1.00 | K135: 1.00 | L135: 1.00 | M135: EDC minus | N135: aansluiting
A137: backhaul FTTH BT tot MC | D137: 0 | E137: 1.00 | F137: 1.00 | G137: 1.00 | H137: 1.00 | I137: 1.00 | J137: 1.00 | K137: 0 | L137: 0 | M137: EDC minus | N137: aansluiting
A138: backhaul FTTH ST tot MC | D138: 0 | E138: 1.00 | F138: 1.00 | G138: 1.00 | H138: 1.00 | I138: 1.00 | J138: 1.00 | K138: 0 | L138: 0 | M138: EDC minus | N138: aansluiting

Sheet Parameters ULL
E2: =UPPER(MID(CELL("filename",A1),FIND("[",CELL("filename",A1))+1,FIND("]",CELL("filename",A1))-FIND("[",CELL("filename",A1))-5)) -> LPM MB15 - EPACITY DSL 20170201 OPENBAAR.
E3: =UPPER(MID(CELL("filename",A2),FIND("]",CELL("filename",A2))+1,LEN(CELL("filename",A2)))) -> PARAMETERS ULL
B7: 1. | C7: Generieke parameters
D9: Contractsduur per Service
D10: Contractsduur (mnd) | E10: 36
B13: 2. | C13: Verkeersparameters
B15: WAP verkeer per aansluiting
D17: Verkeer | E17: 100 | F17: kbps
B20: 3. | C20: Mix van NLS1/2/3
E23: NLS1 | F23: NLS2 | G23: NLS3 <25m | H23: NLS3 25-125m
D24: Mix van NLS varianten op basis van CARE | E24: 100.00% | F24: 0.00% | G24: 0.00% | H24: 0.00%
D26: NLS3 25-125m tarief | E26: 100 | F26: + NLS1 tarief
D28: MDF NLS1/2/3 mix tarief | E28: =$E$24*'Inkoop tarief elementen'!$E$13+$F$24*'Inkoop tarief elementen'!$E$15+$G$24*'Inkoop tarief elementen'!$E$16+$H$24*($E$26+'Inkoop tarief elementen'!$E$13) -> 70.79
D29: MDF PB NLS1/2/3 mix tarief | E29: =$E$24*'Inkoop tarief elementen'!$F$13+$F$24*'Inkoop tarief elementen'!$F$17+$G$24*'Inkoop tarief elementen'!$F$17+$H$24*($E$26+'Inkoop tarief elementen'!$F$13) -> 166.88
D30: VULA NLS1/2/3 mix tarief | E30: =$E$24*'Tarieven W&O'!$H$81+$F$24*'Tarieven W&O'!$H$84+$G$24*'Tarieven W&O'!$H$88+$H$24*($E$26+'Tarieven W&O'!$H$81) -> 40.00
D31: VULA PB NLS1/2/3 mix tarief | E31: =$E$24*'Annex 4 VULA'!$J$37+$F$24*'Tarieven W&O'!$H$98+$G$24*'Tarieven W&O'!$H$98+$H$24*($E$26+'Annex 4 VULA'!$J$37) -> 0
B33: 4. | C33: ODF FTTH parameters
D36: Totaal Homes Activated | E36: 100%
D37: Homes activated KPN/RFW | E37: 100%
D38: Gemiddeld aantal actieve operators | E38: 1
D39: Afschrijvingstermijn Eenmalige aansluitbijdrage Area PoP | E39: 50 | F39: jaar
D40: Afschrijvingstermijn VVE (de)patching | E40: 50 | F40: jaar
D41: Aantal homes passed per Area PoP | E41: 100000
D42: Aantal metrische eenheden KPN/TOTAAL | E42: 90.00%
D43: Aantal Cityringen KPN /totaal | E43: 90.00%
B46: 5. | C46: WEAS-over-koper parameters
D48: Type access | E48: Aantal koperparen
D49: EOK tot 2,3 Mb met één koperpaar | E49: 1.0
D50: EOK tot 3 Mb | E50: 1.0
D51: EOK tot 5 Mb | E51: 1.0
D52: EOK tot 10 Mb | E52: 1.0
D53: EOK tot 15 Mb | E53: 1.0
D54: EOK tot 20 Mb | E54: 1.0
B56: 6. | C56: VULA parameters
D58: Contractsduur (mnd) | E58: =7*12 -> 84
D60: Aantal retail aansluitingen op VULA | E60: 10,000,000
B64: End of sheet

Sheet collocatie
E2: =UPPER(MID(CELL("filename",A1),FIND("[",CELL("filename",A1))+1,FIND("]",CELL("filename",A1))-FIND("[",CELL("filename",A1))-5)) -> LPM MB15 - EPACITY DSL 20170201 OPENBAAR.
E3: =UPPER(MID(CELL("filename",A2),FIND("]",CELL("filename",A2))+1,LEN(CELL("filename",A2)))) -> COLLOCATIE
B7: 1. | C7: Tarieven + parameters collocatie
D9: MDF collocatie
D10: Footprint (2 m2) | E10: 5,794.92 | F10: eenmalig
D11: Footprint (2 m2) | E11: 963.15 | F11: per jaar
D12: Koppelkabel, 600 DA | E12: 5,880.22 | F12: eenmalig
D13: SIP kast (1000 DA) | E13: 2,565.93 | F13: eenmalig
D14: 48V voedingskast | E14: 2,212.03 | F14: eenmalig
D15: 48V no break voorziening | E15: 7,427.13 | F15: eenmalig
D16: Interne doorbekabeling 4 glasvezelparen | E16: 6,583.11 | F16: eenmalig
D17: 48V no break voorziening | E17: 0.13 | F17: prijs per kWh
D18: 48V no break voorziening, voorschottarief | E18: 3.06 | F18: per lijn per jaar
D19: SEV (tarief per lijn) | E19: 2.97 | F19: per lijn per jaar
D21: WBA/WLL collocatie
D22: Footprint (2 m2) | E22: 5,795.27 | F22: eenmalig
D23: Footprint (2 m2) | E23: 963.15 | F23: per jaar
D24: 48V voedingskast | E24: 2,212.19 | F24: eenmalig
D25: 48V no break voorziening | E25: 7,426.79 | F25: eenmalig
D26: WBA/WLL koppelkabel met 4 vezelparen | E26: 4,027.69 | F26: eenmalig
D27: Stroommeter | E27: 224.00 | F27: eenmalig
D28: Stroommeter | E28: 33.23 | F28: per maand
D29: 48V no break voorziening | E29: 0.13 | F29: prijs per kWh
D30: SEV bij WLL collocatie | E30: 0.09 | F30: prijs per kWh
D32: WBA/WLL collocatie, verbruik per MC
D33: Aantal WETS per MC locatie | E33: 1.0
D34: Footprint (2 m2) | E34: =$E$33*'EDC minus lijst ULL'!$I$114/2 -> 0.50
D35: 48V voedingskast | E35: =$E$33*'EDC minus lijst ULL'!$I$114/2 -> 0.50
D36: 48V no break voorziening | E36: =$E$33*'EDC minus lijst ULL'!$I$114/2 -> 0.50
D37: WBA/WLL koppelkabel met 4 vezelparen | E37: 1.00
D38: Stroommeter | E38: =$E$33*'EDC minus lijst ULL'!$I$114/2 -> 0.50
D39: Energie | E39: =$E$33*'EDC minus lijst ULL'!$J$114 -> 1
D41: Economische afschrijvingstermijn b+d koppelkabel, footprint en SIP kast | E41: 50 | F41: jaar
D42: Economische afschrijvingstermijn 48V stroomvoorziening en glasvezeldoorbekabeling | E42: 50 | F42: jaar
D44: Bezettingsgraad koppelkabel | E44: 100%
D45: Bezettingsgraad SIP kast | E45: 100%
D47: Aantal MDF locaties | E47: 10,000
D48: Aantal MC locaties | E48: 1,000
D49: Aantal VULA lijnen | E49: ='Parameters ULL'!$E$60 -> 10,000,000
D50: Aantal MDF lijnen | E50: 10,000,000 | F50: (prognose 2017)
B53: 2. | C53: Output gegevens
D55: MDF collo, VDSL
E57: Eenheden per lijn | F57: VVE | G57: VVA per jaar | H57: EUR per kWh | I57: Afschr. Termijn | J57: Kosten per lijn
D58: Footprint (2 m2) | E58: ='EDC minus lijst ULL'!$I$3/2 -> 0.0050 | F58: =$E$10 -> 5,794.92 | G58: =$E$11 -> 963.15 | I58: =$E$41 -> 50 | J58: =E58*(F58/(12*I58)+G58/12) -> 0.45
D59: Energie | E59: 1 | G59: =$E$18 -> 3.06 | J59: =E59*G59/12 -> 0.26
D60: SEV | E60: 1 | G60: =$E$19 -> 2.97 | J60: =E60*G60/12 -> 0.25
D61: Koppelkabel (600 DA) | E61: =1/(600*$E$44) -> 0.0017 | F61: =$E$12 -> 5,880.22 | I61: =$E$41 -> 50 | J61: =E61*(F61/(12*I61)+G61/12) -> 0.02
D62: SIP kast (1000 DA) | E62: =1/(1000*$E$45) -> 0.0010 | F62: =$E$13 -> 2,565.93 | I62: =$E$41 -> 50 | J62: =E62*(F62/(12*I62)+G62/12) -> 0.00
D63: 48V voedingskast | E63: =$E$47/$E$50 -> 0.0010 | F63: =$E$14 -> 2,212.03 | I63: =$E$42 -> 50 | J63: =E63*(F63/(12*I63)+G63/12) -> 0.00
D64: 48V no break voorziening | E64: =$E$47/$E$50 -> 0.0010 | F64: =$E$15 -> 7,427.13 | I64: =$E$42 -> 50 | J64: =E64*(F64/(12*I64)+G64/12) -> 0.01
D65: Interne doorbekabeling 4 glasvezelparen | E65: 0.0010 | F65: =$E$16 -> 6,583.11 | I65: =$E$42 -> 50 | J65: =E65*(F65/(12*I65)+G65/12) -> 0.01
D67: Totaal | J67: =SUM(J58:J66) -> 1.00
D70: MDF collo, SDSL
E72: Eenheden per lijn | F72: VVE | G72: VVA per jaar | H72: EUR per kWh | I72: Afschr. Termijn | J72: Kosten per lijn
D73: Footprint (2 m2) | E73: ='EDC minus lijst ULL'!$I$6/2 -> 0.0050 | F73: =$E$10 -> 5,794.92 | G73: =$E$11 -> 963.15 | I73: =$E$41 -> 50 | J73: =E73*(F73/(12*I73)+G73/12) -> 0.45
D74: Energie | E74: 1 | G74: =$E$18 -> 3.06 | J74: =E74*G74/12 -> 0.26
D75: SEV | E75: 1 | G75: =$E$19 -> 2.97 | J75: =E75*G75/12 -> 0.25
D76: Koppelkabel (600 DA) | E76: =1/(600*$E$44) -> 0.0017 | F76: =$E$12 -> 5,880.22 | I76: =$E$41 -> 50 | J76: =E76*(F76/(12*I76)+G76/12) -> 0.02
D77: SIP kast (1000 DA) | E77: =1/(1000*$E$45) -> 0.0010 | F77: =$E$13 -> 2,565.93 | I77: =$E$41 -> 50 | J77: =E77*(F77/(12*I77)+G77/12) -> 0.00
D78: 48V voedingskast | E78: =$E$47/$E$50 -> 0.0010 | F78: =$E$14 -> 2,212.03 | I78: =$E$42 -> 50 | J78: =E78*(F78/(12*I78)+G78/12) -> 0.00
D79: 48V no break voorziening | E79: =$E$47/$E$50 -> 0.0010 | F79: =$E$15 -> 7,427.13 | I79: =$E$42 -> 50 | J79: =E79*(F79/(12*I79)+G79/12) -> 0.01
D80: Interne doorbekabeling 4 glasvezelparen | E80: 0.0010 | F80: =$E$16 -> 6,583.11 | I80: =$E$42 -> 50 | J80: =E80*(F80/(12*I80)+G80/12) -> 0.01
D82: Totaal | J82: =SUM(J73:J81) -> 1.00
D85: MDF collo, Pair bonding
E87: Eenheden per lijn | F87: VVE | G87: VVA per jaar | H87: EUR per kWh | I87: Afschr. Termijn | J87: Kosten per lijn
D88: Footprint (2 m2) | E88: ='EDC minus lijst ULL'!$I$9/2 -> 0.0050 | F88: =$E$10 -> 5,794.92 | G88: =$E$11 -> 963.15 | I88: =$E$41 -> 50 | J88: =E88*(F88/(12*I88)+G88/12) -> 0.45
D89: Energie | E89: 2 | G89: =$E$18 -> 3.06 | J89: =E89*G89/12 -> 0.51
D90: SEV | E90: 2 | G90: =$E$19 -> 2.97 | J90: =E90*G90/12 -> 0.50
D91: Koppelkabel | E91: =2/(600*$E$44) -> 0.0033 | F91: =$E$12 -> 5,880.22 | I91: =$E$41 -> 50 | J91: =E91*(F91/(12*I91)+G91/12) -> 0.03
D92: SIP kast (1000 DA) | E92: =2/(1000*$E$45) -> 0.0020 | F92: =$E$13 -> 2,565.93 | I92: =$E$41 -> 50 | J92: =E92*(F92/(12*I92)+G92/12) -> 0.01
D93: 48V voedingskast | E93: =$E$47/$E$50 -> 0.0010 | F93: =$E$14 -> 2,212.03 | I93: =$E$42 -> 50 | J93: =E93*(F93/(12*I93)+G93/12) -> 0.00
D94: 48V no break voorziening | E94: =$E$47/$E$50 -> 0.0010 | F94: =$E$15 -> 7,427.13 | I94: =$E$42 -> 50 | J94: =E94*(F94/(12*I94)+G94/12) -> 0.01
D95: Interne doorbekabeling 4 glasvezelparen | E95: 0.0010 | F95: =$E$16 -> 6,583.11 | I95: =$E$42 -> 50 | J95: =E95*(F95/(12*I95)+G95/12) -> 0.01
D97: Totaal | J97: =SUM(J88:J96) -> 1.52
D100: VULA collo
E102: Eenheden per lijn | F102: VVE | G102: VVA per jaar | H102: EUR per kWh | I102: Afschr. Termijn | J102: Kosten per lijn
D103: Footprint (2 m2) | E103: =$E$34*$E$48/$E$49 -> 0.000050 | F103: =$E$22 -> 5,795.27 | G103: =$E$23 -> 963.15 | I103: =$E$41 -> 50 | J103: =E103*(F103/(12*I103)+G103/12) -> 0.0045
D104: 48V voedingskast | E104: =$E$35*$E$48/$E$49 -> 0.000050 | F104: =$E$24 -> 2,212.19 | I104: =$E$42 -> 50 | J104: =E104*(F104/(12*I104)+G104/12) -> 0.0002
D105: 48V no break voorziening | E105: =$E$36*$E$48/$E$49 -> 0.000050 | F105: =$E$25 -> 7,426.79 | I105: 50 | J105: =E105*(F105/(12*I105)+G105/12) -> 0.0006
D106: WBA/WLL koppelkabel met 4 vezelparen | E106: =$E$37*$E$48/$E$49 -> 0.000100 | F106: =$E$26 -> 4,027.69 | I106: 50 | J106: =E106*(F106/(12*I106)+G106/12) -> 0.0007
D107: Stroommeter | E107: =$E$38*$E$48/$E$49 -> 0.000050 | F107: =$E$27 -> 224.00 | G107: =$E$28*12 -> 398.76 | I107: 50 | J107: =E107*(F107/(12*I107)+G107/12) -> 0.0017
D108: 48V no break voorziening /kWh | E108: =$E$39*$E$48/$E$49 -> 0.000100 | H108: =$E$29 -> 0.13 | I108: 50 | J108: =E108*H108 -> 0.0000
D109: SEV /kWh | E109: =$E$39*$E$48/$E$49 -> 0.000100 | H109: =$E$30 -> 0.09 | I109: 50 | J109: =E109*H109 -> 0.0000
D111: Totaal | J111: =SUM(J103:J110) -> 0.0077
D114: EoK
D116: Per EoK aansluiting | E116: Eenheden per lijn | F116: VVE | G116: VVA per jaar | H116: EUR per kWh | I116: Afschr. Termijn | J116: Kosten per lijn
D117: Footprint (2 m2) | E117: =AVERAGE('EDC minus lijst ULL'!$I$13:$I$18)/2 -> 0.0050 | F117: =$E$10 -> 5,794.92 | G117: =$E$11 -> 963.15 | I117: =$E$41 -> 50 | J117: =E117*(F117/(12*I117)+G117/12) -> 0.45
D120: MDF collo, Pair bonding
D122: Per MDF lijn | E122: Eenheden per lijn | F122: VVE | G122: VVA per jaar | H122: EUR per kWh | I122: Afschr. Termijn | J122: Kosten per lijn
D123: Energie | E123: 1 | G123: =$E$18 -> 3.06 | J123: =E123*G123/12 -> 0.26
D124: SEV | E124: 1 | G124: =$E$19 -> 2.97 | J124: =E124*G124/12 -> 0.25
D125: Koppelkabel (600 DA) | E125: =1/(600*$E$44) -> 0.0017 | F125: =$E$12 -> 5,880.22 | I125: =$E$41 -> 50 | J125: =E125*(F125/(12*I125)+G125/12) -> 0.02
D126: SIP kast (1000 DA) | E126: =1/(1000*$E$45) -> 0.0010 | F126: =$E$13 -> 2,565.93 | I126: =$E$41 -> 50 | J126: =E126*(F126/(12*I126)+G126/12) -> 0.00
D127: 48V voedingskast | E127: =$E$47/$E$50 -> 0.0010 | F127: =$E$14 -> 2,212.03 | I127: =$E$42 -> 50 | J127: =E127*(F127/(12*I127)+G127/12) -> 0.00
D128: 48V no break voorziening | E128: =$E$47/$E$50 -> 0.0010 | F128: =$E$15 -> 7,427.13 | I128: =$E$42 -> 50 | J128: =E128*(F128/(12*I128)+G128/12) -> 0.01
D129: Interne doorbekabeling 4 glasvezelparen | E129: 0.0010 | F129: =$E$16 -> 6,583.11 | I129: =$E$42 -> 50 | J129: =E129*(F129/(12*I129)+G129/12) -> 0.01
D131: Totaal | J131: =SUM(J122:J130) -> 0.55
D134: MDF collo, ILL smalband
E136: Eenheden per lijn | F136: VVE | G136: VVA per jaar | H136: EUR per kWh | I136: Afschr. Termijn | J136: Kosten per lijn
D137: Footprint (2 m2) | E137: ='EDC minus lijst ULL'!$I$60 -> 0.0000 | F137: =$E$10 -> 5,794.92 | G137: =$E$11 -> 963.15 | I137: =$E$41 -> 50 | J137: =E137*(F137/(12*I137)+G137/12) -> 0
D138: Energie | E138: 2 | G138: =$E$18 -> 3.06 | J138: =E138*G138/12 -> 0.51
D139: SEV | E139: 2 | G139: =$E$19 -> 2.97 | J139: =E139*G139/12 -> 0.50
D140: Koppelkabel | E140: =2/(600*$E$44) -> 0.0033 | F140: =$E$12 -> 5,880.22 | I140: =$E$41 -> 50 | J140: =E140*(F140/(12*I140)+G140/12) -> 0.03
D141: SIP kast (1000 DA) | E141: =2/(1000*$E$45) -> 0.0020 | F141: =$E$13 -> 2,565.93 | I141: =$E$41 -> 50 | J141: =E141*(F141/(12*I141)+G141/12) -> 0.01
D142: 48V voedingskast | E142: =$E$47/$E$50 -> 0.0010 | F142: =$E$14 -> 2,212.03 | I142: =$E$42 -> 50 | J142: =E142*(F142/(12*I142)+G142/12) -> 0.00
D143: 48V no break voorziening | E143: =$E$47/$E$50 -> 0.0010 | F143: =$E$15 -> 7,427.13 | I143: =$E$42 -> 50 | J143: =E143*(F143/(12*I143)+G143/12) -> 0.01
D144: Interne doorbekabeling 4 glasvezelparen | E144: 0.0010 | F144: =$E$16 -> 6,583.11 | I144: =$E$42 -> 50 | J144: =E144*(F144/(12*I144)+G144/12) -> 0.01
D146: Totaal | J146: =SUM(J137:J145) -> 1.07
D149: MDF collo, PSTN
E151: Eenheden per lijn | F151: VVE | G151: VVA per jaar | H151: EUR per kWh | I151: Afschr. Termijn | J151: Kosten per lijn
D152: Footprint (2 m2) | E152: ='EDC minus lijst ULL'!$I$36/2 -> 0.0050 | F152: =$E$10 -> 5,794.92 | G152: =$E$11 -> 963.15 | I152: =$E$41 -> 50 | J152: =E152*(F152/(12*I152)+G152/12) -> 0.45
D153: Energie | E153: 1 | G153: =$E$18 -> 3.06 | J153: =E153*G153/12 -> 0.26
D154: SEV | E154: 1 | G154: =$E$19 -> 2.97 | J154: =E154*G154/12 -> 0.25
D155: Koppelkabel (600 DA) | E155: =1/(600*$E$44) -> 0.0017 | F155: =$E$12 -> 5,880.22 | I155: =$E$41 -> 50 | J155: =E155*(F155/(12*I155)+G155/12) -> 0.02
D156: SIP kast (1000 DA) | E156: =1/(1000*$E$45) -> 0.0010 | F156: =$E$13 -> 2,565.93 | I156: =$E$41 -> 50 | J156: =E156*(F156/(12*I156)+G156/12) -> 0.00
D157: 48V voedingskast | E157: =$E$47/$E$50 -> 0.0010 | F157: =$E$14 -> 2,212.03 | I157: =$E$42 -> 50 | J157: =E157*(F157/(12*I157)+G157/12) -> 0.00
D158: 48V no break voorziening | E158: =$E$47/$E$50 -> 0.0010 | F158: =$E$15 -> 7,427.13 | I158: =$E$42 -> 50 | J158: =E158*(F158/(12*I158)+G158/12) -> 0.01
D159: Interne doorbekabeling 4 glasvezelparen | E159: 0.0010 | F159: =$E$16 -> 6,583.11 | I159: =$E$42 -> 50 | J159: =E159*(F159/(12*I159)+G159/12) -> 0.01
D161: Totaal | J161: =SUM(J152:J160) -> 1.00
D164: MDF collo, ISDN1,2
E166: Eenheden per lijn | F166: VVE | G166: VVA per jaar | H166: EUR per kWh | I166: Afschr. Termijn | J166: Kosten per lijn
D167: Footprint (2 m2) | E167: ='EDC minus lijst ULL'!$I$34/2 -> 0.0050 | F167: =$E$10 -> 5,794.92 | G167: =$E$11 -> 963.15 | I167: =$E$41 -> 50 | J167: =E167*(F167/(12*I167)+G167/12) -> 0.45
D168: Energie | E168: 1 | G168: =$E$18 -> 3.06 | J168: =E168*G168/12 -> 0.26
D169: SEV | E169: 1 | G169: =$E$19 -> 2.97 | J169: =E169*G169/12 -> 0.25
D170: Koppelkabel (600 DA) | E170: =1/(600*$E$44) -> 0.0017 | F170: =$E$12 -> 5,880.22 | I170: =$E$41 -> 50 | J170: =E170*(F170/(12*I170)+G170/12) -> 0.02
D171: SIP kast (1000 DA) | E171: =1/(1000*$E$45) -> 0.0010 | F171: =$E$13 -> 2,565.93 | I171: =$E$41 -> 50 | J171: =E171*(F171/(12*I171)+G171/12) -> 0.00
D172: 48V voedingskast | E172: =$E$47/$E$50 -> 0.0010 | F172: =$E$14 -> 2,212.03 | I172: =$E$42 -> 50 | J172: =E172*(F172/(12*I172)+G172/12) -> 0.00
D173: 48V no break voorziening | E173: =$E$47/$E$50 -> 0.0010 | F173: =$E$15 -> 7,427.13 | I173: =$E$42 -> 50 | J173: =E173*(F173/(12*I173)+G173/12) -> 0.01
D174: Interne doorbekabeling 4 glasvezelparen | E174: 0.0010 | F174: =$E$16 -> 6,583.11 | I174: =$E$42 -> 50 | J174: =E174*(F174/(12*I174)+G174/12) -> 0.01
D176: Totaal | J176: =SUM(J167:J175) -> 1.00
D180: MDF collo, ISDN15,20,30
E182: Eenheden per lijn | F182: VVE | G182: VVA per jaar | H182: EUR per kWh | I182: Afschr. Termijn | J182: Kosten per lijn
D183: Footprint (2 m2) | E183: ='EDC minus lijst ULL'!$I$35/2 -> 0.0050 | F183: =$E$10 -> 5,794.92 | G183: =$E$11 -> 963.15 | I183: =$E$41 -> 50 | J183: =E183*(F183/(12*I183)+G183/12) -> 0.45
D184: Energie | E184: 2 | G184: =$E$18 -> 3.06 | J184: =E184*G184/12 -> 0.51
D185: SEV | E185: 2 | G185: =$E$19 -> 2.97 | J185: =E185*G185/12 -> 0.50
D186: Koppelkabel (600 DA) | E186: =2/(600*$E$44) -> 0.0033 | F186: =$E$12 -> 5,880.22 | I186: =$E$41 -> 50 | J186: =E186*(F186/(12*I186)+G186/12) -> 0.03
D187: SIP kast (1000 DA) | E187: =2/(1000*$E$45) -> 0.0020 | F187: =$E$13 -> 2,565.93 | I187: =$E$41 -> 50 | J187: =E187*(F187/(12*I187)+G187/12) -> 0.01
D188: 48V voedingskast | E188: =$E$47/$E$50 -> 0.0010 | F188: =$E$14 -> 2,212.03 | I188: =$E$42 -> 50 | J188: =E188*(F188/(12*I188)+G188/12) -> 0.00
D189: 48V no break voorziening | E189: =$E$47/$E$50 -> 0.0010 | F189: =$E$15 -> 7,427.13 | I189: =$E$42 -> 50 | J189: =E189*(F189/(12*I189)+G189/12) -> 0.01
D190: Interne doorbekabeling 4 glasvezelparen | E190: 0.0010 | F190: =$E$16 -> 6,583.11 | I190: =$E$42 -> 50 | J190: =E190*(F190/(12*I190)+G190/12) -> 0.01
D192: Totaal | J192: =SUM(J183:J191) -> 1.52

Sheet Inkoop tarief elementen
C2: =UPPER(MID(CELL("filename",A1),FIND("[",CELL("filename",A1))+1,FIND("]",CELL("filename",A1))-FIND("[",CELL("filename",A1))-5)) -> LPM MB15 - EPACITY DSL 20170201 OPENBAAR.
C3: =UPPER(MID(CELL("filename",A2),FIND("]",CELL("filename",A2))+1,LEN(CELL("filename",A2)))) -> INKOOP TARIEF ELEMENTEN
B7: 1. MDF access tarieven (per 1-1-2017)
C9: VVE connect | D9: shared | E9: non-shared | F9: VDSL bonding
C10: new line | D10: € 14.63 | E10: € 12.85
C11: telco-telco | D11: € 17.14 | E11: € 13.13 | F11: € 30.31
C12: NLS type 1 ZTL | E12: € 18.79
C13: NLS type 1 | E13: € 70.79 | F13: € 166.88
C14: NLS type 1 DHZ | F14: € 69.23
C15: NLS type 2 | E15: € 310.65
C16: NLS type 3 | E16: € 541.12
C17: NLS type 2/3 | F17: € 754.48
C18: NLS type 2/3 DHZ | F18: € 656.85
C20: VVE disconnect | E20: Eenmalig
C21: Access Line disconnection | D21: non-shared | E21: € 6.17
C22: Access Line disconnection | D22: shared | E22: € 10.18
C23: Access Line disconnection | D23: VDSL bonding | E23: € 15.46
C25: VVA | E25: Per mnd
C26: MDF Access xTL | D26: non-shared | E26: € 7.93
C27: MDF Access aSL | D27: shared | E27: € 0.11
C28: MDF Access Pair bonding | D28: VDSL bonding | E28: € 8.38
B30: 3. Information product tariffs Tariffs
E32: Eenmalig
C33: Carrier Information Product (CIP) | E33: € 2.01
B35: 3. Optional Service Tariffs
C37: VVA | E37: Per mnd
C38: Premium service ('Additional serviceniveau' from SLA S&I) | E38: € 2.39
C39: Special SLA | E39: € 5.35
B41: 4. Reggefiber ODF FTTH tarieven (per 1-1-2016, v.2.2.11)
C45: VVE | E45: Eenmalig
C46: Aansluitbijdrage + patching | E46: € 101.32
C47: Telco-Telco migratie | E47: € 29.40
C48: Depatching | E48: € 13.28
C50: VVA | E50: Per mnd
C51: Landelijk uniform tarief | E51: € 18.92
C53: FttH Reggefiber korting ODF
C54: Korting | E54: 9.82%
C56: VVA | E56: Per mnd
C57: Premium SLA per IGP | E57: € 13.05
C59: VVE | E59: Eenmalig
C60: Installatie op FTU niet gelijktijdig met HAS | E60: € 41.02
C62: Additionele tarieven
C64: VVE | E64: Eenmalig
C65: Eenmalige aansluitbijdrage per Area PoP | E65: € 3,340.57
C66: ODF information product | E66: € 0.05
C68: VVA | E68: Per mnd
C69: City-ring per Area PoP | E69: € 668.11
C70: Dienst Collocatie per Area PoP | E70: € 556.76
C71: Stroom per aansluiting | E71: € 0.80
C73: Totaal (omgeslagen per aansluiting) | E73: Per mnd
C74: Eenmalige aansluitbijdrage per Area PoP | E74: =($E$65/'Parameters ULL'!$E$38/('Parameters ULL'!$E$37*'Parameters ULL'!$E$41)/(12*'Parameters ULL'!$E$39)) -> € 0.00
C75: City-ring per Area PoP | E75: =$E$69*'Parameters ULL'!$E$43/('Parameters ULL'!$E$41*'Parameters ULL'!$E$37) -> € 0.01
C76: Dienst Collocatie per Area PoP | E76: =$E$70*'Parameters ULL'!$E$42/('Parameters ULL'!$E$41*'Parameters ULL'!$E$37) -> € 0.01
C77: Stroom per aansluiting | E77: =E71 -> € 0.80
C78: ODF informatie product | E78: =$E$66/(12*'Parameters ULL'!$E$40) -> € 0.00
C79: Additionele tarieven | E79: =SUM(E74:E78) -> € 0.81
B85: End of Sheet

Sheet Annex 4 VULA
A7: WBA Annex 4 VULA
A9: Tariffs Consumer an Business modules
A10: Version 1.4
A12: Valid from 1 jan 2017
A18: Tariff VULA Modules*
A19: * all tariffs in euro's excl. VAT
A20: 1. Network Access Line Types
B22: VULA tariffs replacing regular WBA Network Access Line Type Tariffs
C23: Shared ADSL2+_POTS, (V)VDSL2 | J23: € 10.14 | K23: per line
C24: Non shared ADSL2+_POTS, (V)VDSL2 | J24: € 3.67 | K24: per line
C25: Non shared (V)VDSL2 Bonding | J25: € 12.36 | K25: per line
B26: Non recurring tariffs Network Access Ports ADSL2+_POTS, (V)VDSL2 based on MDF and streetcabinet access
C27: Block of ports for 84 months | J27: € 1,735,000 | K27: per 10.000 ports | L27: 10,000
J28: € 950,000 | K28: per 5.000 ports
C29: Pair Bonding occupies 2 ports
B31: Non recurring tariffs Network Access line
C32: New line (including Telco - Telco and WSO - WSO migrations) | J32: € 25.00 | K32: per line
C33: Disconnection of Network Access line | J33: € 10.00 | K33: per line
C34: Order cancellation | J34: € 25.00 | K34: per line
B36: Non recurring surcharge for delivery on a new Access Line and other Line charges
C37: Pair Bonding NLS type 1 - Regular order including Test & Label | J37: 0 | K37: extra
C38: All other line tariffs as specified in Annex 4 WBA-E LWAP
A40: 2. | B40: Access PVC/VLAN tariffs
B42: Monthly tariffs Point to MultiPoint Access PVC/VLAN and Broadcast Streams
C43: PVC/VLAN Point to MultiPoint | E43: Aggregation
E44: Level LWAP
C45: One Best Effort PVC/VLAN | E45: included in line tariff
C46: One RTV Broadcast Streams | E46: included in line tariff
C47: One Premium mngd PVC/VLAN ≤256/256 Kbps | E47: included in line tariff
C48: One Premium PVC/VLAN ≤2/2Mbps | E48: included in line tariff
C49: Other Premium PVC/VLAN | E49: €16.02
B51: Monthly tariffs Point to Point Access PVC/VLAN
C52: PVC/VLAN Point to Point | E52: Aggregation
E53: Level LWAP
C54: Lite PVC/VLAN ≤30/3Mbps | E54: € 8.01
C55: Other Lite PVC/VLAN | E55: € 25.03
C56: Premium PVC/VLAN | E56: € 41.04
B58: Non-recurring PVC / VLAN tariffs and other PVC/VLAN Tariffs
C59: Non-recurring PVC/VLAN tariffs as specified in Annex 4 WBA-E LWAP
A62: 3. | B62: Transport Tariffs
B64: Monthly tariffs Transport to LWAP's
C65: PtmP Best Effort + Premium transport capacity to LWAP port, measured cumulative traffic on all LWAP's* | J65: €7,500.00 | K65: measured traffic in 10Gbps steps
C66: *) In case a VULA WAP is shared with non VULA connections, WAP Transport for non VULA lines will
C67: be charged as specified in the appropriate Annex 4 in proportion to number of lines
C69: Traffic (max of either inbound- or outbound traffic) is measured as sum over all PtmP LWAP's using 95 percentile and billed in steps of 10Gbps
C70: The sampling interval is 5 minutes
B71: Non-recurring aggregated Transport Instance (Transport VLAN) and other tariffs
C72: Non-recurring transport tariffs as specified in Annex 4 WBA-E LWAP
A74: 4. | B74: WAP Tariffs
C76: WAP tariffs as specified in Annex 4 WBA-E LWAP
A78: 5. | B78: Service Levels
B80: Monthly additional Service level tariffs:
C81: 7x24 repairtime 8h | J81: €8.13 | K81: per line
C82: All other Service Level tariffs as specified in Annex 4 WBA-E LWAP
A84: 6. | B84: Other costs
B86: VULA 7 year Initial Investment
C88: Overall initial investment VULA | J88: €2,500,000 | K88: non recurring
J90: investment per
C91: Investment per LWAP location | H91: Number of LWAP locations | J91: location
H92: 1-40 LWAP locations | J92: € 35,000.00 | K92: non recurring
H93: 41-80 LWAP locations | J93: € 31,500.00 | K93: non recurring
H94: 81-120 LWAP locations | J94: € 28,000.00 | K94: non recurring
H95: >120 LWAP locations | J95: € 24,500.00 | K95: non recurring
C97: Project discount when ordering all 161 LWAP locations at once | J97: € 284,500.00 | K97: non recurring
A100: 7. | B100: Discounts
C102: Volume discount and/or other WBA discounts are not applicable for VULA

Sheet inkoop VULA
C2: =UPPER(MID(CELL("filename",A1),FIND("[",CELL("filename",A1))+1,FIND("]",CELL("filename",A1))-FIND("[",CELL("filename",A1))-5)) -> LPM MB15 - EPACITY DSL 20170201 OPENBAAR.
C3: =UPPER(MID(CELL("filename",A2),FIND("]",CELL("filename",A2))+1,LEN(CELL("filename",A2)))) -> INKOOP VULA
E7: # varianten: | F7: =COUNTA($C$13:$C$4629) -> 40
K9: VVE Tarief | L9: VVE Tarief | M9: VVE Tarief | N9: VVA Tarief | O9: VVA Tarief | P9: VVA Tarief | Q9: VVA Tarief | R9: VVA tarief | S9: VVA tarief | T9: VVA Tarief | U9: VVA Tarief | V9: VVA Tarief | W9: VVA Tarief | X9: Tarieven
C10: Dienstfamilie | D10: Connect type | E10: Access type | F10: Geografische toets | G10: QoS | H10: SLA | I10: Bandbreedte | J10: Configuratie | K10: Connect | L10: Disconnect | M10: Sum VVE | N10: Access Line | O10: Toeslag Premium/P-to-P | P10: Toeslag SLA | Q10: collo | R10: Initieel | S10: Blok | T10: WAP poort | U10: Transport | V10: EDC minus kosten boven MC | W10: Sum VVA | X10: Sum VVE + VVA tarief | Z10: sleutel access | AA10: VULA excl QoS en SLA | AB10: VULA excl QoS en SLA | AC10: sleutel transport | AD10: VULA Toeslag Premium/P-to-P kosten | AE10: sleutel SLA | AF10: kosten SLA
AA11: VVA | AB11: VVE
C12: VULA
C13: VULA | D13: NLS type 1/2/3 | E13: non-shared | F13: passief-LWAP | G13: Best-effort | H13: Standard | I13: ≤2/2Mbps | J13: P-to-MP | K13: =('Annex 4 VULA'!$J$32+IF(D13="NLS type 1/2/3",IF(E13="VDSL bonding",'Parameters ULL'!$E$31,'Parameters ULL'!$E$30)))/'Parameters ULL'!$E$10 -> 1.81 | L13: =('Annex 4 VULA'!$J$33/'Parameters ULL'!$E$10) -> 0.28 | M13: =SUM($K13:$L13) -> 2.08 | N13: =IF(E13="VDSL bonding",'Annex 4 VULA'!$J$25,IF(E13="non-shared",'Annex 4 VULA'!$J$23,'Annex 4 VULA'!$J$24)) -> 10.14 | O13: =IF(G13="Premium",IF(I13="≤2/2Mbps",0,'Annex 4 VULA'!$E$49),0) -> 0 | P13: =IF(H13="7x24 repairtime 8h",'Annex 4 VULA'!$J$81,0) -> 0 | Q13: =collocatie!$J$111 -> 0.01 | R13: =('Annex 4 VULA'!$J$88+40*'Annex 4 VULA'!$J$92+40*'Annex 4 VULA'!$J$93+40*'Annex 4 VULA'!$J$94+41*'Annex 4 VULA'!$J$95-'Annex 4 VULA'!$J$97)/'Parameters ULL'!$E$60/'Parameters ULL'!$E$58 -> 0.01 | S13: =IF(E13="VDSL bonding",2,1)*'Annex 4 VULA'!$J$27/'Annex 4 VULA'!$L$27/'Parameters ULL'!$E$58 -> 2.07 | T13: ='Parameters ULL'!$E$17*('Tarieven W&O'!$G$178+'Tarieven W&O'!$I$178/'Parameters ULL'!$E$58)/1000000 -> 0.01 | U13: ='Parameters ULL'!$E$17*'Annex 4 VULA'!$J$65/10000000 -> 0.08 | V13: ='EDC minus lijst ULL'!$K$7+'EDC minus lijst ULL'!$L$7 -> 0.20 | W13: =SUM($N13:$V13) -> 12.50 | X13: =$M13+$W13 -> 14.59 | Z13: =IF(AND(D13="telco-telco",E13="VDSL bonding"),"",IF(E13="VDSL bonding","VDSL bondingnon-sharednieuw","ADSL/VDSL"&E13&IF(D13="NLS type 1/2/3","nieuw","bestaand"))) -> ADSL/VDSLnon-sharednieuw | AA13: =W13-AD13-AF13 -> 12.50 | AB13: =M13*'Parameters ULL'!$E$10 -> 75.00 | AC13: =G13&I13 -> Best-effort≤2/2Mbps | AD13: =O13 -> 0 | AE13: =H13 -> Standard | AF13: =+P13 -> 0
C14: VULA | D14: NLS type 1/2/3 | E14: non-shared | F14: passief-LWAP | G14: Premium | H14: Standard | I14: ≤2/2Mbps | J14: P-to-MP | K14: =('Annex 4 VULA'!$J$32+IF(D14="NLS type 1/2/3",IF(E14="VDSL bonding",'Parameters ULL'!$E$31,'Parameters ULL'!$E$30)))/'Parameters ULL'!$E$10 -> 1.81 | L14: =('Annex 4 VULA'!$J$33/'Parameters ULL'!$E$10) -> 0.28 | M14: =SUM($K14:$L14) -> 2.08 | N14: =IF(E14="VDSL bonding",'Annex 4 VULA'!$J$25,IF(E14="non-shared",'Annex 4 VULA'!$J$23,'Annex 4 VULA'!$J$24)) -> 10.14 | O14: =IF(G14="Premium",IF(I14="≤2/2Mbps",0,'Annex 4 VULA'!$E$49),0) -> 0 | P14: =IF(H14="7x24 repairtime 8h",'Annex 4 VULA'!$J$81,0) -> 0 | Q14: =collocatie!$J$111 -> 0.01 | R14: =('Annex 4 VULA'!$J$88+40*'Annex 4 VULA'!$J$92+40*'Annex 4 VULA'!$J$93+40*'Annex 4 VULA'!$J$94+41*'Annex 4 VULA'!$J$95-'Annex 4 VULA'!$J$97)/'Parameters ULL'!$E$60/'Parameters ULL'!$E$58 -> 0.01 | S14: =IF(E14="VDSL bonding",2,1)*'Annex 4 VULA'!$J$27/'Annex 4 VULA'!$L$27/'Parameters ULL'!$E$58 -> 2.07 | T14: ='Parameters ULL'!$E$17*('Tarieven W&O'!$G$178+'Tarieven W&O'!$I$178/'Parameters ULL'!$E$58)/1000000 -> 0.01 | U14: ='Parameters ULL'!$E$17*'Annex 4 VULA'!$J$65/10000000 -> 0.08 | V14: ='EDC minus lijst ULL'!$K$7+'EDC minus lijst ULL'!$L$7 -> 0.20 | W14: =SUM($N14:$V14) -> 12.50 | X14: 14.59 | Z14: ADSL/VDSLnon-sharednieuw | AA14: =W14-AD14-AF14 -> 12.50 | AB14: =M14*'Parameters ULL'!$E$10 -> 75.00 | AC14: Premium≤2/2Mbps | AD14: =O14 -> 0 | AE14: Standard | AF14: =+P14 -> 0
C15: VULA | D15: NLS type 1/2/3 | E15: non-shared | F15: passief-LWAP | G15: Best-effort | H15: Standard | I15: Other | J15: P-to-MP | K15: =('Annex 4 VULA'!$J$32+IF(D15="NLS type 1/2/3",IF(E15="VDSL bonding",'Parameters ULL'!$E$31,'Parameters ULL'!$E$30)))/'Parameters ULL'!$E$10 -> 1.81 | L15: =('Annex 4 VULA'!$J$33/'Parameters ULL'!$E$10) -> 0.28 | M15: 2.08 | N15: =IF(E15="VDSL bonding",'Annex 4 VULA'!$J$25,IF(E15="non-shared",'Annex 4 VULA'!$J$23,'Annex 4 VULA'!$J$24)) -> 10.14 | O15: =IF(G15="Premium",IF(I15="≤2/2Mbps",0,'Annex 4 VULA'!$E$49),0) -> 0 | P15: =IF(H15="7x24 repairtime 8h",'Annex 4 VULA'!$J$81,0) -> 0 | Q15: =collocatie!$J$111 -> 0.01 | R15: =('Annex 4 VULA'!$J$88+40*'Annex 4 VULA'!$J$92+40*'Annex 4 VULA'!$J$93+40*'Annex 4 VULA'!$J$94+41*'Annex 4 VULA'!$J$95-'Annex 4 VULA'!$J$97)/'Parameters ULL'!$E$60/'Parameters ULL'!$E$58 -> 0.01 | S15: =IF(E15="VDSL bonding",2,1)*'Annex 4 VULA'!$J$27/'Annex 4 VULA'!$L$27/'Parameters ULL'!$E$58 -> 2.07 | T15: ='Parameters ULL'!$E$17*('Tarieven W&O'!$G$178+'Tarieven W&O'!$I$178/'Parameters ULL'!$E$58)/1000000 -> 0.01 | U15: ='Parameters ULL'!$E$17*'Annex 4 VULA'!$J$65/10000000 -> 0.08 | V15: ='EDC minus lijst ULL'!$K$7+'EDC minus lijst ULL'!$L$7 -> 0.20 | W15: 12.50 | X15: 14.59 | Z15: ADSL/VDSLnon-sharednieuw | AA15: 12.50 | AB15: =M15*'Parameters ULL'!$E$10 -> 75.00 | AC15: Best-effortOther | AD15: 0 | AE15: Standard | AF15: 0
C16: VULA | D16: NLS type 1/2/3 | E16: non-shared | F16: passief-LWAP | G16: Premium | H16: Standard | I16: Other | J16: P-to-MP | K16: =('Annex 4 VULA'!$J$32+IF(D16="NLS type 1/2/3",IF(E16="VDSL bonding",'Parameters ULL'!$E$31,'Parameters ULL'!$E$30)))/'Parameters ULL'!$E$10 -> 1.81 | L16: =('Annex 4 VULA'!$J$33/'Parameters ULL'!$E$10) -> 0.28 | M16: 2.08 | N16: =IF(E16="VDSL bonding",'Annex 4 VULA'!$J$25,IF(E16="non-shared",'Annex 4 VULA'!$J$23,'Annex 4 VULA'!$J$24)) -> 10.14 | O16: =IF(G16="Premium",IF(I16="≤2/2Mbps",0,'Annex 4 VULA'!$E$49),0) -> 16.02 | P16: =IF(H16="7x24 repairtime 8h",'Annex 4 VULA'!$J$81,0) -> 0 | Q16: =collocatie!$J$111 -> 0.01 | R16: =('Annex 4 VULA'!$J$88+40*'Annex 4 VULA'!$J$92+40*'Annex 4 VULA'!$J$93+40*'Annex 4 VULA'!$J$94+41*'Annex 4 VULA'!$J$95-'Annex 4 VULA'!$J$97)/'Parameters ULL'!$E$60/'Parameters ULL'!$E$58 -> 0.01 | S16: =IF(E16="VDSL bonding",2,1)*'Annex 4 VULA'!$J$27/'Annex 4 VULA'!$L$27/'Parameters ULL'!$E$58 -> 2.07 | T16: ='Parameters ULL'!$E$17*('Tarieven W&O'!$G$178+'Tarieven W&O'!$I$178/'Parameters ULL'!$E$58)/1000000 -> 0.01 | U16: ='Parameters ULL'!$E$17*'Annex 4 VULA'!$J$65/10000000 -> 0.08 | V16: ='EDC minus lijst ULL'!$K$7+'EDC minus lijst ULL'!$L$7 -> 0.20 | W16: 28.52 | X16: 30.61 | Z16: ADSL/VDSLnon-sharednieuw | AA16: 12.50 | AB16: =M16*'Parameters ULL'!$E$10 -> 75.00 | AC16: PremiumOther | AD16: 16.02 | AE16: Standard | AF16: 0
C17: VULA | D17: NLS type 1/2/3 | E17: non-shared | F17: passief-LWAP | G17: Best-effort | H17: 7x24 repairtime 8h | I17: ≤2/2Mbps | J17: P-to-MP | K17: =('Annex 4 VULA'!$J$32+IF(D17="NLS type 1/2/3",IF(E17="VDSL bonding",'Parameters ULL'!$E$31,'Parameters ULL'!$E$30)))/'Parameters ULL'!$E$10 -> 1.81 | L17: =('Annex 4 VULA'!$J$33/'Parameters ULL'!$E$10) -> 0.28 | M17: 2.08 | N17: =IF(E17="VDSL bonding",'Annex 4 VULA'!$J$25,IF(E17="non-shared",'Annex 4 VULA'!$J$23,'Annex 4 VULA'!$J$24)) -> 10.14 | O17: =IF(G17="Premium",IF(I17="≤2/2Mbps",0,'Annex 4 VULA'!$E$49),0) -> 0 | P17: =IF(H17="7x24 repairtime 8h",'Annex 4 VULA'!$J$81,0) -> 8.13 | Q17: =collocatie!$J$111 -> 0.01 | R17: =('Annex 4 VULA'!$J$88+40*'Annex 4 VULA'!$J$92+40*'Annex 4 VULA'!$J$93+40*'Annex 4 VULA'!$J$94+41*'Annex 4 VULA'!$J$95-'Annex 4 VULA'!$J$97)/'Parameters ULL'!$E$60/'Parameters ULL'!$E$58 -> 0.01 | S17: =IF(E17="VDSL bonding",2,1)*'Annex 4 VULA'!$J$27/'Annex 4 VULA'!$L$27/'Parameters ULL'!$E$58 -> 2.07 | T17: ='Parameters ULL'!$E$17*('Tarieven W&O'!$G$178+'Tarieven W&O'!$I$178/'Parameters ULL'!$E$58)/1000000 -> 0.01 | U17: ='Parameters ULL'!$E$17*'Annex 4 VULA'!$J$65/10000000 -> 0.08 | V17: ='EDC minus lijst ULL'!$K$7+'EDC minus lijst ULL'!$L$7 -> 0.20 | W17: 20.63 | X17: 22.72 | Z17: ADSL/VDSLnon-sharednieuw | AA17: 12.50 | AB17: =M17*'Parameters ULL'!$E$10 -> 75.00 | AC17: Best-effort≤2/2Mbps | AD17: 0 | AE17: 7x24 repairtime 8h | AF17: 8.13
C18: VULA | D18: NLS type 1/2/3 | E18: non-shared | F18: passief-LWAP | G18: Premium | H18: 7x24 repairtime 8h | I18: ≤2/2Mbps | J18: P-to-MP | K18: =('Annex 4 VULA'!$J$32+IF(D18="NLS type 1/2/3",IF(E18="VDSL bonding",'Parameters ULL'!$E$31,'Parameters ULL'!$E$30)))/'Parameters ULL'!$E$10 -> 1.81 | L18: =('Annex 4 VULA'!$J$33/'Parameters ULL'!$E$10) -> 0.28 | M18: 2.08 | N18: =IF(E18="VDSL bonding",'Annex 4 VULA'!$J$25,IF(E18="non-shared",'Annex 4 VULA'!$J$23,'Annex 4 VULA'!$J$24)) -> 10.14 | O18: =IF(G18="Premium",IF(I18="≤2/2Mbps",0,'Annex 4 VULA'!$E$49),0) -> 0 | P18: =IF(H18="7x24 repairtime 8h",'Annex 4 VULA'!$J$81,0) -> 8.13 | Q18: =collocatie!$J$111 -> 0.01 | R18: =('Annex 4 VULA'!$J$88+40*'Annex 4 VULA'!$J$92+40*'Annex 4 VULA'!$J$93+40*'Annex 4 VULA'!$J$94+41*'Annex 4 VULA'!$J$95-'Annex 4 VULA'!$J$97)/'Parameters ULL'!$E$60/'Parameters ULL'!$E$58 -> 0.01 | S18: =IF(E18="VDSL bonding",2,1)*'Annex 4 VULA'!$J$27/'Annex 4 VULA'!$L$27/'Parameters ULL'!$E$58 -> 2.07 | T18: ='Parameters ULL'!$E$17*('Tarieven W&O'!$G$178+'Tarieven W&O'!$I$178/'Parameters ULL'!$E$58)/1000000 -> 0.01 | U18: ='Parameters ULL'!$E$17*'Annex 4 VULA'!$J$65/10000000 -> 0.08 | V18: ='EDC minus lijst ULL'!$K$7+'EDC minus lijst ULL'!$L$7 -> 0.20 | W18: 20.63 | X18: 22.72 | Z18: ADSL/VDSLnon-sharednieuw | AA18: 12.50 | AB18: =M18*'Parameters ULL'!$E$10 -> 75.00 | AC18: Premium≤2/2Mbps | AD18: 0 | AE18: 7x24 repairtime 8h | AF18: 8.13
C19: VULA | D19: NLS type 1/2/3 | E19: non-shared | F19: passief-LWAP | G19: Best-effort | H19: 7x24 repairtime 8h | I19: Other | J19: P-to-MP | K19: =('Annex 4 VULA'!$J$32+IF(D19="NLS type 1/2/3",IF(E19="VDSL bonding",'Parameters ULL'!$E$31,'Parameters ULL'!$E$30)))/'Parameters ULL'!$E$10 -> 1.81 | L19: =('Annex 4 VULA'!$J$33/'Parameters ULL'!$E$10) -> 0.28 | M19: 2.08 | N19: =IF(E19="VDSL bonding",'Annex 4 VULA'!$J$25,IF(E19="non-shared",'Annex 4 VULA'!$J$23,'Annex 4 VULA'!$J$24)) -> 10.14 | O19: =IF(G19="Premium",IF(I19="≤2/2Mbps",0,'Annex 4 VULA'!$E$49),0) -> 0 | P19: =IF(H19="7x24 repairtime 8h",'Annex 4 VULA'!$J$81,0) -> 8.13 | Q19: =collocatie!$J$111 -> 0.01 | R19: =('Annex 4 VULA'!$J$88+40*'Annex 4 VULA'!$J$92+40*'Annex 4 VULA'!$J$93+40*'Annex 4 VULA'!$J$94+41*'Annex 4 VULA'!$J$95-'Annex 4 VULA'!$J$97)/'Parameters ULL'!$E$60/'Parameters ULL'!$E$58 -> 0.01 | S19: =IF(E19="VDSL bonding",2,1)*'Annex 4 VULA'!$J$27/'Annex 4 VULA'!$L$27/'Parameters ULL'!$E$58 -> 2.07 | T19: ='Parameters ULL'!$E$17*('Tarieven W&O'!$G$178+'Tarieven W&O'!$I$178/'Parameters ULL'!$E$58)/1000000 -> 0.01 | U19: ='Parameters ULL'!$E$17*'Annex 4 VULA'!$J$65/10000000 -> 0.08 | V19: ='EDC minus lijst ULL'!$K$7+'EDC minus lijst ULL'!$L$7 -> 0.20 | W19: 20.63 | X19: 22.72 | Z19: ADSL/VDSLnon-sharednieuw | AA19: 12.50 | AB19: =M19*'Parameters ULL'!$E$10 -> 75.00 | AC19: Best-effortOther | AD19: 0 | AE19: 7x24 repairtime 8h | AF19: 8.13
C20: VULA | D20: NLS type 1/2/3 | E20: non-shared | F20: passief-LWAP | G20: Premium | H20: 7x24 repairtime 8h | I20: Other | J20: P-to-MP | K20: =('Annex 4 VULA'!$J$32+IF(D20="NLS type 1/2/3",IF(E20="VDSL bonding",'Parameters ULL'!$E$31,'Parameters ULL'!$E$30)))/'Parameters ULL'!$E$10 -> 1.81 | L20: =('Annex 4 VULA'!$J$33/'Parameters ULL'!$E$10) -> 0.28 | M20: 2.08 | N20: =IF(E20="VDSL bonding",'Annex 4 VULA'!$J$25,IF(E20="non-shared",'Annex 4 VULA'!$J$23,'Annex 4 VULA'!$J$24)) -> 10.14 | O20: =IF(G20="Premium",IF(I20="≤2/2Mbps",0,'Annex 4 VULA'!$E$49),0) -> 16.02 | P20: =IF(H20="7x24 repairtime 8h",'Annex 4 VULA'!$J$81,0) -> 8.13 | Q20: =collocatie!$J$111 -> 0.01 | R20: =('Annex 4 VULA'!$J$88+40*'Annex 4 VULA'!$J$92+40*'Annex 4 VULA'!$J$93+40*'Annex 4 VULA'!$J$94+41*'Annex 4 VULA'!$J$95-'Annex 4 VULA'!$J$97)/'Parameters ULL'!$E$60/'Parameters ULL'!$E$58 -> 0.01 | S20: =IF(E20="VDSL bonding",2,1)*'Annex 4 VULA'!$J$27/'Annex 4 VULA'!$L$27/'Parameters ULL'!$E$58 -> 2.07 | T20: ='Parameters ULL'!$E$17*('Tarieven W&O'!$G$178+'Tarieven W&O'!$I$178/'Parameters ULL'!$E$58)/1000000 -> 0.01 | U20: ='Parameters ULL'!$E$17*'Annex 4 VULA'!$J$65/10000000 -> 0.08 | V20: ='EDC minus lijst ULL'!$K$7+'EDC minus lijst ULL'!$L$7 -> 0.20 | W20: 36.65 | X20: 38.74 | Z20: ADSL/VDSLnon-sharednieuw | AA20: 12.50 | AB20: =M20*'Parameters ULL'!$E$10 -> 75.00 | AC20: PremiumOther | AD20: 16.02 | AE20: 7x24 repairtime 8h | AF20: 8.13
C21: VULA | D21: telco-telco | E21: shared | F21: passief-LWAP | G21: Best-effort | H21: Standard | I21: ≤2/2Mbps | J21: P-to-MP | K21: =('Annex 4 VULA'!$J$32+IF(D21="NLS type 1/2/3",IF(E21="VDSL bonding",'Parameters ULL'!$E$31,'Parameters ULL'!$E$30)))/'Parameters ULL'!$E$10 -> 0.69 | L21: =('Annex 4 VULA'!$J$33/'Parameters ULL'!$E$10) -> 0.28 | M21: 0.97 | N21: =IF(E21="VDSL bonding",'Annex 4 VULA'!$J$25,IF(E21="non-shared",'Annex 4 VULA'!$J$23,'Annex 4 VULA'!$J$24)) -> 3.67 | O21: =IF(G21="Premium",IF(I21="≤2/2Mbps",0,'Annex 4 VULA'!$E$49),0) -> 0 | P21: =IF(H21="7x24 repairtime 8h",'Annex 4 VULA'!$J$81,0) -> 0 | Q21: =collocatie!$J$111 -> 0.01 | R21: =('Annex 4 VULA'!$J$88+40*'Annex 4 VULA'!$J$92+40*'Annex 4 VULA'!$J$93+40*'Annex 4 VULA'!$J$94+41*'Annex 4 VULA'!$J$95-'Annex 4 VULA'!$J$97)/'Parameters ULL'!$E$60/'Parameters ULL'!$E$58 -> 0.01 | S21: =IF(E21="VDSL bonding",2,1)*'Annex 4 VULA'!$J$27/'Annex 4 VULA'!$L$27/'Parameters ULL'!$E$58 -> 2.07 | T21: ='Parameters ULL'!$E$17*('Tarieven W&O'!$G$178+'Tarieven W&O'!$I$178/'Parameters ULL'!$E$58)/1000000 -> 0.01 | U21: ='Parameters ULL'!$E$17*'Annex 4 VULA'!$J$65/10000000 -> 0.08 | V21: ='EDC minus lijst ULL'!$K$7+'EDC minus lijst ULL'!$L$7 -> 0.20 | W21: 6.03 | X21: 7.00 | Z21: ADSL/VDSLsharedbestaand | AA21: 6.03 | AB21: =M21*'Parameters ULL'!$E$10 -> 35.00 | AC21: Best-effort≤2/2Mbps | AD21: 0 | AE21: Standard | AF21: 0
C22: VULA | D22: telco-telco | E22: non-shared | F22: passief-LWAP | G22: Best-effort | H22: Standard | I22: ≤2/2Mbps | J22: P-to-MP | K22: =('Annex 4 VULA'!$J$32+IF(D22="NLS type 1/2/3",IF(E22="VDSL bonding",'Parameters ULL'!$E$31,'Parameters ULL'!$E$30)))/'Parameters ULL'!$E$10 -> 0.69 | L22: =('Annex 4 VULA'!$J$33/'Parameters ULL'!$E$10) -> 0.28 | M22: 0.97 | N22: =IF(E22="VDSL bonding",'Annex 4 VULA'!$J$25,IF(E22="non-shared",'Annex 4 VULA'!$J$23,'Annex 4 VULA'!$J$24)) -> 10.14 | O22: =IF(G22="Premium",IF(I22="≤2/2Mbps",0,'Annex 4 VULA'!$E$49),0) -> 0 | P22: =IF(H22="7x24 repairtime 8h",'Annex 4 VULA'!$J$81,0) -> 0 | Q22: =collocatie!$J$111 -> 0.01 | R22: =('Annex 4 VULA'!$J$88+40*'Annex 4 VULA'!$J$92+40*'Annex 4 VULA'!$J$93+40*'Annex 4 VULA'!$J$94+41*'Annex 4 VULA'!$J$95-'Annex 4 VULA'!$J$97)/'Parameters ULL'!$E$60/'Parameters ULL'!$E$58 -> 0.01 | S22: =IF(E22="VDSL bonding",2,1)*'Annex 4 VULA'!$J$27/'Annex 4 VULA'!$L$27/'Parameters ULL'!$E$58 -> 2.07 | T22: ='Parameters ULL'!$E$17*('Tarieven W&O'!$G$178+'Tarieven W&O'!$I$178/'Parameters ULL'!$E$58)/1000000 -> 0.01 | U22: ='Parameters ULL'!$E$17*'Annex 4 VULA'!$J$65/10000000 -> 0.08 | V22: ='EDC minus lijst ULL'!$K$7+'EDC minus lijst ULL'!$L$7 -> 0.20 | W22: 12.50 | X22: 13.47 | Z22: ADSL/VDSLnon-sharedbestaand | AA22: 12.50 | AB22: =M22*'Parameters ULL'!$E$10 -> 35.00 | AC22: Best-effort≤2/2Mbps | AD22: 0 | AE22: Standard | AF22: 0
C23: VULA | D23: telco-telco | E23: shared | F23: passief-LWAP | G23: Premium | H23: Standard | I23: ≤2/2Mbps | J23: P-to-MP | K23: =('Annex 4 VULA'!$J$32+IF(D23="NLS type 1/2/3",IF(E23="VDSL bonding",'Parameters ULL'!$E$31,'Parameters ULL'!$E$30)))/'Parameters ULL'!$E$10 -> 0.69 | L23: =('Annex 4 VULA'!$J$33/'Parameters ULL'!$E$10) -> 0.28 | M23: 0.97 | N23: =IF(E23="VDSL bonding",'Annex 4 VULA'!$J$25,IF(E23="non-shared",'Annex 4 VULA'!$J$23,'Annex 4 VULA'!$J$24)) -> 3.67 | O23: =IF(G23="Premium",IF(I23="≤2/2Mbps",0,'Annex 4 VULA'!$E$49),0) -> 0 | P23: =IF(H23="7x24 repairtime 8h",'Annex 4 VULA'!$J$81,0) -> 0 | Q23: =collocatie!$J$111 -> 0.01 | R23: =('Annex 4 VULA'!$J$88+40*'Annex 4 VULA'!$J$92+40*'Annex 4 VULA'!$J$93+40*'Annex 4 VULA'!$J$94+41*'Annex 4 VULA'!$J$95-'Annex 4 VULA'!$J$97)/'Parameters ULL'!$E$60/'Parameters ULL'!$E$58 -> 0.01 | S23: =IF(E23="VDSL bonding",2,1)*'Annex 4 VULA'!$J$27/'Annex 4 VULA'!$L$27/'Parameters ULL'!$E$58 -> 2.07 | T23: ='Parameters ULL'!$E$17*('Tarieven W&O'!$G$178+'Tarieven W&O'!$I$178/'Parameters ULL'!$E$58)/1000000 -> 0.01 | U23: ='Parameters ULL'!$E$17*'Annex 4 VULA'!$J$65/10000000 -> 0.08 | V23: ='EDC minus lijst ULL'!$K$7+'EDC minus lijst ULL'!$L$7 -> 0.20 | W23: 6.03 | X23: 7.00 | Z23: ADSL/VDSLsharedbestaand | AA23: 6.03 | AB23: =M23*'Parameters ULL'!$E$10 -> 35.00 | AC23: Premium≤2/2Mbps | AD23: 0 | AE23: Standard | AF23: 0
C24: VULA | D24: telco-telco | E24: non-shared | F24: passief-LWAP | G24: Premium | H24: Standard | I24: ≤2/2Mbps | J24: P-to-MP | K24: =('Annex 4 VULA'!$J$32+IF(D24="NLS type 1/2/3",IF(E24="VDSL bonding",'Parameters ULL'!$E$31,'Parameters ULL'!$E$30)))/'Parameters ULL'!$E$10 -> 0.69 | L24: =('Annex 4 VULA'!$J$33/'Parameters ULL'!$E$10) -> 0.28 | M24: 0.97 | N24: =IF(E24="VDSL bonding",'Annex 4 VULA'!$J$25,IF(E24="non-shared",'Annex 4 VULA'!$J$23,'Annex 4 VULA'!$J$24)) -> 10.14 | O24: =IF(G24="Premium",IF(I24="≤2/2Mbps",0,'Annex 4 VULA'!$E$49),0) -> 0 | P24: =IF(H24="7x24 repairtime 8h",'Annex 4 VULA'!$J$81,0) -> 0 | Q24: =collocatie!$J$111 -> 0.01 | R24: =('Annex 4 VULA'!$J$88+40*'Annex 4 VULA'!$J$92+40*'Annex 4 VULA'!$J$93+40*'Annex 4 VULA'!$J$94+41*'Annex 4 VULA'!$J$95-'Annex 4 VULA'!$J$97)/'Parameters ULL'!$E$60/'Parameters ULL'!$E$58 -> 0.01 | S24: =IF(E24="VDSL bonding",2,1)*'Annex 4 VULA'!$J$27/'Annex 4 VULA'!$L$27/'Parameters ULL'!$E$58 -> 2.07 | T24: ='Parameters ULL'!$E$17*('Tarieven W&O'!$G$178+'Tarieven W&O'!$I$178/'Parameters ULL'!$E$58)/1000000 -> 0.01 | U24: ='Parameters ULL'!$E$17*'Annex 4 VULA'!$J$65/10000000 -> 0.08 | V24: ='EDC minus lijst ULL'!$K$7+'EDC minus lijst ULL'!$L$7 -> 0.20 | W24: 12.50 | X24: 13.47 | Z24: ADSL/VDSLnon-sharedbestaand | AA24: 12.50 | AB24: =M24*'Parameters ULL'!$E$10 -> 35.00 | AC24: Premium≤2/2Mbps | AD24: 0 | AE24: Standard | AF24: 0
C25: VULA | D25: telco-telco | E25: shared | F25: passief-LWAP | G25: Best-effort | H25: Standard | I25: Other | J25: P-to-MP | K25: =('Annex 4 VULA'!$J$32+IF(D25="NLS type 1/2/3",IF(E25="VDSL bonding",'Parameters ULL'!$E$31,'Parameters ULL'!$E$30)))/'Parameters ULL'!$E$10 -> 0.69 | L25: =('Annex 4 VULA'!$J$33/'Parameters ULL'!$E$10) -> 0.28 | M25: 0.97 | N25: =IF(E25="VDSL bonding",'Annex 4 VULA'!$J$25,IF(E25="non-shared",'Annex 4 VULA'!$J$23,'Annex 4 VULA'!$J$24)) -> 3.67 | O25: =IF(G25="Premium",IF(I25="≤2/2Mbps",0,'Annex 4 VULA'!$E$49),0) -> 0 | P25: =IF(H25="7x24 repairtime 8h",'Annex 4 VULA'!$J$81,0) -> 0 | Q25: =collocatie!$J$111 -> 0.01 | R25: =('Annex 4 VULA'!$J$88+40*'Annex 4 VULA'!$J$92+40*'Annex 4 VULA'!$J$93+40*'Annex 4 VULA'!$J$94+41*'Annex 4 VULA'!$J$95-'Annex 4 VULA'!$J$97)/'Parameters ULL'!$E$60/'Parameters ULL'!$E$58 -> 0.01 | S25: =IF(E25="VDSL bonding",2,1)*'Annex 4 VULA'!$J$27/'Annex 4 VULA'!$L$27/'Parameters ULL'!$E$58 -> 2.07 | T25: ='Parameters ULL'!$E$17*('Tarieven W&O'!$G$178+'Tarieven W&O'!$I$178/'Parameters ULL'!$E$58)/1000000 -> 0.01 | U25: ='Parameters ULL'!$E$17*'Annex 4 VULA'!$J$65/10000000 -> 0.08 | V25: ='EDC minus lijst ULL'!$K$7+'EDC minus lijst ULL'!$L$7 -> 0.20 | W25: 6.03 | X25: 7.00 | Z25: ADSL/VDSLsharedbestaand | AA25: 6.03 | AB25: =M25*'Parameters ULL'!$E$10 -> 35.00 | AC25: Best-effortOther | AD25: 0 | AE25: Standard | AF25: 0
C26: VULA | D26: telco-telco | E26: non-shared | F26: passief-LWAP | G26: Best-effort | H26: Standard | I26: Other | J26: P-to-MP | K26: =('Annex 4 VULA'!$J$32+IF(D26="NLS type 1/2/3",IF(E26="VDSL bonding",'Parameters ULL'!$E$31,'Parameters ULL'!$E$30)))/'Parameters ULL'!$E$10 -> 0.69 | L26: =('Annex 4 VULA'!$J$33/'Parameters ULL'!$E$10) -> 0.28 | M26: 0.97 | N26: =IF(E26="VDSL bonding",'Annex 4 VULA'!$J$25,IF(E26="non-shared",'Annex 4 VULA'!$J$23,'Annex 4 VULA'!$J$24)) -> 10.14 | O26: =IF(G26="Premium",IF(I26="≤2/2Mbps",0,'Annex 4 VULA'!$E$49),0) -> 0 | P26: =IF(H26="7x24 repairtime 8h",'Annex 4 VULA'!$J$81,0) -> 0 | Q26: =collocatie!$J$111 -> 0.01 | R26: =('Annex 4 VULA'!$J$88+40*'Annex 4 VULA'!$J$92+40*'Annex 4 VULA'!$J$93+40*'Annex 4 VULA'!$J$94+41*'Annex 4 VULA'!$J$95-'Annex 4 VULA'!$J$97)/'Parameters ULL'!$E$60/'Parameters ULL'!$E$58 -> 0.01 | S26: =IF(E26="VDSL bonding",2,1)*'Annex 4 VULA'!$J$27/'Annex 4 VULA'!$L$27/'Parameters ULL'!$E$58 -> 2.07 | T26: ='Parameters ULL'!$E$17*('Tarieven W&O'!$G$178+'Tarieven W&O'!$I$178/'Parameters ULL'!$E$58)/1000000 -> 0.01 | U26: ='Parameters ULL'!$E$17*'Annex 4 VULA'!$J$65/10000000 -> 0.08 | V26: ='EDC minus lijst ULL'!$K$7+'EDC minus lijst ULL'!$L$7 -> 0.20 | W26: 12.50 | X26: 13.47 | Z26: ADSL/VDSLnon-sharedbestaand | AA26: 12.50 | AB26: =M26*'Parameters ULL'!$E$10 -> 35.00 | AC26: Best-effortOther | AD26: 0 | AE26: Standard | AF26: 0
C27: VULA | D27: telco-telco | E27: shared | F27: passief-LWAP | G27: Premium | H27: Standard | I27: Other | J27: P-to-MP | K27: =('Annex 4 VULA'!$J$32+IF(D27="NLS type 1/2/3",IF(E27="VDSL bonding",'Parameters ULL'!$E$31,'Parameters ULL'!$E$30)))/'Parameters ULL'!$E$10 -> 0.69 | L27: =('Annex 4 VULA'!$J$33/'Parameters ULL'!$E$10) -> 0.28 | M27: 0.97 | N27: =IF(E27="VDSL bonding",'Annex 4 VULA'!$J$25,IF(E27="non-shared",'Annex 4 VULA'!$J$23,'Annex 4 VULA'!$J$24)) -> 3.67 | O27: =IF(G27="Premium",IF(I27="≤2/2Mbps",0,'Annex 4 VULA'!$E$49),0) -> 16.02 | P27: =IF(H27="7x24 repairtime 8h",'Annex 4 VULA'!$J$81,0) -> 0 | Q27: =collocatie!$J$111 -> 0.01 | R27: =('Annex 4 VULA'!$J$88+40*'Annex 4 VULA'!$J$92+40*'Annex 4 VULA'!$J$93+40*'Annex 4 VULA'!$J$94+41*'Annex 4 VULA'!$J$95-'Annex 4 VULA'!$J$97)/'Parameters ULL'!$E$60/'Parameters ULL'!$E$58 -> 0.01 | S27: =IF(E27="VDSL bonding",2,1)*'Annex 4 VULA'!$J$27/'Annex 4 VULA'!$L$27/'Parameters ULL'!$E$58 -> 2.07 | T27: ='Parameters ULL'!$E$17*('Tarieven W&O'!$G$178+'Tarieven W&O'!$I$178/'Parameters ULL'!$E$58)/1000000 -> 0.01 | U27: ='Parameters ULL'!$E$17*'Annex 4 VULA'!$J$65/10000000 -> 0.08 | V27: ='EDC minus lijst ULL'!$K$7+'EDC minus lijst ULL'!$L$7 -> 0.20 | W27: 22.05 | X27: 23.02 | Z27: ADSL/VDSLsharedbestaand | AA27: 6.03 | AB27: =M27*'Parameters ULL'!$E$10 -> 35.00 | AC27: PremiumOther | AD27: 16.02 | AE27: Standard | AF27: 0
C28: VULA | D28: telco-telco | E28: non-shared | F28: passief-LWAP | G28: Premium | H28: Standard | I28: Other | J28: P-to-MP | K28: =('Annex 4 VULA'!$J$32+IF(D28="NLS type 1/2/3",IF(E28="VDSL bonding",'Parameters ULL'!$E$31,'Parameters ULL'!$E$30)))/'Parameters ULL'!$E$10 -> 0.69 | L28: =('Annex 4 VULA'!$J$33/'Parameters ULL'!$E$10) -> 0.28 | M28: 0.97 | N28: =IF(E28="VDSL bonding",'Annex 4 VULA'!$J$25,IF(E28="non-shared",'Annex 4 VULA'!$J$23,'Annex 4 VULA'!$J$24)) -> 10.14 | O28: =IF(G28="Premium",IF(I28="≤2/2Mbps",0,'Annex 4 VULA'!$E$49),0) -> 16.02 | P28: =IF(H28="7x24 repairtime 8h",'Annex 4 VULA'!$J$81,0) -> 0 | Q28: =collocatie!$J$111 -> 0.01 | R28: =('Annex 4 VULA'!$J$88+40*'Annex 4 VULA'!$J$92+40*'Annex 4 VULA'!$J$93+40*'Annex 4 VULA'!$J$94+41*'Annex 4 VULA'!$J$95-'Annex 4 VULA'!$J$97)/'Parameters ULL'!$E$60/'Parameters ULL'!$E$58 -> 0.01 | S28: =IF(E28="VDSL bonding",2,1)*'Annex 4 VULA'!$J$27/'Annex 4 VULA'!$L$27/'Parameters ULL'!$E$58 -> 2.07 | T28: ='Parameters ULL'!$E$17*('Tarieven W&O'!$G$178+'Tarieven W&O'!$I$178/'Parameters ULL'!$E$58)/1000000 -> 0.01 | U28: ='Parameters ULL'!$E$17*'Annex 4 VULA'!$J$65/10000000 -> 0.08 | V28: ='EDC minus lijst ULL'!$K$7+'EDC minus lijst ULL'!$L$7 -> 0.20 | W28: 28.52 | X28: 29.49 | Z28: ADSL/VDSLnon-sharedbestaand | AA28: 12.50 | AB28: =M28*'Parameters ULL'!$E$10 -> 35.00 | AC28: PremiumOther | AD28: 16.02 | AE28: Standard | AF28: 0
C29: VULA | D29: telco-telco | E29: shared | F29: passief-LWAP | G29: Best-effort | H29: 7x24 repairtime 8h | I29: ≤2/2Mbps | J29: P-to-MP | K29: =('Annex 4 VULA'!$J$32+IF(D29="NLS type 1/2/3",IF(E29="VDSL bonding",'Parameters ULL'!$E$31,'Parameters ULL'!$E$30)))/'Parameters ULL'!$E$10 -> 0.69 | L29: =('Annex 4 VULA'!$J$33/'Parameters ULL'!$E$10) -> 0.28 | M29: 0.97 | N29: =IF(E29="VDSL bonding",'Annex 4 VULA'!$J$25,IF(E29="non-shared",'Annex 4 VULA'!$J$23,'Annex 4 VULA'!$J$24)) -> 3.67 | O29: =IF(G29="Premium",IF(I29="≤2/2Mbps",0,'Annex 4 VULA'!$E$49),0) -> 0 | P29: =IF(H29="7x24 repairtime 8h",'Annex 4 VULA'!$J$81,0) -> 8.13 | Q29: =collocatie!$J$111 -> 0.01 | R29: =('Annex 4 VULA'!$J$88+40*'Annex 4 VULA'!$J$92+40*'Annex 4 VULA'!$J$93+40*'Annex 4 VULA'!$J$94+41*'Annex 4 VULA'!$J$95-'Annex 4 VULA'!$J$97)/'Parameters ULL'!$E$60/'Parameters ULL'!$E$58 -> 0.01 | S29: =IF(E29="VDSL bonding",2,1)*'Annex 4 VULA'!$J$27/'Annex 4 VULA'!$L$27/'Parameters ULL'!$E$58 -> 2.07 | T29: ='Parameters ULL'!$E$17*('Tarieven W&O'!$G$178+'Tarieven W&O'!$I$178/'Parameters ULL'!$E$58)/1000000 -> 0.01 | U29: ='Parameters ULL'!$E$17*'Annex 4 VULA'!$J$65/10000000 -> 0.08 | V29: ='EDC minus lijst ULL'!$K$7+'EDC minus lijst ULL'!$L$7 -> 0.20 | W29: 14.16 | X29: 15.13 | Z29: ADSL/VDSLsharedbestaand | AA29: 6.03 | AB29: =M29*'Parameters ULL'!$E$10 -> 35.00 | AC29: Best-effort≤2/2Mbps | AD29: 0 | AE29: 7x24 repairtime 8h | AF29: 8.13
C30: VULA | D30: telco-telco | E30: non-shared | F30: passief-LWAP | G30: Best-effort | H30: 7x24 repairtime 8h | I30: ≤2/2Mbps | J30: P-to-MP | K30: =('Annex 4 VULA'!$J$32+IF(D30="NLS type 1/2/3",IF(E30="VDSL bonding",'Parameters ULL'!$E$31,'Parameters ULL'!$E$30)))/'Parameters ULL'!$E$10 -> 0.69 | L30: =('Annex 4 VULA'!$J$33/'Parameters ULL'!$E$10) -> 0.28 | M30: 0.97 | N30: =IF(E30="VDSL bonding",'Annex 4 VULA'!$J$25,IF(E30="non-shared",'Annex 4 VULA'!$J$23,'Annex 4 VULA'!$J$24)) -> 10.14 | O30: =IF(G30="Premium",IF(I30="≤2/2Mbps",0,'Annex 4 VULA'!$E$49),0) -> 0 | P30: =IF(H30="7x24 repairtime 8h",'Annex 4 VULA'!$J$81,0) -> 8.13 | Q30: =collocatie!$J$111 -> 0.01 | R30: =('Annex 4 VULA'!$J$88+40*'Annex 4 VULA'!$J$92+40*'Annex 4 VULA'!$J$93+40*'Annex 4 VULA'!$J$94+41*'Annex 4 VULA'!$J$95-'Annex 4 VULA'!$J$97)/'Parameters ULL'!$E$60/'Parameters ULL'!$E$58 -> 0.01 | S30: =IF(E30="VDSL bonding",2,1)*'Annex 4 VULA'!$J$27/'Annex 4 VULA'!$L$27/'Parameters ULL'!$E$58 -> 2.07 | T30: ='Parameters ULL'!$E$17*('Tarieven W&O'!$G$178+'Tarieven W&O'!$I$178/'Parameters ULL'!$E$58)/1000000 -> 0.01 | U30: ='Parameters ULL'!$E$17*'Annex 4 VULA'!$J$65/10000000 -> 0.08 | V30: ='EDC minus lijst ULL'!$K$7+'EDC minus lijst ULL'!$L$7 -> 0.20 | W30: 20.63 | X30: 21.60 | Z30: ADSL/VDSLnon-sharedbestaand | AA30: 12.50 | AB30: =M30*'Parameters ULL'!$E$10 -> 35.00 | AC30: Best-effort≤2/2Mbps | AD30: 0 | AE30: 7x24 repairtime 8h | AF30: 8.13
C31: VULA | D31: telco-telco | E31: shared | F31: passief-LWAP | G31: Premium | H31: 7x24 repairtime 8h | I31: ≤2/2Mbps | J31: P-to-MP | K31: =('Annex 4 VULA'!$J$32+IF(D31="NLS type 1/2/3",IF(E31="VDSL bonding",'Parameters ULL'!$E$31,'Parameters ULL'!$E$30)))/'Parameters ULL'!$E$10 -> 0.69 | L31: =('Annex 4 VULA'!$J$33/'Parameters ULL'!$E$10) -> 0.28 | M31: 0.97 | N31: =IF(E31="VDSL bonding",'Annex 4 VULA'!$J$25,IF(E31="non-shared",'Annex 4 VULA'!$J$23,'Annex 4 VULA'!$J$24)) -> 3.67 | O31: =IF(G31="Premium",IF(I31="≤2/2Mbps",0,'Annex 4 VULA'!$E$49),0) -> 0 | P31: =IF(H31="7x24 repairtime 8h",'Annex 4 VULA'!$J$81,0) -> 8.13 | Q31: =collocatie!$J$111 -> 0.01 | R31: =('Annex 4 VULA'!$J$88+40*'Annex 4 VULA'!$J$92+40*'Annex 4 VULA'!$J$93+40*'Annex 4 VULA'!$J$94+41*'Annex 4 VULA'!$J$95-'Annex 4 VULA'!$J$97)/'Parameters ULL'!$E$60/'Parameters ULL'!$E$58 -> 0.01 | S31: =IF(E31="VDSL bonding",2,1)*'Annex 4 VULA'!$J$27/'Annex 4 VULA'!$L$27/'Parameters ULL'!$E$58 -> 2.07 | T31: ='Parameters ULL'!$E$17*('Tarieven W&O'!$G$178+'Tarieven W&O'!$I$178/'Parameters ULL'!$E$58)/1000000 -> 0.01 | U31: ='Parameters ULL'!$E$17*'Annex 4 VULA'!$J$65/10000000 -> 0.08 | V31: ='EDC minus lijst ULL'!$K$7+'EDC minus lijst ULL'!$L$7 -> 0.20 | W31: 14.16 | X31: 15.13 | Z31: ADSL/VDSLsharedbestaand | AA31: 6.03 | AB31: =M31*'Parameters ULL'!$E$10 -> 35.00 | AC31: Premium≤2/2Mbps | AD31: 0 | AE31: 7x24 repairtime 8h | AF31: 8.13
C32: VULA | D32: telco-telco | E32: non-shared | F32: passief-LWAP | G32: Premium | H32: 7x24 repairtime 8h | I32: ≤2/2Mbps | J32: P-to-MP | K32: =('Annex 4 VULA'!$J$32+IF(D32="NLS type 1/2/3",IF(E32="VDSL bonding",'Parameters ULL'!$E$31,'Parameters ULL'!$E$30)))/'Parameters ULL'!$E$10 -> 0.69 | L32: =('Annex 4 VULA'!$J$33/'Parameters ULL'!$E$10) -> 0.28 | M32: 0.97 | N32: =IF(E32="VDSL bonding",'Annex 4 VULA'!$J$25,IF(E32="non-shared",'Annex 4 VULA'!$J$23,'Annex 4 VULA'!$J$24)) -> 10.14 | O32: =IF(G32="Premium",IF(I32="≤2/2Mbps",0,'Annex 4 VULA'!$E$49),0) -> 0 | P32: =IF(H32="7x24 repairtime 8h",'Annex 4 VULA'!$J$81,0) -> 8.13 | Q32: =collocatie!$J$111 -> 0.01 | R32: =('Annex 4 VULA'!$J$88+40*'Annex 4 VULA'!$J$92+40*'Annex 4 VULA'!$J$93+40*'Annex 4 VULA'!$J$94+41*'Annex 4 VULA'!$J$95-'Annex 4 VULA'!$J$97)/'Parameters ULL'!$E$60/'Parameters ULL'!$E$58 -> 0.01 | S32: =IF(E32="VDSL bonding",2,1)*'Annex 4 VULA'!$J$27/'Annex 4 VULA'!$L$27/'Parameters ULL'!$E$58 -> 2.07 | T32: ='Parameters ULL'!$E$17*('Tarieven W&O'!$G$178+'Tarieven W&O'!$I$178/'Parameters ULL'!$E$58)/1000000 -> 0.01 | U32: ='Parameters ULL'!$E$17*'Annex 4 VULA'!$J$65/10000000 -> 0.08 | V32: ='EDC minus lijst ULL'!$K$7+'EDC minus lijst ULL'!$L$7 -> 0.20 | W32: 20.63 | X32: 21.60 | Z32: ADSL/VDSLnon-sharedbestaand | AA32: 12.50 | AB32: =M32*'Parameters ULL'!$E$10 -> 35.00 | AC32: Premium≤2/2Mbps | AD32: 0 | AE32: 7x24 repairtime 8h | AF32: 8.13
C33: VULA | D33: telco-telco | E33: shared | F33: passief-LWAP | G33: Best-effort | H33: 7x24 repairtime 8h | I33: Other | J33: P-to-MP | K33: =('Annex 4 VULA'!$J$32+IF(D33="NLS type 1/2/3",IF(E33="VDSL bonding",'Parameters ULL'!$E$31,'Parameters ULL'!$E$30)))/'Parameters ULL'!$E$10 -> 0.69 | L33: =('Annex 4 VULA'!$J$33/'Parameters ULL'!$E$10) -> 0.28 | M33: 0.97 | N33: =IF(E33="VDSL bonding",'Annex 4 VULA'!$J$25,IF(E33="non-shared",'Annex 4 VULA'!$J$23,'Annex 4 VULA'!$J$24)) -> 3.67 | O33: =IF(G33="Premium",IF(I33="≤2/2Mbps",0,'Annex 4 VULA'!$E$49),0) -> 0 | P33: =IF(H33="7x24 repairtime 8h",'Annex 4 VULA'!$J$81,0) -> 8.13 | Q33: =collocatie!$J$111 -> 0.01 | R33: =('Annex 4 VULA'!$J$88+40*'Annex 4 VULA'!$J$92+40*'Annex 4 VULA'!$J$93+40*'Annex 4 VULA'!$J$94+41*'Annex 4 VULA'!$J$95-'Annex 4 VULA'!$J$97)/'Parameters ULL'!$E$60/'Parameters ULL'!$E$58 -> 0.01 | S33: =IF(E33="VDSL bonding",2,1)*'Annex 4 VULA'!$J$27/'Annex 4 VULA'!$L$27/'Parameters ULL'!$E$58 -> 2.07 | T33: ='Parameters ULL'!$E$17*('Tarieven W&O'!$G$178+'Tarieven W&O'!$I$178/'Parameters ULL'!$E$58)/1000000 -> 0.01 | U33: ='Parameters ULL'!$E$17*'Annex 4 VULA'!$J$65/10000000 -> 0.08 | V33: ='EDC minus lijst ULL'!$K$7+'EDC minus lijst ULL'!$L$7 -> 0.20 | W33: 14.16 | X33: 15.13 | Z33: ADSL/VDSLsharedbestaand | AA33: 6.03 | AB33: =M33*'Parameters ULL'!$E$10 -> 35.00 | AC33: Best-effortOther | AD33: 0 | AE33: 7x24 repairtime 8h | AF33: 8.13
C34: VULA | D34: telco-telco | E34: non-shared | F34: passief-LWAP | G34: Best-effort | H34: 7x24 repairtime 8h | I34: Other | J34: P-to-MP | K34: =('Annex 4 VULA'!$J$32+IF(D34="NLS type 1/2/3",IF(E34="VDSL bonding",'Parameters ULL'!$E$31,'Parameters ULL'!$E$30)))/'Parameters ULL'!$E$10 -> 0.69 | L34: =('Annex 4 VULA'!$J$33/'Parameters ULL'!$E$10) -> 0.28 | M34: 0.97 | N34: =IF(E34="VDSL bonding",'Annex 4 VULA'!$J$25,IF(E34="non-shared",'Annex 4 VULA'!$J$23,'Annex 4 VULA'!$J$24)) -> 10.14 | O34: =IF(G34="Premium",IF(I34="≤2/2Mbps",0,'Annex 4 VULA'!$E$49),0) -> 0 | P34: =IF(H34="7x24 repairtime 8h",'Annex 4 VULA'!$J$81,0) -> 8.13 | Q34: =collocatie!$J$111 -> 0.01 | R34: =('Annex 4 VULA'!$J$88+40*'Annex 4 VULA'!$J$92+40*'Annex 4 VULA'!$J$93+40*'Annex 4 VULA'!$J$94+41*'Annex 4 VULA'!$J$95-'Annex 4 VULA'!$J$97)/'Parameters ULL'!$E$60/'Parameters ULL'!$E$58 -> 0.01 | S34: =IF(E34="VDSL bonding",2,1)*'Annex 4 VULA'!$J$27/'Annex 4 VULA'!$L$27/'Parameters ULL'!$E$58 -> 2.07 | T34: ='Parameters ULL'!$E$17*('Tarieven W&O'!$G$178+'Tarieven W&O'!$I$178/'Parameters ULL'!$E$58)/1000000 -> 0.01 | U34: ='Parameters ULL'!$E$17*'Annex 4 VULA'!$J$65/10000000 -> 0.08 | V34: ='EDC minus lijst ULL'!$K$7+'EDC minus lijst ULL'!$L$7 -> 0.20 | W34: 20.63 | X34: 21.60 | Z34: ADSL/VDSLnon-sharedbestaand | AA34: 12.50 | AB34: =M34*'Parameters ULL'!$E$10 -> 35.00 | AC34: Best-effortOther | AD34: 0 | AE34: 7x24 repairtime 8h | AF34: 8.13
C35: VULA | D35: telco-telco | E35: shared | F35: passief-LWAP | G35: Premium | H35: 7x24 repairtime 8h | I35: Other | J35: P-to-MP | K35: =('Annex 4 VULA'!$J$32+IF(D35="NLS type 1/2/3",IF(E35="VDSL bonding",'Parameters ULL'!$E$31,'Parameters ULL'!$E$30)))/'Parameters ULL'!$E$10 -> 0.69 | L35: =('Annex 4 VULA'!$J$33/'Parameters ULL'!$E$10) -> 0.28 | M35: 0.97 | N35: =IF(E35="VDSL bonding",'Annex 4 VULA'!$J$25,IF(E35="non-shared",'Annex 4 VULA'!$J$23,'Annex 4 VULA'!$J$24)) -> 3.67 | O35: =IF(G35="Premium",IF(I35="≤2/2Mbps",0,'Annex 4 VULA'!$E$49),0) -> 16.02 | P35: =IF(H35="7x24 repairtime 8h",'Annex 4 VULA'!$J$81,0) -> 8.13 | Q35: =collocatie!$J$111 -> 0.01 | R35: =('Annex 4 VULA'!$J$88+40*'Annex 4 VULA'!$J$92+40*'Annex 4 VULA'!$J$93+40*'Annex 4 VULA'!$J$94+41*'Annex 4 VULA'!$J$95-'Annex 4 VULA'!$J$97)/'Parameters ULL'!$E$60/'Parameters ULL'!$E$58 -> 0.01 | S35: =IF(E35="VDSL bonding",2,1)*'Annex 4 VULA'!$J$27/'Annex 4 VULA'!$L$27/'Parameters ULL'!$E$58 -> 2.07 | T35: ='Parameters ULL'!$E$17*('Tarieven W&O'!$G$178+'Tarieven W&O'!$I$178/'Parameters ULL'!$E$58)/1000000 -> 0.01 | U35: ='Parameters ULL'!$E$17*'Annex 4 VULA'!$J$65/10000000 -> 0.08 | V35: ='EDC minus lijst ULL'!$K$7+'EDC minus lijst ULL'!$L$7 -> 0.20 | W35: 30.18 | X35: 31.15 | Z35: ADSL/VDSLsharedbestaand | AA35: 6.03 | AB35: =M35*'Parameters ULL'!$E$10 -> 35.00 | AC35: PremiumOther | AD35: 16.02 | AE35: 7x24 repairtime 8h | AF35: 8.13
C36: VULA | D36: telco-telco | E36: non-shared | F36: passief-LWAP | G36: Premium | H36: 7x24 repairtime 8h | I36: Other | J36: P-to-MP | K36: =('Annex 4 VULA'!$J$32+IF(D36="NLS type 1/2/3",IF(E36="VDSL bonding",'Parameters ULL'!$E$31,'Parameters ULL'!$E$30)))/'Parameters ULL'!$E$10 -> 0.69 | L36: =('Annex 4 VULA'!$J$33/'Parameters ULL'!$E$10) -> 0.28 | M36: 0.97 | N36: =IF(E36="VDSL bonding",'Annex 4 VULA'!$J$25,IF(E36="non-shared",'Annex 4 VULA'!$J$23,'Annex 4 VULA'!$J$24)) -> 10.14 | O36: =IF(G36="Premium",IF(I36="≤2/2Mbps",0,'Annex 4 VULA'!$E$49),0) -> 16.02 | P36: =IF(H36="7x24 repairtime 8h",'Annex 4 VULA'!$J$81,0) -> 8.13 | Q36: =collocatie!$J$111 -> 0.01 | R36: =('Annex 4 VULA'!$J$88+40*'Annex 4 VULA'!$J$92+40*'Annex 4 VULA'!$J$93+40*'Annex 4 VULA'!$J$94+41*'Annex 4 VULA'!$J$95-'Annex 4 VULA'!$J$97)/'Parameters ULL'!$E$60/'Parameters ULL'!$E$58 -> 0.01 | S36: =IF(E36="VDSL bonding",2,1)*'Annex 4 VULA'!$J$27/'Annex 4 VULA'!$L$27/'Parameters ULL'!$E$58 -> 2.07 | T36: ='Parameters ULL'!$E$17*('Tarieven W&O'!$G$178+'Tarieven W&O'!$I$178/'Parameters ULL'!$E$58)/1000000 -> 0.01 | U36: ='Parameters ULL'!$E$17*'Annex 4 VULA'!$J$65/10000000 -> 0.08 | V36: ='EDC minus lijst ULL'!$K$7+'EDC minus lijst ULL'!$L$7 -> 0.20 | W36: 36.65 | X36: 37.62 | Z36: ADSL/VDSLnon-sharedbestaand | AA36: 12.50 | AB36: =M36*'Parameters ULL'!$E$10 -> 35.00 | AC36: PremiumOther | AD36: 16.02 | AE36: 7x24 repairtime 8h | AF36: 8.13
C37: VULA | D37: NLS type 1/2/3 | E37: VDSL bonding | F37: passief-LWAP | G37: Best-effort | H37: Standard | I37: ≤2/2Mbps | J37: P-to-MP | K37: =('Annex 4 VULA'!$J$32+IF(D37="NLS type 1/2/3",IF(E37="VDSL bonding",'Parameters ULL'!$E$31,'Parameters ULL'!$E$30)))/'Parameters ULL'!$E$10 -> 0.69 | L37: =('Annex 4 VULA'!$J$33/'Parameters ULL'!$E$10) -> 0.28 | M37: 0.97 | N37: =IF(E37="VDSL bonding",'Annex 4 VULA'!$J$25,IF(E37="non-shared",'Annex 4 VULA'!$J$23,'Annex 4 VULA'!$J$24)) -> 12.36 | O37: =IF(G37="Premium",IF(I37="≤2/2Mbps",0,'Annex 4 VULA'!$E$49),0) -> 0 | P37: =IF(H37="7x24 repairtime 8h",'Annex 4 VULA'!$J$81,0) -> 0 | Q37: =collocatie!$J$111 -> 0.01 | R37: =('Annex 4 VULA'!$J$88+40*'Annex 4 VULA'!$J$92+40*'Annex 4 VULA'!$J$93+40*'Annex 4 VULA'!$J$94+41*'Annex 4 VULA'!$J$95-'Annex 4 VULA'!$J$97)/'Parameters ULL'!$E$60/'Parameters ULL'!$E$58 -> 0.01 | S37: =IF(E37="VDSL bonding",2,1)*'Annex 4 VULA'!$J$27/'Annex 4 VULA'!$L$27/'Parameters ULL'!$E$58 -> 4.13 | T37: ='Parameters ULL'!$E$17*('Tarieven W&O'!$G$178+'Tarieven W&O'!$I$178/'Parameters ULL'!$E$58)/1000000 -> 0.01 | U37: ='Parameters ULL'!$E$17*'Annex 4 VULA'!$J$65/10000000 -> 0.08 | V37: ='EDC minus lijst ULL'!$K$7+'EDC minus lijst ULL'!$L$7 -> 0.20 | W37: 16.79 | X37: 17.76 | Z37: VDSL bondingnon-sharednieuw | AA37: 16.79 | AB37: =M37*'Parameters ULL'!$E$10 -> 35.00 | AC37: Best-effort≤2/2Mbps | AD37: 0 | AE37: Standard | AF37: 0
C38: VULA | D38: NLS type 1/2/3 | E38: VDSL bonding | F38: passief-LWAP | G38: Premium | H38: Standard | I38: ≤2/2Mbps | J38: P-to-MP | K38: =('Annex 4 VULA'!$J$32+IF(D38="NLS type 1/2/3",IF(E38="VDSL bonding",'Parameters ULL'!$E$31,'Parameters ULL'!$E$30)))/'Parameters ULL'!$E$10 -> 0.69 | L38: =('Annex 4 VULA'!$J$33/'Parameters ULL'!$E$10) -> 0.28 | M38: 0.97 | N38: =IF(E38="VDSL bonding",'Annex 4 VULA'!$J$25,IF(E38="non-shared",'Annex 4 VULA'!$J$23,'Annex 4 VULA'!$J$24)) -> 12.36 | O38: =IF(G38="Premium",IF(I38="≤2/2Mbps",0,'Annex 4 VULA'!$E$49),0) -> 0 | P38: =IF(H38="7x24 repairtime 8h",'Annex 4 VULA'!$J$81,0) -> 0 | Q38: =collocatie!$J$111 -> 0.01 | R38: =('Annex 4 VULA'!$J$88+40*'Annex 4 VULA'!$J$92+40*'Annex 4 VULA'!$J$93+40*'Annex 4 VULA'!$J$94+41*'Annex 4 VULA'!$J$95-'Annex 4 VULA'!$J$97)/'Parameters ULL'!$E$60/'Parameters ULL'!$E$58 -> 0.01 | S38: =IF(E38="VDSL bonding",2,1)*'Annex 4 VULA'!$J$27/'Annex 4 VULA'!$L$27/'Parameters ULL'!$E$58 -> 4.13 | T38: ='Parameters ULL'!$E$17*('Tarieven W&O'!$G$178+'Tarieven W&O'!$I$178/'Parameters ULL'!$E$58)/1000000 -> 0.01 | U38: ='Parameters ULL'!$E$17*'Annex 4 VULA'!$J$65/10000000 -> 0.08 | V38: ='EDC minus lijst ULL'!$K$7+'EDC minus lijst ULL'!$L$7 -> 0.20 | W38: 16.79 | X38: 17.76 | Z38: VDSL bondingnon-sharednieuw | AA38: 16.79 | AB38: =M38*'Parameters ULL'!$E$10 -> 35.00 | AC38: Premium≤2/2Mbps | AD38: 0 | AE38: Standard | AF38: 0
C39: VULA | D39: NLS type 1/2/3 | E39: VDSL bonding | F39: passief-LWAP | G39: Best-effort | H39: Standard | I39: Other | J39: P-to-MP | K39: =('Annex 4 VULA'!$J$32+IF(D39="NLS type 1/2/3",IF(E39="VDSL bonding",'Parameters ULL'!$E$31,'Parameters ULL'!$E$30)))/'Parameters ULL'!$E$10 -> 0.69 | L39: =('Annex 4 VULA'!$J$33/'Parameters ULL'!$E$10) -> 0.28 | M39: 0.97 | N39: =IF(E39="VDSL bonding",'Annex 4 VULA'!$J$25,IF(E39="non-shared",'Annex 4 VULA'!$J$23,'Annex 4 VULA'!$J$24)) -> 12.36 | O39: =IF(G39="Premium",IF(I39="≤2/2Mbps",0,'Annex 4 VULA'!$E$49),0) -> 0 | P39: =IF(H39="7x24 repairtime 8h",'Annex 4 VULA'!$J$81,0) -> 0 | Q39: =collocatie!$J$111 -> 0.01 | R39: =('Annex 4 VULA'!$J$88+40*'Annex 4 VULA'!$J$92+40*'Annex 4 VULA'!$J$93+40*'Annex 4 VULA'!$J$94+41*'Annex 4 VULA'!$J$95-'Annex 4 VULA'!$J$97)/'Parameters ULL'!$E$60/'Parameters ULL'!$E$58 -> 0.01 | S39: =IF(E39="VDSL bonding",2,1)*'Annex 4 VULA'!$J$27/'Annex 4 VULA'!$L$27/'Parameters ULL'!$E$58 -> 4.13 | T39: ='Parameters ULL'!$E$17*('Tarieven W&O'!$G$178+'Tarieven W&O'!$I$178/'Parameters ULL'!$E$58)/1000000 -> 0.01 | U39: ='Parameters ULL'!$E$17*'Annex 4 VULA'!$J$65/10000000 -> 0.08 | V39: ='EDC minus lijst ULL'!$K$7+'EDC minus lijst ULL'!$L$7 -> 0.20 | W39: 16.79 | X39: 17.76 | Z39: VDSL bondingnon-sharednieuw | AA39: 16.79 | AB39: =M39*'Parameters ULL'!$E$10 -> 35.00 | AC39: Best-effortOther | AD39: 0 | AE39: Standard | AF39: 0
C40: VULA | D40: NLS type 1/2/3 | E40: VDSL bonding | F40: passief-LWAP | G40: Premium | H40: Standard | I40: Other | J40: P-to-MP | K40: =('Annex 4 VULA'!$J$32+IF(D40="NLS type 1/2/3",IF(E40="VDSL bonding",'Parameters ULL'!$E$31,'Parameters ULL'!$E$30)))/'Parameters ULL'!$E$10 -> 0.69 | L40: =('Annex 4 VULA'!$J$33/'Parameters ULL'!$E$10) -> 0.28 | M40: 0.97 | N40: =IF(E40="VDSL bonding",'Annex 4 VULA'!$J$25,IF(E40="non-shared",'Annex 4 VULA'!$J$23,'Annex 4 VULA'!$J$24)) -> 12.36 | O40: =IF(G40="Premium",IF(I40="≤2/2Mbps",0,'Annex 4 VULA'!$E$49),0) -> 16.02 | P40: =IF(H40="7x24 repairtime 8h",'Annex 4 VULA'!$J$81,0) -> 0 | Q40: =collocatie!$J$111 -> 0.01 | R40: =('Annex 4 VULA'!$J$88+40*'Annex 4 VULA'!$J$92+40*'Annex 4 VULA'!$J$93+40*'Annex 4 VULA'!$J$94+41*'Annex 4 VULA'!$J$95-'Annex 4 VULA'!$J$97)/'Parameters ULL'!$E$60/'Parameters ULL'!$E$58 -> 0.01 | S40: =IF(E40="VDSL bonding",2,1)*'Annex 4 VULA'!$J$27/'Annex 4 VULA'!$L$27/'Parameters ULL'!$E$58 -> 4.13 | T40: ='Parameters ULL'!$E$17*('Tarieven W&O'!$G$178+'Tarieven W&O'!$I$178/'Parameters ULL'!$E$58)/1000000 -> 0.01 | U40: ='Parameters ULL'!$E$17*'Annex 4 VULA'!$J$65/10000000 -> 0.08 | V40: ='EDC minus lijst ULL'!$K$7+'EDC minus lijst ULL'!$L$7 -> 0.20 | W40: 32.81 | X40: 33.78 | Z40: VDSL bondingnon-sharednieuw | AA40: 16.79 | AB40: =M40*'Parameters ULL'!$E$10 -> 35.00 | AC40: PremiumOther | AD40: 16.02 | AE40: Standard | AF40: 0
C41: VULA | D41: NLS type 1/2/3 | E41: VDSL bonding | F41: passief-LWAP | G41: Best-effort | H41: 7x24 repairtime 8h | I41: ≤2/2Mbps | J41: P-to-MP | K41: =('Annex 4 VULA'!$J$32+IF(D41="NLS type 1/2/3",IF(E41="VDSL bonding",'Parameters ULL'!$E$31,'Parameters ULL'!$E$30)))/'Parameters ULL'!$E$10 -> 0.69 | L41: =('Annex 4 VULA'!$J$33/'Parameters ULL'!$E$10) -> 0.28 | M41: 0.97 | N41: =IF(E41="VDSL bonding",'Annex 4 VULA'!$J$25,IF(E41="non-shared",'Annex 4 VULA'!$J$23,'Annex 4 VULA'!$J$24)) -> 12.36 | O41: =IF(G41="Premium",IF(I41="≤2/2Mbps",0,'Annex 4 VULA'!$E$49),0) -> 0 | P41: =IF(H41="7x24 repairtime 8h",'Annex 4 VULA'!$J$81,0) -> 8.13 | Q41: =collocatie!$J$111 -> 0.01 | R41: =('Annex 4 VULA'!$J$88+40*'Annex 4 VULA'!$J$92+40*'Annex 4 VULA'!$J$93+40*'Annex 4 VULA'!$J$94+41*'Annex 4 VULA'!$J$95-'Annex 4 VULA'!$J$97)/'Parameters ULL'!$E$60/'Parameters ULL'!$E$58 -> 0.01 | S41: =IF(E41="VDSL bonding",2,1)*'Annex 4 VULA'!$J$27/'Annex 4 VULA'!$L$27/'Parameters ULL'!$E$58 -> 4.13 | T41: ='Parameters ULL'!$E$17*('Tarieven W&O'!$G$178+'Tarieven W&O'!$I$178/'Parameters ULL'!$E$58)/1000000 -> 0.01 | U41: ='Parameters ULL'!$E$17*'Annex 4 VULA'!$J$65/10000000 -> 0.08 | V41: ='EDC minus lijst ULL'!$K$7+'EDC minus lijst ULL'!$L$7 -> 0.20 | W41: 24.92 | X41: 25.89 | Z41: VDSL bondingnon-sharednieuw | AA41: 16.79 | AB41: =M41*'Parameters ULL'!$E$10 -> 35.00 | AC41: Best-effort≤2/2Mbps | AD41: 0 | AE41: 7x24 repairtime 8h | AF41: 8.13
C42: VULA | D42: NLS type 1/2/3 | E42: VDSL bonding | F42: passief-LWAP | G42: Premium | H42: 7x24 repairtime 8h | I42: ≤2/2Mbps | J42: P-to-MP | K42: =('Annex 4 VULA'!$J$32+IF(D42="NLS type 1/2/3",IF(E42="VDSL bonding",'Parameters ULL'!$E$31,'Parameters ULL'!$E$30)))/'Parameters ULL'!$E$10 -> 0.69 | L42: =('Annex 4 VULA'!$J$33/'Parameters ULL'!$E$10) -> 0.28 | M42: 0.97 | N42: =IF(E42="VDSL bonding",'Annex 4 VULA'!$J$25,IF(E42="non-shared",'Annex 4 VULA'!$J$23,'Annex 4 VULA'!$J$24)) -> 12.36 | O42: =IF(G42="Premium",IF(I42="≤2/2Mbps",0,'Annex 4 VULA'!$E$49),0) -> 0 | P42: =IF(H42="7x24 repairtime 8h",'Annex 4 VULA'!$J$81,0) -> 8.13 | Q42: =collocatie!$J$111 -> 0.01 | R42: =('Annex 4 VULA'!$J$88+40*'Annex 4 VULA'!$J$92+40*'Annex 4 VULA'!$J$93+40*'Annex 4 VULA'!$J$94+41*'Annex 4 VULA'!$J$95-'Annex 4 VULA'!$J$97)/'Parameters ULL'!$E$60/'Parameters ULL'!$E$58 -> 0.01 | S42: =IF(E42="VDSL bonding",2,1)*'Annex 4 VULA'!$J$27/'Annex 4 VULA'!$L$27/'Parameters ULL'!$E$58 -> 4.13 | T42: ='Parameters ULL'!$E$17*('Tarieven W&O'!$G$178+'Tarieven W&O'!$I$178/'Parameters ULL'!$E$58)/1000000 -> 0.01 | U42: ='Parameters ULL'!$E$17*'Annex 4 VULA'!$J$65/10000000 -> 0.08 | V42: ='EDC minus lijst ULL'!$K$7+'EDC minus lijst ULL'!$L$7 -> 0.20 | W42: 24.92 | X42: 25.89 | Z42: VDSL bondingnon-sharednieuw | AA42: 16.79 | AB42: =M42*'Parameters ULL'!$E$10 -> 35.00 | AC42: Premium≤2/2Mbps | AD42: 0 | AE42: 7x24 repairtime 8h | AF42: 8.13
C43: VULA | D43: NLS type 1/2/3 | E43: VDSL bonding | F43: passief-LWAP | G43: Best-effort | H43: 7x24 repairtime 8h | I43: Other | J43: P-to-MP | K43: =('Annex 4 VULA'!$J$32+IF(D43="NLS type 1/2/3",IF(E43="VDSL bonding",'Parameters ULL'!$E$31,'Parameters ULL'!$E$30)))/'Parameters ULL'!$E$10 -> 0.69 | L43: =('Annex 4 VULA'!$J$33/'Parameters ULL'!$E$10) -> 0.28 | M43: 0.97 | N43: =IF(E43="VDSL bonding",'Annex 4 VULA'!$J$25,IF(E43="non-shared",'Annex 4 VULA'!$J$23,'Annex 4 VULA'!$J$24)) -> 12.36 | O43: =IF(G43="Premium",IF(I43="≤2/2Mbps",0,'Annex 4 VULA'!$E$49),0) -> 0 | P43: =IF(H43="7x24 repairtime 8h",'Annex 4 VULA'!$J$81,0) -> 8.13 | Q43: =collocatie!$J$111 -> 0.01 | R43: =('Annex 4 VULA'!$J$88+40*'Annex 4 VULA'!$J$92+40*'Annex 4 VULA'!$J$93+40*'Annex 4 VULA'!$J$94+41*'Annex 4 VULA'!$J$95-'Annex 4 VULA'!$J$97)/'Parameters ULL'!$E$60/'Parameters ULL'!$E$58 -> 0.01 | S43: =IF(E43="VDSL bonding",2,1)*'Annex 4 VULA'!$J$27/'Annex 4 VULA'!$L$27/'Parameters ULL'!$E$58 -> 4.13 | T43: ='Parameters ULL'!$E$17*('Tarieven W&O'!$G$178+'Tarieven W&O'!$I$178/'Parameters ULL'!$E$58)/1000000 -> 0.01 | U43: ='Parameters ULL'!$E$17*'Annex 4 VULA'!$J$65/10000000 -> 0.08 | V43: ='EDC minus lijst ULL'!$K$7+'EDC minus lijst ULL'!$L$7 -> 0.20 | W43: 24.92 | X43: 25.89 | Z43: VDSL bondingnon-sharednieuw | AA43: 16.79 | AB43: =M43*'Parameters ULL'!$E$10 -> 35.00 | AC43: Best-effortOther | AD43: 0 | AE43: 7x24 repairtime 8h | AF43: 8.13
C44: VULA | D44: NLS type 1/2/3 | E44: VDSL bonding | F44: passief-LWAP | G44: Premium | H44: 7x24 repairtime 8h | I44: Other | J44: P-to-MP | K44: =('Annex 4 VULA'!$J$32+IF(D44="NLS type 1/2/3",IF(E44="VDSL bonding",'Parameters ULL'!$E$31,'Parameters ULL'!$E$30)))/'Parameters ULL'!$E$10 -> 0.69 | L44: =('Annex 4 VULA'!$J$33/'Parameters ULL'!$E$10) -> 0.28 | M44: 0.97 | N44: =IF(E44="VDSL bonding",'Annex 4 VULA'!$J$25,IF(E44="non-shared",'Annex 4 VULA'!$J$23,'Annex 4 VULA'!$J$24)) -> 12.36 | O44: =IF(G44="Premium",IF(I44="≤2/2Mbps",0,'Annex 4 VULA'!$E$49),0) -> 16.02 | P44: =IF(H44="7x24 repairtime 8h",'Annex 4 VULA'!$J$81,0) -> 8.13 | Q44: =collocatie!$J$111 -> 0.01 | R44: =('Annex 4 VULA'!$J$88+40*'Annex 4 VULA'!$J$92+40*'Annex 4 VULA'!$J$93+40*'Annex 4 VULA'!$J$94+41*'Annex 4 VULA'!$J$95-'Annex 4 VULA'!$J$97)/'Parameters ULL'!$E$60/'Parameters ULL'!$E$58 -> 0.01 | S44: =IF(E44="VDSL bonding",2,1)*'Annex 4 VULA'!$J$27/'Annex 4 VULA'!$L$27/'Parameters ULL'!$E$58 -> 4.13 | T44: ='Parameters ULL'!$E$17*('Tarieven W&O'!$G$178+'Tarieven W&O'!$I$178/'Parameters ULL'!$E$58)/1000000 -> 0.01 | U44: ='Parameters ULL'!$E$17*'Annex 4 VULA'!$J$65/10000000 -> 0.08 | V44: ='EDC minus lijst ULL'!$K$7+'EDC minus lijst ULL'!$L$7 -> 0.20 | W44: 40.94 | X44: 41.91 | Z44: VDSL bondingnon-sharednieuw | AA44: 16.79 | AB44: =M44*'Parameters ULL'!$E$10 -> 35.00 | AC44: PremiumOther | AD44: 16.02 | AE44: 7x24 repairtime 8h | AF44: 8.13
C45: VULA | D45: telco-telco | E45: VDSL bonding | F45: passief-LWAP | G45: Best-effort | H45: Standard | I45: ≤2/2Mbps | J45: P-to-MP | K45: =('Annex 4 VULA'!$J$32+IF(D45="NLS type 1/2/3",IF(E45="VDSL bonding",'Parameters ULL'!$E$31,'Parameters ULL'!$E$30)))/'Parameters ULL'!$E$10 -> 0.69 | L45: =('Annex 4 VULA'!$J$33/'Parameters ULL'!$E$10) -> 0.28 | M45: 0.97 | N45: =IF(E45="VDSL bonding",'Annex 4 VULA'!$J$25,IF(E45="non-shared",'Annex 4 VULA'!$J$23,'Annex 4 VULA'!$J$24)) -> 12.36 | O45: =IF(G45="Premium",IF(I45="≤2/2Mbps",0,'Annex 4 VULA'!$E$49),0) -> 0 | P45: =IF(H45="7x24 repairtime 8h",'Annex 4 VULA'!$J$81,0) -> 0 | Q45: =collocatie!$J$111 -> 0.01 | R45: =('Annex 4 VULA'!$J$88+40*'Annex 4 VULA'!$J$92+40*'Annex 4 VULA'!$J$93+40*'Annex 4 VULA'!$J$94+41*'Annex 4 VULA'!$J$95-'Annex 4 VULA'!$J$97)/'Parameters ULL'!$E$60/'Parameters ULL'!$E$58 -> 0.01 | S45: =IF(E45="VDSL bonding",2,1)*'Annex 4 VULA'!$J$27/'Annex 4 VULA'!$L$27/'Parameters ULL'!$E$58 -> 4.13 | T45: ='Parameters ULL'!$E$17*('Tarieven W&O'!$G$178+'Tarieven W&O'!$I$178/'Parameters ULL'!$E$58)/1000000 -> 0.01 | U45: ='Parameters ULL'!$E$17*'Annex 4 VULA'!$J$65/10000000 -> 0.08 | V45: ='EDC minus lijst ULL'!$K$7+'EDC minus lijst ULL'!$L$7 -> 0.20 | W45: 16.79 | X45: 17.76 | AA45: 16.79 | AB45: =M45*'Parameters ULL'!$E$10 -> 35.00 | AC45: Best-effort≤2/2Mbps | AD45: 0 | AE45: Standard | AF45: 0
C46: VULA | D46: telco-telco | E46: VDSL bonding | F46: passief-LWAP | G46: Premium | H46: Standard | I46: ≤2/2Mbps | J46: P-to-MP | K46: =('Annex 4 VULA'!$J$32+IF(D46="NLS type 1/2/3",IF(E46="VDSL bonding",'Parameters ULL'!$E$31,'Parameters ULL'!$E$30)))/'Parameters ULL'!$E$10 -> 0.69 | L46: =('Annex 4 VULA'!$J$33/'Parameters ULL'!$E$10) -> 0.28 | M46: 0.97 | N46: =IF(E46="VDSL bonding",'Annex 4 VULA'!$J$25,IF(E46="non-shared",'Annex 4 VULA'!$J$23,'Annex 4 VULA'!$J$24)) -> 12.36 | O46: =IF(G46="Premium",IF(I46="≤2/2Mbps",0,'Annex 4 VULA'!$E$49),0) -> 0 | P46: =IF(H46="7x24 repairtime 8h",'Annex 4 VULA'!$J$81,0) -> 0 | Q46: =collocatie!$J$111 -> 0.01 | R46: =('Annex 4 VULA'!$J$88+40*'Annex 4 VULA'!$J$92+40*'Annex 4 VULA'!$J$93+40*'Annex 4 VULA'!$J$94+41*'Annex 4 VULA'!$J$95-'Annex 4 VULA'!$J$97)/'Parameters ULL'!$E$60/'Parameters ULL'!$E$58 -> 0.01 | S46: =IF(E46="VDSL bonding",2,1)*'Annex 4 VULA'!$J$27/'Annex 4 VULA'!$L$27/'Parameters ULL'!$E$58 -> 4.13 | T46: ='Parameters ULL'!$E$17*('Tarieven W&O'!$G$178+'Tarieven W&O'!$I$178/'Parameters ULL'!$E$58)/1000000 -> 0.01 | U46: ='Parameters ULL'!$E$17*'Annex 4 VULA'!$J$65/10000000 -> 0.08 | V46: ='EDC minus lijst ULL'!$K$7+'EDC minus lijst ULL'!$L$7 -> 0.20 | W46: 16.79 | X46: 17.76 | AA46: 16.79 | AB46: =M46*'Parameters ULL'!$E$10 -> 35.00 | AC46: Premium≤2/2Mbps | AD46: 0 | AE46: Standard | AF46: 0
C47: VULA | D47: telco-telco | E47: VDSL bonding | F47: passief-LWAP | G47: Best-effort | H47: Standard | I47: Other | J47: P-to-MP | K47: =('Annex 4 VULA'!$J$32+IF(D47="NLS type 1/2/3",IF(E47="VDSL bonding",'Parameters ULL'!$E$31,'Parameters ULL'!$E$30)))/'Parameters ULL'!$E$10 -> 0.69 | L47: =('Annex 4 VULA'!$J$33/'Parameters ULL'!$E$10) -> 0.28 | M47: 0.97 | N47: =IF(E47="VDSL bonding",'Annex 4 VULA'!$J$25,IF(E47="non-shared",'Annex 4 VULA'!$J$23,'Annex 4 VULA'!$J$24)) -> 12.36 | O47: =IF(G47="Premium",IF(I47="≤2/2Mbps",0,'Annex 4 VULA'!$E$49),0) -> 0 | P47: =IF(H47="7x24 repairtime 8h",'Annex 4 VULA'!$J$81,0) -> 0 | Q47: =collocatie!$J$111 -> 0.01 | R47: =('Annex 4 VULA'!$J$88+40*'Annex 4 VULA'!$J$92+40*'Annex 4 VULA'!$J$93+40*'Annex 4 VULA'!$J$94+41*'Annex 4 VULA'!$J$95-'Annex 4 VULA'!$J$97)/'Parameters ULL'!$E$60/'Parameters ULL'!$E$58 -> 0.01 | S47: =IF(E47="VDSL bonding",2,1)*'Annex 4 VULA'!$J$27/'Annex 4 VULA'!$L$27/'Parameters ULL'!$E$58 -> 4.13 | T47: ='Parameters ULL'!$E$17*('Tarieven W&O'!$G$178+'Tarieven W&O'!$I$178/'Parameters ULL'!$E$58)/1000000 -> 0.01 | U47: ='Parameters ULL'!$E$17*'Annex 4 VULA'!$J$65/10000000 -> 0.08 | V47: ='EDC minus lijst ULL'!$K$7+'EDC minus lijst ULL'!$L$7 -> 0.20 | W47: 16.79 | X47: 17.76 | AA47: 16.79 | AB47: =M47*'Parameters ULL'!$E$10 -> 35.00 | AC47: Best-effortOther | AD47: 0 | AE47: Standard | AF47: 0
C48: VULA | D48: telco-telco | E48: VDSL bonding | F48: passief-LWAP | G48: Premium | H48: Standard | I48: Other | J48: P-to-MP | K48: =('Annex 4 VULA'!$J$32+IF(D48="NLS type 1/2/3",IF(E48="VDSL bonding",'Parameters ULL'!$E$31,'Parameters ULL'!$E$30)))/'Parameters ULL'!$E$10 -> 0.69 | L48: =('Annex 4 VULA'!$J$33/'Parameters ULL'!$E$10) -> 0.28 | M48: 0.97 | N48: =IF(E48="VDSL bonding",'Annex 4 VULA'!$J$25,IF(E48="non-shared",'Annex 4 VULA'!$J$23,'Annex 4 VULA'!$J$24)) -> 12.36 | O48: =IF(G48="Premium",IF(I48="≤2/2Mbps",0,'Annex 4 VULA'!$E$49),0) -> 16.02 | P48: =IF(H48="7x24 repairtime 8h",'Annex 4 VULA'!$J$81,0) -> 0 | Q48: =collocatie!$J$111 -> 0.01 | R48: =('Annex 4 VULA'!$J$88+40*'Annex 4 VULA'!$J$92+40*'Annex 4 VULA'!$J$93+40*'Annex 4 VULA'!$J$94+41*'Annex 4 VULA'!$J$95-'Annex 4 VULA'!$J$97)/'Parameters ULL'!$E$60/'Parameters ULL'!$E$58 -> 0.01 | S48: =IF(E48="VDSL bonding",2,1)*'Annex 4 VULA'!$J$27/'Annex 4 VULA'!$L$27/'Parameters ULL'!$E$58 -> 4.13 | T48: ='Parameters ULL'!$E$17*('Tarieven W&O'!$G$178+'Tarieven W&O'!$I$178/'Parameters ULL'!$E$58)/1000000 -> 0.01 | U48: ='Parameters ULL'!$E$17*'Annex 4 VULA'!$J$65/10000000 -> 0.08 | V48: ='EDC minus lijst ULL'!$K$7+'EDC minus lijst ULL'!$L$7 -> 0.20 | W48: 32.81 | X48: 33.78 | AA48: 16.79 | AB48: =M48*'Parameters ULL'!$E$10 -> 35.00 | AC48: PremiumOther | AD48: 16.02 | AE48: Standard | AF48: 0
C49: VULA | D49: telco-telco | E49: VDSL bonding | F49: passief-LWAP | G49: Best-effort | H49: 7x24 repairtime 8h | I49: ≤2/2Mbps | J49: P-to-MP | K49: =('Annex 4 VULA'!$J$32+IF(D49="NLS type 1/2/3",IF(E49="VDSL bonding",'Parameters ULL'!$E$31,'Parameters ULL'!$E$30)))/'Parameters ULL'!$E$10 -> 0.69 | L49: =('Annex 4 VULA'!$J$33/'Parameters ULL'!$E$10) -> 0.28 | M49: 0.97 | N49: =IF(E49="VDSL bonding",'Annex 4 VULA'!$J$25,IF(E49="non-shared",'Annex 4 VULA'!$J$23,'Annex 4 VULA'!$J$24)) -> 12.36 | O49: =IF(G49="Premium",IF(I49="≤2/2Mbps",0,'Annex 4 VULA'!$E$49),0) -> 0 | P49: =IF(H49="7x24 repairtime 8h",'Annex 4 VULA'!$J$81,0) -> 8.13 | Q49: =collocatie!$J$111 -> 0.01 | R49: =('Annex 4 VULA'!$J$88+40*'Annex 4 VULA'!$J$92+40*'Annex 4 VULA'!$J$93+40*'Annex 4 VULA'!$J$94+41*'Annex 4 VULA'!$J$95-'Annex 4 VULA'!$J$97)/'Parameters ULL'!$E$60/'Parameters ULL'!$E$58 -> 0.01 | S49: =IF(E49="VDSL bonding",2,1)*'Annex 4 VULA'!$J$27/'Annex 4 VULA'!$L$27/'Parameters ULL'!$E$58 -> 4.13 | T49: ='Parameters ULL'!$E$17*('Tarieven W&O'!$G$178+'Tarieven W&O'!$I$178/'Parameters ULL'!$E$58)/1000000 -> 0.01 | U49: ='Parameters ULL'!$E$17*'Annex 4 VULA'!$J$65/10000000 -> 0.08 | V49: ='EDC minus lijst ULL'!$K$7+'EDC minus lijst ULL'!$L$7 -> 0.20 | W49: 24.92 | X49: 25.89 | AA49: 16.79 | AB49: =M49*'Parameters ULL'!$E$10 -> 35.00 | AC49: Best-effort≤2/2Mbps | AD49: 0 | AE49: 7x24 repairtime 8h | AF49: 8.13
C50: VULA | D50: telco-telco | E50: VDSL bonding | F50: passief-LWAP | G50: Premium | H50: 7x24 repairtime 8h | I50: ≤2/2Mbps | J50: P-to-MP | K50: =('Annex 4 VULA'!$J$32+IF(D50="NLS type 1/2/3",IF(E50="VDSL bonding",'Parameters ULL'!$E$31,'Parameters ULL'!$E$30)))/'Parameters ULL'!$E$10 -> 0.69 | L50: =('Annex 4 VULA'!$J$33/'Parameters ULL'!$E$10) -> 0.28 | M50: 0.97 | N50: =IF(E50="VDSL bonding",'Annex 4 VULA'!$J$25,IF(E50="non-shared",'Annex 4 VULA'!$J$23,'Annex 4 VULA'!$J$24)) -> 12.36 | O50: =IF(G50="Premium",IF(I50="≤2/2Mbps",0,'Annex 4 VULA'!$E$49),0) -> 0 | P50: =IF(H50="7x24 repairtime 8h",'Annex 4 VULA'!$J$81,0) -> 8.13 | Q50: =collocatie!$J$111 -> 0.01 | R50: =('Annex 4 VULA'!$J$88+40*'Annex 4 VULA'!$J$92+40*'Annex 4 VULA'!$J$93+40*'Annex 4 VULA'!$J$94+41*'Annex 4 VULA'!$J$95-'Annex 4 VULA'!$J$97)/'Parameters ULL'!$E$60/'Parameters ULL'!$E$58 -> 0.01 | S50: =IF(E50="VDSL bonding",2,1)*'Annex 4 VULA'!$J$27/'Annex 4 VULA'!$L$27/'Parameters ULL'!$E$58 -> 4.13 | T50: ='Parameters ULL'!$E$17*('Tarieven W&O'!$G$178+'Tarieven W&O'!$I$178/'Parameters ULL'!$E$58)/1000000 -> 0.01 | U50: ='Parameters ULL'!$E$17*'Annex 4 VULA'!$J$65/10000000 -> 0.08 | V50: ='EDC minus lijst ULL'!$K$7+'EDC minus lijst ULL'!$L$7 -> 0.20 | W50: 24.92 | X50: 25.89 | AA50: 16.79 | AB50: =M50*'Parameters ULL'!$E$10 -> 35.00 | AC50: Premium≤2/2Mbps | AD50: 0 | AE50: 7x24 repairtime 8h | AF50: 8.13
C51: VULA | D51: telco-telco | E51: VDSL bonding | F51: passief-LWAP | G51: Best-effort | H51: 7x24 repairtime 8h | I51: Other | J51: P-to-MP | K51: =('Annex 4 VULA'!$J$32+IF(D51="NLS type 1/2/3",IF(E51="VDSL bonding",'Parameters ULL'!$E$31,'Parameters ULL'!$E$30)))/'Parameters ULL'!$E$10 -> 0.69 | L51: =('Annex 4 VULA'!$J$33/'Parameters ULL'!$E$10) -> 0.28 | M51: 0.97 | N51: =IF(E51="VDSL bonding",'Annex 4 VULA'!$J$25,IF(E51="non-shared",'Annex 4 VULA'!$J$23,'Annex 4 VULA'!$J$24)) -> 12.36 | O51: =IF(G51="Premium",IF(I51="≤2/2Mbps",0,'Annex 4 VULA'!$E$49),0) -> 0 | P51: =IF(H51="7x24 repairtime 8h",'Annex 4 VULA'!$J$81,0) -> 8.13 | Q51: =collocatie!$J$111 -> 0.01 | R51: =('Annex 4 VULA'!$J$88+40*'Annex 4 VULA'!$J$92+40*'Annex 4 VULA'!$J$93+40*'Annex 4 VULA'!$J$94+41*'Annex 4 VULA'!$J$95-'Annex 4 VULA'!$J$97)/'Parameters ULL'!$E$60/'Parameters ULL'!$E$58 -> 0.01 | S51: =IF(E51="VDSL bonding",2,1)*'Annex 4 VULA'!$J$27/'Annex 4 VULA'!$L$27/'Parameters ULL'!$E$58 -> 4.13 | T51: ='Parameters ULL'!$E$17*('Tarieven W&O'!$G$178+'Tarieven W&O'!$I$178/'Parameters ULL'!$E$58)/1000000 -> 0.01 | U51: ='Parameters ULL'!$E$17*'Annex 4 VULA'!$J$65/10000000 -> 0.08 | V51: ='EDC minus lijst ULL'!$K$7+'EDC minus lijst ULL'!$L$7 -> 0.20 | W51: 24.92 | X51: 25.89 | AA51: 16.79 | AB51: =M51*'Parameters ULL'!$E$10 -> 35.00 | AC51: Best-effortOther | AD51: 0 | AE51: 7x24 repairtime 8h | AF51: 8.13
C52: VULA | D52: telco-telco | E52: VDSL bonding | F52: passief-LWAP | G52: Premium | H52: 7x24 repairtime 8h | I52: Other | J52: P-to-MP | K52: =('Annex 4 VULA'!$J$32+IF(D52="NLS type 1/2/3",IF(E52="VDSL bonding",'Parameters ULL'!$E$31,'Parameters ULL'!$E$30)))/'Parameters ULL'!$E$10 -> 0.69 | L52: =('Annex 4 VULA'!$J$33/'Parameters ULL'!$E$10) -> 0.28 | M52: 0.97 | N52: =IF(E52="VDSL bonding",'Annex 4 VULA'!$J$25,IF(E52="non-shared",'Annex 4 VULA'!$J$23,'Annex 4 VULA'!$J$24)) -> 12.36 | O52: =IF(G52="Premium",IF(I52="≤2/2Mbps",0,'Annex 4 VULA'!$E$49),0) -> 16.02 | P52: =IF(H52="7x24 repairtime 8h",'Annex 4 VULA'!$J$81,0) -> 8.13 | Q52: =collocatie!$J$111 -> 0.01 | R52: =('Annex 4 VULA'!$J$88+40*'Annex 4 VULA'!$J$92+40*'Annex 4 VULA'!$J$93+40*'Annex 4 VULA'!$J$94+41*'Annex 4 VULA'!$J$95-'Annex 4 VULA'!$J$97)/'Parameters ULL'!$E$60/'Parameters ULL'!$E$58 -> 0.01 | S52: =IF(E52="VDSL bonding",2,1)*'Annex 4 VULA'!$J$27/'Annex 4 VULA'!$L$27/'Parameters ULL'!$E$58 -> 4.13 | T52: ='Parameters ULL'!$E$17*('Tarieven W&O'!$G$178+'Tarieven W&O'!$I$178/'Parameters ULL'!$E$58)/1000000 -> 0.01 | U52: ='Parameters ULL'!$E$17*'Annex 4 VULA'!$J$65/10000000 -> 0.08 | V52: ='EDC minus lijst ULL'!$K$7+'EDC minus lijst ULL'!$L$7 -> 0.20 | W52: 40.94 | X52: 41.91 | AA52: 16.79 | AB52: =M52*'Parameters ULL'!$E$10 -> 35.00 | AC52: PremiumOther | AD52: 16.02 | AE52: 7x24 repairtime 8h | AF52: 8.13

Sheet inkoop MDF SDSL
C2: =UPPER(MID(CELL("filename",A1),FIND("[",CELL("filename",A1))+1,FIND("]",CELL("filename",A1))-FIND("[",CELL("filename",A1))-5)) -> LPM MB15 - EPACITY DSL 20170201 OPENBAAR.
C3: =UPPER(MID(CELL("filename",A2),FIND("]",CELL("filename",A2))+1,LEN(CELL("filename",A2)))) -> INKOOP MDF SDSL
E7: # varianten: | F7: =COUNTA($C$13:$C$4611) -> 6
J9: VVE Tarief | K9: VVE Tarief | L9: VVE Tarief | M9: VVA Tarief | N9: VVA Tarief | O9: VVA Tarief | P9: VVA Tarief | Q9: Kosten | R9: Kosten | S9: VVA Tarief | T9: Tarieven
C10: Dienstfamilie | D10: Connect type | E10: Access type | F10: Geografische toets | G10: SLA | I10: Configuratie | J10: Connect | K10: Disconnect | L10: Sum VVE | M10: MDF | N10: SLA | O10: xIP | P10: Collo | Q10: EDC minus kosten tot MC | R10: EDC minus kosten boven MC | S10: Sum VVA | T10: Sum VVE + VVA tarief | V10: sleutel access | W10: access excl QoS en SLA | X10: access excl QoS en SLA | Y10: sleutel SLA | Z10: SLA kosten
W11: VVA | X11: VVE
C12: MDF SDSL
C13: MDF SDSL | D13: NLS type 1/2/3 | E13: non-shared | F13: passief-LWAP | G13: Standard | I13: P-to-MP | J13: =IF(D13="NLS type 1/2/3",'Parameters ULL'!$E$28,INDEX('Inkoop tarief elementen'!$D$10:$F$18,MATCH(D13,'Inkoop tarief elementen'!$C$10:$C$18,0),MATCH(E13,'Inkoop tarief elementen'!$D$9:$F$9,0)))/'Parameters ULL'!$E$10 -> 1.97 | K13: =INDEX('Inkoop tarief elementen'!$E$21:$E$23,MATCH('inkoop VULA'!$E16,'Inkoop tarief elementen'!$D$21:$D$23,0))/'Parameters ULL'!$E$10 -> 0.17 | L13: =SUM(J13:K13) -> 2.14 | M13: =INDEX('Inkoop tarief elementen'!$E$26:$E$28,MATCH($E13,'Inkoop tarief elementen'!$D$26:$D$28,0)) -> 7.93 | N13: =IF(G13="7x24 repairtime 8h",'Inkoop tarief elementen'!$E$38,0) -> 0 | O13: ='Inkoop tarief elementen'!$E$33/'Parameters ULL'!$E$10 -> 0.06 | P13: =collocatie!$J$82 -> 1.00 | Q13: ='EDC minus lijst ULL'!$D$6+'EDC minus lijst ULL'!$E$6 -> 0.20 | R13: ='EDC minus lijst ULL'!$K$6+'EDC minus lijst ULL'!$L$6 -> 0.20 | S13: =SUM(M13:R13) -> 9.39 | T13: =L13+S13 -> 11.52 | V13: =IF(AND(D13="telco-telco",E13="shared"),"",IF(D13="NLS type 1/2/3","SDSLnon-sharednieuw","SDSLnon-sharedbestaand")) -> SDSLnon-sharednieuw | W13: =S13-Z13 -> 9.39 | X13: =L13*'Parameters ULL'!$E$10 -> 76.96 | Y13: =G13 -> Standard | Z13: =N13 -> 0
C14: MDF SDSL | D14: NLS type 1/2/3 | E14: non-shared | F14: passief-LWAP | G14: 7x24 repairtime 8h | I14: P-to-MP | J14: =IF(D14="NLS type 1/2/3",'Parameters ULL'!$E$28,INDEX('Inkoop tarief elementen'!$D$10:$F$18,MATCH(D14,'Inkoop tarief elementen'!$C$10:$C$18,0),MATCH(E14,'Inkoop tarief elementen'!$D$9:$F$9,0)))/'Parameters ULL'!$E$10 -> 1.97 | K14: =INDEX('Inkoop tarief elementen'!$E$21:$E$23,MATCH('inkoop VULA'!$E20,'Inkoop tarief elementen'!$D$21:$D$23,0))/'Parameters ULL'!$E$10 -> 0.17 | L14: =SUM(J14:K14) -> 2.14 | M14: =INDEX('Inkoop tarief elementen'!$E$26:$E$28,MATCH($E14,'Inkoop tarief elementen'!$D$26:$D$28,0)) -> 7.93 | N14: =IF(G14="7x24 repairtime 8h",'Inkoop tarief elementen'!$E$38,0) -> 2.39 | O14: ='Inkoop tarief elementen'!$E$33/'Parameters ULL'!$E$10 -> 0.06 | P14: =collocatie!$J$82 -> 1.00 | Q14: ='EDC minus lijst ULL'!$D$6+'EDC minus lijst ULL'!$E$6 -> 0.20 | R14: ='EDC minus lijst ULL'!$K$6+'EDC minus lijst ULL'!$L$6 -> 0.20 | S14: =SUM(M14:R14) -> 11.78 | T14: =L14+S14 -> 13.91 | V14: =IF(AND(D14="telco-telco",E14="shared"),"",IF(D14="NLS type 1/2/3","SDSLnon-sharednieuw","SDSLnon-sharedbestaand")) -> SDSLnon-sharednieuw | W14: =S14-Z14 -> 9.39 | X14: =L14*'Parameters ULL'!$E$10 -> 76.96 | Y14: =G14 -> 7x24 repairtime 8h | Z14: =N14 -> 2.39
C15: MDF SDSL | D15: telco-telco | E15: shared | F15: passief-LWAP | G15: Standard | I15: P-to-MP | J15: =IF(D15="NLS type 1/2/3",'Parameters ULL'!$E$28,INDEX('Inkoop tarief elementen'!$D$10:$F$18,MATCH(D15,'Inkoop tarief elementen'!$C$10:$C$18,0),MATCH(E15,'Inkoop tarief elementen'!$D$9:$F$9,0)))/'Parameters ULL'!$E$10 -> 0.48 | K15: =INDEX('Inkoop tarief elementen'!$E$21:$E$23,MATCH('inkoop VULA'!$E27,'Inkoop tarief elementen'!$D$21:$D$23,0))/'Parameters ULL'!$E$10 -> 0.28 | L15: 0.76 | M15: =INDEX('Inkoop tarief elementen'!$E$26:$E$28,MATCH($E15,'Inkoop tarief elementen'!$D$26:$D$28,0)) -> 0.11 | N15: =IF(G15="7x24 repairtime 8h",'Inkoop tarief elementen'!$E$38,0) -> 0 | O15: ='Inkoop tarief elementen'!$E$33/'Parameters ULL'!$E$10 -> 0.06 | P15: =collocatie!$J$82 -> 1.00 | Q15: ='EDC minus lijst ULL'!$D$6+'EDC minus lijst ULL'!$E$6 -> 0.20 | R15: ='EDC minus lijst ULL'!$K$6+'EDC minus lijst ULL'!$L$6 -> 0.20 | S15: 1.57 | T15: 2.33 | W15: 1.57 | X15: =L15*'Parameters ULL'!$E$10 -> 27.32 | Y15: Standard | Z15: 0
C16: MDF SDSL | D16: telco-telco | E16: non-shared | F16: passief-LWAP | G16: Standard | I16: P-to-MP | J16: =IF(D16="NLS type 1/2/3",'Parameters ULL'!$E$28,INDEX('Inkoop tarief elementen'!$D$10:$F$18,MATCH(D16,'Inkoop tarief elementen'!$C$10:$C$18,0),MATCH(E16,'Inkoop tarief elementen'!$D$9:$F$9,0)))/'Parameters ULL'!$E$10 -> 0.36 | K16: =INDEX('Inkoop tarief elementen'!$E$21:$E$23,MATCH('inkoop VULA'!$E28,'Inkoop tarief elementen'!$D$21:$D$23,0))/'Parameters ULL'!$E$10 -> 0.17 | L16: 0.54 | M16: =INDEX('Inkoop tarief elementen'!$E$26:$E$28,MATCH($E16,'Inkoop tarief elementen'!$D$26:$D$28,0)) -> 7.93 | N16: =IF(G16="7x24 repairtime 8h",'Inkoop tarief elementen'!$E$38,0) -> 0 | O16: ='Inkoop tarief elementen'!$E$33/'Parameters ULL'!$E$10 -> 0.06 | P16: =collocatie!$J$82 -> 1.00 | Q16: ='EDC minus lijst ULL'!$D$6+'EDC minus lijst ULL'!$E$6 -> 0.20 | R16: ='EDC minus lijst ULL'!$K$6+'EDC minus lijst ULL'!$L$6 -> 0.20 | S16: 9.39 | T16: 9.92 | V16: =IF(AND(D16="telco-telco",E16="shared"),"",IF(D16="NLS type 1/2/3","SDSLnon-sharednieuw","SDSLnon-sharedbestaand")) -> SDSLnon-sharedbestaand | W16: 9.39 | X16: =L16*'Parameters ULL'!$E$10 -> 19.30 | Y16: Standard | Z16: 0
C17: MDF SDSL | D17: telco-telco | E17: shared | F17: passief-LWAP | G17: 7x24 repairtime 8h | I17: P-to-MP | J17: =IF(D17="NLS type 1/2/3",'Parameters ULL'!$E$28,INDEX('Inkoop tarief elementen'!$D$10:$F$18,MATCH(D17,'Inkoop tarief elementen'!$C$10:$C$18,0),MATCH(E17,'Inkoop tarief elementen'!$D$9:$F$9,0)))/'Parameters ULL'!$E$10 -> 0.48 | K17: =INDEX('Inkoop tarief elementen'!$E$21:$E$23,MATCH('inkoop VULA'!$E35,'Inkoop tarief elementen'!$D$21:$D$23,0))/'Parameters ULL'!$E$10 -> 0.28 | L17: 0.76 | M17: =INDEX('Inkoop tarief elementen'!$E$26:$E$28,MATCH($E17,'Inkoop tarief elementen'!$D$26:$D$28,0)) -> 0.11 | N17: =IF(G17="7x24 repairtime 8h",'Inkoop tarief elementen'!$E$38,0) -> 2.39 | O17: ='Inkoop tarief elementen'!$E$33/'Parameters ULL'!$E$10 -> 0.06 | P17: =collocatie!$J$82 -> 1.00 | Q17: ='EDC minus lijst ULL'!$D$6+'EDC minus lijst ULL'!$E$6 -> 0.20 | R17: ='EDC minus lijst ULL'!$K$6+'EDC minus lijst ULL'!$L$6 -> 0.20 | S17: 3.96 | T17: 4.72 | V17: =IF(AND(D17="telco-telco",E17="shared"),"",IF(D17="NLS type 1/2/3","SDSLnon-sharednieuw","SDSLnon-sharedbestaand")) ->  | W17: 1.57 | X17: =L17*'Parameters ULL'!$E$10 -> 27.32 | Y17: 7x24 repairtime 8h | Z17: 2.39
C18: MDF SDSL | D18: telco-telco | E18: non-shared | F18: passief-LWAP | G18: 7x24 repairtime 8h | I18: P-to-MP | J18: =IF(D18="NLS type 1/2/3",'Parameters ULL'!$E$28,INDEX('Inkoop tarief elementen'!$D$10:$F$18,MATCH(D18,'Inkoop tarief elementen'!$C$10:$C$18,0),MATCH(E18,'Inkoop tarief elementen'!$D$9:$F$9,0)))/'Parameters ULL'!$E$10 -> 0.36 | K18: =INDEX('Inkoop tarief elementen'!$E$21:$E$23,MATCH('inkoop VULA'!$E36,'Inkoop tarief elementen'!$D$21:$D$23,0))/'Parameters ULL'!$E$10 -> 0.17 | L18: 0.54 | M18: =INDEX('Inkoop tarief elementen'!$E$26:$E$28,MATCH($E18,'Inkoop tarief elementen'!$D$26:$D$28,0)) -> 7.93 | N18: =IF(G18="7x24 repairtime 8h",'Inkoop tarief elementen'!$E$38,0) -> 2.39 | O18: ='Inkoop tarief elementen'!$E$33/'Parameters ULL'!$E$10 -> 0.06 | P18: =collocatie!$J$82 -> 1.00 | Q18: ='EDC minus lijst ULL'!$D$6+'EDC minus lijst ULL'!$E$6 -> 0.20 | R18: ='EDC minus lijst ULL'!$K$6+'EDC minus lijst ULL'!$L$6 -> 0.20 | S18: 11.78 | T18: 12.31 | V18: SDSLnon-sharedbestaand | W18: 9.39 | X18: =L18*'Parameters ULL'!$E$10 -> 19.30 | Y18: 7x24 repairtime 8h | Z18: 2.39

Sheet inkoop MDF VDSL
C2: =UPPER(MID(CELL("filename",A1),FIND("[",CELL("filename",A1))+1,FIND("]",CELL("filename",A1))-FIND("[",CELL("filename",A1))-5)) -> LPM MB15 - EPACITY DSL 20170201 OPENBAAR.
C3: =UPPER(MID(CELL("filename",A2),FIND("]",CELL("filename",A2))+1,LEN(CELL("filename",A2)))) -> INKOOP MDF VDSL
E7: # varianten: | F7: =COUNTA($C$13:$C$4608) -> 10
J9: VVE Tarief | K9: VVE Tarief | L9: VVE Tarief | M9: VVA Tarief | N9: VVA Tarief | O9: VVA Tarief | P9: VVA Tarief | Q9: Kosten | R9: Kosten | S9: VVA Tarief | T9: Tarieven
C10: Dienstfamilie | D10: Connect type | E10: Access type | F10: Geografische toets | G10: SLA | I10: Configuratie | J10: Connect | K10: Disconnect | L10: Sum VVE | M10: MDF | N10: SLA | O10: xIP | P10: Collo | Q10: EDC minus kosten tot MC | R10: EDC minus kosten boven MC | S10: Sum VVA | T10: Sum VVE + VVA tarief | V10: sleutel access | W10: access excl QoS en SLA | X10: access excl QoS en SLA | Y10: sleutel SLA | Z10: SLA kosten
W11: VVA | X11: VVE
C12: MDF VDSL
C13: MDF VDSL | D13: NLS type 1/2/3 | E13: non-shared | F13: passief-LWAP | G13: Standard | I13: P-to-MP | J13: =IF(D13="NLS type 1/2/3",IF(E13="VDSL bonding",'Parameters ULL'!$E$29,'Parameters ULL'!$E$28),INDEX('Inkoop tarief elementen'!$D$11:$F$11,MATCH(E13,'Inkoop tarief elementen'!$D$9:$F$9,0)))/'Parameters ULL'!$E$10 -> 1.97 | K13: =INDEX('Inkoop tarief elementen'!$E$21:$E$23,MATCH(E13,'Inkoop tarief elementen'!$D$21:$D$23,0))/'Parameters ULL'!$E$10 -> 0.17 | L13: =SUM(J13:K13) -> 2.14 | M13: =INDEX('Inkoop tarief elementen'!$E$26:$E$28,MATCH($E13,'Inkoop tarief elementen'!$D$26:$D$28,0)) -> 7.93 | N13: =IF(G13="7x24 repairtime 8h",'Inkoop tarief elementen'!$E$38,0) -> 0 | O13: ='Inkoop tarief elementen'!$E$33/'Parameters ULL'!$E$10 -> 0.06 | P13: =IF(E13="VDSL bonding",collocatie!$J$97,collocatie!$J$67) -> 1.00 | Q13: =IF(E13="VDSL bonding",'EDC minus lijst ULL'!$D$9+'EDC minus lijst ULL'!$E$9,'EDC minus lijst ULL'!$D$3+'EDC minus lijst ULL'!$E$3) -> 0.20 | R13: =IF(E13="VDSL bonding",'EDC minus lijst ULL'!$K$9+'EDC minus lijst ULL'!$L$9,'EDC minus lijst ULL'!$K$3+'EDC minus lijst ULL'!$L$3) -> 0.20 | S13: =SUM(M13:R13) -> 9.39 | T13: =L13+S13 -> 11.52 | V13: =IF(AND(E13="VDSL bonding",D13<>"telco-telco"),"VDSL bondingnon-sharednieuw","") ->  | W13: =S13-Z13 -> 9.39 | X13: =L13*'Parameters ULL'!$E$10 -> 76.96 | Y13: =G13 -> Standard | Z13: =N13 -> 0
C14: MDF VDSL | D14: NLS type 1/2/3 | E14: non-shared | F14: passief-LWAP | G14: 7x24 repairtime 8h | I14: P-to-MP | J14: =IF(D14="NLS type 1/2/3",IF(E14="VDSL bonding",'Parameters ULL'!$E$29,'Parameters ULL'!$E$28),INDEX('Inkoop tarief elementen'!$D$11:$F$11,MATCH(E14,'Inkoop tarief elementen'!$D$9:$F$9,0)))/'Parameters ULL'!$E$10 -> 1.97 | K14: =INDEX('Inkoop tarief elementen'!$E$21:$E$23,MATCH(E14,'Inkoop tarief elementen'!$D$21:$D$23,0))/'Parameters ULL'!$E$10 -> 0.17 | L14: 2.14 | M14: =INDEX('Inkoop tarief elementen'!$E$26:$E$28,MATCH($E14,'Inkoop tarief elementen'!$D$26:$D$28,0)) -> 7.93 | N14: =IF(G14="7x24 repairtime 8h",'Inkoop tarief elementen'!$E$38,0) -> 2.39 | O14: ='Inkoop tarief elementen'!$E$33/'Parameters ULL'!$E$10 -> 0.06 | P14: =IF(E14="VDSL bonding",collocatie!$J$97,collocatie!$J$67) -> 1.00 | Q14: =IF(E14="VDSL bonding",'EDC minus lijst ULL'!$D$9+'EDC minus lijst ULL'!$E$9,'EDC minus lijst ULL'!$D$3+'EDC minus lijst ULL'!$E$3) -> 0.20 | R14: =IF(E14="VDSL bonding",'EDC minus lijst ULL'!$K$9+'EDC minus lijst ULL'!$L$9,'EDC minus lijst ULL'!$K$3+'EDC minus lijst ULL'!$L$3) -> 0.20 | S14: =SUM(M14:R14) -> 11.78 | T14: =L14+S14 -> 13.91 | V14: =IF(AND(E14="VDSL bonding",D14<>"telco-telco"),"VDSL bondingnon-sharednieuw","") ->  | W14: =S14-Z14 -> 9.39 | X14: =L14*'Parameters ULL'!$E$10 -> 76.96 | Y14: =G14 -> 7x24 repairtime 8h | Z14: =N14 -> 2.39
C15: MDF VDSL | D15: telco-telco | E15: shared | F15: passief-LWAP | G15: Standard | I15: P-to-MP | J15: =IF(D15="NLS type 1/2/3",IF(E15="VDSL bonding",'Parameters ULL'!$E$29,'Parameters ULL'!$E$28),INDEX('Inkoop tarief elementen'!$D$11:$F$11,MATCH(E15,'Inkoop tarief elementen'!$D$9:$F$9,0)))/'Parameters ULL'!$E$10 -> 0.48 | K15: =INDEX('Inkoop tarief elementen'!$E$21:$E$23,MATCH(E15,'Inkoop tarief elementen'!$D$21:$D$23,0))/'Parameters ULL'!$E$10 -> 0.28 | L15: 0.76 | M15: =INDEX('Inkoop tarief elementen'!$E$26:$E$28,MATCH($E15,'Inkoop tarief elementen'!$D$26:$D$28,0)) -> 0.11 | N15: =IF(G15="7x24 repairtime 8h",'Inkoop tarief elementen'!$E$38,0) -> 0 | O15: ='Inkoop tarief elementen'!$E$33/'Parameters ULL'!$E$10 -> 0.06 | P15: =IF(E15="VDSL bonding",collocatie!$J$97,collocatie!$J$67) -> 1.00 | Q15: =IF(E15="VDSL bonding",'EDC minus lijst ULL'!$D$9+'EDC minus lijst ULL'!$E$9,'EDC minus lijst ULL'!$D$3+'EDC minus lijst ULL'!$E$3) -> 0.20 | R15: =IF(E15="VDSL bonding",'EDC minus lijst ULL'!$K$9+'EDC minus lijst ULL'!$L$9,'EDC minus lijst ULL'!$K$3+'EDC minus lijst ULL'!$L$3) -> 0.20 | S15: 1.57 | T15: 2.33 | W15: 1.57 | X15: =L15*'Parameters ULL'!$E$10 -> 27.32 | Y15: Standard | Z15: 0
C16: MDF VDSL | D16: telco-telco | E16: non-shared | F16: passief-LWAP | G16: Standard | I16: P-to-MP | J16: =IF(D16="NLS type 1/2/3",IF(E16="VDSL bonding",'Parameters ULL'!$E$29,'Parameters ULL'!$E$28),INDEX('Inkoop tarief elementen'!$D$11:$F$11,MATCH(E16,'Inkoop tarief elementen'!$D$9:$F$9,0)))/'Parameters ULL'!$E$10 -> 0.36 | K16: =INDEX('Inkoop tarief elementen'!$E$21:$E$23,MATCH(E16,'Inkoop tarief elementen'!$D$21:$D$23,0))/'Parameters ULL'!$E$10 -> 0.17 | L16: 0.54 | M16: =INDEX('Inkoop tarief elementen'!$E$26:$E$28,MATCH($E16,'Inkoop tarief elementen'!$D$26:$D$28,0)) -> 7.93 | N16: =IF(G16="7x24 repairtime 8h",'Inkoop tarief elementen'!$E$38,0) -> 0 | O16: ='Inkoop tarief elementen'!$E$33/'Parameters ULL'!$E$10 -> 0.06 | P16: =IF(E16="VDSL bonding",collocatie!$J$97,collocatie!$J$67) -> 1.00 | Q16: =IF(E16="VDSL bonding",'EDC minus lijst ULL'!$D$9+'EDC minus lijst ULL'!$E$9,'EDC minus lijst ULL'!$D$3+'EDC minus lijst ULL'!$E$3) -> 0.20 | R16: =IF(E16="VDSL bonding",'EDC minus lijst ULL'!$K$9+'EDC minus lijst ULL'!$L$9,'EDC minus lijst ULL'!$K$3+'EDC minus lijst ULL'!$L$3) -> 0.20 | S16: 9.39 | T16: 9.92 | W16: 9.39 | X16: =L16*'Parameters ULL'!$E$10 -> 19.30 | Y16: Standard | Z16: 0
C17: MDF VDSL | D17: telco-telco | E17: shared | F17: passief-LWAP | G17: 7x24 repairtime 8h | I17: P-to-MP | J17: =IF(D17="NLS type 1/2/3",IF(E17="VDSL bonding",'Parameters ULL'!$E$29,'Parameters ULL'!$E$28),INDEX('Inkoop tarief elementen'!$D$11:$F$11,MATCH(E17,'Inkoop tarief elementen'!$D$9:$F$9,0)))/'Parameters ULL'!$E$10 -> 0.48 | K17: =INDEX('Inkoop tarief elementen'!$E$21:$E$23,MATCH(E17,'Inkoop tarief elementen'!$D$21:$D$23,0))/'Parameters ULL'!$E$10 -> 0.28 | L17: 0.76 | M17: =INDEX('Inkoop tarief elementen'!$E$26:$E$28,MATCH($E17,'Inkoop tarief elementen'!$D$26:$D$28,0)) -> 0.11 | N17: =IF(G17="7x24 repairtime 8h",'Inkoop tarief elementen'!$E$38,0) -> 2.39 | O17: ='Inkoop tarief elementen'!$E$33/'Parameters ULL'!$E$10 -> 0.06 | P17: =IF(E17="VDSL bonding",collocatie!$J$97,collocatie!$J$67) -> 1.00 | Q17: =IF(E17="VDSL bonding",'EDC minus lijst ULL'!$D$9+'EDC minus lijst ULL'!$E$9,'EDC minus lijst ULL'!$D$3+'EDC minus lijst ULL'!$E$3) -> 0.20 | R17: =IF(E17="VDSL bonding",'EDC minus lijst ULL'!$K$9+'EDC minus lijst ULL'!$L$9,'EDC minus lijst ULL'!$K$3+'EDC minus lijst ULL'!$L$3) -> 0.20 | S17: 3.96 | T17: 4.72 | W17: 1.57 | X17: =L17*'Parameters ULL'!$E$10 -> 27.32 | Y17: 7x24 repairtime 8h | Z17: 2.39
C18: MDF VDSL | D18: telco-telco | E18: non-shared | F18: passief-LWAP | G18: 7x24 repairtime 8h | I18: P-to-MP | J18: =IF(D18="NLS type 1/2/3",IF(E18="VDSL bonding",'Parameters ULL'!$E$29,'Parameters ULL'!$E$28),INDEX('Inkoop tarief elementen'!$D$11:$F$11,MATCH(E18,'Inkoop tarief elementen'!$D$9:$F$9,0)))/'Parameters ULL'!$E$10 -> 0.36 | K18: =INDEX('Inkoop tarief elementen'!$E$21:$E$23,MATCH(E18,'Inkoop tarief elementen'!$D$21:$D$23,0))/'Parameters ULL'!$E$10 -> 0.17 | L18: 0.54 | M18: =INDEX('Inkoop tarief elementen'!$E$26:$E$28,MATCH($E18,'Inkoop tarief elementen'!$D$26:$D$28,0)) -> 7.93 | N18: =IF(G18="7x24 repairtime 8h",'Inkoop tarief elementen'!$E$38,0) -> 2.39 | O18: ='Inkoop tarief elementen'!$E$33/'Parameters ULL'!$E$10 -> 0.06 | P18: =IF(E18="VDSL bonding",collocatie!$J$97,collocatie!$J$67) -> 1.00 | Q18: =IF(E18="VDSL bonding",'EDC minus lijst ULL'!$D$9+'EDC minus lijst ULL'!$E$9,'EDC minus lijst ULL'!$D$3+'EDC minus lijst ULL'!$E$3) -> 0.20 | R18: =IF(E18="VDSL bonding",'EDC minus lijst ULL'!$K$9+'EDC minus lijst ULL'!$L$9,'EDC minus lijst ULL'!$K$3+'EDC minus lijst ULL'!$L$3) -> 0.20 | S18: 11.78 | T18: 12.31 | W18: 9.39 | X18: =L18*'Parameters ULL'!$E$10 -> 19.30 | Y18: 7x24 repairtime 8h | Z18: 2.39
C19: MDF VDSL | D19: NLS type 1/2/3 | E19: VDSL bonding | F19: passief-LWAP | G19: Standard | I19: P-to-MP | J19: =IF(D19="NLS type 1/2/3",IF(E19="VDSL bonding",'Parameters ULL'!$E$29,'Parameters ULL'!$E$28),INDEX('Inkoop tarief elementen'!$D$11:$F$11,MATCH(E19,'Inkoop tarief elementen'!$D$9:$F$9,0)))/'Parameters ULL'!$E$10 -> 4.64 | K19: =INDEX('Inkoop tarief elementen'!$E$21:$E$23,MATCH(E19,'Inkoop tarief elementen'!$D$21:$D$23,0))/'Parameters ULL'!$E$10 -> 0.43 | L19: 5.07 | M19: =INDEX('Inkoop tarief elementen'!$E$26:$E$28,MATCH($E19,'Inkoop tarief elementen'!$D$26:$D$28,0)) -> 8.38 | N19: =IF(G19="7x24 repairtime 8h",'Inkoop tarief elementen'!$E$38,0) -> 0 | O19: ='Inkoop tarief elementen'!$E$33/'Parameters ULL'!$E$10 -> 0.06 | P19: =IF(E19="VDSL bonding",collocatie!$J$97,collocatie!$J$67) -> 1.52 | Q19: =IF(E19="VDSL bonding",'EDC minus lijst ULL'!$D$9+'EDC minus lijst ULL'!$E$9,'EDC minus lijst ULL'!$D$3+'EDC minus lijst ULL'!$E$3) -> 0.20 | R19: =IF(E19="VDSL bonding",'EDC minus lijst ULL'!$K$9+'EDC minus lijst ULL'!$L$9,'EDC minus lijst ULL'!$K$3+'EDC minus lijst ULL'!$L$3) -> 0.20 | S19: =SUM(M19:R19) -> 10.36 | T19: =L19+S19 -> 15.42 | V19: VDSL bondingnon-sharednieuw | W19: 10.36 | X19: =L19*'Parameters ULL'!$E$10 -> 182.34 | Y19: Standard | Z19: 0
C20: MDF VDSL | D20: NLS type 1/2/3 | E20: VDSL bonding | F20: passief-LWAP | G20: 7x24 repairtime 8h | I20: P-to-MP | J20: =IF(D20="NLS type 1/2/3",IF(E20="VDSL bonding",'Parameters ULL'!$E$29,'Parameters ULL'!$E$28),INDEX('Inkoop tarief elementen'!$D$11:$F$11,MATCH(E20,'Inkoop tarief elementen'!$D$9:$F$9,0)))/'Parameters ULL'!$E$10 -> 4.64 | K20: =INDEX('Inkoop tarief elementen'!$E$21:$E$23,MATCH(E20,'Inkoop tarief elementen'!$D$21:$D$23,0))/'Parameters ULL'!$E$10 -> 0.43 | L20: 5.07 | M20: =INDEX('Inkoop tarief elementen'!$E$26:$E$28,MATCH($E20,'Inkoop tarief elementen'!$D$26:$D$28,0)) -> 8.38 | N20: =IF(G20="7x24 repairtime 8h",'Inkoop tarief elementen'!$E$38,0) -> 2.39 | O20: ='Inkoop tarief elementen'!$E$33/'Parameters ULL'!$E$10 -> 0.06 | P20: =IF(E20="VDSL bonding",collocatie!$J$97,collocatie!$J$67) -> 1.52 | Q20: =IF(E20="VDSL bonding",'EDC minus lijst ULL'!$D$9+'EDC minus lijst ULL'!$E$9,'EDC minus lijst ULL'!$D$3+'EDC minus lijst ULL'!$E$3) -> 0.20 | R20: =IF(E20="VDSL bonding",'EDC minus lijst ULL'!$K$9+'EDC minus lijst ULL'!$L$9,'EDC minus lijst ULL'!$K$3+'EDC minus lijst ULL'!$L$3) -> 0.20 | S20: =SUM(M20:R20) -> 12.75 | T20: =L20+S20 -> 17.81 | V20: VDSL bondingnon-sharednieuw | W20: 10.36 | X20: =L20*'Parameters ULL'!$E$10 -> 182.34 | Y20: 7x24 repairtime 8h | Z20: 2.39
C21: MDF VDSL | D21: telco-telco | E21: VDSL bonding | F21: passief-LWAP | G21: Standard | I21: P-to-MP | J21: =IF(D21="NLS type 1/2/3",IF(E21="VDSL bonding",'Parameters ULL'!$E$29,'Parameters ULL'!$E$28),INDEX('Inkoop tarief elementen'!$D$11:$F$11,MATCH(E21,'Inkoop tarief elementen'!$D$9:$F$9,0)))/'Parameters ULL'!$E$10 -> 0.84 | K21: =INDEX('Inkoop tarief elementen'!$E$21:$E$23,MATCH(E21,'Inkoop tarief elementen'!$D$21:$D$23,0))/'Parameters ULL'!$E$10 -> 0.43 | L21: 1.27 | M21: =INDEX('Inkoop tarief elementen'!$E$26:$E$28,MATCH($E21,'Inkoop tarief elementen'!$D$26:$D$28,0)) -> 8.38 | N21: =IF(G21="7x24 repairtime 8h",'Inkoop tarief elementen'!$E$38,0) -> 0 | O21: ='Inkoop tarief elementen'!$E$33/'Parameters ULL'!$E$10 -> 0.06 | P21: =IF(E21="VDSL bonding",collocatie!$J$97,collocatie!$J$67) -> 1.52 | Q21: =IF(E21="VDSL bonding",'EDC minus lijst ULL'!$D$9+'EDC minus lijst ULL'!$E$9,'EDC minus lijst ULL'!$D$3+'EDC minus lijst ULL'!$E$3) -> 0.20 | R21: =IF(E21="VDSL bonding",'EDC minus lijst ULL'!$K$9+'EDC minus lijst ULL'!$L$9,'EDC minus lijst ULL'!$K$3+'EDC minus lijst ULL'!$L$3) -> 0.20 | S21: 10.36 | T21: 11.63 | W21: 10.36 | X21: =L21*'Parameters ULL'!$E$10 -> 45.77 | Y21: Standard | Z21: 0
C22: MDF VDSL | D22: telco-telco | E22: VDSL bonding | F22: passief-LWAP | G22: 7x24 repairtime 8h | I22: P-to-MP | J22: =IF(D22="NLS type 1/2/3",IF(E22="VDSL bonding",'Parameters ULL'!$E$29,'Parameters ULL'!$E$28),INDEX('Inkoop tarief elementen'!$D$11:$F$11,MATCH(E22,'Inkoop tarief elementen'!$D$9:$F$9,0)))/'Parameters ULL'!$E$10 -> 0.84 | K22: =INDEX('Inkoop tarief elementen'!$E$21:$E$23,MATCH(E22,'Inkoop tarief elementen'!$D$21:$D$23,0))/'Parameters ULL'!$E$10 -> 0.43 | L22: 1.27 | M22: =INDEX('Inkoop tarief elementen'!$E$26:$E$28,MATCH($E22,'Inkoop tarief elementen'!$D$26:$D$28,0)) -> 8.38 | N22: =IF(G22="7x24 repairtime 8h",'Inkoop tarief elementen'!$E$38,0) -> 2.39 | O22: ='Inkoop tarief elementen'!$E$33/'Parameters ULL'!$E$10 -> 0.06 | P22: =IF(E22="VDSL bonding",collocatie!$J$97,collocatie!$J$67) -> 1.52 | Q22: =IF(E22="VDSL bonding",'EDC minus lijst ULL'!$D$9+'EDC minus lijst ULL'!$E$9,'EDC minus lijst ULL'!$D$3+'EDC minus lijst ULL'!$E$3) -> 0.20 | R22: =IF(E22="VDSL bonding",'EDC minus lijst ULL'!$K$9+'EDC minus lijst ULL'!$L$9,'EDC minus lijst ULL'!$K$3+'EDC minus lijst ULL'!$L$3) -> 0.20 | S22: 12.75 | T22: 14.02 | W22: 10.36 | X22: =L22*'Parameters ULL'!$E$10 -> 45.77 | Y22: 7x24 repairtime 8h | Z22: 2.39

Sheet inkoop ODF FTTH
C2: =UPPER(MID(CELL("filename",A1),FIND("[",CELL("filename",A1))+1,FIND("]",CELL("filename",A1))-FIND("[",CELL("filename",A1))-5)) -> LPM MB15 - EPACITY DSL 20170201 OPENBAAR.
C3: =UPPER(MID(CELL("filename",A2),FIND("]",CELL("filename",A2))+1,LEN(CELL("filename",A2)))) -> INKOOP ODF FTTH
D7: # varianten: | E7: =COUNTA($C$13:$C$8900) -> 4
F9: VVE Tarief | G9: VVE Tarief | H9: VVE Tarief | I9: VVA Tarief | J9: VVA Tarief | K9: VVA Tarief | L9: VVA Tarief | M9: VVA Tarief | N9: VVA Tarief | O9: VVA Tarief | P9: Tarieven
C10: Dienstfamilie | D10: Connect type | E10: SLA | F10: VVE connect | G10: VVE disconnect | H10: Sum VVE | I10: VVA xDF | J10: xDF korting | K10: SLA | L10: Additioneel ODF | M10: EDC minus tot MC | N10: EDC minus boven MC | O10: Sum VVA | P10: Sum VVE + VVA tarief | R10: sleutel access | S10: access excl QoS en SLA | T10: access excl QoS en SLA | U10: sleutel SLA | V10: SLA kosten
S11: VVA
C12: ODF FTTH
C13: ODF FTTH | D13: new line | E13: Standard | F13: =IF(D13="new line",'Inkoop tarief elementen'!$E$46,'Inkoop tarief elementen'!$E$47)/'Parameters ULL'!$E$10 -> 2.81 | G13: ='Inkoop tarief elementen'!$E$48/'Parameters ULL'!$E$10 -> 0.37 | H13: =SUM(F13:G13) -> 3.18 | I13: ='Inkoop tarief elementen'!$E$51 -> 18.92 | J13: =-'Inkoop tarief elementen'!$E$54*'Inkoop tarief elementen'!$E$51 -> 1.86- | K13: =IF(E13="Premium",'Inkoop tarief elementen'!$E$57,0) -> 0 | L13: ='Inkoop tarief elementen'!$E$79 -> 0.81 | M13: ='EDC minus lijst ULL'!$D$4+'EDC minus lijst ULL'!$E$4 -> 0.20 | N13: ='EDC minus lijst ULL'!$K$4+'EDC minus lijst ULL'!$L$4 -> 0.20 | O13: =SUM(I13:N13) -> 18.27 | P13: =H13+O13 -> 21.46 | R13: =IF(D13="telco-telco","","FTTHnon-sharednieuw") -> FTTHnon-sharednieuw | S13: =O13-V13 -> 18.27 | T13: =H13*'Parameters ULL'!$E$10 -> 114.60 | U13: =E13 -> Standard | V13: =K13 -> 0
C14: ODF FTTH | D14: telco-telco | E14: Standard | F14: =IF(D14="new line",'Inkoop tarief elementen'!$E$46,'Inkoop tarief elementen'!$E$47)/'Parameters ULL'!$E$10 -> 0.82 | G14: ='Inkoop tarief elementen'!$E$48/'Parameters ULL'!$E$10 -> 0.37 | H14: =SUM(F14:G14) -> 1.19 | I14: ='Inkoop tarief elementen'!$E$51 -> 18.92 | J14: =-'Inkoop tarief elementen'!$E$54*'Inkoop tarief elementen'!$E$51 -> 1.86- | K14: =IF(E14="Premium",'Inkoop tarief elementen'!$E$57,0) -> 0 | L14: ='Inkoop tarief elementen'!$E$79 -> 0.81 | M14: ='EDC minus lijst ULL'!$D$4+'EDC minus lijst ULL'!$E$4 -> 0.20 | N14: ='EDC minus lijst ULL'!$K$4+'EDC minus lijst ULL'!$L$4 -> 0.20 | O14: =SUM(I14:N14) -> 18.27 | P14: =H14+O14 -> 19.46 | R14: =IF(D14="telco-telco","","FTTHnon-sharednieuw") ->  | S14: =O14-V14 -> 18.27 | T14: =H14*'Parameters ULL'!$E$10 -> 42.68 | U14: =E14 -> Standard | V14: =K14 -> 0
C15: ODF FTTH | D15: new line | E15: Premium | F15: =IF(D15="new line",'Inkoop tarief elementen'!$E$46,'Inkoop tarief elementen'!$E$47)/'Parameters ULL'!$E$10 -> 2.81 | G15: ='Inkoop tarief elementen'!$E$48/'Parameters ULL'!$E$10 -> 0.37 | H15: 3.18 | I15: ='Inkoop tarief elementen'!$E$51 -> 18.92 | J15: =-'Inkoop tarief elementen'!$E$54*'Inkoop tarief elementen'!$E$51 -> 1.86- | K15: =IF(E15="Premium",'Inkoop tarief elementen'!$E$57,0) -> 13.05 | L15: ='Inkoop tarief elementen'!$E$79 -> 0.81 | M15: ='EDC minus lijst ULL'!$D$4+'EDC minus lijst ULL'!$E$4 -> 0.20 | N15: ='EDC minus lijst ULL'!$K$4+'EDC minus lijst ULL'!$L$4 -> 0.20 | O15: 31.32 | P15: 34.51 | R15: FTTHnon-sharednieuw | S15: 18.27 | T15: =H15*'Parameters ULL'!$E$10 -> 114.60 | U15: Premium | V15: 13.05
C16: ODF FTTH | D16: telco-telco | E16: Premium | F16: =IF(D16="new line",'Inkoop tarief elementen'!$E$46,'Inkoop tarief elementen'!$E$47)/'Parameters ULL'!$E$10 -> 0.82 | G16: ='Inkoop tarief elementen'!$E$48/'Parameters ULL'!$E$10 -> 0.37 | H16: 1.19 | I16: ='Inkoop tarief elementen'!$E$51 -> 18.92 | J16: =-'Inkoop tarief elementen'!$E$54*'Inkoop tarief elementen'!$E$51 -> 1.86- | K16: =IF(E16="Premium",'Inkoop tarief elementen'!$E$57,0) -> 13.05 | L16: ='Inkoop tarief elementen'!$E$79 -> 0.81 | M16: ='EDC minus lijst ULL'!$D$4+'EDC minus lijst ULL'!$E$4 -> 0.20 | N16: ='EDC minus lijst ULL'!$K$4+'EDC minus lijst ULL'!$L$4 -> 0.20 | O16: 31.32 | P16: 32.51 | S16: 18.27 | T16: =H16*'Parameters ULL'!$E$10 -> 42.68 | U16: Premium | V16: 13.05

Sheet inkoop ULL tbv Epacity
A2: 1) Access
B3: WO Access type | C3: Wholesale new line | D3: Shared / unshared | E3: model1 | F3: model2 | G3: sleutel wholesaleblad | H3: sleutel retailblad | I3: inkoop VVA | J3: inkoop VVE | K3: VVA+VVE/36
B4: ADSL | C4: New line | D4: unshared | E4: inkoop VULA | G4: ADSL/VDSLnon-sharednieuw | H4: ADSLNew lineunshared | I4: =INDEX('inkoop VULA'!AA:AA,MATCH($G4,'inkoop VULA'!$Z:$Z,0)) -> 12.50 | J4: =INDEX('inkoop VULA'!AB:AB,MATCH($G4,'inkoop VULA'!$Z:$Z,0)) -> 75.00
B5: VDSL | C5: New line | D5: unshared | E5: inkoop VULA | G5: ADSL/VDSLnon-sharednieuw | H5: VDSLNew lineunshared | I5: =INDEX('inkoop VULA'!AA:AA,MATCH($G5,'inkoop VULA'!$Z:$Z,0)) -> 12.50 | J5: =INDEX('inkoop VULA'!AB:AB,MATCH($G5,'inkoop VULA'!$Z:$Z,0)) -> 75.00
B6: VDSL | C6: nvt | D6: unshared | E6: inkoop VULA | G6: ADSL/VDSLnon-sharedbestaand | H6: VDSLnvtunshared | I6: =INDEX('inkoop VULA'!AA:AA,MATCH($G6,'inkoop VULA'!$Z:$Z,0)) -> 12.50 | J6: =INDEX('inkoop VULA'!AB:AB,MATCH($G6,'inkoop VULA'!$Z:$Z,0)) -> 35.00
B7: ADSL | C7: nvt | D7: unshared | E7: inkoop VULA | G7: ADSL/VDSLnon-sharedbestaand | H7: ADSLnvtunshared | I7: =INDEX('inkoop VULA'!AA:AA,MATCH($G7,'inkoop VULA'!$Z:$Z,0)) -> 12.50 | J7: =INDEX('inkoop VULA'!AB:AB,MATCH($G7,'inkoop VULA'!$Z:$Z,0)) -> 35.00
B8: VDSL | C8: nvt | D8: shared | E8: inkoop VULA | G8: ADSL/VDSLsharedbestaand | H8: VDSLnvtshared | I8: =INDEX('inkoop VULA'!AA:AA,MATCH($G8,'inkoop VULA'!$Z:$Z,0)) -> 6.03 | J8: =INDEX('inkoop VULA'!AB:AB,MATCH($G8,'inkoop VULA'!$Z:$Z,0)) -> 35.00
B9: ADSL | C9: nvt | D9: shared | E9: inkoop VULA | G9: ADSL/VDSLsharedbestaand | H9: ADSLnvtshared | I9: =INDEX('inkoop VULA'!AA:AA,MATCH($G9,'inkoop VULA'!$Z:$Z,0)) -> 6.03 | J9: =INDEX('inkoop VULA'!AB:AB,MATCH($G9,'inkoop VULA'!$Z:$Z,0)) -> 35.00
B11: VDSL Bonding | C11: New line | D11: unshared | E11: inkoop VULA | G11: VDSL bondingnon-sharednieuw | I11: =INDEX('inkoop VULA'!AA:AA,MATCH($G11,'inkoop VULA'!$Z:$Z,0)) -> 16.79 | J11: =INDEX('inkoop VULA'!AB:AB,MATCH($G11,'inkoop VULA'!$Z:$Z,0)) -> 35.00 | K11: =I11+J11/'Parameters ULL'!$E$10 -> 17.76 | L11: hulpregel1
B12: VDSL Bonding | C12: New line | D12: unshared | F12: inkoop MDF VDSL | G12: VDSL bondingnon-sharednieuw | I12: =INDEX('inkoop MDF VDSL'!W:W,MATCH($G12,'inkoop MDF VDSL'!$V:$V,0)) -> 10.36 | J12: =+INDEX('inkoop MDF VDSL'!X:X,MATCH($G12,'inkoop MDF VDSL'!$V:$V,0)) -> 182.34 | K12: =I12+J12/'Parameters ULL'!$E$10 -> 15.42 | L12: hulpregel2
B13: VDSL Bonding | C13: New line | D13: unshared | E13: inkoop VULA | F13: inkoop MDF VDSL | G13: VDSL bondingnon-sharednieuw | H13: VDSL BondingNew lineunshared | I13: =IF($K$11>$K$12,I11,I12) -> 16.79 | J13: =IF($K$11>$K$12,J11,J12) -> 35.00
B15: SDSL | C15: New line | D15: unshared | E15: inkoop MDF SDSL | G15: SDSLnon-sharednieuw | H15: SDSLNew lineunshared | I15: =INDEX('inkoop MDF SDSL'!W:W,MATCH($G15,'inkoop MDF SDSL'!$V:$V,0)) -> 9.39 | J15: =INDEX('inkoop MDF SDSL'!X:X,MATCH($G15,'inkoop MDF SDSL'!$V:$V,0)) -> 76.96
B16: SDSL | C16: nvt | D16: unshared | E16: inkoop MDF SDSL | G16: SDSLnon-sharedbestaand | H16: SDSLnvtunshared | I16: =INDEX('inkoop MDF SDSL'!W:W,MATCH($G16,'inkoop MDF SDSL'!$V:$V,0)) -> 9.39 | J16: =INDEX('inkoop MDF SDSL'!X:X,MATCH($G16,'inkoop MDF SDSL'!$V:$V,0)) -> 19.30
B18: FttH | C18: New line | D18: unshared | E18: inkoop ODF FTTH | G18: FTTHnon-sharednieuw | H18: FttHNew lineunshared | I18: =INDEX('inkoop ODF FTTH'!S:S,MATCH($G18,'inkoop ODF FTTH'!$R:$R,0)) -> 18.27 | J18: =INDEX('inkoop ODF FTTH'!T:T,MATCH($G18,'inkoop ODF FTTH'!$R:$R,0)) -> 114.60
A21: 2) Transport (toeslag)
B22: WO Access type | C22: QoS | D22: Bandbreedte | F22: model | G22: sleutel wholesaleblad | H22: sleutel retailblad | I22: inkoop VVA | J22: (VVE=0)
B23: ADSL | C23: Best-effort | D23: Other | F23: inkoop VULA | G23: Best-effortOther | H23: nvt | I23: =INDEX('inkoop VULA'!AD:AD,MATCH(G23,'inkoop VULA'!AC:AC,0)) -> 0.00
B24: ADSL | C24: Best-effort | D24: ≤2/2Mbps | F24: inkoop VULA | G24: Best-effort≤2/2Mbps | H24: nvt | I24: =INDEX('inkoop VULA'!AD:AD,MATCH(G24,'inkoop VULA'!AC:AC,0)) -> 0.00
B25: VDSL | C25: Best-effort | D25: Other | F25: inkoop VULA | G25: Best-effortOther | H25: nvt | I25: =INDEX('inkoop VULA'!AD:AD,MATCH(G25,'inkoop VULA'!AC:AC,0)) -> 0.00
B26: VDSL | C26: Best-effort | D26: ≤2/2Mbps | F26: inkoop VULA | G26: Best-effort≤2/2Mbps | H26: nvt | I26: =INDEX('inkoop VULA'!AD:AD,MATCH(G26,'inkoop VULA'!AC:AC,0)) -> 0.00
B27: VDSL Bonding | C27: Best-effort | D27: Other | F27: inkoop VULA | G27: Best-effortOther | H27: nvt | I27: =INDEX('inkoop VULA'!AD:AD,MATCH(G27,'inkoop VULA'!AC:AC,0)) -> 0.00
B28: VDSL Bonding | C28: Best-effort | D28: ≤2/2Mbps | F28: inkoop VULA | G28: Best-effort≤2/2Mbps | H28: nvt | I28: =INDEX('inkoop VULA'!AD:AD,MATCH(G28,'inkoop VULA'!AC:AC,0)) -> 0.00
B29: ADSL | C29: Premium | D29: Other | F29: inkoop VULA | G29: PremiumOther | H29: Premium > 2/2Mbps | I29: =INDEX('inkoop VULA'!AD:AD,MATCH(G29,'inkoop VULA'!AC:AC,0)) -> 16.02
B30: ADSL | C30: Premium | D30: ≤2/2Mbps | F30: inkoop VULA | G30: Premium≤2/2Mbps | H30: nvt | I30: =INDEX('inkoop VULA'!AD:AD,MATCH(G30,'inkoop VULA'!AC:AC,0)) -> 0.00
B31: VDSL | C31: Premium | D31: Other | F31: inkoop VULA | G31: PremiumOther | H31: Premium > 2/2Mbps | I31: =INDEX('inkoop VULA'!AD:AD,MATCH(G31,'inkoop VULA'!AC:AC,0)) -> 16.02
B32: VDSL | C32: Premium | D32: ≤2/2Mbps | F32: inkoop VULA | G32: Premium≤2/2Mbps | H32: nvt | I32: =INDEX('inkoop VULA'!AD:AD,MATCH(G32,'inkoop VULA'!AC:AC,0)) -> 0.00
B33: VDSL Bonding | C33: Premium | D33: Other | F33: inkoop VULA | G33: PremiumOther | H33: Premium > 2/2Mbps | I33: =INDEX('inkoop VULA'!AD:AD,MATCH(G33,'inkoop VULA'!AC:AC,0)) -> 16.02
B34: VDSL Bonding | C34: Premium | D34: ≤2/2Mbps | F34: inkoop VULA | G34: Premium≤2/2Mbps | H34: nvt | I34: =INDEX('inkoop VULA'!AD:AD,MATCH(G34,'inkoop VULA'!AC:AC,0)) -> 0.00
B36: SDSL | C36: nvt | F36: inkoop MDF SDSL | G36: nvt | H36: nvt | I36: 0.00
B37: SDSL | C37: nvt | F37: inkoop MDF SDSL | G37: nvt | H37: nvt | I37: 0.00
B39: FttH | C39: nvt | F39: inkoop ODF FTTH | G39: nvt | H39: nvt | I39: 0.00
B40: FttH | C40: nvt | F40: inkoop ODF FTTH | G40: nvt | H40: nvt | I40: 0.00
A43: 3) SLA
B44: WO Access type | C44: SLA | F44: model | G44: sleutel wholesaleblad | H44: sleutel retailblad | I44: inkoop VVA | J44: (VVE=0)
B45: ADSL | C45: Standard | F45: inkoop VULA | G45: Standard | H45: =B45&IF(C45="Standard","Standard","7x24") -> ADSLStandard | I45: =INDEX('inkoop VULA'!AF:AF,MATCH(G45,'inkoop VULA'!AE:AE,0)) -> 0.00
B46: ADSL | C46: 7x24 repairtime 8h | F46: inkoop VULA | G46: 7x24 repairtime 8h | H46: =B46&IF(C46="Standard","Standard","7x24") -> ADSL7x24 | I46: =INDEX('inkoop VULA'!AF:AF,MATCH(G46,'inkoop VULA'!AE:AE,0)) -> 8.13
B47: VDSL | C47: Standard | F47: inkoop VULA | G47: Standard | H47: VDSLStandard | I47: =INDEX('inkoop VULA'!AF:AF,MATCH(G47,'inkoop VULA'!AE:AE,0)) -> 0.00
B48: VDSL | C48: 7x24 repairtime 8h | F48: inkoop VULA | G48: 7x24 repairtime 8h | H48: VDSL7x24 | I48: =INDEX('inkoop VULA'!AF:AF,MATCH(G48,'inkoop VULA'!AE:AE,0)) -> 8.13
B49: VDSL Bonding | C49: Standard | F49: inkoop VULA | G49: Standard | H49: VDSL BondingStandard | I49: =INDEX('inkoop VULA'!AF:AF,MATCH(G49,'inkoop VULA'!AE:AE,0)) -> 0.00
B50: VDSL Bonding | C50: 7x24 repairtime 8h | F50: inkoop VULA | G50: 7x24 repairtime 8h | H50: VDSL Bonding7x24 | I50: =INDEX('inkoop VULA'!AF:AF,MATCH(G50,'inkoop VULA'!AE:AE,0)) -> 8.13
B52: SDSL | C52: Standard | F52: inkoop MDF SDSL | G52: Standard | H52: =B52&IF(C52="Standard","Standard","7x24") -> SDSLStandard | I52: =INDEX('inkoop MDF SDSL'!Z:Z,MATCH(G52,'inkoop MDF SDSL'!Y:Y,0)) -> 0.00
B53: SDSL | C53: 7x24 repairtime 8h | F53: inkoop MDF SDSL | G53: 7x24 repairtime 8h | H53: SDSL7x24 | I53: =INDEX('inkoop MDF SDSL'!Z:Z,MATCH(G53,'inkoop MDF SDSL'!Y:Y,0)) -> 2.39
B55: FttH | C55: Standard | F55: inkoop ODF FTTH | G55: Standard | H55: =B55&IF(C55="Standard","Standard","7x24") -> FttHStandard | I55: =INDEX('inkoop ODF FTTH'!V:V,MATCH(G55,'inkoop ODF FTTH'!U:U,0)) -> 0.00
B56: FttH | C56: 7x24 repairtime 8h | F56: inkoop ODF FTTH | G56: Premium | H56: FttH7x24 | I56: =INDEX('inkoop ODF FTTH'!V:V,MATCH(G56,'inkoop ODF FTTH'!U:U,0)) -> 13.05

Sheet Parameters
A1: Algemeen | B1: Waarde
A2: Retailopslag medium BPO | B2: 1%
A3: Retailopslag medium | B3: 1%
A4: Retailopslag le/corporate | B4: 1%
A6: Retailopslag | B6: =MAX(B2:B4) -> 1% | C6: % t.o.v. netto wholesale inkoopkosten
A8: NRK medium BPO | B8: 10.00%
A9: NRK medium | B9: 10.00%
A10: NRK le/corporate | B10: 10.00%
A12: NRK | B12: =B8 -> 10.00% | C12: % t.o.v. netto omzet
A16: AfschrijftermijnVVE12 | B16: 36
A17: AfschrijftermijnVVE24 | B17: 36
A18: AfschrijftermijnVVE36 | B18: 36
A19: AfschrijftermijnVVE48 | B19: 48
A20: AfschrijftermijnVVE60 | B20: 60
A22: ZM TermijnKorting
A23: ZMTermijnKorting access VVA | B23: 0%
A24: ZMTermijnKorting access VVE | B24: 0%
A25: ZMTermijnKorting transport VVA | B25: 0%
A26: ZMTermijnKorting transport VVE | B26: 0%
A27: ZMTermijnKorting servicelevel VVA | B27: 0%
A28: ZMTermijnKorting servicelevel VVE | B28: 0%
A29: ZMTermijnKorting router VVA | B29: 0%
A30: ZMTermijnKorting router VVE | B30: 0%
A32: Sales Mandaat | B32: Waarde
A33: ZMSalesMandaatVVE | B33: 0%
A34: ZMSalesMandaatVVA | B34: 0%
A36: Volumekorting
A37: WOKortingVVEWBA ZM Ethernet | B37: 0%
A38: WOKortingVVEWBA CM Ethernet | B38: 0%
A40: WOKortingVVAWBA ZM EthernetADSL | B40: 0%
A41: WOKortingVVAWBA CM EthernetADSL | B41: 10%
A42: WOKortingVVAWBA ZM EthernetVDSL Bonding | B42: 0%
A43: WOKortingVVAWBA CM EthernetVDSL Bonding | B43: 10%
A44: WOKortingVVAWBA ZM EthernetSDSL | B44: 0%
A45: WOKortingVVAWBA CM EthernetSDSL | B45: 10%
A46: WOKortingVVAWBA ZM EthernetFttH | B46: 0%
A47: WOKortingVVAWBA CM EthernetFttH | B47: 0%
A48: WOKortingVVAWBA ZM EthernetVDSL | B48: 0%
A49: WOKortingVVAWBA CM EthernetVDSL | B49: 10%
B51: HKWBT
A52: EDC Minus platformkosten opslag | B52: Uit EDC minus blad | C52: EDC Opslag Platformkosten | D52: EDC Platformkosten incl opslag
A53: IAS platform per aansluiting (HKWBT) | B53: ='EDC Minus'!$H$284 -> 1.00 | C53: 1.00 | D53: =B53+C53 -> 2.00
A54: Epacity platformkosten (HKWBT) | B54: ='EDC Minus'!$H$285 -> 1.00 | C54: 1.00 | D54: =B54+C54 -> 2.00 | E54: per aansluiting
B56: ULL
A57: EDC Minus platformkosten opslag | B57: Uit EDC minus blad | C57: EDC Opslag Platformkosten | D57: EDC Platformkosten incl opslag
A58: IAS platform per aansluiting (ULL) | B58: ='EDC minus lijst ULL'!$L$92 -> 1.00 | D58: =B58+C58 -> 1.00
A59: Epacity platformkosten (ULL) | B59: ='EDC minus lijst ULL'!$L$92 -> 1.00 | D59: =B59+C59 -> 1.00 | E59: per aansluiting
A61: EDC kosten Router Service Levels
A62: Kantoor | B62: € 1.00
A63: Winkel | B63: € 1.00
A64: 7x24 | B64: € 1.00
A66: WAP bandbreedte
A67: WAPbandbreedte(Kb/s) WBA ZM Ethernet | B67: 100 | C67: Gemiddelde bandbreedte (Kb/s)
A68: WAPbandbreedte(Kb/s) WBA CM Ethernet | B68: 100 | C68: Gemiddelde bandbreedte (Kb/s)
A70: vertaling 1Gb/s naar Kb/s | B70: 1024000
A72: gem kosten NLSx DSL WBA ZM
A74: kosten NLS3 > 125 m | B74: =2290-40 -> 2,250
B76: frequentie | C76: NLS kosten | D76: sleutel
A77: NLS1 | B77: 100.00% | C77: =INDEX('Tarieven W&O'!H:H,MATCH(D77,'Tarieven W&O'!B:B,0)) -> 40.00 | D77: WBA ZM EthernetADSL/VDSL/SDSLNLS type 1
A78: NLS2 | B78: 0.00% | C78: =INDEX('Tarieven W&O'!H:H,MATCH(D78,'Tarieven W&O'!B:B,0)) -> 308.00 | D78: WBA ZM EthernetADSL/VDSL/SDSLNLS type 2
A79: NLS3 <25m | B79: 0.00% | C79: =INDEX('Tarieven W&O'!H:H,MATCH(D79,'Tarieven W&O'!B:B,0)) -> 506.40 | D79: WBA ZM EthernetADSL/VDSL/SDSLNLS type 3
A80: NLS3 25-125m | B80: 0.00% | C80: =B74+C77 -> 2,290
A81: NLS3 >125m | B81: 0.00%
A83: NLSx ADSL WBA ZM Ethernet | C83: =SUMPRODUCT(B77:B81,C77:C81) -> 40.00 | D83: =C83/36 -> 1.11
A84: NLSx VDSL WBA ZM Ethernet | C84: =C83 -> 40.00 | D84: =C84/36 -> 1.11
A85: NLSx SDSL WBA ZM Ethernet | C85: =C83 -> 40.00 | D85: =C85/36 -> 1.11
A87: gem kosten NLSx DSL bonding WBA ZM
A89: kosten NLS3 > 125 m | B89: =2290-40 -> 2,250
B91: frequentie | C91: NLS kosten | D91: sleutel
A92: NLS1 | B92: 100.00% | C92: =INDEX('Tarieven W&O'!H:H,MATCH(D92,'Tarieven W&O'!B:B,0)) -> 149.45 | D92: WBA ZM EthernetVDSL BondingNLS type 1
A93: NLS2/3 - 25 mtr | B93: 0.00% | C93: =INDEX('Tarieven W&O'!H:H,MATCH(D93,'Tarieven W&O'!B:B,0)) -> 620.59 | D93: WBA ZM EthernetVDSL BondingNLS type 2/3
A94: NLS3 25-125m | B94: 0.00% | C94: =B89+C92 -> 2,399
A95: NLS3 >125m | B95: 0.00%
A97: NLSx VDSL Bonding WBA ZM Ethernet | C97: =SUMPRODUCT(B92:B95,C92:C95) -> 149.45 | D97: =C97/36 -> 4.15
A99: gem kosten NLSx FttH WBA ZM
A101: kosten NLS3 > 125 m | B101: =2290-40 -> 2,250
A105: NLSx FttH WBA ZM Ethernet | C105: 0.00 | D105: =C105/36 -> 0.00
A107: gem kosten NLSx DSL WBA CM
A109: kosten NLS3 > 125 m | B109: =2290-40 -> 2,250
B111: frequentie | C111: NLS kosten | D111: sleutel
A112: NLS1 | B112: 100.00% | C112: =INDEX('Tarieven W&O'!H:H,MATCH(D112,'Tarieven W&O'!B:B,0)) -> 40.00 | D112: WBA CM EthernetADSL/VDSL/SDSLNLS type 1
A113: NLS2 | B113: 0.00% | C113: =INDEX('Tarieven W&O'!H:H,MATCH(D113,'Tarieven W&O'!B:B,0)) -> 343.60 | D113: WBA CM EthernetADSL/VDSL/SDSLNLS type 2
A114: NLS3 <25m | B114: 0.00% | C114: =INDEX('Tarieven W&O'!H:H,MATCH(D114,'Tarieven W&O'!B:B,0)) -> 506.40 | D114: WBA CM EthernetADSL/VDSL/SDSLNLS type 3
A115: NLS3 25-125m | B115: 0.00% | C115: =B109+C112 -> 2,290
A116: NLS3 >125m | B116: 0.00%
A118: NLSx ADSL WBA CM Ethernet | C118: =SUMPRODUCT(B112:B116,C112:C116) -> 40.00 | D118: =C118/36 -> 1.11
A119: NLSx VDSL WBA CM Ethernet | C119: =C118 -> 40.00 | D119: =C119/36 -> 1.11
A120: NLSx SDSL WBA CM Ethernet | C120: =C118 -> 40.00 | D120: =C120/36 -> 1.11
A122: gem kosten NLSx DSL bonding WBA CM
A124: kosten NLS3 > 125 m | B124: =2290-40 -> 2,250
B126: frequentie | C126: NLS kosten | D126: sleutel
A127: NLS1 | B127: 100.00% | C127: =INDEX('Tarieven W&O'!H:H,MATCH(D127,'Tarieven W&O'!B:B,0)) -> 149.45 | D127: WBA CM EthernetVDSL BondingNLS type 1
A128: NLS2/3 - 25 mtr | B128: 0.00% | C128: =INDEX('Tarieven W&O'!H:H,MATCH(D128,'Tarieven W&O'!B:B,0)) -> 620.59 | D128: WBA CM EthernetVDSL BondingNLS type 2/3
A129: NLS3 25-125m | B129: 0.00% | C129: =B124+C127 -> 2,399
A130: NLS3 >125m | B130: 0.00%
A132: NLSx VDSL Bonding WBA CM Ethernet | C132: =SUMPRODUCT(B127:B130,C127:C130) -> 149.45 | D132: =C132/36 -> 4.15
A134: gem kosten NLSx FttH WBA CM
A138: NLSx FttH WBA CM Ethernet | C138: 0.00 | D138: =C138/36 -> 0.00
A140: gem kosten NLSx DSL ULL
A142: kosten NLS3 > 125 m | B142: =2320.3-70.3 -> 2,250
B144: frequentie | C144: NLS kosten
A145: NLS1 | B145: 100.00% | C145: ='Inkoop tarief elementen'!E13 -> 70.79
A146: NLS2 | B146: 0.00% | C146: ='Inkoop tarief elementen'!E15 -> 310.65
A147: NLS3 <25m | B147: 0.00% | C147: ='Inkoop tarief elementen'!E16 -> 541.12
A148: NLS3 25-125m | B148: 0.00% | C148: =B142+C145 -> 2321
A149: NLS3 >125m | B149: 0.00%
A151: NLSx ADSL ULL | C151: =SUMPRODUCT(B145:B149,C145:C149) -> 70.79 | D151: =C151/36 -> 1.97
A152: NLSx VDSL ULL | C152: =C151 -> 70.79 | D152: =C152/36 -> 1.97
A153: NLSx SDSL ULL | C153: =C151 -> 70.79 | D153: =C153/36 -> 1.97
A155: gem kosten NLSx DSL Bonding ULL
A157: kosten NLS3 > 125 m | B157: =2320.3-70.3 -> 2,250
B159: frequentie | C159: NLS kosten
A160: NLS1 | B160: 100.00% | C160: ='Inkoop tarief elementen'!F13 -> 166.88
A161: NLS2/3 - 25 mtr | B161: 0.00% | C161: ='Inkoop tarief elementen'!F17 -> 754.48
A162: NLS3 25-125m | B162: 0.00% | C162: =B157+C160 -> 2,416.88
A163: NLS3 >125m | B163: 0.00%
A165: NLSx VDSL Bonding ULL | C165: =SUMPRODUCT(B160:B163,C160:C163) -> 166.88 | D165: =C165/36 -> 4.64
A167: gem kosten NLSx FttH ULL
A169: NLSx FttH ULL | C169: 0.00 | D169: =C169/36 -> 0.00

Sheet Distributievergoedingen
B2: Vergoedingen Grondslag
B3: Zeker of Conditioneel
B4: Parameters per dienst
B5: Portfolio | C5: Profiel
B12: Vast | C12: Network Services | F12: 0.0% | I12: 1.0% | L12: 0.0% | O12: 10.0% | R12: € 0.00 | U12: € 0.00 | X12: € 0.00

Sheet Mapping
B3: 1. Aansluitingen: ZM
B5: ZM identifier | C5: xDSL | D5: Bandbreedte | E5: ZM VPN kwaliteit | H5: WO identifier | I5: Bandbreedte | J5: WO VPN kwaliteit | M5: sleutel ULL (transport)
B6: =C6&D6&E6&F6 -> ADSL128/128Basic | C6: ADSL | D6: 128/128 | E6: Basic | H6: =I6&J6&K6&L6 -> <= 512 kbps/<= 256 kbpsentry | I6: <= 512 kbps/<= 256 kbps | J6: entry | M6: nvt
B7: ADSL384/128Basic | C7: ADSL | D7: 384/128 | E7: Basic | H7: <= 512 kbps/<= 256 kbpsentry | I7: <= 512 kbps/<= 256 kbps | J7: entry | M7: nvt
B8: ADSL256/256Basic | C8: ADSL | D8: 256/256 | E8: Basic | H8: <= 512 kbps/<= 256 kbpsentry | I8: <= 512 kbps/<= 256 kbps | J8: entry | M8: nvt
B9: ADSL512/256Basic | C9: ADSL | D9: 512/256 | E9: Basic | H9: <= 512 kbps/<= 256 kbpsentry | I9: <= 512 kbps/<= 256 kbps | J9: entry | M9: nvt
B10: ADSL512/512Basic | C10: ADSL | D10: 512/512 | E10: Basic | H10: <= 2 Mbps/<= 512 kbpsentry | I10: <= 2 Mbps/<= 512 kbps | J10: entry | M10: nvt
B11: ADSL1024/256Basic | C11: ADSL | D11: 1024/256 | E11: Basic | H11: <= 2 Mbps/<= 512 kbpsentry | I11: <= 2 Mbps/<= 512 kbps | J11: entry | M11: nvt
B12: ADSL1024/512Basic | C12: ADSL | D12: 1024/512 | E12: Basic | H12: <= 2 Mbps/<= 512 kbpsentry | I12: <= 2 Mbps/<= 512 kbps | J12: entry | M12: nvt
B13: ADSL2048/512Basic | C13: ADSL | D13: 2048/512 | E13: Basic | H13: <= 2 Mbps/<= 512 kbpsentry | I13: <= 2 Mbps/<= 512 kbps | J13: entry | M13: nvt
B14: ADSL3072/512Basic | C14: ADSL | D14: 3072/512 | E14: Basic | H14: <= 4 Mbps/<= 1 Mbpsentry | I14: <= 4 Mbps/<= 1 Mbps | J14: entry | M14: nvt
B15: ADSL4096/1024Basic | C15: ADSL | D15: 4096/1024 | E15: Basic | H15: <= 4 Mbps/<= 1 Mbpsentry | I15: <= 4 Mbps/<= 1 Mbps | J15: entry | M15: nvt
B16: ADSL6144/1024Basic | C16: ADSL | D16: 6144/1024 | E16: Basic | H16: <= 8 Mbps/<= 1 Mbpsentry | I16: <= 8 Mbps/<= 1 Mbps | J16: entry | M16: nvt
B17: ADSL8000/1024Basic | C17: ADSL | D17: 8000/1024 | E17: Basic | H17: <= 8 Mbps/<= 1 Mbpsentry | I17: <= 8 Mbps/<= 1 Mbps | J17: entry | M17: nvt
B18: ADSL12000/1024Basic | C18: ADSL | D18: 12000/1024 | E18: Basic | H18: <= 20 Mbps/<= 1 Mbpsentry | I18: <= 20 Mbps/<= 1 Mbps | J18: entry | M18: nvt
B19: ADSL20000/1024Basic | C19: ADSL | D19: 20000/1024 | E19: Basic | H19: <= 20 Mbps/<= 1 Mbpsentry | I19: <= 20 Mbps/<= 1 Mbps | J19: entry | M19: nvt
B20: SDSL256/256Basic | C20: SDSL | D20: 256/256 | E20: Basic | H20: ≤ 2,3 Mbps/≤ 2,3 Mbpsentry | I20: ≤ 2,3 Mbps/≤ 2,3 Mbps | J20: entry | M20: nvt
B21: SDSL512/512Basic | C21: SDSL | D21: 512/512 | E21: Basic | H21: ≤ 2,3 Mbps/≤ 2,3 Mbpsentry | I21: ≤ 2,3 Mbps/≤ 2,3 Mbps | J21: entry | M21: nvt
B22: SDSL1024/1024Basic | C22: SDSL | D22: 1024/1024 | E22: Basic | H22: ≤ 2,3 Mbps/≤ 2,3 Mbpsentry | I22: ≤ 2,3 Mbps/≤ 2,3 Mbps | J22: entry | M22: nvt
B23: SDSL1536/1536Basic | C23: SDSL | D23: 1536/1536 | E23: Basic | H23: ≤ 2,3 Mbps/≤ 2,3 Mbpsentry | I23: ≤ 2,3 Mbps/≤ 2,3 Mbps | J23: entry | M23: nvt
B24: SDSL2048/2048Basic | C24: SDSL | D24: 2048/2048 | E24: Basic | H24: ≤ 2,3 Mbps/≤ 2,3 Mbpsentry | I24: ≤ 2,3 Mbps/≤ 2,3 Mbps | J24: entry | M24: nvt
B25: SDSL2300/2300Basic | C25: SDSL | D25: 2300/2300 | E25: Basic | H25: ≤ 2,3 Mbps/≤ 2,3 Mbpsentry | I25: ≤ 2,3 Mbps/≤ 2,3 Mbps | J25: entry | M25: nvt
B26: ADSL128/128Premium | C26: ADSL | D26: 128/128 | E26: Premium | H26: <=256 kbps/<=256 kbpspremium | I26: <=256 kbps/<=256 kbps | J26: premium | M26: nvt
B27: ADSL384/128Premium | C27: ADSL | D27: 384/128 | E27: Premium | H27: 1 Mbps/1 Mbpspremium | I27: 1 Mbps/1 Mbps | J27: premium | M27: nvt
B28: ADSL256/256Premium | C28: ADSL | D28: 256/256 | E28: Premium | H28: 1 Mbps/1 Mbpspremium | I28: 1 Mbps/1 Mbps | J28: premium | M28: nvt
B29: ADSL512/256Premium | C29: ADSL | D29: 512/256 | E29: Premium | H29: 1 Mbps/1 Mbpspremium | I29: 1 Mbps/1 Mbps | J29: premium | M29: nvt
B30: ADSL512/512Premium | C30: ADSL | D30: 512/512 | E30: Premium | H30: 1 Mbps/1 Mbpspremium | I30: 1 Mbps/1 Mbps | J30: premium | M30: nvt
B31: ADSL1024/256Premium | C31: ADSL | D31: 1024/256 | E31: Premium | H31: 1 Mbps/1 Mbpspremium | I31: 1 Mbps/1 Mbps | J31: premium | M31: nvt
B32: ADSL1024/512Premium | C32: ADSL | D32: 1024/512 | E32: Premium | H32: 1 Mbps/1 Mbpspremium | I32: 1 Mbps/1 Mbps | J32: premium | M32: nvt
B33: ADSL2048/512Premium | C33: ADSL | D33: 2048/512 | E33: Premium | H33: 2 Mbps/1 Mbpspremium | I33: 2 Mbps/1 Mbps | J33: premium | M33: nvt
B34: ADSL3072/512Premium | C34: ADSL | D34: 3072/512 | E34: Premium | H34: 5 Mbps/1 Mbpspremium | I34: 5 Mbps/1 Mbps | J34: premium | M34: Premium > 2/2Mbps
B35: ADSL4096/1024Premium | C35: ADSL | D35: 4096/1024 | E35: Premium | H35: 5 Mbps/1 Mbpspremium | I35: 5 Mbps/1 Mbps | J35: premium | M35: Premium > 2/2Mbps
B36: ADSL6144/1024Premium | C36: ADSL | D36: 6144/1024 | E36: Premium | H36: 10 Mbps/5 Mbpspremium | I36: 10 Mbps/5 Mbps | J36: premium | M36: Premium > 2/2Mbps
B37: ADSL8000/1024Premium | C37: ADSL | D37: 8000/1024 | E37: Premium | H37: 10 Mbps/5 Mbpspremium | I37: 10 Mbps/5 Mbps | J37: premium | M37: Premium > 2/2Mbps
B38: ADSL12000/1024Premium | C38: ADSL | D38: 12000/1024 | E38: Premium | H38: 20 Mbps/10 Mbpspremium | I38: 20 Mbps/10 Mbps | J38: premium | M38: Premium > 2/2Mbps
B39: ADSL20000/1024Premium | C39: ADSL | D39: 20000/1024 | E39: Premium | H39: 20 Mbps/10 Mbpspremium | I39: 20 Mbps/10 Mbps | J39: premium | M39: Premium > 2/2Mbps
B40: SDSL256/256Premium | C40: SDSL | D40: 256/256 | E40: Premium | H40: 1 Mbps/1 Mbpspremium | I40: 1 Mbps/1 Mbps | J40: premium | M40: nvt
B41: SDSL512/512Premium | C41: SDSL | D41: 512/512 | E41: Premium | H41: 1 Mbps/1 Mbpspremium | I41: 1 Mbps/1 Mbps | J41: premium | M41: nvt
B42: SDSL1024/1024Premium | C42: SDSL | D42: 1024/1024 | E42: Premium | H42: 1 Mbps/1 Mbpspremium | I42: 1 Mbps/1 Mbps | J42: premium | M42: nvt
B43: SDSL1536/1536Premium | C43: SDSL | D43: 1536/1536 | E43: Premium | H43: 2 Mbps/2 Mbpspremium | I43: 2 Mbps/2 Mbps | J43: premium | M43: nvt
B44: SDSL2048/2048Premium | C44: SDSL | D44: 2048/2048 | E44: Premium | H44: 2 Mbps/2 Mbpspremium | I44: 2 Mbps/2 Mbps | J44: premium | M44: nvt
B45: SDSL2300/2300Premium | C45: SDSL | D45: 2300/2300 | E45: Premium | H45: 5 Mbps/5 Mbpspremium | I45: 5 Mbps/5 Mbps | J45: premium | M45: nvt
B46: VDSL128/128Entry | C46: VDSL | D46: 128/128 | E46: Entry | H46: <= 512 kbps/<= 256 kbpsentry | I46: <= 512 kbps/<= 256 kbps | J46: entry | M46: nvt
B47: VDSL256/256Entry | C47: VDSL | D47: 256/256 | E47: Entry | H47: <= 512 kbps/<= 256 kbpsentry | I47: <= 512 kbps/<= 256 kbps | J47: entry | M47: nvt
B48: VDSL448/448Entry | C48: VDSL | D48: 448/448 | E48: Entry | H48: <= 2 Mbps/<= 512 kbpsentry | I48: <= 2 Mbps/<= 512 kbps | J48: entry | M48: nvt
B49: VDSL640/640Entry | C49: VDSL | D49: 640/640 | E49: Entry | H49: <= 4 Mbps/<= 1 Mbpsentry | I49: <= 4 Mbps/<= 1 Mbps | J49: entry | M49: nvt
B50: VDSL1024/1024Entry | C50: VDSL | D50: 1024/1024 | E50: Entry | H50: <= 4 Mbps/<= 1 Mbpsentry | I50: <= 4 Mbps/<= 1 Mbps | J50: entry | M50: nvt
B51: VDSL2048/2048Entry | C51: VDSL | D51: 2048/2048 | E51: Entry | H51: <= 30 Mbps/<= 3 Mbpsentry | I51: <= 30 Mbps/<= 3 Mbps | J51: entry | M51: nvt
B52: VDSL3072/3072Entry | C52: VDSL | D52: 3072/3072 | E52: Entry | H52: <= 4 Mbps/<= 1 Mbpsentry | I52: <= 4 Mbps/<= 1 Mbps | J52: entry | M52: nvt
B53: VDSL4096/1024Entry | C53: VDSL | D53: 4096/1024 | E53: Entry | H53: <= 4 Mbps/<= 1 Mbpsentry | I53: <= 4 Mbps/<= 1 Mbps | J53: entry | M53: nvt
B54: VDSL4096/4096Entry | C54: VDSL | D54: 4096/4096 | E54: Entry | H54: <= 4 Mbps/<= 1 Mbpsentry | I54: <= 4 Mbps/<= 1 Mbps | J54: entry | M54: nvt
B55: VDSL8192/1024Entry | C55: VDSL | D55: 8192/1024 | E55: Entry | H55: <= 8 Mbps/<= 1 Mbpsentry | I55: <= 8 Mbps/<= 1 Mbps | J55: entry | M55: nvt
B56: VDSL10240/1024Entry | C56: VDSL | D56: 10240/1024 | E56: Entry | H56: <= 20 Mbps/<= 1 Mbpsentry | I56: <= 20 Mbps/<= 1 Mbps | J56: entry | M56: nvt
B57: VDSL20480/2048Entry | C57: VDSL | D57: 20480/2048 | E57: Entry | H57: <= 20 Mbps/<= 1 Mbpsentry | I57: <= 20 Mbps/<= 1 Mbps | J57: entry | M57: nvt
B58: VDSL30372/3072Entry | C58: VDSL | D58: 30372/3072 | E58: Entry | H58: <= 30 Mbps/<= 3 Mbpsentry | I58: <= 30 Mbps/<= 3 Mbps | J58: entry | M58: nvt
B59: VDSL51200/5120Entry | C59: VDSL | D59: 51200/5120 | E59: Entry | H59: <= 50 Mbps/<= 10 Mbpsentry | I59: <= 50 Mbps/<= 10 Mbps | J59: entry | M59: nvt
B60: VDSL Bonding81920/8192Entry | C60: VDSL Bonding | D60: 81920/8192 | E60: Entry | H60: <= 100 Mbps/<= 30 Mbpsentry | I60: <= 100 Mbps/<= 30 Mbps | J60: entry | M60: nvt
B61: VDSL128/128Premium | C61: VDSL | D61: 128/128 | E61: Premium | H61: <=256 kbps/<=256 kbpspremium | I61: <=256 kbps/<=256 kbps | J61: premium | M61: nvt
B62: VDSL256/256Premium | C62: VDSL | D62: 256/256 | E62: Premium | H62: <=256 kbps/<=256 kbpspremium | I62: <=256 kbps/<=256 kbps | J62: premium | M62: nvt
B63: VDSL448/448Premium | C63: VDSL | D63: 448/448 | E63: Premium | H63: 1 Mbps/1 Mbpspremium | I63: 1 Mbps/1 Mbps | J63: premium | M63: nvt
B64: VDSL640/640Premium | C64: VDSL | D64: 640/640 | E64: Premium | H64: 1 Mbps/1 Mbpspremium | I64: 1 Mbps/1 Mbps | J64: premium | M64: nvt
B65: VDSL1024/1024Premium | C65: VDSL | D65: 1024/1024 | E65: Premium | H65: 1 Mbps/1 Mbpspremium | I65: 1 Mbps/1 Mbps | J65: premium | M65: nvt
B66: VDSL2048/2048Premium | C66: VDSL | D66: 2048/2048 | E66: Premium | H66: 2 Mbps/2 Mbpspremium | I66: 2 Mbps/2 Mbps | J66: premium | M66: nvt
B67: VDSL3072/3072Premium | C67: VDSL | D67: 3072/3072 | E67: Premium | H67: 5 Mbps/5 Mbpspremium | I67: 5 Mbps/5 Mbps | J67: premium | M67: Premium > 2/2Mbps
B68: VDSL4096/1024Premium | C68: VDSL | D68: 4096/1024 | E68: Premium | H68: 5 Mbps/1 Mbpspremium | I68: 5 Mbps/1 Mbps | J68: premium | M68: Premium > 2/2Mbps
B69: VDSL4096/4096Premium | C69: VDSL | D69: 4096/4096 | E69: Premium | H69: 5 Mbps/5 Mbpspremium | I69: 5 Mbps/5 Mbps | J69: premium | M69: Premium > 2/2Mbps
B70: =C70&D70&E70&F70 -> VDSL8192/1024Premium | C70: VDSL | D70: 8192/1024 | E70: Premium | H70: =I70&J70&K70&L70 -> 10 Mbps/5 Mbpspremium | I70: 10 Mbps/5 Mbps | J70: premium | M70: Premium > 2/2Mbps
B71: VDSL10240/1024Premium | C71: VDSL | D71: 10240/1024 | E71: Premium | H71: 10 Mbps/10 Mbpspremium | I71: 10 Mbps/10 Mbps | J71: premium | M71: Premium > 2/2Mbps
B72: VDSL20480/2048Premium | C72: VDSL | D72: 20480/2048 | E72: Premium | H72: 20 Mbps/10 Mbpspremium | I72: 20 Mbps/10 Mbps | J72: premium | M72: Premium > 2/2Mbps
B73: VDSL30372/3072Premium | C73: VDSL | D73: 30372/3072 | E73: Premium | H73: n.a.premium | I73: n.a. | J73: premium | M73: Premium > 2/2Mbps
B74: VDSL51200/5120Premium | C74: VDSL | D74: 51200/5120 | E74: Premium | H74: n.a.premium | I74: n.a. | J74: premium | M74: Premium > 2/2Mbps
B75: VDSL81920/8192Premium | C75: VDSL | D75: 81920/8192 | E75: Premium | H75: n.a.premium | I75: n.a. | J75: premium | M75: Premium > 2/2Mbps
B76: SA IPVPN1024/1024 tbv alarmEntry | C76: SA IPVPN | D76: 1024/1024 tbv alarm | E76: Entry | H76: ≤50/50 Mbpsentry | I76: ≤50/50 Mbps | J76: entry | M76: nvt
B77: SA IPVPN2048/2048Entry | C77: SA IPVPN | D77: 2048/2048 | E77: Entry | H77: ≤50/50 Mbpsentry | I77: ≤50/50 Mbps | J77: entry | M77: nvt
B78: SA IPVPN3072/3072Entry | C78: SA IPVPN | D78: 3072/3072 | E78: Entry | H78: ≤50/50 Mbpsentry | I78: ≤50/50 Mbps | J78: entry | M78: nvt
B79: SA IPVPN4096/1024Entry | C79: SA IPVPN | D79: 4096/1024 | E79: Entry | H79: ≤50/50 Mbpsentry | I79: ≤50/50 Mbps | J79: entry | M79: nvt
B80: SA IPVPN4096/4096Entry | C80: SA IPVPN | D80: 4096/4096 | E80: Entry | H80: ≤50/50 Mbpsentry | I80: ≤50/50 Mbps | J80: entry | M80: nvt
B81: SA IPVPN8192/1024Entry | C81: SA IPVPN | D81: 8192/1024 | E81: Entry | H81: ≤50/50 Mbpsentry | I81: ≤50/50 Mbps | J81: entry | M81: nvt
B82: SA IPVPN8192/8192Entry | C82: SA IPVPN | D82: 8192/8192 | E82: Entry | H82: ≤50/50 Mbpsentry | I82: ≤50/50 Mbps | J82: entry | M82: nvt
B83: SA IPVPN10240/10240Entry | C83: SA IPVPN | D83: 10240/10240 | E83: Entry | H83: ≤50/50 Mbpsentry | I83: ≤50/50 Mbps | J83: entry | M83: nvt
B84: SA IPVPN10240/1024Entry | C84: SA IPVPN | D84: 10240/1024 | E84: Entry | H84: ≤50/50 Mbpsentry | I84: ≤50/50 Mbps | J84: entry | M84: nvt
B85: SA IPVPN12288/1024Entry | C85: SA IPVPN | D85: 12288/1024 | E85: Entry | H85: ≤50/50 Mbpsentry | I85: ≤50/50 Mbps | J85: entry | M85: nvt
B86: SA IPVPN20480/2048Entry | C86: SA IPVPN | D86: 20480/2048 | E86: Entry | H86: ≤50/50 Mbpsentry | I86: ≤50/50 Mbps | J86: entry | M86: nvt
B87: SA IPVPN30720/3072Entry | C87: SA IPVPN | D87: 30720/3072 | E87: Entry | H87: ≤50/50 Mbpsentry | I87: ≤50/50 Mbps | J87: entry | M87: nvt
B88: SA IPVPN51200/5120Entry | C88: SA IPVPN | D88: 51200/5120 | E88: Entry | H88: ≤50/50 Mbpsentry | I88: ≤50/50 Mbps | J88: entry | M88: nvt
B89: SA IPVPN30720/30720Entry | C89: SA IPVPN | D89: 30720/30720 | E89: Entry | H89: ≤50/50 Mbpsentry | I89: ≤50/50 Mbps | J89: entry | M89: nvt
B90: SA IPVPN51200/51200Entry | C90: SA IPVPN | D90: 51200/51200 | E90: Entry | H90: ≤50/50 Mbpsentry | I90: ≤50/50 Mbps | J90: entry | M90: nvt
B91: SA IPVPN100000/100000Entry | C91: SA IPVPN | D91: 100000/100000 | E91: Entry | H91: ≤100/100 Mbpsentry | I91: ≤100/100 Mbps | J91: entry | M91: nvt
B92: SA IPVPN1024/1024Premium | C92: SA IPVPN | D92: 1024/1024 | E92: Premium | H92: 1 Mbps/1 Mbpspremium | I92: 1 Mbps/1 Mbps | J92: premium | M92: nvt
B93: SA IPVPN2048/2048Premium | C93: SA IPVPN | D93: 2048/2048 | E93: Premium | H93: 2 Mbps/2 Mbpspremium | I93: 2 Mbps/2 Mbps | J93: premium | M93: nvt
B94: SA IPVPN3072/3072Premium | C94: SA IPVPN | D94: 3072/3072 | E94: Premium | H94: 5 Mbps/5 Mbpspremium | I94: 5 Mbps/5 Mbps | J94: premium | M94: nvt
B95: SA IPVPN4096/1024Premium | C95: SA IPVPN | D95: 4096/1024 | E95: Premium | H95: 5 Mbps/1 Mbpspremium | I95: 5 Mbps/1 Mbps | J95: premium | M95: nvt
B96: SA IPVPN4096/4096Premium | C96: SA IPVPN | D96: 4096/4096 | E96: Premium | H96: 5 Mbps/5 Mbpspremium | I96: 5 Mbps/5 Mbps | J96: premium | M96: nvt
B97: SA IPVPN8192/1024Premium | C97: SA IPVPN | D97: 8192/1024 | E97: Premium | H97: 10 Mbps/5 Mbpspremium | I97: 10 Mbps/5 Mbps | J97: premium | M97: nvt
B98: SA IPVPN8192/8192Premium | C98: SA IPVPN | D98: 8192/8192 | E98: Premium | H98: 10 Mbps/10 Mbpspremium | I98: 10 Mbps/10 Mbps | J98: premium | M98: nvt
B99: SA IPVPN10240/10240Premium | C99: SA IPVPN | D99: 10240/10240 | E99: Premium | H99: 10 Mbps/10 Mbpspremium | I99: 10 Mbps/10 Mbps | J99: premium | M99: nvt
B100: SA IPVPN10240/1024Premium | C100: SA IPVPN | D100: 10240/1024 | E100: Premium | H100: 10 Mbps/10 Mbpspremium | I100: 10 Mbps/10 Mbps | J100: premium | M100: nvt
B101: SA IPVPN12288/1024Premium | C101: SA IPVPN | D101: 12288/1024 | E101: Premium | H101: 20 Mbps/10 Mbpspremium | I101: 20 Mbps/10 Mbps | J101: premium | M101: nvt
B102: SA IPVPN20480/2048Premium | C102: SA IPVPN | D102: 20480/2048 | E102: Premium | H102: n.a.premium | I102: n.a. | J102: premium | M102: nvt
B103: SA IPVPN30720/3072Premium | C103: SA IPVPN | D103: 30720/3072 | E103: Premium | H103: n.a.premium | I103: n.a. | J103: premium | M103: nvt
B104: SA IPVPN51200/5120Premium | C104: SA IPVPN | D104: 51200/5120 | E104: Premium | H104: n.a.premium | I104: n.a. | J104: premium | M104: nvt
B105: SA IPVPN30720/30720Premium | C105: SA IPVPN | D105: 30720/30720 | E105: Premium | H105: n.a.premium | I105: n.a. | J105: premium | M105: nvt
B106: SA IPVPN51200/51200Premium | C106: SA IPVPN | D106: 51200/51200 | E106: Premium | H106: n.a.premium | I106: n.a. | J106: premium | M106: nvt
B107: SA IPVPN100000/100000Premium | C107: SA IPVPN | D107: 100000/100000 | E107: Premium | H107: n.a.premium | I107: n.a. | J107: premium | M107: nvt
B111: ZM identifier | C111: xDSL | D111: Bandbreedte | E111: ZM VPN kwaliteit | H111: WBA | I111: Bandbreedte | J111: WO VPN kwaliteit | K111: WO Bereik | L111: EDC- backbone | M111: sleutel ULL (transport)
B112: =C112&D112&E112&F112 -> ADSL128/128Add | C112: ADSL | D112: 128/128 | E112: Add | H112: WBA CM Ethernet | I112: <=256 kbps/<=256 kbps | J112: add | K112: national | L112: nvt | M112: nvt
B113: ADSL200/200Add | C113: ADSL | D113: 200/200 | E113: Add | H113: WBA CM Ethernet | I113: <=256 kbps/<=256 kbps | J113: add | K113: national | L113: nvt | M113: nvt
B114: ADSL224/224Add | C114: ADSL | D114: 224/224 | E114: Add | H114: WBA CM Ethernet | I114: <=256 kbps/<=256 kbps | J114: add | K114: national | L114: nvt | M114: nvt
B115: ADSL256/256Add | C115: ADSL | D115: 256/256 | E115: Add | H115: WBA CM Ethernet | I115: <=256 kbps/<=256 kbps | J115: add | K115: national | L115: nvt | M115: nvt
B116: ADSL352/352Add | C116: ADSL | D116: 352/352 | E116: Add | H116: WBA ZM Ethernet | I116: 1 Mbps/1 Mbps | J116: premium | K116: metro | L116: metro-nationaal | M116: nvt
B117: ADSL448/448Add | C117: ADSL | D117: 448/448 | E117: Add | H117: WBA ZM Ethernet | I117: 1 Mbps/1 Mbps | J117: premium | K117: metro | L117: metro-nationaal | M117: nvt
B118: ADSL512/512Add | C118: ADSL | D118: 512/512 | E118: Add | H118: WBA ZM Ethernet | I118: 1 Mbps/1 Mbps | J118: premium | K118: metro | L118: metro-nationaal | M118: nvt
B119: SDSL224/224Add | C119: SDSL | D119: 224/224 | E119: Add | H119: WBA CM Ethernet | I119: <=256 kbps/<=256 kbps | J119: add | K119: national | L119: nvt | M119: nvt
B120: SDSL256/256Add | C120: SDSL | D120: 256/256 | E120: Add | H120: WBA CM Ethernet | I120: <=256 kbps/<=256 kbps | J120: add | K120: national | L120: nvt | M120: nvt
B121: SDSL448/448Add | C121: SDSL | D121: 448/448 | E121: Add | H121: WBA ZM Ethernet | I121: 1 Mbps/1 Mbps | J121: premium | K121: metro | L121: metro-nationaal | M121: nvt
B122: SDSL512/512Add | C122: SDSL | D122: 512/512 | E122: Add | H122: WBA ZM Ethernet | I122: 1 Mbps/1 Mbps | J122: premium | K122: metro | L122: metro-nationaal | M122: nvt
B123: SDSL1024/1024Add | C123: SDSL | D123: 1024/1024 | E123: Add | H123: WBA ZM Ethernet | I123: 1 Mbps/1 Mbps | J123: premium | K123: metro | L123: metro-nationaal | M123: nvt
B124: SDSL1536/1536Add | C124: SDSL | D124: 1536/1536 | E124: Add | H124: WBA ZM Ethernet | I124: 2 Mbps/2 Mbps | J124: premium | K124: metro | L124: metro-nationaal | M124: nvt
B125: SDSL2048/2048Add | C125: SDSL | D125: 2048/2048 | E125: Add | H125: WBA ZM Ethernet | I125: 2 Mbps/2 Mbps | J125: premium | K125: metro | L125: metro-nationaal | M125: nvt
B126: VDSL128/128Add | C126: VDSL | D126: 128/128 | E126: Add | H126: WBA CM Ethernet | I126: <=256 kbps/<=256 kbps | J126: add | K126: national | L126: nvt | M126: nvt
B127: VDSL256/256Add | C127: VDSL | D127: 256/256 | E127: Add | H127: WBA CM Ethernet | I127: <=256 kbps/<=256 kbps | J127: add | K127: national | L127: nvt | M127: nvt
B128: VDSL448/448Add | C128: VDSL | D128: 448/448 | E128: Add | H128: WBA ZM Ethernet | I128: 1 Mbps/1 Mbps | J128: premium | K128: metro | L128: metro-nationaal | M128: nvt
B129: VDSL640/640Add | C129: VDSL | D129: 640/640 | E129: Add | H129: WBA ZM Ethernet | I129: 1 Mbps/1 Mbps | J129: premium | K129: metro | L129: metro-nationaal | M129: nvt
B130: VDSL1024/1024Add | C130: VDSL | D130: 1024/1024 | E130: Add | H130: WBA ZM Ethernet | I130: 1 Mbps/1 Mbps | J130: premium | K130: metro | L130: metro-nationaal | M130: nvt
B131: VDSL2048/2048Add | C131: VDSL | D131: 2048/2048 | E131: Add | H131: WBA ZM Ethernet | I131: 2 Mbps/2 Mbps | J131: premium | K131: metro | L131: metro-nationaal | M131: nvt
B132: VDSL3072/3072Add | C132: VDSL | D132: 3072/3072 | E132: Add | H132: WBA ZM Ethernet | I132: 5 Mbps/5 Mbps | J132: premium | K132: metro | L132: metro-nationaal | M132: Premium > 2/2Mbps
B133: SA IPVPN128/128Add | C133: SA IPVPN | D133: 128/128 | E133: Add | H133: WBA CM Ethernet | I133: <=256 kbps/<=256 kbps | J133: add | K133: national | L133: nvt | M133: nvt
B134: SA IPVPN256/256Add | C134: SA IPVPN | D134: 256/256 | E134: Add | H134: WBA CM Ethernet | I134: <=256 kbps/<=256 kbps | J134: add | K134: national | L134: nvt | M134: nvt
B135: SA IPVPN448/448Add | C135: SA IPVPN | D135: 448/448 | E135: Add | H135: WBA ZM Ethernet | I135: 1 Mbps/1 Mbps | J135: premium | K135: metro | L135: metro-nationaal | M135: nvt
B136: SA IPVPN640/640Add | C136: SA IPVPN | D136: 640/640 | E136: Add | H136: WBA ZM Ethernet | I136: 1 Mbps/1 Mbps | J136: premium | K136: metro | L136: metro-nationaal | M136: nvt
B137: SA IPVPN1024/1024Add | C137: SA IPVPN | D137: 1024/1024 | E137: Add | H137: WBA ZM Ethernet | I137: 1 Mbps/1 Mbps | J137: premium | K137: metro | L137: metro-nationaal | M137: nvt
B138: SA IPVPN2048/2048Add | C138: SA IPVPN | D138: 2048/2048 | E138: Add | H138: WBA ZM Ethernet | I138: 2 Mbps/2 Mbps | J138: premium | K138: metro | L138: metro-nationaal | M138: nvt
B139: SA IPVPN3072/3072Add | C139: SA IPVPN | D139: 3072/3072 | E139: Add | H139: WBA ZM Ethernet | I139: 5 Mbps/5 Mbps | J139: premium | K139: metro | L139: metro-nationaal | M139: nvt
B140: SA IPVPN4096/4096Add | C140: SA IPVPN | D140: 4096/4096 | E140: Add | H140: WBA ZM Ethernet | I140: 5 Mbps/5 Mbps | J140: premium | K140: metro | L140: metro-nationaal | M140: nvt
B141: SA IPVPN8192/8192Add | C141: SA IPVPN | D141: 8192/8192 | E141: Add | H141: WBA ZM Ethernet | I141: 10 Mbps/10 Mbps | J141: premium | K141: metro | L141: metro-nationaal | M141: nvt
B144: ZM identifier | C144: ZM VPN kwaliteit | D144: ZM Bereik | H144: WO identifier | I144: WO VPN kwaliteit | J144: WO Bereik | K144: EDC- backbone
B145: =C145&D145&E145&F145 -> basicnationaal | C145: basic | D145: nationaal | H145: =I145&J145&K145&L145 -> entrynationalnvt | I145: entry | J145: national | K145: nvt
B146: =C146&D146&E146&F146 -> entrynationaal | C146: entry | D146: nationaal | H146: =I146&J146&K146&L146 -> entrynationalnvt | I146: entry | J146: national | K146: nvt
B147: premiumnationaal | C147: premium | D147: nationaal | H147: premiummetrometro-nationaal | I147: premium | J147: metro | K147: metro-nationaal
B148: addnationaal | C148: add | D148: nationaal | H148: addnationalnvt | I148: add | J148: national | K148: nvt
B150: =C150&D150&E150&F150 -> 1:1 VBR-rtnationaal | C150: 1:1 VBR-rt | D150: nationaal | H150: =I150&J150&K150&L150 -> premiummetrometro-nationaal | I150: premium | J150: metro | K150: metro-nationaal
B151: 1:1 UBRnationaal | C151: 1:1 UBR | D151: nationaal | H151: =I151&J151&K151&L151 -> premiummetrometro-nationaal | I151: premium | J151: metro | K151: metro-nationaal
B152: =C152&D152&E152&F152 -> 1:4nationaal | C152: 1:4 | D152: nationaal | H152: =I152&J152&K152&L152 -> premiummetrometro-nationaal | I152: premium | J152: metro | K152: metro-nationaal
B153: 1:10nationaal | C153: 1:10 | D153: nationaal | H153: premiummetrometro-nationaal | I153: premium | J153: metro | K153: metro-nationaal
B154: =C154&D154&E154&F154 -> 1:20nationaal | C154: 1:20 | D154: nationaal | H154: =I154&J154&K154&L154 -> premiummetrometro-nationaal | I154: premium | J154: metro | K154: metro-nationaal
B155: 1:10+nationaal | C155: 1:10+ | D155: nationaal | H155: premiummetrometro-nationaal | I155: premium | J155: metro | K155: metro-nationaal
B158: 2. Dragers
B160: ZM identifier | C160: xDSL | H160: WO identifier | I160: xDSL
A161: 1 | B161: =C161&D161&E161&F161 -> ADSLshared | C161: ADSL | D161: shared | H161: =I161&J161&K161&L161 -> ADSLshared | I161: ADSL | J161: shared
B162: VDSLshared | C162: VDSL | D162: shared | H162: VDSLshared | I162: VDSL | J162: shared
B163: =C163&D163&E163&F163 -> ADSLunshared | C163: ADSL | D163: unshared | H163: =I163&J163&K163&L163 -> ADSLunshared | I163: ADSL | J163: unshared
B164: VDSLunshared | C164: VDSL | D164: unshared | H164: VDSLunshared | I164: VDSL | J164: unshared
B165: VDSL Bondingunshared | C165: VDSL Bonding | D165: unshared | H165: =I165&J165&K165&L165 -> VDSL Bondingunshared | I165: VDSL Bonding | J165: unshared
B166: SDSLunshared | C166: SDSL | D166: unshared | H166: SDSLunshared | I166: SDSL | J166: unshared
B167: SA IPVPNunshared | C167: SA IPVPN | D167: unshared | H167: FttHunshared | I167: FttH | J167: unshared
A169: 2 | B169: =C169&D169&E169&F169 -> ADSL | C169: ADSL | H169: =I169&J169&K169&L169 -> ADSL | I169: ADSL
B170: VDSL | C170: VDSL | H170: VDSL | I170: VDSL
B171: VDSL Bonding | C171: VDSL Bonding | H171: VDSL Bonding | I171: VDSL Bonding
B172: SDSL | C172: SDSL | H172: SDSL | I172: SDSL
B173: SA IPVPN | C173: SA IPVPN | H173: FttH | I173: FttH
A175: 3 | B175: =C175&D175&E175&F175 -> ADSLNLSx | C175: ADSL | D175: NLSx | H175: =I175&J175&K175&L175 -> SDFNLSxniet gebruikt | I175: SDF | J175: NLSx | K175: niet gebruikt | N175: worst case
B176: VDSLNLSx | C176: VDSL | D176: NLSx | H176: SDFNLSxniet gebruikt | I176: SDF | J176: NLSx | K176: niet gebruikt | N176: worst case
B177: VDSL BondingNLSx | C177: VDSL Bonding | D177: NLSx | H177: MDF Pair bondingNLSxniet gebruikt | I177: MDF Pair bonding | J177: NLSx | K177: niet gebruikt
B178: SA IPVPNNLSx | C178: SA IPVPN | D178: NLSx | H178: FttHNLSxniet gebruikt | I178: FttH | J178: NLSx | K178: niet gebruikt
B180: =C180&D180&E180&F180 -> ADSLnew line | C180: ADSL | D180: new line | H180: =I180&J180&K180&L180 -> SDFnew line | I180: SDF | J180: new line
B181: VDSLnew line | C181: VDSL | D181: new line | H181: SDFnew line | I181: SDF | J181: new line
B182: VDSL Bondingnew line | C182: VDSL Bonding | D182: new line | H182: MDF Pair bondingnew line | I182: MDF Pair bonding | J182: new line
B183: SA IPVPNnew line | C183: SA IPVPN | D183: new line | H183: FttHnew line | I183: FttH | J183: new line
B185: =C185&D185&E185&F185 -> ADSLbestaand | C185: ADSL | D185: bestaand | H185: =I185&J185&K185&L185 -> SDFbestaand | I185: SDF | J185: bestaand
B186: VDSLbestaand | C186: VDSL | D186: bestaand | H186: SDFbestaand | I186: SDF | J186: bestaand
B188: ZM identifier | C188: ZM VPN kwaliteit | H188: WO identifier | I188: WBA
B189: =C189&D189&E189&F189 -> Basic | C189: Basic | H189: =I189&J189&K189&L189 -> WBA CM Ethernet | I189: WBA CM Ethernet
B190: Entry | C190: Entry | H190: WBA CM Ethernet | I190: WBA CM Ethernet
B191: Premium | C191: Premium | H191: WBA ZM Ethernet | I191: WBA ZM Ethernet
B192: Add | C192: Add | H192: =I192&J192&K192&L192 -> WBA CM Ethernet | I192: WBA CM Ethernet
B194: 2a) wholesale new line
B196: ZM identifier | H196: WO identifier
B197: =C197&D197&E197&F197 -> bestaand | C197: bestaand | H197: =I197&J197&K197&L197 -> nvt | I197: nvt
B198: nieuw | C198: nieuw | H198: =I198&J198&K198&L198 -> New line | I198: New line
B201: 3. Service Levels
B203: ZM identifier | C203: xDSL | D203: ZM VPN kwaliteit | E203: ZM VPN Service Level | H203: WO identifier | I203: WBA | J203: xDSL | K203: WO VPN Service Level
B204: =C204&D204&E204&F204 -> ADSLBasicwinkeluren | C204: ADSL | D204: Basic | E204: winkeluren | H204: =I204&J204&K204 -> WBA CM EthernetADSL7x24 | I204: WBA CM Ethernet | J204: ADSL | K204: 7x24
B205: ADSLPremiumwinkeluren | C205: ADSL | D205: Premium | E205: winkeluren | H205: =I205&J205&K205 -> WBA ZM EthernetADSL7x24 | I205: WBA ZM Ethernet | J205: ADSL | K205: 7x24
B206: ADSLBasic7x24 | C206: ADSL | D206: Basic | E206: 7x24 | H206: WBA CM EthernetADSL7x24 | I206: WBA CM Ethernet | J206: ADSL | K206: 7x24
B207: ADSLPremium7x24 | C207: ADSL | D207: Premium | E207: 7x24 | H207: WBA ZM EthernetADSL7x24 | I207: WBA ZM Ethernet | J207: ADSL | K207: 7x24
B208: SDSLBasicwinkeluren | C208: SDSL | D208: Basic | E208: winkeluren | H208: WBA CM EthernetSDSL7x24 | I208: WBA CM Ethernet | J208: SDSL | K208: 7x24
B209: SDSLPremiumwinkeluren | C209: SDSL | D209: Premium | E209: winkeluren | H209: WBA ZM EthernetSDSL7x24 | I209: WBA ZM Ethernet | J209: SDSL | K209: 7x24
B210: SDSLBasic7x24 | C210: SDSL | D210: Basic | E210: 7x24 | H210: WBA CM EthernetSDSL7x24 | I210: WBA CM Ethernet | J210: SDSL | K210: 7x24
B211: SDSLPremium7x24 | C211: SDSL | D211: Premium | E211: 7x24 | H211: WBA ZM EthernetSDSL7x24 | I211: WBA ZM Ethernet | J211: SDSL | K211: 7x24
B212: VDSLEntrywinkeluren | C212: VDSL | D212: Entry | E212: winkeluren | H212: WBA CM EthernetVDSL7x24 | I212: WBA CM Ethernet | J212: VDSL | K212: 7x24
B213: VDSLPremiumwinkeluren | C213: VDSL | D213: Premium | E213: winkeluren | H213: WBA ZM EthernetVDSL7x24 | I213: WBA ZM Ethernet | J213: VDSL | K213: 7x24
B214: VDSLEntry7x24 | C214: VDSL | D214: Entry | E214: 7x24 | H214: WBA CM EthernetVDSL7x24 | I214: WBA CM Ethernet | J214: VDSL | K214: 7x24
B215: VDSLPremium7x24 | C215: VDSL | D215: Premium | E215: 7x24 | H215: WBA ZM EthernetVDSL7x24 | I215: WBA ZM Ethernet | J215: VDSL | K215: 7x24
B216: VDSL BondingEntrywinkeluren | C216: VDSL Bonding | D216: Entry | E216: winkeluren | H216: WBA CM EthernetVDSL7x24 | I216: WBA CM Ethernet | J216: VDSL | K216: 7x24
B217: VDSL BondingPremiumwinkeluren | C217: VDSL Bonding | D217: Premium | E217: winkeluren | H217: WBA ZM EthernetVDSL7x24 | I217: WBA ZM Ethernet | J217: VDSL | K217: 7x24
B218: VDSL BondingEntry7x24 | C218: VDSL Bonding | D218: Entry | E218: 7x24 | H218: WBA CM EthernetVDSL7x24 | I218: WBA CM Ethernet | J218: VDSL | K218: 7x24
B219: VDSL BondingPremium7x24 | C219: VDSL Bonding | D219: Premium | E219: 7x24 | H219: WBA ZM EthernetVDSL7x24 | I219: WBA ZM Ethernet | J219: VDSL | K219: 7x24
B220: SA IPVPNEntrywinkeluren | C220: SA IPVPN | D220: Entry | E220: winkeluren | H220: WBA CM EthernetFttH7x24 | I220: WBA CM Ethernet | J220: FttH | K220: 7x24
B221: SA IPVPNPremiumwinkeluren | C221: SA IPVPN | D221: Premium | E221: winkeluren | H221: WBA ZM EthernetFttH7x24 | I221: WBA ZM Ethernet | J221: FttH | K221: 7x24
B222: SA IPVPNEntry7x24 | C222: SA IPVPN | D222: Entry | E222: 7x24 | H222: WBA CM EthernetFttH7x24 | I222: WBA CM Ethernet | J222: FttH | K222: 7x24
... 18 more rows

Sheet EDC Minus
H1: 2011WK(13)16A_2011 | N1: Versie: 20130924
B2: ND5 kostenparameters vaste netwerk KPN (ZM deel) | F2: 2013/2014 | G2: Versie: | H2: 2011WK(13)16A_2012
H3: 2011WK(13)16B_2013
H4: 2011WK(13)16B_2015
D7: WBA KOPER
D9: WBA CM | E9: Type access | F9: Netvlakken
D10: ADSL op MDF (nrc) locatie (ATM) | E10: shared/non-shared | F10: passief-regionaal | G10: EDC minus 2012-2014 | H10: € 1.00 | I10: per mnd
D11: ADSL op MDF (nrc) locatie (ATM) | F11: regionaal-nationaal | G11: EDC minus 2012-2014 | H11: € 1.00 | I11: per mnd
D12: Tweede WBA CM ATM PVC 1:1 | F12: passief-regionaal | G12: EDC minus 2012-2014 | H12: € 1.00 | I12: per Mbps per mnd
D13: Tweede WBA CM ATM PVC 1:1 | F13: regionaal-nationaal | G13: EDC minus 2012-2014 | H13: € 1.00 | I13: per Mbps per mnd
D14: xDSL op MDF (nrc) locatie (ethernet) | E14: shared/non-shared | F14: passief-nationaal | G14: EDC minus 2012-2014 | H14: € 1.00 | I14: per mnd
D15: VDSL op MDF (nrc) locatie (ethernet) | E15: VDSL bonding | F15: passief-nationaal | G15: EDC minus 2012-2014 | H15: € 1.00 | I15: per mnd
D16: VDSL op SDF locatie (ethernet) | E16: non-shared | F16: passief-nationaal | G16: LRIC | H16: € 1.00 | I16: per mnd
D17: FttH op Fiber locatie (ethernet) | E17: access | G17: LRIC | H17: € 1.00 | I17: per mnd
D18: FttH op Fiber locatie /SDF op VDSL locatie | E18: transport | F18: passief-nationaal | G18: LRIC | H18: € 1.00 | I18: per Mbps per mnd
D20: WBA ZM ETN | E20: Type access | F20: Netvlakken
D21: ADSL op MDF (nrc) locatie (ATM, entry) | E21: shared/non-shared | F21: passief-regionaal | G21: EDC minus | H21: zie ontmiddeling | I21: per mnd
D22: ADSL op MDF (nrc) locatie (ATM, entry) | F22: regionaal-nationaal | G22: EDC minus | H22: zie ontmiddeling | I22: per mnd
D23: ADSL op MDF (nrc) locatie (ATM, anders dan entry) | E23: shared/non-shared | F23: passief-regionaal | G23: EDC minus | H23: zie ontmiddeling | I23: per mnd
D24: ADSL op MDF (nrc) locatie (ATM, anders dan entry) | F24: regionaal-nationaal | G24: EDC minus | H24: zie ontmiddeling | I24: per mnd
D25: xDSL op MDF (nrc) locatie (ethernet) | E25: shared/non-shared | F25: passief-metro | G25: EDC minus | H25: € 1.00 | I25: per mnd
D26: VDSL op SDF locatie (ethernet) | E26: non-shared | F26: passief-metro | G26: LRIC | H26: € 1.00 | I26: per mnd
D27: xDSL transport (ethernet) | F27: metro-nationaal | G27: EDC minus | H27: € 1.00 | I27: per mnd
D28: FttH op Fiber locatie (ethernet) | E28: access | G28: LRIC | H28: € 1.00 | I28: per mnd
D29: FttH op Fiber locatie /SDF op VDSL locatie | E29: transport | F29: passief-nationaal | G29: LRIC | H29: € 1.00 | I29: per Mbps per mnd
D31: WBA ZM ATM: kostenontmiddeling naar tarieven
D33: WBA ZM ATM | H33: VBR-rt | I33: UBR 1:1 | J33: 1:4 | K33: 1:10 | L33: 1:20 | M33: Entry
D34: 128/128 | F34: passief-regionaal | G34: EDC minus
D35: 200/200 | F35: passief-regionaal | G35: EDC minus
D36: 224/224 | F36: passief-regionaal | G36: EDC minus
D37: 256/256 | F37: passief-regionaal | G37: EDC minus
D38: 352/352 | F38: passief-regionaal | G38: EDC minus
D39: 448/448 | F39: passief-regionaal | G39: EDC minus
D40: 512/256 | F40: passief-regionaal | G40: EDC minus
D41: 512/512 | F41: passief-regionaal | G41: EDC minus
D42: 1024/256 | F42: passief-regionaal | G42: EDC minus
D43: 1024/512 | F43: passief-regionaal | G43: EDC minus
D44: 1024/1024 | F44: passief-regionaal | G44: EDC minus
D45: 1280/1280 | F45: passief-regionaal | G45: EDC minus
D46: 1536/1536 | F46: passief-regionaal | G46: EDC minus
D47: 2048/512 | F47: passief-regionaal | G47: EDC minus
D48: 2048/2048 | F48: passief-regionaal | G48: EDC minus
D49: 2304/2304 | F49: passief-regionaal | G49: EDC minus
D50: 4096/1024 | F50: passief-regionaal | G50: EDC minus
D51: 8192/1024 | F51: passief-regionaal | G51: EDC minus
D52: 12288/1024 | F52: passief-regionaal | G52: EDC minus
D54: 128/128 | F54: regionaal-nationaal | G54: EDC minus | H54: € 1.00 | I54: € 1.00 | J54: € 1.00 | K54: € 1.00 | L54: € 1.00
D55: 200/200 | F55: regionaal-nationaal | G55: EDC minus | H55: € 1.00
D56: 224/224 | F56: regionaal-nationaal | G56: EDC minus | H56: € 1.00
D57: 256/256 | F57: regionaal-nationaal | G57: EDC minus | H57: € 1.00 | I57: € 1.00 | J57: € 1.00 | K57: € 1.00 | L57: € 1.00 | M57: € 1.00
D58: 352/352 | F58: regionaal-nationaal | G58: EDC minus | H58: € 1.00
D59: 448/448 | F59: regionaal-nationaal | G59: EDC minus | H59: € 1.00
D60: 512/256 | F60: regionaal-nationaal | G60: EDC minus | H60: € 1.00 | I60: € 1.00 | J60: € 1.00 | K60: € 1.00 | L60: € 1.00
D61: 512/512 | F61: regionaal-nationaal | G61: EDC minus | H61: € 1.00 | I61: € 1.00 | J61: € 1.00 | K61: € 1.00 | L61: € 1.00 | M61: € 1.00
D62: 1024/256 | F62: regionaal-nationaal | G62: EDC minus | H62: € 1.00 | I62: € 1.00 | J62: € 1.00 | K62: € 1.00 | L62: € 1.00 | M62: 0
D63: 1024/512 | F63: regionaal-nationaal | G63: EDC minus | H63: € 1.00 | I63: € 1.00 | J63: € 1.00 | K63: € 1.00 | L63: € 1.00 | M63: € 1.00
D64: 1024/1024 | F64: regionaal-nationaal | G64: EDC minus | H64: € 1.00 | I64: € 1.00 | J64: € 1.00 | K64: € 1.00 | L64: € 1.00
D65: 1280/1280 | F65: regionaal-nationaal | G65: EDC minus | H65: € 1.00
D66: 1536/1536 | F66: regionaal-nationaal | G66: EDC minus | H66: € 1.00 | I66: € 1.00 | J66: € 1.00 | K66: € 1.00 | L66: € 1.00
D67: 2048/512 | F67: regionaal-nationaal | G67: EDC minus | H67: € 1.00 | I67: € 1.00 | J67: € 1.00 | K67: € 1.00 | L67: € 1.00 | M67: € 1.00
D68: 2048/2048 | F68: regionaal-nationaal | G68: EDC minus | H68: € 1.00 | I68: € 1.00 | J68: € 1.00 | K68: € 1.00 | L68: € 1.00
D69: 2304/2304 | F69: regionaal-nationaal | G69: EDC minus | H69: € 1.00 | I69: € 1.00 | J69: € 1.00 | K69: € 1.00 | L69: € 1.00
D70: 4096/1024 | F70: regionaal-nationaal | G70: EDC minus | J70: € 1.00 | K70: € 1.00 | L70: € 1.00 | M70: € 1.00
D71: 8192/1024 | F71: regionaal-nationaal | G71: EDC minus | J71: € 1.00 | K71: € 1.00 | L71: € 1.00 | M71: € 1.00
D72: 12288/1024 | F72: regionaal-nationaal | G72: EDC minus | J72: € 1.00 | K72: € 1.00 | L72: € 1.00 | M72: € 1.00
D74: 128/128 | F74: regionaal-supranationaal | G74: EDC minus | H74: € 1.00 | I74: € 1.00 | J74: € 1.00 | K74: € 1.00 | L74: € 1.00
D75: 200/200 | F75: regionaal-supranationaal | G75: EDC minus | H75: € 1.00
D76: 224/224 | F76: regionaal-supranationaal | G76: EDC minus | H76: € 1.00
D77: 256/256 | F77: regionaal-supranationaal | G77: EDC minus | H77: € 1.00 | I77: € 1.00 | J77: € 1.00 | K77: € 1.00 | L77: € 1.00 | M77: € 1.00
D78: 352/352 | F78: regionaal-supranationaal | G78: EDC minus | H78: € 1.00
D79: 448/448 | F79: regionaal-supranationaal | G79: EDC minus | H79: € 1.00
D80: 512/256 | F80: regionaal-supranationaal | G80: EDC minus | H80: € 1.00 | I80: € 1.00 | J80: € 1.00 | K80: € 1.00 | L80: € 1.00
D81: 512/512 | F81: regionaal-supranationaal | G81: EDC minus | H81: € 1.00 | I81: € 1.00 | J81: € 1.00 | K81: € 1.00 | L81: € 1.00 | M81: € 1.00
D82: 1024/256 | F82: regionaal-supranationaal | G82: EDC minus | H82: € 1.00 | I82: € 1.00 | J82: € 1.00 | K82: € 1.00 | L82: € 1.00 | M82: 0
D83: 1024/512 | F83: regionaal-supranationaal | G83: EDC minus | H83: € 1.00 | I83: € 1.00 | J83: € 1.00 | K83: € 1.00 | L83: € 1.00 | M83: € 1.00
D84: 1024/1024 | F84: regionaal-supranationaal | G84: EDC minus | H84: € 1.00 | I84: € 1.00 | J84: € 1.00 | K84: € 1.00 | L84: € 1.00
D85: 1280/1280 | F85: regionaal-supranationaal | G85: EDC minus | H85: € 1.00
D86: 1536/1536 | F86: regionaal-supranationaal | G86: EDC minus | H86: € 1.00 | I86: € 1.00 | J86: € 1.00 | K86: € 1.00 | L86: € 1.00
D87: 2048/512 | F87: regionaal-supranationaal | G87: EDC minus | H87: € 1.00 | I87: € 1.00 | J87: € 1.00 | K87: € 1.00 | L87: € 1.00 | M87: € 1.00
D88: 2048/2048 | F88: regionaal-supranationaal | G88: EDC minus | H88: € 1.00 | I88: € 1.00 | J88: € 1.00 | K88: € 1.00 | L88: € 1.00
D89: 2304/2304 | F89: regionaal-supranationaal | G89: EDC minus | H89: € 1.00 | I89: € 1.00 | J89: € 1.00 | K89: € 1.00 | L89: € 1.00
D90: 4096/1024 | F90: regionaal-supranationaal | G90: EDC minus | J90: € 1.00 | K90: € 1.00 | L90: € 1.00 | M90: € 1.00
D91: 8192/1024 | F91: regionaal-supranationaal | G91: EDC minus | J91: € 1.00 | K91: € 1.00 | L91: € 1.00 | M91: € 1.00
D92: 12288/1024 | F92: regionaal-supranationaal | G92: EDC minus | J92: € 1.00 | K92: € 1.00 | L92: € 1.00 | M92: € 1.00
D95: BROADCAST KOPER EN GLAS
D97: Dienst over koper
D98: Broadcast | E98: Transport | G98: EDC minus 2012-2014 | H98: € 1.00 | I98: per mnd
D99: Broadcast (exclusief unicast functionaliteit) | E99: Platform | G99: EDC minus 2012-2014 | H99: € 1.00 | I99: per mnd
D101: Dienst over FttH glas
D102: Broadcast | E102: Transport | G102: LRIC | H102: € 1.00 | I102: per mnd
D103: Broadcast | E103: Platform | G103: LRIC | H103: € 1.00 | I103: per mnd
D106: ILL <= 2 MB KOPER
D108: 64 KBIT/S | E108: telco-sited | F108: passief-regionaal | G108: EDC minus | I108: per mnd
D109: 128 KBIT/S | E109: telco-sited | F109: passief-regionaal | G109: EDC minus | I109: per mnd
D110: 192 KBIT/S | E110: telco-sited | F110: passief-regionaal | G110: EDC minus | I110: per mnd
D111: 256 KBIT/S | E111: telco-sited | F111: passief-regionaal | G111: EDC minus | I111: per mnd
D112: 384 KBIT/S | E112: telco-sited | F112: passief-regionaal | G112: EDC minus | I112: per mnd
D113: 512 KBIT/S | E113: telco-sited | F113: passief-regionaal | G113: EDC minus | I113: per mnd
D114: 1984 KBIT/S | E114: telco-sited | F114: passief-regionaal | G114: EDC minus | I114: per mnd
D115: 2048 KBIT/S | E115: telco-sited | F115: passief-regionaal | G115: EDC minus | I115: per mnd
D116: NWAD/NMUX | E116: telco-sited | F116: passief-regionaal | G116: EDC minus | I116: per mnd
D117: 2048 KBIT/S | E117: telco-sited | F117: passief-lokaal | G117: EDC minus | I117: per mnd
D118: 64 KBIT/S | E118: collo | F118: passief-regionaal | G118: EDC minus | I118: per mnd
D119: 128 KBIT/S | E119: collo | F119: passief-regionaal | G119: EDC minus | I119: per mnd
D120: 192 KBIT/S | E120: collo | F120: passief-regionaal | G120: EDC minus | I120: per mnd
D121: 256 KBIT/S | E121: collo | F121: passief-regionaal | G121: EDC minus | I121: per mnd
D122: 384 KBIT/S | E122: collo | F122: passief-regionaal | G122: EDC minus | I122: per mnd
D123: 512 KBIT/S | E123: collo | F123: passief-regionaal | G123: EDC minus | I123: per mnd
D124: 1984 KBIT/S | E124: collo | F124: passief-regionaal | G124: EDC minus | I124: per mnd
D125: 2048 KBIT/S | E125: collo | F125: passief-regionaal | G125: EDC minus | I125: per mnd
D126: NWAD/NMUX | E126: collo | F126: passief-regionaal | G126: EDC minus | I126: per mnd
D127: 2048 KBIT/S | E127: collo | F127: passief-lokaal | G127: EDC minus | I127: per mnd
D128: 64 KBIT/S | F128: regionaal-nationaal | G128: EDC minus | H128: € 1.00 | I128: per mnd
D129: 128 KBIT/S | F129: regionaal-nationaal | G129: EDC minus | H129: € 1.00 | I129: per mnd
D130: 192 KBIT/S | F130: regionaal-nationaal | G130: EDC minus | H130: € 1.00 | I130: per mnd
D131: 256 KBIT/S | F131: regionaal-nationaal | G131: EDC minus | H131: € 1.00 | I131: per mnd
D132: 384 KBIT/S | F132: regionaal-nationaal | G132: EDC minus | H132: € 1.00 | I132: per mnd
D133: 512 KBIT/S | F133: regionaal-nationaal | G133: EDC minus | H133: € 1.00 | I133: per mnd
D134: 1984 KBIT/S | F134: regionaal-nationaal | G134: EDC minus | H134: € 1.00 | I134: per mnd
D135: 2048 KBIT/S | F135: regionaal-nationaal | G135: EDC minus | H135: € 1.00 | I135: per mnd
D139: WEAS KOPER
D141: Copper access | E141: 3 Mb | F141: passief-metro | G141: EDC minus | I141: per mnd
D142: Copper access | E142: 5 Mb | F142: passief-metro | G142: EDC minus | I142: per mnd
D143: Copper access | E143: 10 Mb | F143: passief-metro | G143: EDC minus | I143: per mnd
D144: Copper access | E144: 15 Mb | F144: passief-metro | G144: EDC minus | I144: per mnd
D145: Copper access | E145: 20 Mb | F145: passief-metro | G145: EDC minus | I145: per mnd
D146: Transport ethernet t.b.v. EoK aansluiting | F146: metro-regionaal | G146: EDC minus | H146: € 1.00 | I146: per mnd
D147: Transport ethernet t.b.v. EoK aansluiting | F147: regionaal-nationaal | G147: EDC minus | H147: € 1.00 | I147: per mnd
D149: TELEFONIE KLASSIEK (TDM) ten behoeve van WLR - MDF toetsing
D151: PSTN lijnkaart | G151: EDC minus 2012-2014 | H151: € 1.00 | I151: per mnd
D152: ISDN1 lijnkaart | G152: EDC minus 2012-2014 | H152: € 1.00 | I152: per mnd
D153: ISDN2 lijnkaart | G153: EDC minus 2012-2014 | H153: € 1.00 | I153: per mnd
D154: ISDN15 lijnkaart | G154: EDC minus 2012-2014 | H154: € 1.00 | I154: per mnd
D155: ISDN20 lijnkaart | G155: EDC minus 2012-2014 | H155: € 1.00 | I155: per mnd
D156: ISDN30 lijnkaart | G156: EDC minus 2012-2014 | H156: € 1.00 | I156: per mnd
D157: Cityphone lijnkaart | G157: EDC minus 2012-2014 | H157: € 1.00 | I157: per mnd
D158: HDSL modem (2 stuks) | G158: EDC minus 2012-2014 | H158: € 1.00 | I158: per mnd
D160: PSTN aanleg tlf deel | G160: EDC minus 2012-2014 | H160: € 1.00 | I160: eenmalig
D161: ISDN1 aanleg tlf deel | G161: EDC minus 2012-2014 | H161: € 1.00 | I161: eenmalig
D162: ISDN2 aanleg tlf deel | G162: EDC minus 2012-2014 | H162: € 1.00 | I162: eenmalig
D163: ISDN15 aanleg tlf deel | G163: EDC minus 2012-2014 | H163: € 1.00 | I163: eenmalig
D164: ISDN20 aanleg tlf deel | G164: EDC minus 2012-2014 | H164: € 1.00 | I164: eenmalig
D165: ISDN30 aanleg tlf deel | G165: EDC minus 2012-2014 | H165: € 1.00 | I165: eenmalig
D166: Cityphone aanleg tlf deel | G166: EDC minus 2012-2014 | H166: € 1.00 | I166: eenmalig
D168: PSTN ophef tlf deel | G168: EDC minus 2012-2014 | H168: € 1.00 | I168: eenmalig
D169: ISDN1 ophef tlf deel | G169: EDC minus 2012-2014 | H169: € 1.00 | I169: eenmalig
D170: ISDN2 ophef tlf deel | G170: EDC minus 2012-2014 | H170: € 1.00 | I170: eenmalig
D171: ISDN15 ophef tlf deel | G171: EDC minus 2012-2014 | H171: € 1.00 | I171: eenmalig
D172: ISDN20 ophef tlf deel | G172: EDC minus 2012-2014 | H172: € 1.00 | I172: eenmalig
D173: ISDN30 ophef tlf deel | G173: EDC minus 2012-2014 | H173: € 1.00 | I173: eenmalig
D174: Cityphone ophef tlf deel | G174: EDC minus 2012-2014 | H174: € 1.00 | I174: eenmalig
D176: PSTN overstap | G176: EDC minus 2012-2014 | H176: € 1.00 | I176: eenmalig
D177: ISDN1 overstap | G177: EDC minus 2012-2014 | H177: € 1.00 | I177: eenmalig
D178: ISDN2 overstap | G178: EDC minus 2012-2014 | H178: € 1.00 | I178: eenmalig
D179: ISDN15 overstap | G179: EDC minus 2012-2014 | H179: € 1.00 | I179: eenmalig
D180: ISDN20 overstap | G180: EDC minus 2012-2014 | H180: € 1.00 | I180: eenmalig
D181: ISDN30 overstap | G181: EDC minus 2012-2014 | H181: € 1.00 | I181: eenmalig
D182: Cityphone overstap | G182: EDC minus 2012-2014 | H182: € 1.00 | I182: eenmalig
D184: DIENSTPLATFORMEN
D186: Internet platform consumenten | G186: EDC minus 2012-2014 | H186: € 1.00 | I186: per mnd
D187: VOIP platform consumenten | G187: EDC minus 2012-2014 | H187: € 1.00 | I187: per mnd
D189: Internet platform consumenten | G189: LRIC | H189: € 1.00 | I189: per mnd
D190: VOIP platform consumenten | G190: LRIC | H190: € 1.00 | I190: per mnd
D192: SV verbindingen | G192: EDC minus | H192: € 1.00 | I192: per mnd
D193: Digiaccess platform | G193: EDC minus | H193: € 1.00 | I193: per mnd
D195: TELEFONIE KLASSIEK ten behoeve van RET_WHS toetsen
D197: Transport regionaal-nationaal | G197: EDC minus 2012-2014 | H197: € 0.01 | I197: per minuut
D198: CPS lokaal | G198: EDC minus 2012-2014 | H198: € 0.01 | I198: per minuut
D199: FTA lokaal | G199: EDC minus 2012-2014 | H199: € 0.01 | I199: per minuut
D200: Voice Carrier system | G200: EDC minus 2012-2014 | H200: € 0.01 | I200: per minuut
D201: 0800-0900 platform | G201: EDC minus 2012-2014 | H201: € 0.01 | I201: per minuut
D202: Dataverkeer, Mobiel radio deel | G202: LRIC | H202: € 0.01 | I202: per Mb
D203: SMS verkeer, Mobiel radio deel | G203: LRIC | H203: € 0.01 | I203: per SMS
D204: Telefonie offnet, Mobiel radio deel | G204: LRIC | H204: € 0.01 | I204: per minuut
D205: Dataverkeer, Mobiel vast deel | G205: EDC minus 2012-2014 | H205: € 0.01 | I205: per Mb
D206: SMS verkeer, Mobiel vast deel | G206: EDC minus 2012-2014 | H206: € 0.01 | I206: per SMS
D207: Telefonie offnet, Mobiel vast deel | G207: EDC minus 2012-2014 | H207: € 0.01 | I207: per minuut
D208: IDD, internationale deel (excl externe inkoop) | G208: LRIC | H208: € 0.01 | I208: USD per minuut
D211: CPA (= actieve SDH apparatuur tbv CPA)
D213: CPA 32 | G213: EDC minus | H213: € 1.00 | I213: per maand per aansluiting
D214: CPA 155 | G214: EDC minus | H214: € 1.00 | I214: per maand per aansluiting
D215: CPA 622 | G215: EDC minus | H215: € 1.00 | I215: per maand per aansluiting
D216: CPA 2500 | G216: EDC minus | H216: € 1.00 | I216: per maand per aansluiting
D238: WEAS GLAS
D241: FTTO access | E241: A/B/C | F241: passief-metro | G241: EDC minus | I241: per mnd
D242: FTTO access | E242: A/B/C | F242: metro-regionaal | G242: EDC minus | H242: € 1.00 | I242: per mnd
D243: FTTO access | E243: A/B/C | F243: regionaal-nationaal | G243: EDC minus | H243: € 1.00 | I243: per mnd
D244: FTTO access | E244: O | F244: passief-metro | G244: EDC minus | I244: per mnd
D245: FTTO access | E245: O | F245: metro-regionaal | G245: EDC minus | H245: € 1.00 | I245: per mnd
D246: FTTO access | E246: O | F246: regionaal-nationaal | G246: EDC minus | H246: € 1.00 | I246: per mnd
D249: DWDM GLAS
D251: FTTO access tot en met 2,5 G standaard | E251: A/B/C | F251: passief-metro | G251: EDC minus | I251: per mnd
D252: FTTO access tot en met 2,5 G standaard | E252: A/B/C | F252: metro-regionaal | G252: EDC minus | H252: € 1.00 | I252: per mnd
D253: FTTO access tot en met 2,5 G standaard | E253: A/B/C | F253: regionaal-nationaal | G253: EDC minus | H253: € 1.00 | I253: per mnd
D254: FTTO access 10 G standaard | E254: A/B/C | F254: passief-metro | G254: EDC minus | I254: per mnd
D255: FTTO access 10 G standaard | E255: A/B/C | F255: metro-regionaal | G255: EDC minus | H255: € 1.00 | I255: per mnd
D256: FTTO access 10 G standaard | E256: A/B/C | F256: regionaal-nationaal | G256: EDC minus | H256: € 1.00 | I256: per mnd
D258: SDH GLAS
D261: SDH transport | E261: 34 Mbps | F261: passief-metro | G261: EDC minus | I261: per mnd
D262: SDH transport | E262: 34 Mbps | F262: metro-regionaal | G262: EDC minus | I262: per mnd
... 37 more rows

Sheet Tarieven ZM
B1: ZM Epacity | C1: versie 14.2 - juli 2015
B5: 1. Aansluitingen: ZM
B7: ZM identifier | C7: xDSL | D7: Bandbreedte | E7: ZM VPN kwaliteit | G7: VVA | H7: VVE
B8: =C8&D8&E8&F8 -> ADSL384/128Basic | C8: ADSL | D8: 384/128 | E8: Basic | G8: 1,000 | H8: 1,000
B9: ADSL512/256Basic | C9: ADSL | D9: 512/256 | E9: Basic | G9: 1,000 | H9: 1,000
B10: ADSL1024/512Basic | C10: ADSL | D10: 1024/512 | E10: Basic | G10: 1,000 | H10: 1,000
B11: ADSL2048/512Basic | C11: ADSL | D11: 2048/512 | E11: Basic | G11: 1,000 | H11: 1,000
B12: ADSL3072/512Basic | C12: ADSL | D12: 3072/512 | E12: Basic | G12: 1,000 | H12: 1,000
B13: ADSL4096/1024Basic | C13: ADSL | D13: 4096/1024 | E13: Basic | G13: 1,000 | H13: 1,000
B14: ADSL6144/1024Basic | C14: ADSL | D14: 6144/1024 | E14: Basic | G14: 1,000 | H14: 1,000
B15: ADSL8000/1024Basic | C15: ADSL | D15: 8000/1024 | E15: Basic | G15: 1,000 | H15: 1,000
B16: ADSL12000/1024Basic | C16: ADSL | D16: 12000/1024 | E16: Basic | G16: 1,000 | H16: 1,000
B17: ADSL20000/1024Basic | C17: ADSL | D17: 20000/1024 | E17: Basic | G17: 1,000 | H17: 1,000
B18: ADSL128/128Premium | C18: ADSL | D18: 128/128 | E18: Premium | G18: 1,000 | H18: 1,000
B19: ADSL256/256Premium | C19: ADSL | D19: 256/256 | E19: Premium | G19: 1,000 | H19: 1,000
B20: ADSL512/256Premium | C20: ADSL | D20: 512/256 | E20: Premium | G20: 1,000 | H20: 1,000
B21: ADSL512/512Premium | C21: ADSL | D21: 512/512 | E21: Premium | G21: 1,000 | H21: 1,000
B22: ADSL1024/256Premium | C22: ADSL | D22: 1024/256 | E22: Premium | G22: 1,000 | H22: 1,000
B23: ADSL1024/512Premium | C23: ADSL | D23: 1024/512 | E23: Premium | G23: 1,000 | H23: 1,000
B24: ADSL2048/512Premium | C24: ADSL | D24: 2048/512 | E24: Premium | G24: 1,000 | H24: 1,000
B25: ADSL4096/1024Premium | C25: ADSL | D25: 4096/1024 | E25: Premium | G25: 1,000 | H25: 1,000
B26: ADSL8000/1024Premium | C26: ADSL | D26: 8000/1024 | E26: Premium | G26: 1,000 | H26: 1,000
B27: ADSL12000/1024Premium | C27: ADSL | D27: 12000/1024 | E27: Premium | G27: 1,000 | H27: 1,000
B28: SDSL256/256Premium | C28: SDSL | D28: 256/256 | E28: Premium | G28: 1,000 | H28: 1,000
B29: SDSL512/512Premium | C29: SDSL | D29: 512/512 | E29: Premium | G29: 1,000 | H29: 1,000
B30: SDSL1024/1024Premium | C30: SDSL | D30: 1024/1024 | E30: Premium | G30: 1,000 | H30: 1,000
B31: SDSL1536/1536Premium | C31: SDSL | D31: 1536/1536 | E31: Premium | G31: 1,000 | H31: 1,000
B32: SDSL2048/2048Premium | C32: SDSL | D32: 2048/2048 | E32: Premium | G32: 1,000 | H32: 1,000
B33: SDSL2300/2300Premium | C33: SDSL | D33: 2300/2300 | E33: Premium | G33: 1,000 | H33: 1,000
B34: VDSL10240/1024Entry | C34: VDSL | D34: 10240/1024 | E34: Entry | G34: 1,000 | H34: 1,000
B35: VDSL20480/2048Entry | C35: VDSL | D35: 20480/2048 | E35: Entry | G35: 1,000 | H35: 1,000
B36: VDSL30372/3072Entry | C36: VDSL | D36: 30372/3072 | E36: Entry | G36: 1,000 | H36: 1,000
B37: VDSL51200/5120Entry | C37: VDSL | D37: 51200/5120 | E37: Entry | G37: 1,000 | H37: 1,000
B38: VDSL bonding81920/8192Entry | C38: VDSL bonding | D38: 81920/8192 | E38: Entry | G38: 1,000 | H38: 1,000 | I38: kan alleen met bonding
B39: VDSL128/128Premium | C39: VDSL | D39: 128/128 | E39: Premium | G39: 1,000 | H39: 1,000
B40: VDSL256/256Premium | C40: VDSL | D40: 256/256 | E40: Premium | G40: 1,000 | H40: 1,000
B41: VDSL448/448Premium | C41: VDSL | D41: 448/448 | E41: Premium | G41: 1,000 | H41: 1,000
B42: VDSL640/640Premium | C42: VDSL | D42: 640/640 | E42: Premium | G42: 1,000 | H42: 1,000
B43: VDSL1024/1024Premium | C43: VDSL | D43: 1024/1024 | E43: Premium | G43: 1,000 | H43: 1,000
B44: VDSL2048/2048Premium | C44: VDSL | D44: 2048/2048 | E44: Premium | G44: 1,000 | H44: 1,000
B45: VDSL3072/3072Premium | C45: VDSL | D45: 3072/3072 | E45: Premium | G45: 1,000 | H45: 1,000
B46: VDSL4096/1024Premium | C46: VDSL | D46: 4096/1024 | E46: Premium | G46: 1,000 | H46: 1,000
B47: VDSL4096/4096Premium | C47: VDSL | D47: 4096/4096 | E47: Premium | G47: 1,000 | H47: 1,000
B48: VDSL8192/1024Premium | C48: VDSL | D48: 8192/1024 | E48: Premium | G48: 1,000 | H48: 1,000
B49: =C49&D49&E49&F49 -> SA IPVPN1024/1024 tbv alarmEntry | C49: SA IPVPN | D49: 1024/1024 tbv alarm | E49: Entry | G49: 1,000 | H49: 1,000
B50: SA IPVPN51200/51200Entry | C50: SA IPVPN | D50: 51200/51200 | E50: Entry | G50: 1,000 | H50: 1,000
B51: SA IPVPN100000/100000Entry | C51: SA IPVPN | D51: 100000/100000 | E51: Entry | G51: 1,000 | H51: 1,000
B52: SA IPVPN1024/1024Premium | C52: SA IPVPN | D52: 1024/1024 | E52: Premium | G52: 1,000 | H52: 1,000
B53: SA IPVPN2048/2048Premium | C53: SA IPVPN | D53: 2048/2048 | E53: Premium | G53: 1,000 | H53: 1,000
B54: SA IPVPN3072/3072Premium | C54: SA IPVPN | D54: 3072/3072 | E54: Premium | G54: 1,000 | H54: 1,000
B55: SA IPVPN4096/1024Premium | C55: SA IPVPN | D55: 4096/1024 | E55: Premium | G55: 1,000 | H55: 1,000
B56: SA IPVPN4096/4096Premium | C56: SA IPVPN | D56: 4096/4096 | E56: Premium | G56: 1,000 | H56: 1,000
B57: SA IPVPN8192/1024Premium | C57: SA IPVPN | D57: 8192/1024 | E57: Premium | G57: 1,000 | H57: 1,000
B58: SA IPVPN8192/8192Premium | C58: SA IPVPN | D58: 8192/8192 | E58: Premium | G58: 1,000 | H58: 1,000
B59: SA IPVPN10240/10240Premium | C59: SA IPVPN | D59: 10240/10240 | E59: Premium | G59: 1,000 | H59: 1,000
B61: ADSL128/128Add | C61: ADSL | D61: 128/128 | E61: Add | G61: 1,000 | H61: 1,000
B62: ADSL200/200Add | C62: ADSL | D62: 200/200 | E62: Add | G62: 1,000 | H62: 1,000
B63: ADSL224/224Add | C63: ADSL | D63: 224/224 | E63: Add | G63: 1,000 | H63: 1,000
B64: ADSL256/256Add | C64: ADSL | D64: 256/256 | E64: Add | G64: 1,000 | H64: 1,000
B65: ADSL352/352Add | C65: ADSL | D65: 352/352 | E65: Add | G65: 1,000 | H65: 1,000
B66: ADSL448/448Add | C66: ADSL | D66: 448/448 | E66: Add | G66: 1,000 | H66: 1,000
B67: ADSL512/512Add | C67: ADSL | D67: 512/512 | E67: Add | G67: 1,000 | H67: 1,000
B68: SDSL224/224Add | C68: SDSL | D68: 224/224 | E68: Add | G68: 1,000 | H68: 1,000
B69: SDSL256/256Add | C69: SDSL | D69: 256/256 | E69: Add | G69: 1,000 | H69: 1,000
B70: SDSL448/448Add | C70: SDSL | D70: 448/448 | E70: Add | G70: 1,000 | H70: 1,000
B71: SDSL512/512Add | C71: SDSL | D71: 512/512 | E71: Add | G71: 1,000 | H71: 1,000
B72: SDSL1024/1024Add | C72: SDSL | D72: 1024/1024 | E72: Add | G72: 1,000 | H72: 1,000
B73: SDSL1536/1536Add | C73: SDSL | D73: 1536/1536 | E73: Add | G73: 1,000 | H73: 1,000
B74: SDSL2048/2048Add | C74: SDSL | D74: 2048/2048 | E74: Add | G74: 1,000 | H74: 1,000
B75: VDSL128/128Add | C75: VDSL | D75: 128/128 | E75: Add | G75: 1,000 | H75: 1,000
B76: VDSL256/256Add | C76: VDSL | D76: 256/256 | E76: Add | G76: 1,000 | H76: 1,000
B77: VDSL448/448Add | C77: VDSL | D77: 448/448 | E77: Add | G77: 1,000 | H77: 1,000
B78: VDSL640/640Add | C78: VDSL | D78: 640/640 | E78: Add | G78: 1,000 | H78: 1,000
B79: VDSL1024/1024Add | C79: VDSL | D79: 1024/1024 | E79: Add | G79: 1,000 | H79: 1,000
B80: VDSL2048/2048Add | C80: VDSL | D80: 2048/2048 | E80: Add | G80: 1,000 | H80: 1,000
B81: VDSL3072/3072Add | C81: VDSL | D81: 3072/3072 | E81: Add | G81: 1,000 | H81: 1,000
B82: SA IPVPN128/128Add | C82: SA IPVPN | D82: 128/128 | E82: Add | G82: 1,000 | H82: 1,000
B83: SA IPVPN256/256Add | C83: SA IPVPN | D83: 256/256 | E83: Add | G83: 1,000 | H83: 1,000
B84: SA IPVPN448/448Add | C84: SA IPVPN | D84: 448/448 | E84: Add | G84: 1,000 | H84: 1,000
B85: SA IPVPN640/640Add | C85: SA IPVPN | D85: 640/640 | E85: Add | G85: 1,000 | H85: 1,000
B86: SA IPVPN1024/1024Add | C86: SA IPVPN | D86: 1024/1024 | E86: Add | G86: 1,000 | H86: 1,000
B87: SA IPVPN2048/2048Add | C87: SA IPVPN | D87: 2048/2048 | E87: Add | G87: 1,000 | H87: 1,000
B88: =C88&D88&E88&F88 -> SA IPVPN3072/3072Add | C88: SA IPVPN | D88: 3072/3072 | E88: Add | G88: 1,000 | H88: 1,000
B89: SA IPVPN4096/4096Add | C89: SA IPVPN | D89: 4096/4096 | E89: Add | G89: 1,000 | H89: 1,000
B90: SA IPVPN8192/8192Add | C90: SA IPVPN | D90: 8192/8192 | E90: Add | G90: 1,000 | H90: 1,000
B94: 2. Dragers
B96: ZM identifier | C96: xDSL | E96: Wholesale new line | F96: Shared / unshared | G96: VVA | H96: VVE | J96: Omschrijving tariefbrochure
B97: =C97&D97&E97&F97 -> ADSLnieuwunshared | C97: ADSL | E97: nieuw | F97: unshared | G97: 1,000 | H97: 1,000 | J97: IP-VPN Drager t.b.v. ADSL/VDSL (nieuwe aansluiting/Wholesale New Line)
B98: VDSLnieuwunshared | C98: VDSL | E98: nieuw | F98: unshared | G98: 1,000 | H98: 1,000 | J98: IP-VPN Drager t.b.v. ADSL/VDSL (nieuwe aansluiting/Wholesale New Line)
B99: VDSL bondingnieuwunshared | C99: VDSL bonding | E99: nieuw | F99: unshared | G99: 1,000 | H99: 1,000
B100: SDSLnieuwunshared | C100: SDSL | E100: nieuw | F100: unshared | G100: 1,000 | H100: 1,000 | J100: IP-VPN Drager t.b.v. SDSL (Wholesale New Line)
B101: SA IPVPNnieuwunshared | C101: SA IPVPN | E101: nieuw | F101: unshared | G101: 1,000 | H101: 1,000 | J101: IP-VPN Drager t.b.v. SA IPVPN (nieuwe glasaansluiting/Wholesale New Line)
B102: VDSLbestaandunshared | C102: VDSL | E102: bestaand | F102: unshared | G102: 1,000 | H102: 1,000 | J102: IPVPN Drager PSTN gebruiken t.b.v VDSL (telefonie afsluiten/terminate voice)
B103: ADSLbestaandunshared | C103: ADSL | E103: bestaand | F103: unshared | G103: 1,000 | H103: 1,000 | J103: IPVPN Drager ISDN/PSTN gebruiken t.b.v. ADSL(telefonie afsluiten/terminate voice)
B104: SDSLbestaandunshared | C104: SDSL | E104: bestaand | F104: unshared | G104: 1,000 | H104: 1,000 | J104: IPVPN Drager ISDN/PSTN gebruiken t.b.v. SDSL(telefonie afsluiten/terminate voice)
B105: VDSLbestaandshared | C105: VDSL | E105: bestaand | F105: shared | G105: 1,000 | H105: 1,000 | J105: IPVPN Drager PSTN gebruiken t.b.v. VDSL in combinatie met telefonie
B106: ADSLbestaandshared | C106: ADSL | E106: bestaand | F106: shared | G106: 1,000 | H106: 1,000 | J106: IPVPN Drager ISDN/PSTN gebruiken t.b.v. ADSL in combinatie met telefonie
B108: 3. Service Levels
B110: ZM identifier | C110: xDSL | D110: ZM VPN kwaliteit | E110: ZM VPN Service Level | G110: VVA | H110: VVE
B111: =C111&D111&E111&F111 -> ADSLPremiumwinkeluren | C111: ADSL | D111: Premium | E111: winkeluren | G111: 1,000 | H111: 1,000
B112: ADSLBasic7x24 | C112: ADSL | D112: Basic | E112: 7x24 | G112: 1,000 | H112: 1,000
B113: ADSLPremium7x24 | C113: ADSL | D113: Premium | E113: 7x24 | G113: 1,000 | H113: 1,000
B114: =C114&D114&E114&F114 -> SDSLBasicwinkeluren | C114: SDSL | D114: Basic | E114: winkeluren | G114: 1,000 | H114: 1,000
B115: SDSLPremiumwinkeluren | C115: SDSL | D115: Premium | E115: winkeluren | G115: 1,000 | H115: 1,000
B116: SDSLBasic7x24 | C116: SDSL | D116: Basic | E116: 7x24 | G116: 1,000 | H116: 1,000
B117: SDSLPremium7x24 | C117: SDSL | D117: Premium | E117: 7x24 | G117: 1,000 | H117: 1,000
B118: VDSLEntry7x24 | C118: VDSL | D118: Entry | E118: 7x24 | G118: 1,000 | H118: 1,000
B119: VDSLPremium7x24 | C119: VDSL | D119: Premium | E119: 7x24 | G119: 1,000 | H119: 1,000
B120: VDSL BondingEntry7x24 | C120: VDSL Bonding | D120: Entry | E120: 7x24 | G120: 1,000 | H120: 1,000
B121: VDSL BondingPremium7x24 | C121: VDSL Bonding | D121: Premium | E121: 7x24 | G121: 1,000 | H121: 1,000
B122: SA IPVPNEntry7x24 | C122: SA IPVPN | D122: Entry | E122: 7x24 | G122: 1,000 | H122: 1,000
B123: SA IPVPNPremium7x24 | C123: SA IPVPN | D123: Premium | E123: 7x24 | G123: 1,000 | H123: 1,000
B125: ADSLEntrykantooruren | C125: ADSL | D125: Entry | E125: kantooruren | G125: 1,000 | H125: 1,000
B126: ADSLPremiumkantooruren | C126: ADSL | D126: Premium | E126: kantooruren | G126: 1,000 | H126: 1,000
B127: SDSLEntrykantooruren | C127: SDSL | D127: Entry | E127: kantooruren | G127: 1,000 | H127: 1,000
B128: SDSLPremiumkantooruren | C128: SDSL | D128: Premium | E128: kantooruren | G128: 1,000 | H128: 1,000
B129: VDSLEntrykantooruren | C129: VDSL | D129: Entry | E129: kantooruren | G129: 1,000 | H129: 1,000
B130: VDSLPremiumkantooruren | C130: VDSL | D130: Premium | E130: kantooruren | G130: 1,000 | H130: 1,000
B131: VDSL BondingEntrykantooruren | C131: VDSL Bonding | D131: Entry | E131: kantooruren | G131: 1,000 | H131: 1,000
B132: VDSL BondingPremiumkantooruren | C132: VDSL Bonding | D132: Premium | E132: kantooruren | G132: 1,000 | H132: 1,000
B133: SA IPVPNEntrykantooruren | C133: SA IPVPN | D133: Entry | E133: kantooruren | G133: 1,000 | H133: 1,000
B134: SA IPVPNPremiumkantooruren | C134: SA IPVPN | D134: Premium | E134: kantooruren | G134: 1,000 | H134: 1,000

Sheet Tarieven W&O
B1: WBA Annex 4 ZM Ethernet on LWAP's | C1: Version 1.11 | D1: Valid from 5 januari 2017
B2: WBA Annex 4 CM | C2: Version 3.24 | D2: Valid from 5 januari 2017
B5: 1. Network Access Line Types
B7: WO identifier | C7: WBA | D7: xDSL | E7: Wholesale new line | F7: Shared / unshared | G7: VVA | H7: VVE connect | I7: VVE disconnect | J7: Omschrijving tariefbrochure
B8: =C8&D8&E8&F8 -> WBA CM EthernetADSLunshared | C8: WBA CM Ethernet | D8: ADSL | F8: unshared | G8: 13.09 | J8: Non shared (ATL, VTL)
B9: WBA CM EthernetVDSLunshared | C9: WBA CM Ethernet | D9: VDSL | F9: unshared | G9: =G8 -> 13.09 | J9: Non shared (ATL, VTL)
B10: WBA CM EthernetSDSLunshared | C10: WBA CM Ethernet | D10: SDSL | F10: unshared | G10: 33.73 | J10: Non shared (STL)
B11: WBA CM EthernetFttHunshared | C11: WBA CM Ethernet | D11: FttH | F11: unshared | G11: 19.13 | J11: Non shared (Fiber to the Home)
B12: WBA CM EthernetFttOunshared | C12: WBA CM Ethernet | D12: FttO | F12: unshared | G12: 97.18 | J12: Non shared (Fiber to the Office)
B13: WBA CM EthernetVDSL Bondingunshared | C13: WBA CM Ethernet | D13: VDSL Bonding | F13: unshared | G13: 19.82 | J13: Non shared (VDSL Bonding)
B14: WBA CM EthernetVDSLshared | C14: WBA CM Ethernet | D14: VDSL | F14: shared | G14: 5.36 | J14: Shared (ASL-CO, VSL-CO) for both CO and BR
B15: WBA CM EthernetADSLshared | C15: WBA CM Ethernet | D15: ADSL | F15: shared | G15: =G14 -> 5.36 | J15: Shared (ASL-CO, VSL-CO) for both CO and BR
B16: WBA CM EthernetADSLNew line | C16: WBA CM Ethernet | D16: ADSL | E16: New line | H16: 25.00 | I16: =25 -> 25.00 | J16: New line (including Telco - Telco and WSO - WSO migrations) | K16: Disconnection of Network Access line
B17: WBA CM EthernetVDSLNew line | C17: WBA CM Ethernet | D17: VDSL | E17: New line | H17: =H16 -> 25.00 | I17: =I16 -> 25.00 | J17: New line (including Telco - Telco and WSO - WSO migrations) | K17: Disconnection of Network Access line
B18: WBA CM EthernetSDSLNew line | C18: WBA CM Ethernet | D18: SDSL | E18: New line | H18: =H17 -> 25.00 | I18: 25.00 | J18: New line (including Telco - Telco and WSO - WSO migrations) | K18: Disconnection of Network Access line
B19: WBA CM EthernetADSLTelco-telco en WSO-WSO | C19: WBA CM Ethernet | D19: ADSL | E19: Telco-telco en WSO-WSO | H19: 17.00 | I19: 25.00 | J19: Telco - Telco and WSO - WSO migration DHZ | K19: Disconnection of Network Access line
B20: WBA CM EthernetVDSLTelco-telco en WSO-WSO | C20: WBA CM Ethernet | D20: VDSL | E20: Telco-telco en WSO-WSO | H20: =H19 -> 17.00 | I20: =I19 -> 25.00 | J20: Telco - Telco and WSO - WSO migration DHZ | K20: Disconnection of Network Access line
B21: WBA CM EthernetSDSLTelco-telco en WSO-WSO | C21: WBA CM Ethernet | D21: SDSL | E21: Telco-telco en WSO-WSO | H21: =H20 -> 17.00 | I21: 25.00 | J21: Telco - Telco and WSO - WSO migration DHZ | K21: Disconnection of Network Access line
B22: WBA CM EthernetFttHNew line | C22: WBA CM Ethernet | D22: FttH | E22: New line | H22: 25.00 | I22: =25 -> 25.00 | J22: New line (including WSO - WSO migrations) | K22: Disconnection of Network Access line
B23: WBA CM EthernetFttHNew linenvt | C23: WBA CM Ethernet | D23: FttH | E23: New line | F23: nvt | H23: 51.52 | I23: =25 -> 25.00 | J23: Telco - Telco migration | K23: Disconnection of Network Access line
B24: WBA CM EthernetFttONew line | C24: WBA CM Ethernet | D24: FttO | E24: New line | H24: 667.13 | I24: 102.43 | J24: New line (WBA FttO) | K24: Disconnection of Network Access line (WBA FttO)
B25: WBA CM EthernetVDSL BondingNew line | C25: WBA CM Ethernet | D25: VDSL Bonding | E25: New line | H25: =H17 -> 25.00 | I25: =I17 -> 25.00 | J25: regel toegevoegd, in tariefblad geen onderscheid gemaakt met VDSL
B26: WBA CM Ethernetnvt | C26: WBA CM Ethernet | D26: nvt | I26: 25.00 | J26: Order cancellation
B28: =C28&D28&E28&F28 -> WBA ZM EthernetADSLunshared | C28: WBA ZM Ethernet | D28: ADSL | F28: unshared | G28: 11.20 | J28: Non shared (ATL, VTL) and Shared (ASL-BR, VSL-BR)
B29: WBA ZM EthernetVDSLunshared | C29: WBA ZM Ethernet | D29: VDSL | F29: unshared | G29: =G28 -> 11.20 | J29: Non shared (ATL, VTL) and Shared (ASL-BR, VSL-BR)
B30: WBA ZM EthernetSDSLunshared | C30: WBA ZM Ethernet | D30: SDSL | F30: unshared | G30: 22.10 | J30: Non shared (STL)
B31: WBA ZM EthernetFttHunshared | C31: WBA ZM Ethernet | D31: FttH | F31: unshared | G31: 19.00 | J31: Non shared (Fiber to the Home)
B32: WBA ZM EthernetFttOunshared | C32: WBA ZM Ethernet | D32: FttO | F32: unshared | G32: 96.21 | J32: Non shared (Fiber to the Office)
B33: WBA ZM EthernetVDSL Bondingunshared | C33: WBA ZM Ethernet | D33: VDSL Bonding | F33: unshared | G33: 17.34 | J33: Non shared (VDSL Bonding)
B34: WBA ZM EthernetVDSLshared | C34: WBA ZM Ethernet | D34: VDSL | F34: shared | G34: 2.88 | J34: Shared (ASL-CO, VSL-CO)
B35: WBA ZM EthernetADSLshared | C35: WBA ZM Ethernet | D35: ADSL | F35: shared | G35: =G34 -> 2.88 | J35: Shared (ASL-CO, VSL-CO)
B36: WBA ZM EthernetADSLNew line | C36: WBA ZM Ethernet | D36: ADSL | E36: New line | H36: 24.00 | I36: =25 -> 25.00 | J36: New line (including Telco - Telco and WSO - WSO migrations) | K36: Disconnection of Network Access line
B37: WBA ZM EthernetVDSLNew line | C37: WBA ZM Ethernet | D37: VDSL | E37: New line | H37: =H36 -> 24.00 | I37: =I36 -> 25.00 | J37: New line (including Telco - Telco and WSO - WSO migrations) | K37: Disconnection of Network Access line
B38: WBA ZM EthernetSDSLNew line | C38: WBA ZM Ethernet | D38: SDSL | E38: New line | H38: =H37 -> 24.00 | I38: 25.00 | J38: New line (including Telco - Telco and WSO - WSO migrations) | K38: Disconnection of Network Access line
B39: WBA ZM EthernetFttHNew line | C39: WBA ZM Ethernet | D39: FttH | E39: New line | H39: 24.00 | I39: 25.00 | J39: New line (including Telco - Telco and WSO - WSO migrations) | K39: Disconnection of Network Access line
B40: WBA ZM EthernetADSLTelco-telco en WSO-WSO | C40: WBA ZM Ethernet | D40: ADSL | E40: Telco-telco en WSO-WSO | H40: 16.00 | I40: 25.00 | J40: Telco - Telco and WSO - WSO migration DHZ | K40: Disconnection of Network Access line
B41: WBA ZM EthernetVDSLTelco-telco en WSO-WSO | C41: WBA ZM Ethernet | D41: VDSL | E41: Telco-telco en WSO-WSO | H41: =H40 -> 16.00 | I41: =I40 -> 25.00 | J41: Telco - Telco and WSO - WSO migration DHZ | K41: Disconnection of Network Access line
B42: WBA ZM EthernetSDSLTelco-telco en WSO-WSO | C42: WBA ZM Ethernet | D42: SDSL | E42: Telco-telco en WSO-WSO | H42: =H41 -> 16.00 | I42: 25.00 | J42: Telco - Telco and WSO - WSO migration DHZ | K42: Disconnection of Network Access line
B43: WBA ZM EthernetVDSL BondingNew line | C43: WBA ZM Ethernet | D43: VDSL Bonding | E43: New line | H43: =H37 -> 24.00 | I43: =I37 -> 25.00 | J43: regel toegevoegd, in tariefblad geen onderscheid gemaakt met VDSL
B44: WBA ZM EthernetFttONew line | C44: WBA ZM Ethernet | D44: FttO | E44: New line | H44: 667.13 | I44: 102.43
B45: WBA ZM Ethernetnvt | C45: WBA ZM Ethernet | D45: nvt | I45: 25.00 | J45: Order cancellation
B48: =C48&D48&E48&F48 -> WBA CM EthernetADSL/VDSL/SDSLNLS type 1 ZTL/DHZ TL | C48: WBA CM Ethernet | D48: ADSL/VDSL/SDSL | E48: NLS type 1 ZTL/DHZ TL | H48: 0.00 | J48: Fully connected but not yet active copper pair available to end user premises, excl. testing and labelling by KPN | K48: extra
B49: WBA CM EthernetADSL/VDSL/SDSLNLS type 1 | C49: WBA CM Ethernet | D49: ADSL/VDSL/SDSL | E49: NLS type 1 | H49: 40.00 | J49: - Fully connected but not yet active copper pair available to end user premises, incl. testing and labelling by KPN | K49: extra
B50: WBA CM EthernetADSL/VDSL/SDSLNLS 1 DHZ Kruisdraden | C50: WBA CM Ethernet | D50: ADSL/VDSL/SDSL | E50: NLS 1 DHZ Kruisdraden | H50: 28.37 | J50: - NLS1 "kruisdraden" done by WSO, TL by KPN | K50: extra
B51: WBA CM EthernetADSL/VDSL/SDSLNLS 1 DHZ Kruisdraden & TL | C51: WBA CM Ethernet | D51: ADSL/VDSL/SDSL | E51: NLS 1 DHZ Kruisdraden & TL | H51: -23.26 | J51: - NLS1 "kruisdraden" and T&L done by WSO | K51: extra
B52: WBA CM EthernetADSL/VDSL/SDSLNLS type 2 | C52: WBA CM Ethernet | D52: ADSL/VDSL/SDSL | E52: NLS type 2 | H52: 343.60 | J52: - Maximum of 3 welds needed to complete copper | K52: extra
B53: WBA CM EthernetADSL/VDSL/SDSLNLS 2 DHZ TL | C53: WBA CM Ethernet | D53: ADSL/VDSL/SDSL | E53: NLS 2 DHZ TL | H53: 291.97 | J53: - NLS2 "kruisdraden" done by KPN, TL by WSO | K53: extra
B54: WBA CM EthernetADSL/VDSL/SDSLNLS 2 DHZ Kruisdraden | C54: WBA CM Ethernet | D54: ADSL/VDSL/SDSL | E54: NLS 2 DHZ Kruisdraden | H54: 331.97 | J54: - NLS2 "kruisdraden" done by WSO, TL by KPN | K54: extra
B55: WBA CM EthernetADSL/VDSL/SDSLNLS 2 DHZ Kruisdraden & TL | C55: WBA CM Ethernet | D55: ADSL/VDSL/SDSL | E55: NLS 2 DHZ Kruisdraden & TL | H55: 280.34 | J55: NLS2 "kruisdraden" and T&L done by WSO | K55: extra
B56: WBA CM EthernetADSL/VDSL/SDSLNLS type 3 | C56: WBA CM Ethernet | D56: ADSL/VDSL/SDSL | E56: NLS type 3 | H56: 506.40 | J56: In all other situations | K56: extra
B57: WBA CM EthernetADSL/VDSL/SDSLNLS 3 DHZ TL | C57: WBA CM Ethernet | D57: ADSL/VDSL/SDSL | E57: NLS 3 DHZ TL | H57: 454.78 | J57: NLS3 "kruisdraden" done by KPN, TL by WSO | K57: extra
B58: WBA CM EthernetADSL/VDSL/SDSLNLS 3 DHZ Kruisdraden | C58: WBA CM Ethernet | D58: ADSL/VDSL/SDSL | E58: NLS 3 DHZ Kruisdraden | H58: 494.79 | J58: - NLS3 "kruisdraden" done by WSO, TL by KPN | K58: extra
B59: WBA CM EthernetADSL/VDSL/SDSLNLS 3 DHZ Kruisdraden & TL | C59: WBA CM Ethernet | D59: ADSL/VDSL/SDSL | E59: NLS 3 DHZ Kruisdraden & TL | H59: 443.17 | J59: - NLS3 "kruisdraden" and T&L done by WSO | K59: extra
B60: WBA CM EthernetADSL/VDSL/SDSLWCD | C60: WBA CM Ethernet | D60: ADSL/VDSL/SDSL | E60: WCD | H60: 34.00 | J60: MDF Access surcharge for delivery of wall mounted socket at ISRA point (optional): | K60: extra
B61: WBA CM EthernetADSL/VDSL/SDSLDHZ "Nazorg en Service" | C61: WBA CM Ethernet | D61: ADSL/VDSL/SDSL | E61: DHZ "Nazorg en Service" | H61: -39.55 | J61: kruisdraden provisioning by KPN corrected by WSO | K61: extra
B65: =C65&D65&E65&F65 -> WBA CM EthernetVDSL BondingNLS type 1 | C65: WBA CM Ethernet | D65: VDSL Bonding | E65: NLS type 1 | H65: 149.45 | J65: Regular order including Test & Label | K65: extra
B66: WBA CM EthernetVDSL BondingNLS type 2/3 | C66: WBA CM Ethernet | D66: VDSL Bonding | E66: NLS type 2/3 | H66: 620.59 | J66: - If regular order is not possible and "infra extention" is required, including Test & Label | K66: extra
B67: WBA CM EthernetVDSL BondingNLS type 1 DHZ | C67: WBA CM Ethernet | D67: VDSL Bonding | E67: NLS type 1 DHZ | H67: 41.10 | J67: - Regular order where Test & Label is done by "Doe Het Zelf monteur" | K67: extra
B68: WBA CM EthernetVDSL BondingNLS type 2/3 DHZ | C68: WBA CM Ethernet | D68: VDSL Bonding | E68: NLS type 2/3 DHZ | H68: 511.23 | J68: - If regular order with "Doe Het Zelf monteur" requires "infra extention" | K68: extra
B72: =C72&D72&E72&F72 -> WBA CM EthernetFttHNLS type 6, 9 | C72: WBA CM Ethernet | D72: FttH | E72: NLS type 6, 9 | H72: 0.00 | J72: Fiber available at Premises ("FTU afgemonteerd/afgemonteerd bij levering") | K72: extra
B73: WBA CM EthernetFttHNLS type 7 | C73: WBA CM Ethernet | D73: FttH | E73: NLS type 7 | H73: 0.00 | J73: - Fiber available at Front Wall ("Voorgevel") | K73: extra
B74: WBA CM EthernetFttHNLS type 8 | C74: WBA CM Ethernet | D74: FttH | E74: NLS type 8 | H74: 0.00 | J74: Fiber available at Grounds ("Erfgrens") | K74: extra
B75: WBA CM EthernetFttHDHZ Nazorg & Service | C75: WBA CM Ethernet | D75: FttH | E75: DHZ Nazorg & Service | H75: -35.00
B76: WBA CM EthernetFttHNT install NWAP | C76: WBA CM Ethernet | D76: FttH | E76: NT install NWAP | H76: 45.00
B77: =C77&D77&E77&F77 -> WBA CM EthernetFttHNLS type 21, 23, 24 | C77: WBA CM Ethernet | D77: FttH | E77: NLS type 21, 23, 24 | H77: 0.00 | J77: Fiber to the Office | K77: extra
B80: =C80&D80&E80&F80 -> WBA ZM EthernetADSL/VDSL/SDSLNLS type 1 ZTL/DHZ TL | C80: WBA ZM Ethernet | D80: ADSL/VDSL/SDSL | E80: NLS type 1 ZTL/DHZ TL | H80: 0.00 | J80: Fully connected but not yet active copper pair available to end user premises, excl. testing and labelling by KPN | K80: extra
B81: WBA ZM EthernetADSL/VDSL/SDSLNLS type 1 | C81: WBA ZM Ethernet | D81: ADSL/VDSL/SDSL | E81: NLS type 1 | H81: 40.00 | J81: - Fully connected but not yet active copper pair available to end user premises, incl. testing and labelling by KPN | K81: extra
B82: WBA ZM EthernetADSL/VDSL/SDSLNLS 1 DHZ Kruisdraden | C82: WBA ZM Ethernet | D82: ADSL/VDSL/SDSL | E82: NLS 1 DHZ Kruisdraden | H82: 28.37 | J82: - NLS1 "kruisdraden" done by WSO, TL by KPN | K82: extra
B83: WBA ZM EthernetADSL/VDSL/SDSLNLS 1 DHZ Kruisdraden & TL | C83: WBA ZM Ethernet | D83: ADSL/VDSL/SDSL | E83: NLS 1 DHZ Kruisdraden & TL | H83: -23.26 | J83: - NLS1 "kruisdraden" and T&L done by WSO | K83: extra
B84: WBA ZM EthernetADSL/VDSL/SDSLNLS type 2 | C84: WBA ZM Ethernet | D84: ADSL/VDSL/SDSL | E84: NLS type 2 | H84: 308.00 | J84: - Maximum of 3 welds needed to complete copper | K84: extra
B85: WBA ZM EthernetADSL/VDSL/SDSLNLS 2 DHZ TL | C85: WBA ZM Ethernet | D85: ADSL/VDSL/SDSL | E85: NLS 2 DHZ TL | H85: 256.37 | J85: - NLS2 "kruisdraden" done by KPN, TL by WSO | K85: extra
B86: WBA ZM EthernetADSL/VDSL/SDSLNLS 2 DHZ Kruisdraden | C86: WBA ZM Ethernet | D86: ADSL/VDSL/SDSL | E86: NLS 2 DHZ Kruisdraden | H86: 296.37 | J86: - NLS2 "kruisdraden" done by WSO, TL by KPN | K86: extra
B87: WBA ZM EthernetADSL/VDSL/SDSLNLS 2 DHZ Kruisdraden & TL | C87: WBA ZM Ethernet | D87: ADSL/VDSL/SDSL | E87: NLS 2 DHZ Kruisdraden & TL | H87: 244.74 | J87: NLS2 "kruisdraden" and T&L done by WSO | K87: extra
B88: WBA ZM EthernetADSL/VDSL/SDSLNLS type 3 | C88: WBA ZM Ethernet | D88: ADSL/VDSL/SDSL | E88: NLS type 3 | H88: 506.40 | J88: In all other situations | K88: extra
B89: WBA ZM EthernetADSL/VDSL/SDSLNLS 3 DHZ TL | C89: WBA ZM Ethernet | D89: ADSL/VDSL/SDSL | E89: NLS 3 DHZ TL | H89: 454.78 | J89: NLS3 "kruisdraden" done by KPN, TL by WSO | K89: extra
B90: WBA ZM EthernetADSL/VDSL/SDSLNLS 3 DHZ Kruisdraden | C90: WBA ZM Ethernet | D90: ADSL/VDSL/SDSL | E90: NLS 3 DHZ Kruisdraden | H90: 494.79 | J90: - NLS3 "kruisdraden" done by WSO, TL by KPN | K90: extra
B91: WBA ZM EthernetADSL/VDSL/SDSLNLS 3 DHZ Kruisdraden & TL | C91: WBA ZM Ethernet | D91: ADSL/VDSL/SDSL | E91: NLS 3 DHZ Kruisdraden & TL | H91: 443.17 | J91: - NLS3 "kruisdraden" and T&L done by WSO | K91: extra
B92: WBA ZM EthernetADSL/VDSL/SDSLWCD | C92: WBA ZM Ethernet | D92: ADSL/VDSL/SDSL | E92: WCD | H92: 34.00 | J92: MDF Access surcharge for delivery of wall mounted socket at ISRA point (optional): | K92: extra
B93: WBA ZM EthernetADSL/VDSL/SDSLDHZ "Nazorg en Service" | C93: WBA ZM Ethernet | D93: ADSL/VDSL/SDSL | E93: DHZ "Nazorg en Service" | H93: -39.55 | J93: kruisdraden provisioning by KPN corrected by WSO | K93: extra
B97: =C97&D97&E97&F97 -> WBA ZM EthernetVDSL BondingNLS type 1 | C97: WBA ZM Ethernet | D97: VDSL Bonding | E97: NLS type 1 | H97: 149.45 | J97: Regular order including Test & Label | K97: extra
B98: WBA ZM EthernetVDSL BondingNLS type 2/3 | C98: WBA ZM Ethernet | D98: VDSL Bonding | E98: NLS type 2/3 | H98: 620.59 | J98: - If regular order is not possible and "infra extention" is required, including Test & Label | K98: extra
B99: WBA ZM EthernetVDSL BondingNLS type 1 DHZ | C99: WBA ZM Ethernet | D99: VDSL Bonding | E99: NLS type 1 DHZ | H99: 41.10 | J99: - Regular order where Test & Label is done by "Doe Het Zelf monteur" | K99: extra
B100: WBA ZM EthernetVDSL BondingNLS type 2/3 DHZ | C100: WBA ZM Ethernet | D100: VDSL Bonding | E100: NLS type 2/3 DHZ | H100: 511.23 | J100: - If regular order with "Doe Het Zelf monteur" requires "infra extention" | K100: extra
B104: =C104&D104&E104&F104 -> WBA ZM EthernetFttHNLS type 6, 9 | C104: WBA ZM Ethernet | D104: FttH | E104: NLS type 6, 9 | H104: 0.00 | J104: Fiber available at Premises ("FTU afgemonteerd/afgemonteerd bij levering") | K104: extra
B105: WBA ZM EthernetFttHNLS type 7 | C105: WBA ZM Ethernet | D105: FttH | E105: NLS type 7 | H105: 0.00 | J105: - Fiber available at Front Wall ("Voorgevel") | K105: extra
B106: WBA ZM EthernetFttHNLS type 8 | C106: WBA ZM Ethernet | D106: FttH | E106: NLS type 8 | H106: 0.00 | J106: Fiber available at Grounds ("Erfgrens") | K106: extra
B107: =C107&D107&E107&F107 -> WBA ZM EthernetFttHNT install LWAP | C107: WBA ZM Ethernet | D107: FttH | E107: NT install LWAP | H107: 38.53 | J107: subject to ACM approval | K107: extra
B108: =C108&D108&E108&F108 -> WBA ZM EthernetFttHDHZ Nazorg & Service | C108: WBA ZM Ethernet | D108: FttH | E108: DHZ Nazorg & Service | H108: -35.00
B109: WBA ZM EthernetFttHNLS type 21, 23, 24 | C109: WBA ZM Ethernet | D109: FttH | E109: NLS type 21, 23, 24 | H109: 0.00 | J109: Fiber to the Office | K109: extra
B112: 2. Access PVC/VLAN tariffs
B114: WO identifier | C114: WBA | D114: Bandbreedte | E114: CoS | F114: Bereik | G114: VVA | H114: VVE connect | I114: VVE disconnect
B115: =C115&D115&E115&F115 -> WBA CM Ethernet<= 512 kbps/<= 256 kbpsentrynational | C115: WBA CM Ethernet | D115: <= 512 kbps/<= 256 kbps | E115: entry | F115: national | G115: 3.02 | H115: 0.00 | I115: 5.00 | J115: ADSL-CO / VDSL-CO
B116: =C116&D116&E116&F116 -> WBA CM Ethernet<= 2 Mbps/<= 512 kbpsentrynational | C116: WBA CM Ethernet | D116: <= 2 Mbps/<= 512 kbps | E116: entry | F116: national | G116: 3.02 | H116: =H115 -> 0.00 | I116: =I115 -> 5.00 | J116: ADSL-CO / VDSL-CO
B117: WBA CM Ethernet<= 4 Mbps/<= 1 Mbpsentrynational | C117: WBA CM Ethernet | D117: <= 4 Mbps/<= 1 Mbps | E117: entry | F117: national | G117: 3.02 | H117: =H116 -> 0.00 | I117: 5.00 | J117: ADSL-CO / VDSL-CO
B118: WBA CM Ethernet<= 8 Mbps/<= 1 Mbpsentrynational | C118: WBA CM Ethernet | D118: <= 8 Mbps/<= 1 Mbps | E118: entry | F118: national | G118: 3.02 | H118: 0.00 | I118: 5.00 | J118: ADSL-CO / VDSL-CO
B119: WBA CM Ethernet<= 20 Mbps/<= 1 Mbpsentrynational | C119: WBA CM Ethernet | D119: <= 20 Mbps/<= 1 Mbps | E119: entry | F119: national | G119: 3.02 | H119: 0.00 | I119: 5.00 | J119: ADSL-CO / VDSL-CO
B120: WBA CM Ethernet≤ 2,3 Mbps/≤ 2,3 Mbpsentrynational | C120: WBA CM Ethernet | D120: ≤ 2,3 Mbps/≤ 2,3 Mbps | E120: entry | F120: national | G120: 3.02 | H120: 0.00 | I120: 5.00 | J120: SDSL-CO
B121: WBA CM Ethernet<= 30 Mbps/<= 3 Mbpsentrynational | C121: WBA CM Ethernet | D121: <= 30 Mbps/<= 3 Mbps | E121: entry | F121: national | G121: 3.02 | H121: 0.00 | I121: 5.00 | J121: VDSL-CO/BR/FttC
B122: WBA CM Ethernet<= 50 Mbps/<= 10 Mbpsentrynational | C122: WBA CM Ethernet | D122: <= 50 Mbps/<= 10 Mbps | E122: entry | F122: national | G122: 3.52 | H122: 0.00 | I122: 5.00 | J122: VDSL-CO/BR/FttC
B123: WBA CM Ethernet<= 100 Mbps/<= 30 Mbpsentrynational | C123: WBA CM Ethernet | D123: <= 100 Mbps/<= 30 Mbps | E123: entry | F123: national | G123: 4.03 | H123: 0.00 | I123: 5.00 | J123: VDSL-CO/BR/FttC
B124: WBA CM Ethernet<= 200 Mbps/<= 60 Mbpsentrynational | C124: WBA CM Ethernet | D124: <= 200 Mbps/<= 60 Mbps | E124: entry | F124: national | G124: 11.08 | H124: 0.00 | I124: 5.00 | J124: VDSL-CO/BR/FttC
B125: WBA CM Ethernet<= 20 Mbps/<= 1 Mbpsentrynational | C125: WBA CM Ethernet | D125: <= 20 Mbps/<= 1 Mbps | E125: entry | F125: national | G125: 3.02 | H125: 0.00 | I125: 5.00 | J125: ADSL-BR / VDSL-BR / FttC
B126: WBA CM Ethernet≤50/50 Mbpsentrynational | C126: WBA CM Ethernet | D126: ≤50/50 Mbps | E126: entry | F126: national | G126: 7.43 | H126: 0.00 | I126: 5.00 | J126: FttH en FttO symmetrical
B127: WBA CM Ethernet≤100/100 Mbpsentrynational | C127: WBA CM Ethernet | D127: ≤100/100 Mbps | E127: entry | F127: national | G127: 11.08 | H127: 0.00 | I127: 5.00 | J127: FttH en FttO symmetrical
B128: WBA CM Ethernet≤200/200 Mbpsentrynational | C128: WBA CM Ethernet | D128: ≤200/200 Mbps | E128: entry | F128: national | G128: 18.13 | H128: 0.00 | I128: 5.00 | J128: FttH en FttO symmetrical
B129: WBA CM Ethernet≤500/500 Mbpsentrynational | C129: WBA CM Ethernet | D129: ≤500/500 Mbps | E129: entry | F129: national | G129: 26.18 | H129: 0.00 | I129: 5.00 | J129: FttH en FttO symmetrical
B134: WBA CM Ethernet<=256 kbps/<=256 kbpsaddnational | C134: WBA CM Ethernet | D134: <=256 kbps/<=256 kbps | E134: add | F134: national | G134: 0.00 | H134: 0.00 | I134: 5.00
B135: WBA CM Ethernet1 Mps/1 Mbpsaddnational | C135: WBA CM Ethernet | D135: 1 Mps/1 Mbps | E135: add | F135: national | G135: 20.14 | H135: 0.00 | I135: 5.00
B137: WBA ZM Ethernet<=256 kbps/<=256 kbpspremiummetro | C137: WBA ZM Ethernet | D137: <=256 kbps/<=256 kbps | E137: premium | F137: metro | G137: 7.41 | H137: 0.00 | I137: 5.00
B138: WBA ZM Ethernet1 Mbps/1 Mbpspremiummetro | C138: WBA ZM Ethernet | D138: 1 Mbps/1 Mbps | E138: premium | F138: metro | G138: 7.41 | H138: 0.00 | I138: 5.00
B139: WBA ZM Ethernet2 Mbps/2 Mbpspremiummetro | C139: WBA ZM Ethernet | D139: 2 Mbps/2 Mbps | E139: premium | F139: metro | G139: 14.82 | H139: 0.00 | I139: 5.00
B140: WBA ZM Ethernet5 Mbps/5 Mbpspremiummetro | C140: WBA ZM Ethernet | D140: 5 Mbps/5 Mbps | E140: premium | F140: metro | G140: 18.53 | H140: 0.00 | I140: 5.00
B141: WBA ZM Ethernet10 Mbps/10 Mbpspremiummetro | C141: WBA ZM Ethernet | D141: 10 Mbps/10 Mbps | E141: premium | F141: metro | G141: 26.28 | H141: 0.00 | I141: 5.00
B142: WBA ZM Ethernet20 Mbps/20 Mbpspremiummetro | C142: WBA ZM Ethernet | D142: 20 Mbps/20 Mbps | E142: premium | F142: metro | G142: 34.37 | H142: 0.00 | I142: 5.00
B143: WBA ZM Ethernet2 Mbps/1 Mbpspremiummetro | C143: WBA ZM Ethernet | D143: 2 Mbps/1 Mbps | E143: premium | F143: metro | G143: 12.35 | H143: 0.00 | I143: 5.00
B144: WBA ZM Ethernet5 Mbps/1 Mbpspremiummetro | C144: WBA ZM Ethernet | D144: 5 Mbps/1 Mbps | E144: premium | F144: metro | G144: 17.29 | H144: 0.00 | I144: 5.00
B145: WBA ZM Ethernet10 Mbps/5 Mbpspremiummetro | C145: WBA ZM Ethernet | D145: 10 Mbps/5 Mbps | E145: premium | F145: metro | G145: 22.24 | H145: 0.00 | I145: 5.00
B146: WBA ZM Ethernet20 Mbps/10 Mbpspremiummetro | C146: WBA ZM Ethernet | D146: 20 Mbps/10 Mbps | E146: premium | F146: metro | G146: 27.18 | H146: 0.00 | I146: 5.00
B147: WBA ZM Ethernet50 Mbps/10 Mbpspremiummetro | C147: WBA ZM Ethernet | D147: 50 Mbps/10 Mbps | E147: premium | F147: metro | G147: 29.88 | H147: 0.00 | I147: 5.00
B149: WBA ZM Ethernet<= 1/1LitenationalPtP | C149: WBA ZM Ethernet | D149: <= 1/1 | E149: Lite | F149: nationalPtP | G149: 14.29 | H149: 0.00 | I149: 5.00
B150: WBA ZM Ethernet<= 2/2LitenationalPtP | C150: WBA ZM Ethernet | D150: <= 2/2 | E150: Lite | F150: nationalPtP | G150: 16.55 | H150: =H149 -> 0.00 | I150: =I149 -> 5.00
B151: WBA ZM Ethernet<= 5/5LitenationalPtP | C151: WBA ZM Ethernet | D151: <= 5/5 | E151: Lite | F151: nationalPtP | G151: 18.47 | H151: =H150 -> 0.00 | I151: 5.00
B152: WBA ZM Ethernet<=10/10LitenationalPtP | C152: WBA ZM Ethernet | D152: <=10/10 | E152: Lite | F152: nationalPtP | G152: 18.47 | H152: 0.00 | I152: 5.00
B153: WBA ZM Ethernet<=20/20LitenationalPtP | C153: WBA ZM Ethernet | D153: <=20/20 | E153: Lite | F153: nationalPtP | G153: 29.78 | H153: 0.00 | I153: 5.00
B154: WBA ZM Ethernet<=20/1LitenationalPtP | C154: WBA ZM Ethernet | D154: <=20/1 | E154: Lite | F154: nationalPtP | G154: 8.00 | H154: 0.00 | I154: 5.00
B155: WBA ZM Ethernet<=50/10LitenationalPtP | C155: WBA ZM Ethernet | D155: <=50/10 | E155: Lite | F155: nationalPtP | G155: 25.89 | H155: 0.00 | I155: 5.00
B156: WBA ZM Ethernet<= 1/1PremiumnationalPtP | C156: WBA ZM Ethernet | D156: <= 1/1 | E156: Premium | F156: nationalPtP | G156: 14.29 | H156: =H154 -> 0.00 | I156: =I154 -> 5.00
B157: WBA ZM Ethernet<= 2/2PremiumnationalPtP | C157: WBA ZM Ethernet | D157: <= 2/2 | E157: Premium | F157: nationalPtP | G157: 16.55 | H157: 0.00 | I157: 5.00
B158: WBA ZM Ethernet<= 5/5PremiumnationalPtP | C158: WBA ZM Ethernet | D158: <= 5/5 | E158: Premium | F158: nationalPtP | G158: 46.71 | H158: 0.00 | I158: 5.00
B159: WBA ZM Ethernet<=10/10PremiumnationalPtP | C159: WBA ZM Ethernet | D159: <=10/10 | E159: Premium | F159: nationalPtP | G159: 58.01 | H159: 0.00 | I159: 5.00
B160: WBA ZM Ethernet<=20/20PremiumnationalPtP | C160: WBA ZM Ethernet | D160: <=20/20 | E160: Premium | F160: nationalPtP | G160: 88.17 | H160: 0.00 | I160: 5.00
B161: WBA ZM Ethernet<=50/10PremiumnationalPtP | C161: WBA ZM Ethernet | D161: <=50/10 | E161: Premium | F161: nationalPtP | G161: 76.65 | H161: 0.00 | I161: 5.00
B163: WBA ZM Ethernet<=256 kbps/<=256 kbpsaddmetro | C163: WBA ZM Ethernet | D163: <=256 kbps/<=256 kbps | E163: add | F163: metro | G163: 0.00 | H163: =H160 -> 0.00 | I163: =I160 -> 5.00
B166: 3. Transport tariffs
B168: WO identifier | C168: WBA | D168: WAP transport | E168: Bereik | G168: VVA | I168: VVE
B169: =C169&D169&E169&F169 -> WBA CM EthernetWAP transport 1 Gb/snational | C169: WBA CM Ethernet | D169: WAP transport 1 Gb/s | E169: national | G169: 1250.00 | I169: 0.00 | J169: 1 Gb/s transport capacity to National Ethernet WAP port
B170: WBA CM EthernetWAP transport 1 Gb/smetro | C170: WBA CM Ethernet | D170: WAP transport 1 Gb/s | E170: metro | G170: 500.00 | I170: 0.00 | J170: 1 Gb/s transport capacity to Metro Ethernet WAP port
B171: WBA ZM EthernetWAP transport 1 Gb/smetro | C171: WBA ZM Ethernet | D171: WAP transport 1 Gb/s | E171: metro | G171: 0.00 | I171: 0.00 | J171: 1 Gb/s transport capacity to Metro Ethernet WAP port
B172: WBA ZM EthernetWAP transport 1 Gb/smetro (best effort) | C172: WBA ZM Ethernet | D172: WAP transport 1 Gb/s | E172: metro (best effort) | G172: 500.00 | I172: 0.00 | J172: 1 Gb/s Best Effort transport capacity to Metro Ethernet WAP port
B175: 4. WAP tariffs
C176: WBA | D176: WAP port | E176: type | G176: VVA | I176: VVE
B177: =C177&D177&E177&F177 -> WBA CM EthernetWAP port 1 Gb/snational | C177: WBA CM Ethernet | D177: WAP port 1 Gb/s | E177: national | G177: 0.00 | I177: 1500.00 | J177: Setup 1 Gb/s Ethernet port National
B178: WBA ZM EthernetWAP port 1 Gb/smetro | C178: WBA ZM Ethernet | D178: WAP port 1 Gb/s | E178: metro | G178: 42.00 | I178: 925.00 | J178: (Setup) 1 Gb/s Ethernet WAP port Metro
B179: WBA ZM EthernetWAP port 10 Gb/smetro | C179: WBA ZM Ethernet | D179: WAP port 10 Gb/s | E179: metro | G179: 42.00 | I179: 3000.00 | J179: (Setup) 10 Gb/s Ethernet WAP port Metro
B181: 5. Service levels
B183: WO identifier | C183: WBA | D183: xDSL | E183: ZM VPN Service Level | G183: VVA | H183: VVE connect | I183: VVE disconnect | J183: Omschrijving tariefbrochure
B184: =C184&D184&E184&F184 -> WBA CM EthernetADSLStandard+ | C184: WBA CM Ethernet | D184: ADSL | E184: Standard+ | G184: 8.06 | J184: Standard+: Support during office hours, repairtime one business day
B185: WBA CM EthernetVDSLStandard+ | C185: WBA CM Ethernet | D185: VDSL | E185: Standard+ | G185: 8.06 | J185: Standard+: Support during office hours, repairtime one business day
B186: WBA CM EthernetSDSLStandard+ | C186: WBA CM Ethernet | D186: SDSL | E186: Standard+ | G186: 8.06 | J186: Standard+: Support during office hours, repairtime one business day
B187: WBA CM EthernetFttHStandard+ | C187: WBA CM Ethernet | D187: FttH | E187: Standard+ | G187: n.a. | J187: Standard+: Support during office hours, repairtime one business day
B188: WBA CM EthernetFttOStandard+ | C188: WBA CM Ethernet | D188: FttO | E188: Standard+ | G188: n.a. | J188: Standard+: Support during office hours, repairtime one business day
B189: WBA CM EthernetADSL7x24 | C189: WBA CM Ethernet | D189: ADSL | E189: 7x24 | G189: 15.11 | J189: 7x24 repairtime 8h
B190: WBA CM EthernetVDSL7x24 | C190: WBA CM Ethernet | D190: VDSL | E190: 7x24 | G190: =G189 -> 15.11 | J190: 7x24 repairtime 8h
B191: WBA CM EthernetSDSL7x24 | C191: WBA CM Ethernet | D191: SDSL | E191: 7x24 | G191: =G190 -> 15.11 | J191: 7x24 repairtime 8h
B192: WBA CM EthernetFttH7x24 | C192: WBA CM Ethernet | D192: FttH | E192: 7x24 | G192: 15.11 | J192: 7x24 repairtime 8h
B193: WBA CM EthernetFttO7x24 | C193: WBA CM Ethernet | D193: FttO | E193: 7x24 | G193: 15.11 | J193: 7x24 repairtime 8h
B194: WBA ZM EthernetADSLStandard+ | C194: WBA ZM Ethernet | D194: ADSL | E194: Standard+ | G194: 5.58 | J194: Standard+: Support during office hours, repairtime one business day
B195: WBA ZM EthernetVDSLStandard+ | C195: WBA ZM Ethernet | D195: VDSL | E195: Standard+ | G195: =G194 -> 5.58 | J195: Standard+: Support during office hours, repairtime one business day
B196: WBA ZM EthernetSDSLStandard+ | C196: WBA ZM Ethernet | D196: SDSL | E196: Standard+ | G196: 5.58 | J196: Standard+: Support during office hours, repairtime one business day
B197: WBA ZM EthernetFttHStandard+ | C197: WBA ZM Ethernet | D197: FttH | E197: Standard+ | G197: n.a. | J197: Standard+: Support during office hours, repairtime one business day
B198: WBA ZM EthernetFttOStandard+ | C198: WBA ZM Ethernet | D198: FttO | E198: Standard+ | G198: n.a. | J198: Standard+: Support during office hours, repairtime one business day
B199: WBA ZM EthernetADSL7x24 | C199: WBA ZM Ethernet | D199: ADSL | E199: 7x24 | G199: 8.12 | J199: 7x24 repairtime 8h
B200: WBA ZM EthernetVDSL7x24 | C200: WBA ZM Ethernet | D200: VDSL | E200: 7x24 | G200: =G199 -> 8.12 | J200: 7x24 repairtime 8h
B201: WBA ZM EthernetSDSL7x24 | C201: WBA ZM Ethernet | D201: SDSL | E201: 7x24 | G201: =G200 -> 8.12 | J201: 7x24 repairtime 8h
B202: WBA ZM EthernetFttH7x24 | C202: WBA ZM Ethernet | D202: FttH | E202: 7x24 | G202: 15.00 | J202: 7x24 repairtime 8h
B203: WBA ZM EthernetFttO7x24 | C203: WBA ZM Ethernet | D203: FttO | E203: 7x24 | G203: 15.00 | J203: 7x24 repairtime 8h
B205: =C205&D205&E205&F205 -> WBA CM EthernetADSLStandard | C205: WBA CM Ethernet | D205: ADSL | E205: Standard | G205: 0.00
B206: WBA CM EthernetVDSLStandard | C206: WBA CM Ethernet | D206: VDSL | E206: Standard | G206: 0.00
B207: WBA CM EthernetSDSLStandard | C207: WBA CM Ethernet | D207: SDSL | E207: Standard | G207: 0.00
B208: WBA CM EthernetFttHStandard | C208: WBA CM Ethernet | D208: FttH | E208: Standard | G208: 0.00
B209: WBA CM EthernetFttOStandard | C209: WBA CM Ethernet | D209: FttO | E209: Standard | G209: 0.00
B210: WBA ZM EthernetADSLStandard | C210: WBA ZM Ethernet | D210: ADSL | E210: Standard | G210: 0.00
B211: WBA ZM EthernetVDSLStandard | C211: WBA ZM Ethernet | D211: VDSL | E211: Standard | G211: 0.00
B212: WBA ZM EthernetSDSLStandard | C212: WBA ZM Ethernet | D212: SDSL | E212: Standard | G212: 0.00
B213: WBA ZM EthernetFttHStandard | C213: WBA ZM Ethernet | D213: FttH | E213: Standard | G213: 0.00
B214: WBA ZM EthernetFttOStandard | C214: WBA ZM Ethernet | D214: FttO | E214: Standard | G214: 0.00

Sheet Rekenblad access
W1: RETAIL PRIJZEN | AI1: WHOLESALE KOSTEN | AX1: RETAILKOSTEN | BE1: SQUEEZE TOETS | BI1: REDEN VAN UITSLUITING TARIEFCOMBINATIES | BM1: ULL | BR1: RETAILKOSTEN ULL | BW1: ULL incl retail | BY1: SQUEEZE TOETS ULL
C2: dimensies retail | L2: dimensies wholesale | W2: VVE | AC2: VVA | AG2: Totalen | AI2: VVE | AP2: VVA | AV2: VVA+VVE | BC2: TOTAAL | BW2: TOTAAL
A3: Identifier rekenblad totaal | B3: Identifier transfersheet | C3: ZM Contractduur | D3: ZM Access type | E3: ZM VPN kwaliteit | H3: Wholesale new line | I3: Shared / unshared | J3: ZM identifier | L3: WO Contractduur | M3: WBA | N3: WO Network Access Line type | O3: WO Access type | Q3: Wholesale new line | R3: surcharge NLSx | S3: Shared / unshared | T3: WO identifier VVE | U3: WO identifier VVA | W3: rij tariefblad | X3: VVE | Y3: ZMtermijnkorting access VVE | Z3: ZMSalesMandaatVVE | AA3: VVE netto | AB3: VVE netto (mnd) | AC3: VVA | AD3: ZMtermijnkorting access VVA | AE3: ZMSalesMandaatVVA | AF3: VVA netto (mnd) | AG3: VVA netto + VVE netto (mnd) | AI3: rij W&O blad VVE | AJ3: VVE connect | AK3: VVE disconnect | AL3: WOkortingVVE | AM3: Aanschafkosten | AN3: VVE netto | AO3: VVE netto (mnd) | AP3: rij W&O blad VVA | AQ3: VVA | AR3: WOkortingVVA | AS3: Offnet kosten (mnd) | AT3: 0 | AU3: VVA netto (mnd) | AV3: VVA netto + VVE netto (mnd) | AX3: RTO (mnd) | AY3: Distributievergoeding (mnd) | BA3: Totaal retail (mnd) | BC3: VVA netto + VVE netto + Retail | BE3: Squeeze Marge (abs) | BF3: Squeeze Marge (%) | BG3: Squeeze ? | BI3: Wordt tariefcombinatie getoetst? | BJ3: Reden van ontbreken toetsing (en dus foutmelding(en) in formules) | BL3: WO identifier ULL | BM3: VVE netto | BN3: VVE netto (mnd) | BO3: VVA netto (mnd) | BP3: ULL totaal (mnd) | BR3: NRK (mnd) | BS3: Distributievergoeding (mnd) | BU3: Totaal retail (mnd) | BW3: ULL + Retail | BY3: Squeeze Marge (abs) | BZ3: Squeeze Marge (%) | CA3: Squeeze ?
A4: =C4&D4&E4&H4&I4 -> 1ADSLBasicnieuwunshared | B4: =A4 -> 1ADSLBasicnieuwunshared | C4: 1 | D4: ADSL | E4: Basic | H4: nieuw | I4: unshared | J4: =D4&H4&I4 -> ADSLnieuwunshared | L4: =INDEX(Mapping!$J:$J,MATCH(C$3&C4,Mapping!$B:$B,0)) -> 1 | M4: =INDEX(Mapping!$H:$H,MATCH($E4,Mapping!$B:$B,0)) -> WBA CM Ethernet | N4: =INDEX(Mapping!$I:$I,MATCH($D4&$I4,Mapping!$B:$B,0)) -> ADSL | O4: =INDEX(Mapping!$I:$I,MATCH($D4,Mapping!$B:$B,0)) -> ADSL | Q4: =INDEX(Mapping!$H:$H,MATCH($H4,Mapping!$B:$B,0)) -> New line | R4: nvt | S4: =INDEX(Mapping!$J:$J,MATCH($D4&$I4,Mapping!$B:$B,0)) -> unshared | T4: =M4&O4&Q4 -> WBA CM EthernetADSLNew line | U4: =M4&O4&S4 -> WBA CM EthernetADSLunshared | W4: =MATCH($J4,'Tarieven ZM'!$B:$B,0) -> 97 | X4: =INDEX('Tarieven ZM'!$H:$H,$W4) -> 1000 | Y4: =-INDEX(Parameters!$B:$B,MATCH(Y$3,Parameters!$A:$A,0))*$X4 -> 0 | Z4: =-INDEX(Parameters!$B:$B,MATCH(Z$3,Parameters!$A:$A,0))*$X4 -> 0.0 | AA4: =SUM(X4:Z4) -> 1000 | AB4: =AA4/INDEX(Parameters!$B:$B,MATCH("AfschrijftermijnVVE"&12*$C4,Parameters!$A:$A,0)) -> 27.77777778 | AC4: =INDEX('Tarieven ZM'!$G:$G,$W4) -> 1000 | AD4: =-INDEX(Parameters!$B:$B,MATCH(AD$3,Parameters!$A:$A,0))*$AC4 -> 0 | AE4: =-INDEX(Parameters!$B:$B,MATCH(AE$3,Parameters!$A:$A,0))*$AC4 -> 0 | AF4: =SUM(AC4:AE4) -> 1000 | AG4: =SUM(AB4,AF4) -> 1027.78 | AI4: =IF(Q4<>"nvt",MATCH($T4,'Tarieven W&O'!$B:$B,0),"nvt") -> 16 | AJ4: =IF(AI4<>"nvt",INDEX('Tarieven W&O'!$H:$H,$AI4)+INDEX(Parameters!C:C,MATCH("NLSx "&O4&" "&M4,Parameters!A:A,0)),0) -> 65.00 | AK4: =IF(AI4<>"nvt",INDEX('Tarieven W&O'!$I:$I,$AI4),0) -> 25 | AL4: =IF(AI4<>"nvt",-INDEX(Parameters!$B:$B,MATCH(AL$3&$M4,Parameters!$A:$A,0))*(AJ4+AK4),0) -> 0.0 | AN4: =SUM(AJ4:AM4) -> 90 | AO4: =AN4/INDEX(Parameters!$B:$B,MATCH("AfschrijftermijnVVE"&12*$C4,Parameters!$A:$A,0)) -> 2.50 | AP4: =MATCH($U4,'Tarieven W&O'!$B:$B,0) -> 8 | AQ4: =IF(AP4<>"nvt",INDEX('Tarieven W&O'!$G:$G,$AP4),0) -> 13.09 | AR4: =-INDEX(Parameters!$B:$B,MATCH(AR$3&$M4&O4,Parameters!$A:$A,0))*(AQ4) -> -1.3 | AU4: =SUM(AQ4:AT4) -> 11.78 | AV4: =SUM(AO4,AU4) -> 14.28 | AX4: =Parameters!$B$6*AV4 -> 0.14 | AY4: 0.00 | BA4: =SUM(AX4:AZ4) -> 0.14 | BC4: =SUM(AV4,BA4) -> 14.42 | BE4: =AG4-BC4 -> 1013.35 | BF4: =IF(AG4=0,-999%,BE4/AG4) -> 99% | BG4: =BF4<0 -> FALSE | BI4: ja | BK4: =VLOOKUP(J4,'Tarieven ZM'!$B$7:$I$146,8,0) -> 0 | BL4: =N4&Q4&S4 -> ADSLNew lineunshared | BM4: =INDEX('inkoop ULL tbv Epacity'!$J:$J,MATCH(BL4,'inkoop ULL tbv Epacity'!$H:$H,0),0) -> 75.00 | BN4: =BM4/INDEX(Parameters!$B:$B,MATCH("AfschrijftermijnVVE"&12*$C4,Parameters!$A:$A,0)) -> 2.08 | BO4: =INDEX('inkoop ULL tbv Epacity'!$I:$I,MATCH(BL4,'inkoop ULL tbv Epacity'!$H:$H,0),0) -> 12.50 | BP4: =BN4+BO4 -> 14.59 | BR4: =Parameters!$B$12*AG4 -> 102.78 | BS4: =SUM(Distributievergoedingen!$F$12,Distributievergoedingen!$I$12,Distributievergoedingen!$L$12,Distributievergoedingen!$O$12)*AF4+SUM(Distributievergoedingen!$O$12*AA4+Distributievergoedingen!$R$12+Distributievergoedingen!$U$12+Distributievergoedingen!$X$12)/(MAX(36,12*L4)) -> 112.78 | BU4: =SUM(BR4:BT4) -> 215.56 | BW4: =SUM(BP4,BU4) -> 230.14 | BY4: =AG4-BW4 -> 797.64 | BZ4: =IF(AG4=0,-999%,BY4/AG4) -> 78% | CA4: =BZ4<0 -> FALSE
A5: =C5&D5&E5&H5&I5 -> 1VDSLEntrynieuwunshared | B5: =A5 -> 1VDSLEntrynieuwunshared | C5: 1 | D5: VDSL | E5: Entry | H5: nieuw | I5: unshared | J5: =D5&H5&I5 -> VDSLnieuwunshared | L5: =INDEX(Mapping!$J:$J,MATCH(C$3&C5,Mapping!$B:$B,0)) -> 1 | M5: =INDEX(Mapping!$H:$H,MATCH($E5,Mapping!$B:$B,0)) -> WBA CM Ethernet | N5: =INDEX(Mapping!$I:$I,MATCH($D5&$I5,Mapping!$B:$B,0)) -> VDSL | O5: =INDEX(Mapping!$I:$I,MATCH($D5,Mapping!$B:$B,0)) -> VDSL | Q5: =INDEX(Mapping!$H:$H,MATCH($H5,Mapping!$B:$B,0)) -> New line | R5: nvt | S5: =INDEX(Mapping!$J:$J,MATCH($D5&$I5,Mapping!$B:$B,0)) -> unshared | T5: WBA CM EthernetVDSLNew line | U5: WBA CM EthernetVDSLunshared | W5: =MATCH($J5,'Tarieven ZM'!$B:$B,0) -> 98 | X5: =INDEX('Tarieven ZM'!$H:$H,$W5) -> 1000 | Y5: =-INDEX(Parameters!$B:$B,MATCH(Y$3,Parameters!$A:$A,0))*$X5 -> 0 | Z5: =-INDEX(Parameters!$B:$B,MATCH(Z$3,Parameters!$A:$A,0))*$X5 -> 0.0 | AA5: =SUM(X5:Z5) -> 1000 | AB5: =AA5/INDEX(Parameters!$B:$B,MATCH("AfschrijftermijnVVE"&12*$C5,Parameters!$A:$A,0)) -> 27.77777778 | AC5: =INDEX('Tarieven ZM'!$G:$G,$W5) -> 1000 | AD5: =-INDEX(Parameters!$B:$B,MATCH(AD$3,Parameters!$A:$A,0))*$AC5 -> 0 | AE5: =-INDEX(Parameters!$B:$B,MATCH(AE$3,Parameters!$A:$A,0))*$AC5 -> 0 | AF5: =SUM(AC5:AE5) -> 1000 | AG5: =SUM(AB5,AF5) -> 1027.78 | AI5: =IF(Q5<>"nvt",MATCH($T5,'Tarieven W&O'!$B:$B,0),"nvt") -> 17 | AJ5: =IF(AI5<>"nvt",INDEX('Tarieven W&O'!$H:$H,$AI5)+INDEX(Parameters!C:C,MATCH("NLSx "&O5&" "&M5,Parameters!A:A,0)),0) -> 65.00 | AK5: =IF(AI5<>"nvt",INDEX('Tarieven W&O'!$I:$I,$AI5),0) -> 25 | AL5: =IF(AI5<>"nvt",-INDEX(Parameters!$B:$B,MATCH(AL$3&$M5,Parameters!$A:$A,0))*(AJ5+AK5),0) -> 0.0 | AN5: =SUM(AJ5:AM5) -> 90 | AO5: =AN5/INDEX(Parameters!$B:$B,MATCH("AfschrijftermijnVVE"&12*$C5,Parameters!$A:$A,0)) -> 2.50 | AP5: =MATCH($U5,'Tarieven W&O'!$B:$B,0) -> 9 | AQ5: =IF(AP5<>"nvt",INDEX('Tarieven W&O'!$G:$G,$AP5),0) -> 13.09 | AR5: =-INDEX(Parameters!$B:$B,MATCH(AR$3&$M5&O5,Parameters!$A:$A,0))*(AQ5) -> -1.3 | AU5: =SUM(AQ5:AT5) -> 11.78 | AV5: =SUM(AO5,AU5) -> 14.28 | AX5: =Parameters!$B$6*AV5 -> 0.14 | AY5: 0.00 | BA5: =SUM(AX5:AZ5) -> 0.14 | BC5: =SUM(AV5,BA5) -> 14.42 | BE5: 1013.35 | BF5: 99% | BG5: =BF5<0 -> FALSE | BI5: ja | BK5: =VLOOKUP(J5,'Tarieven ZM'!$B$7:$I$146,8,0) -> 0 | BL5: =N5&Q5&S5 -> VDSLNew lineunshared | BM5: =INDEX('inkoop ULL tbv Epacity'!$J:$J,MATCH(BL5,'inkoop ULL tbv Epacity'!$H:$H,0),0) -> 75.00 | BN5: =BM5/INDEX(Parameters!$B:$B,MATCH("AfschrijftermijnVVE"&12*$C5,Parameters!$A:$A,0)) -> 2.08 | BO5: =INDEX('inkoop ULL tbv Epacity'!$I:$I,MATCH(BL5,'inkoop ULL tbv Epacity'!$H:$H,0),0) -> 12.50 | BP5: =BN5+BO5 -> 14.59 | BR5: =Parameters!$B$12*AG5 -> 102.78 | BS5: =SUM(Distributievergoedingen!$F$12,Distributievergoedingen!$I$12,Distributievergoedingen!$L$12,Distributievergoedingen!$O$12)*AF5+SUM(Distributievergoedingen!$O$12*AA5+Distributievergoedingen!$R$12+Distributievergoedingen!$U$12+Distributievergoedingen!$X$12)/(MAX(36,12*L5)) -> 112.78 | BU5: =SUM(BR5:BT5) -> 215.56 | BW5: =SUM(BP5,BU5) -> 230.14 | BY5: =AG5-BW5 -> 797.64 | BZ5: =IF(AG5=0,-999%,BY5/AG5) -> 78% | CA5: =BZ5<0 -> FALSE
A6: 1VDSL bondingEntrynieuwunshared | B6: 1VDSL bondingEntrynieuwunshared | C6: 1 | D6: VDSL bonding | E6: Entry | H6: nieuw | I6: unshared | J6: VDSL bondingnieuwunshared | L6: =INDEX(Mapping!$J:$J,MATCH(C$3&C6,Mapping!$B:$B,0)) -> 1 | M6: =INDEX(Mapping!$H:$H,MATCH($E6,Mapping!$B:$B,0)) -> WBA CM Ethernet | N6: =INDEX(Mapping!$I:$I,MATCH($D6&$I6,Mapping!$B:$B,0)) -> VDSL Bonding | O6: =INDEX(Mapping!$I:$I,MATCH($D6,Mapping!$B:$B,0)) -> VDSL Bonding | Q6: =INDEX(Mapping!$H:$H,MATCH($H6,Mapping!$B:$B,0)) -> New line | R6: nvt | S6: =INDEX(Mapping!$J:$J,MATCH($D6&$I6,Mapping!$B:$B,0)) -> unshared | T6: WBA CM EthernetVDSL BondingNew line | U6: WBA CM EthernetVDSL Bondingunshared | W6: =MATCH($J6,'Tarieven ZM'!$B:$B,0) -> 99 | X6: =INDEX('Tarieven ZM'!$H:$H,$W6) -> 1000 | Y6: =-INDEX(Parameters!$B:$B,MATCH(Y$3,Parameters!$A:$A,0))*$X6 -> 0 | Z6: =-INDEX(Parameters!$B:$B,MATCH(Z$3,Parameters!$A:$A,0))*$X6 -> 0.0 | AA6: =SUM(X6:Z6) -> 1000 | AB6: =AA6/INDEX(Parameters!$B:$B,MATCH("AfschrijftermijnVVE"&12*$C6,Parameters!$A:$A,0)) -> 27.77777778 | AC6: =INDEX('Tarieven ZM'!$G:$G,$W6) -> 1000 | AD6: =-INDEX(Parameters!$B:$B,MATCH(AD$3,Parameters!$A:$A,0))*$AC6 -> 0 | AE6: =-INDEX(Parameters!$B:$B,MATCH(AE$3,Parameters!$A:$A,0))*$AC6 -> 0 | AF6: =SUM(AC6:AE6) -> 1000 | AG6: =SUM(AB6,AF6) -> 1027.78 | AI6: =IF(Q6<>"nvt",MATCH($T6,'Tarieven W&O'!$B:$B,0),"nvt") -> 25 | AJ6: =IF(AI6<>"nvt",INDEX('Tarieven W&O'!$H:$H,$AI6)+INDEX(Parameters!C:C,MATCH("NLSx "&O6&" "&M6,Parameters!A:A,0)),0) -> 174.45 | AK6: =IF(AI6<>"nvt",INDEX('Tarieven W&O'!$I:$I,$AI6),0) -> 25 | AL6: =IF(AI6<>"nvt",-INDEX(Parameters!$B:$B,MATCH(AL$3&$M6,Parameters!$A:$A,0))*(AJ6+AK6),0) -> 0.0 | AN6: =SUM(AJ6:AM6) -> 199.45 | AO6: =AN6/INDEX(Parameters!$B:$B,MATCH("AfschrijftermijnVVE"&12*$C6,Parameters!$A:$A,0)) -> 5.54 | AP6: =MATCH($U6,'Tarieven W&O'!$B:$B,0) -> 13 | AQ6: =IF(AP6<>"nvt",INDEX('Tarieven W&O'!$G:$G,$AP6),0) -> 19.82 | AR6: =-INDEX(Parameters!$B:$B,MATCH(AR$3&$M6&O6,Parameters!$A:$A,0))*(AQ6) -> -2.0 | AU6: =SUM(AQ6:AT6) -> 17.84 | AV6: =SUM(AO6,AU6) -> 23.38 | AX6: =Parameters!$B$6*AV6 -> 0.23 | AY6: 0.00 | BA6: =SUM(AX6:AZ6) -> 0.23 | BC6: =SUM(AV6,BA6) -> 23.61 | BE6: =AG6-BC6 -> 1004.17 | BF6: =IF(AG6=0,-999%,BE6/AG6) -> 98% | BG6: =BF6<0 -> FALSE | BI6: ja | BK6: =VLOOKUP(J6,'Tarieven ZM'!$B$7:$I$146,8,0) -> 0 | BL6: VDSL BondingNew lineunshared | BM6: =INDEX('inkoop ULL tbv Epacity'!$J:$J,MATCH(BL6,'inkoop ULL tbv Epacity'!$H:$H,0),0) -> 35.00 | BN6: =BM6/INDEX(Parameters!$B:$B,MATCH("AfschrijftermijnVVE"&12*$C6,Parameters!$A:$A,0)) -> 0.97 | BO6: =INDEX('inkoop ULL tbv Epacity'!$I:$I,MATCH(BL6,'inkoop ULL tbv Epacity'!$H:$H,0),0) -> 16.79 | BP6: =BN6+BO6 -> 17.76 | BR6: =Parameters!$B$12*AG6 -> 102.78 | BS6: =SUM(Distributievergoedingen!$F$12,Distributievergoedingen!$I$12,Distributievergoedingen!$L$12,Distributievergoedingen!$O$12)*AF6+SUM(Distributievergoedingen!$O$12*AA6+Distributievergoedingen!$R$12+Distributievergoedingen!$U$12+Distributievergoedingen!$X$12)/(MAX(36,12*L6)) -> 112.78 | BU6: =SUM(BR6:BT6) -> 215.56 | BW6: =SUM(BP6,BU6) -> 233.32 | BY6: =AG6-BW6 -> 794.46 | BZ6: =IF(AG6=0,-999%,BY6/AG6) -> 77% | CA6: =BZ6<0 -> FALSE
A7: 1SDSLBasicnieuwunshared | B7: 1SDSLBasicnieuwunshared | C7: 1 | D7: SDSL | E7: Basic | H7: nieuw | I7: unshared | J7: SDSLnieuwunshared | L7: =INDEX(Mapping!$J:$J,MATCH(C$3&C7,Mapping!$B:$B,0)) -> 1 | M7: =INDEX(Mapping!$H:$H,MATCH($E7,Mapping!$B:$B,0)) -> WBA CM Ethernet | N7: =INDEX(Mapping!$I:$I,MATCH($D7&$I7,Mapping!$B:$B,0)) -> SDSL | O7: =INDEX(Mapping!$I:$I,MATCH($D7,Mapping!$B:$B,0)) -> SDSL | Q7: =INDEX(Mapping!$H:$H,MATCH($H7,Mapping!$B:$B,0)) -> New line | R7: nvt | S7: =INDEX(Mapping!$J:$J,MATCH($D7&$I7,Mapping!$B:$B,0)) -> unshared | T7: WBA CM EthernetSDSLNew line | U7: WBA CM EthernetSDSLunshared | W7: =MATCH($J7,'Tarieven ZM'!$B:$B,0) -> 100 | X7: =INDEX('Tarieven ZM'!$H:$H,$W7) -> 1000 | Y7: =-INDEX(Parameters!$B:$B,MATCH(Y$3,Parameters!$A:$A,0))*$X7 -> 0 | Z7: =-INDEX(Parameters!$B:$B,MATCH(Z$3,Parameters!$A:$A,0))*$X7 -> 0.0 | AA7: 1000 | AB7: =AA7/INDEX(Parameters!$B:$B,MATCH("AfschrijftermijnVVE"&12*$C7,Parameters!$A:$A,0)) -> 27.77777778 | AC7: =INDEX('Tarieven ZM'!$G:$G,$W7) -> 1000 | AD7: =-INDEX(Parameters!$B:$B,MATCH(AD$3,Parameters!$A:$A,0))*$AC7 -> 0 | AE7: =-INDEX(Parameters!$B:$B,MATCH(AE$3,Parameters!$A:$A,0))*$AC7 -> 0 | AF7: 1000 | AG7: 1027.78 | AI7: =IF(Q7<>"nvt",MATCH($T7,'Tarieven W&O'!$B:$B,0),"nvt") -> 18 | AJ7: =IF(AI7<>"nvt",INDEX('Tarieven W&O'!$H:$H,$AI7)+INDEX(Parameters!C:C,MATCH("NLSx "&O7&" "&M7,Parameters!A:A,0)),0) -> 65.00 | AK7: =IF(AI7<>"nvt",INDEX('Tarieven W&O'!$I:$I,$AI7),0) -> 25 | AL7: =IF(AI7<>"nvt",-INDEX(Parameters!$B:$B,MATCH(AL$3&$M7,Parameters!$A:$A,0))*(AJ7+AK7),0) -> 0.0 | AN7: 90 | AO7: =AN7/INDEX(Parameters!$B:$B,MATCH("AfschrijftermijnVVE"&12*$C7,Parameters!$A:$A,0)) -> 2.50 | AP7: =MATCH($U7,'Tarieven W&O'!$B:$B,0) -> 10 | AQ7: =IF(AP7<>"nvt",INDEX('Tarieven W&O'!$G:$G,$AP7),0) -> 33.73 | AR7: =-INDEX(Parameters!$B:$B,MATCH(AR$3&$M7&O7,Parameters!$A:$A,0))*(AQ7) -> -3.4 | AU7: 30.36 | AV7: 32.86 | AX7: =Parameters!$B$6*AV7 -> 0.33 | AY7: 0.00 | BA7: 0.33 | BC7: 33.19 | BE7: 994.59 | BF7: 97% | BG7: FALSE | BI7: ja | BK7: =VLOOKUP(J7,'Tarieven ZM'!$B$7:$I$146,8,0) -> 0 | BL7: SDSLNew lineunshared | BM7: =INDEX('inkoop ULL tbv Epacity'!$J:$J,MATCH(BL7,'inkoop ULL tbv Epacity'!$H:$H,0),0) -> 76.96 | BN7: =BM7/INDEX(Parameters!$B:$B,MATCH("AfschrijftermijnVVE"&12*$C7,Parameters!$A:$A,0)) -> 2.14 | BO7: =INDEX('inkoop ULL tbv Epacity'!$I:$I,MATCH(BL7,'inkoop ULL tbv Epacity'!$H:$H,0),0) -> 9.39 | BP7: 11.52 | BR7: =Parameters!$B$12*AG7 -> 102.78 | BS7: =SUM(Distributievergoedingen!$F$12,Distributievergoedingen!$I$12,Distributievergoedingen!$L$12,Distributievergoedingen!$O$12)*AF7+SUM(Distributievergoedingen!$O$12*AA7+Distributievergoedingen!$R$12+Distributievergoedingen!$U$12+Distributievergoedingen!$X$12)/(MAX(36,12*L7)) -> 112.78 | BU7: 215.56 | BW7: 227.08 | BY7: 800.70 | BZ7: 78% | CA7: FALSE
A8: 1SA IPVPNEntrynieuwunshared | B8: 1SA IPVPNEntrynieuwunshared | C8: 1 | D8: SA IPVPN | E8: Entry | H8: nieuw | I8: unshared | J8: SA IPVPNnieuwunshared | L8: =INDEX(Mapping!$J:$J,MATCH(C$3&C8,Mapping!$B:$B,0)) -> 1 | M8: =INDEX(Mapping!$H:$H,MATCH($E8,Mapping!$B:$B,0)) -> WBA CM Ethernet | N8: =INDEX(Mapping!$I:$I,MATCH($D8&$I8,Mapping!$B:$B,0)) -> FttH | O8: =INDEX(Mapping!$I:$I,MATCH($D8,Mapping!$B:$B,0)) -> FttH | Q8: =INDEX(Mapping!$H:$H,MATCH($H8,Mapping!$B:$B,0)) -> New line | R8: nvt | S8: =INDEX(Mapping!$J:$J,MATCH($D8&$I8,Mapping!$B:$B,0)) -> unshared | T8: WBA CM EthernetFttHNew line | U8: WBA CM EthernetFttHunshared | W8: =MATCH($J8,'Tarieven ZM'!$B:$B,0) -> 101 | X8: =INDEX('Tarieven ZM'!$H:$H,$W8) -> 1000 | Y8: =-INDEX(Parameters!$B:$B,MATCH(Y$3,Parameters!$A:$A,0))*$X8 -> 0 | Z8: =-INDEX(Parameters!$B:$B,MATCH(Z$3,Parameters!$A:$A,0))*$X8 -> 0.0 | AA8: 1000 | AB8: =AA8/INDEX(Parameters!$B:$B,MATCH("AfschrijftermijnVVE"&12*$C8,Parameters!$A:$A,0)) -> 27.77777778 | AC8: =INDEX('Tarieven ZM'!$G:$G,$W8) -> 1000 | AD8: =-INDEX(Parameters!$B:$B,MATCH(AD$3,Parameters!$A:$A,0))*$AC8 -> 0 | AE8: =-INDEX(Parameters!$B:$B,MATCH(AE$3,Parameters!$A:$A,0))*$AC8 -> 0 | AF8: 1000 | AG8: 1027.78 | AI8: =IF(Q8<>"nvt",MATCH($T8,'Tarieven W&O'!$B:$B,0),"nvt") -> 22 | AJ8: =IF(AI8<>"nvt",INDEX('Tarieven W&O'!$H:$H,$AI8)+INDEX(Parameters!C:C,MATCH("NLSx "&O8&" "&M8,Parameters!A:A,0)),0) -> 25.00 | AK8: =IF(AI8<>"nvt",INDEX('Tarieven W&O'!$I:$I,$AI8),0) -> 25 | AL8: =IF(AI8<>"nvt",-INDEX(Parameters!$B:$B,MATCH(AL$3&$M8,Parameters!$A:$A,0))*(AJ8+AK8),0) -> 0.0 | AN8: 50 | AO8: =AN8/INDEX(Parameters!$B:$B,MATCH("AfschrijftermijnVVE"&12*$C8,Parameters!$A:$A,0)) -> 1.39 | AP8: =MATCH($U8,'Tarieven W&O'!$B:$B,0) -> 11 | AQ8: =IF(AP8<>"nvt",INDEX('Tarieven W&O'!$G:$G,$AP8),0) -> 19.13 | AR8: =-INDEX(Parameters!$B:$B,MATCH(AR$3&$M8&O8,Parameters!$A:$A,0))*(AQ8) -> 0.0 | AU8: 19.13 | AV8: 20.52 | AX8: =Parameters!$B$6*AV8 -> 0.21 | AY8: 0.00 | BA8: 0.21 | BC8: 20.72 | BE8: 1007.05 | BF8: 98% | BG8: FALSE | BI8: ja | BK8: =VLOOKUP(J8,'Tarieven ZM'!$B$7:$I$146,8,0) -> 0 | BL8: FttHNew lineunshared | BM8: =INDEX('inkoop ULL tbv Epacity'!$J:$J,MATCH(BL8,'inkoop ULL tbv Epacity'!$H:$H,0),0) -> 114.60 | BN8: =BM8/INDEX(Parameters!$B:$B,MATCH("AfschrijftermijnVVE"&12*$C8,Parameters!$A:$A,0)) -> 3.18 | BO8: =INDEX('inkoop ULL tbv Epacity'!$I:$I,MATCH(BL8,'inkoop ULL tbv Epacity'!$H:$H,0),0) -> 18.27 | BP8: 21.46 | BR8: =Parameters!$B$12*AG8 -> 102.78 | BS8: =SUM(Distributievergoedingen!$F$12,Distributievergoedingen!$I$12,Distributievergoedingen!$L$12,Distributievergoedingen!$O$12)*AF8+SUM(Distributievergoedingen!$O$12*AA8+Distributievergoedingen!$R$12+Distributievergoedingen!$U$12+Distributievergoedingen!$X$12)/(MAX(36,12*L8)) -> 112.78 | BU8: 215.56 | BW8: 237.01 | BY8: 790.77 | BZ8: 77% | CA8: FALSE
A9: 1VDSLEntrybestaandunshared | B9: 1VDSLEntrybestaandunshared | C9: 1 | D9: VDSL | E9: Entry | H9: bestaand | I9: unshared | J9: VDSLbestaandunshared | L9: =INDEX(Mapping!$J:$J,MATCH(C$3&C9,Mapping!$B:$B,0)) -> 1 | M9: =INDEX(Mapping!$H:$H,MATCH($E9,Mapping!$B:$B,0)) -> WBA CM Ethernet | N9: =INDEX(Mapping!$I:$I,MATCH($D9&$I9,Mapping!$B:$B,0)) -> VDSL | O9: =INDEX(Mapping!$I:$I,MATCH($D9,Mapping!$B:$B,0)) -> VDSL | Q9: =INDEX(Mapping!$H:$H,MATCH($H9,Mapping!$B:$B,0)) -> nvt | R9: nvt | S9: =INDEX(Mapping!$J:$J,MATCH($D9&$I9,Mapping!$B:$B,0)) -> unshared | T9: WBA CM EthernetVDSLnvt | U9: WBA CM EthernetVDSLunshared | W9: =MATCH($J9,'Tarieven ZM'!$B:$B,0) -> 102 | X9: =INDEX('Tarieven ZM'!$H:$H,$W9) -> 1000 | Y9: =-INDEX(Parameters!$B:$B,MATCH(Y$3,Parameters!$A:$A,0))*$X9 -> 0 | Z9: =-INDEX(Parameters!$B:$B,MATCH(Z$3,Parameters!$A:$A,0))*$X9 -> 0.0 | AA9: 1000 | AB9: =AA9/INDEX(Parameters!$B:$B,MATCH("AfschrijftermijnVVE"&12*$C9,Parameters!$A:$A,0)) -> 27.77777778 | AC9: =INDEX('Tarieven ZM'!$G:$G,$W9) -> 1000 | AD9: =-INDEX(Parameters!$B:$B,MATCH(AD$3,Parameters!$A:$A,0))*$AC9 -> 0 | AE9: =-INDEX(Parameters!$B:$B,MATCH(AE$3,Parameters!$A:$A,0))*$AC9 -> 0 | AF9: 1000 | AG9: 1027.78 | AI9: =IF(Q9<>"nvt",MATCH($T9,'Tarieven W&O'!$B:$B,0),"nvt") -> nvt | AJ9: =IF(AI9<>"nvt",INDEX('Tarieven W&O'!$H:$H,$AI9)+INDEX(Parameters!C:C,MATCH("NLSx "&O9&" "&M9,Parameters!A:A,0)),0) -> 0.00 | AK9: =IF(AI9<>"nvt",INDEX('Tarieven W&O'!$I:$I,$AI9),0) -> 0 | AL9: =IF(AI9<>"nvt",-INDEX(Parameters!$B:$B,MATCH(AL$3&$M9,Parameters!$A:$A,0))*(AJ9+AK9),0) -> 0.0 | AN9: 0 | AO9: =AN9/INDEX(Parameters!$B:$B,MATCH("AfschrijftermijnVVE"&12*$C9,Parameters!$A:$A,0)) -> 0.00 | AP9: =MATCH($U9,'Tarieven W&O'!$B:$B,0) -> 9 | AQ9: =IF(AP9<>"nvt",INDEX('Tarieven W&O'!$G:$G,$AP9),0) -> 13.09 | AR9: =-INDEX(Parameters!$B:$B,MATCH(AR$3&$M9&O9,Parameters!$A:$A,0))*(AQ9) -> -1.3 | AU9: 11.78 | AV9: 11.78 | AX9: =Parameters!$B$6*AV9 -> 0.12 | AY9: 0.00 | BA9: 0.12 | BC9: 11.90 | BE9: 1015.88 | BF9: 99% | BG9: FALSE | BI9: ja | BK9: =VLOOKUP(J9,'Tarieven ZM'!$B$7:$I$146,8,0) -> 0 | BL9: VDSLnvtunshared | BM9: =INDEX('inkoop ULL tbv Epacity'!$J:$J,MATCH(BL9,'inkoop ULL tbv Epacity'!$H:$H,0),0) -> 35.00 | BN9: =BM9/INDEX(Parameters!$B:$B,MATCH("AfschrijftermijnVVE"&12*$C9,Parameters!$A:$A,0)) -> 0.97 | BO9: =INDEX('inkoop ULL tbv Epacity'!$I:$I,MATCH(BL9,'inkoop ULL tbv Epacity'!$H:$H,0),0) -> 12.50 | BP9: 13.47 | BR9: =Parameters!$B$12*AG9 -> 102.78 | BS9: =SUM(Distributievergoedingen!$F$12,Distributievergoedingen!$I$12,Distributievergoedingen!$L$12,Distributievergoedingen!$O$12)*AF9+SUM(Distributievergoedingen!$O$12*AA9+Distributievergoedingen!$R$12+Distributievergoedingen!$U$12+Distributievergoedingen!$X$12)/(MAX(36,12*L9)) -> 112.78 | BU9: 215.56 | BW9: 229.03 | BY9: 798.75 | BZ9: 78% | CA9: FALSE
A10: 1ADSLBasicbestaandunshared | B10: 1ADSLBasicbestaandunshared | C10: 1 | D10: ADSL | E10: Basic | H10: bestaand | I10: unshared | J10: ADSLbestaandunshared | L10: =INDEX(Mapping!$J:$J,MATCH(C$3&C10,Mapping!$B:$B,0)) -> 1 | M10: =INDEX(Mapping!$H:$H,MATCH($E10,Mapping!$B:$B,0)) -> WBA CM Ethernet | N10: =INDEX(Mapping!$I:$I,MATCH($D10&$I10,Mapping!$B:$B,0)) -> ADSL | O10: =INDEX(Mapping!$I:$I,MATCH($D10,Mapping!$B:$B,0)) -> ADSL | Q10: =INDEX(Mapping!$H:$H,MATCH($H10,Mapping!$B:$B,0)) -> nvt | R10: nvt | S10: =INDEX(Mapping!$J:$J,MATCH($D10&$I10,Mapping!$B:$B,0)) -> unshared | T10: WBA CM EthernetADSLnvt | U10: WBA CM EthernetADSLunshared | W10: =MATCH($J10,'Tarieven ZM'!$B:$B,0) -> 103 | X10: =INDEX('Tarieven ZM'!$H:$H,$W10) -> 1000 | Y10: =-INDEX(Parameters!$B:$B,MATCH(Y$3,Parameters!$A:$A,0))*$X10 -> 0 | Z10: =-INDEX(Parameters!$B:$B,MATCH(Z$3,Parameters!$A:$A,0))*$X10 -> 0.0 | AA10: 1000 | AB10: =AA10/INDEX(Parameters!$B:$B,MATCH("AfschrijftermijnVVE"&12*$C10,Parameters!$A:$A,0)) -> 27.77777778 | AC10: =INDEX('Tarieven ZM'!$G:$G,$W10) -> 1000 | AD10: =-INDEX(Parameters!$B:$B,MATCH(AD$3,Parameters!$A:$A,0))*$AC10 -> 0 | AE10: =-INDEX(Parameters!$B:$B,MATCH(AE$3,Parameters!$A:$A,0))*$AC10 -> 0 | AF10: 1000 | AG10: 1027.78 | AI10: =IF(Q10<>"nvt",MATCH($T10,'Tarieven W&O'!$B:$B,0),"nvt") -> nvt | AJ10: =IF(AI10<>"nvt",INDEX('Tarieven W&O'!$H:$H,$AI10)+INDEX(Parameters!C:C,MATCH("NLSx "&O10&" "&M10,Parameters!A:A,0)),0) -> 0.00 | AK10: =IF(AI10<>"nvt",INDEX('Tarieven W&O'!$I:$I,$AI10),0) -> 0 | AL10: =IF(AI10<>"nvt",-INDEX(Parameters!$B:$B,MATCH(AL$3&$M10,Parameters!$A:$A,0))*(AJ10+AK10),0) -> 0.0 | AN10: 0 | AO10: =AN10/INDEX(Parameters!$B:$B,MATCH("AfschrijftermijnVVE"&12*$C10,Parameters!$A:$A,0)) -> 0.00 | AP10: =MATCH($U10,'Tarieven W&O'!$B:$B,0) -> 8 | AQ10: =IF(AP10<>"nvt",INDEX('Tarieven W&O'!$G:$G,$AP10),0) -> 13.09 | AR10: =-INDEX(Parameters!$B:$B,MATCH(AR$3&$M10&O10,Parameters!$A:$A,0))*(AQ10) -> -1.3 | AU10: 11.78 | AV10: 11.78 | AX10: =Parameters!$B$6*AV10 -> 0.12 | AY10: 0.00 | BA10: 0.12 | BC10: 11.90 | BE10: 1015.88 | BF10: 99% | BG10: FALSE | BI10: ja | BK10: =VLOOKUP(J10,'Tarieven ZM'!$B$7:$I$146,8,0) -> 0 | BL10: ADSLnvtunshared | BM10: =INDEX('inkoop ULL tbv Epacity'!$J:$J,MATCH(BL10,'inkoop ULL tbv Epacity'!$H:$H,0),0) -> 35.00 | BN10: =BM10/INDEX(Parameters!$B:$B,MATCH("AfschrijftermijnVVE"&12*$C10,Parameters!$A:$A,0)) -> 0.97 | BO10: =INDEX('inkoop ULL tbv Epacity'!$I:$I,MATCH(BL10,'inkoop ULL tbv Epacity'!$H:$H,0),0) -> 12.50 | BP10: 13.47 | BR10: =Parameters!$B$12*AG10 -> 102.78 | BS10: =SUM(Distributievergoedingen!$F$12,Distributievergoedingen!$I$12,Distributievergoedingen!$L$12,Distributievergoedingen!$O$12)*AF10+SUM(Distributievergoedingen!$O$12*AA10+Distributievergoedingen!$R$12+Distributievergoedingen!$U$12+Distributievergoedingen!$X$12)/(MAX(36,12*L10)) -> 112.78 | BU10: 215.56 | BW10: 229.03 | BY10: 798.75 | BZ10: 78% | CA10: FALSE
A11: 1SDSLBasicbestaandunshared | B11: 1SDSLBasicbestaandunshared | C11: 1 | D11: SDSL | E11: Basic | H11: bestaand | I11: unshared | J11: SDSLbestaandunshared | L11: =INDEX(Mapping!$J:$J,MATCH(C$3&C11,Mapping!$B:$B,0)) -> 1 | M11: =INDEX(Mapping!$H:$H,MATCH($E11,Mapping!$B:$B,0)) -> WBA CM Ethernet | N11: =INDEX(Mapping!$I:$I,MATCH($D11&$I11,Mapping!$B:$B,0)) -> SDSL | O11: =INDEX(Mapping!$I:$I,MATCH($D11,Mapping!$B:$B,0)) -> SDSL | Q11: =INDEX(Mapping!$H:$H,MATCH($H11,Mapping!$B:$B,0)) -> nvt | R11: nvt | S11: =INDEX(Mapping!$J:$J,MATCH($D11&$I11,Mapping!$B:$B,0)) -> unshared | T11: WBA CM EthernetSDSLnvt | U11: WBA CM EthernetSDSLunshared | W11: =MATCH($J11,'Tarieven ZM'!$B:$B,0) -> 104 | X11: =INDEX('Tarieven ZM'!$H:$H,$W11) -> 1000 | Y11: =-INDEX(Parameters!$B:$B,MATCH(Y$3,Parameters!$A:$A,0))*$X11 -> 0 | Z11: =-INDEX(Parameters!$B:$B,MATCH(Z$3,Parameters!$A:$A,0))*$X11 -> 0.0 | AA11: 1000 | AB11: =AA11/INDEX(Parameters!$B:$B,MATCH("AfschrijftermijnVVE"&12*$C11,Parameters!$A:$A,0)) -> 27.77777778 | AC11: =INDEX('Tarieven ZM'!$G:$G,$W11) -> 1000 | AD11: =-INDEX(Parameters!$B:$B,MATCH(AD$3,Parameters!$A:$A,0))*$AC11 -> 0 | AE11: =-INDEX(Parameters!$B:$B,MATCH(AE$3,Parameters!$A:$A,0))*$AC11 -> 0 | AF11: 1000 | AG11: 1027.78 | AI11: =IF(Q11<>"nvt",MATCH($T11,'Tarieven W&O'!$B:$B,0),"nvt") -> nvt | AJ11: =IF(AI11<>"nvt",INDEX('Tarieven W&O'!$H:$H,$AI11)+INDEX(Parameters!C:C,MATCH("NLSx "&O11&" "&M11,Parameters!A:A,0)),0) -> 0.00 | AK11: =IF(AI11<>"nvt",INDEX('Tarieven W&O'!$I:$I,$AI11),0) -> 0 | AL11: =IF(AI11<>"nvt",-INDEX(Parameters!$B:$B,MATCH(AL$3&$M11,Parameters!$A:$A,0))*(AJ11+AK11),0) -> 0.0 | AN11: 0 | AO11: =AN11/INDEX(Parameters!$B:$B,MATCH("AfschrijftermijnVVE"&12*$C11,Parameters!$A:$A,0)) -> 0.00 | AP11: =MATCH($U11,'Tarieven W&O'!$B:$B,0) -> 10 | AQ11: =IF(AP11<>"nvt",INDEX('Tarieven W&O'!$G:$G,$AP11),0) -> 33.73 | AR11: =-INDEX(Parameters!$B:$B,MATCH(AR$3&$M11&O11,Parameters!$A:$A,0))*(AQ11) -> -3.4 | AU11: 30.36 | AV11: 30.36 | AX11: =Parameters!$B$6*AV11 -> 0.30 | AY11: 0.00 | BA11: 0.30 | BC11: 30.66 | BE11: 997.12 | BF11: 97% | BG11: FALSE | BI11: ja | BK11: =VLOOKUP(J11,'Tarieven ZM'!$B$7:$I$146,8,0) -> 0 | BL11: SDSLnvtunshared | BM11: =INDEX('inkoop ULL tbv Epacity'!$J:$J,MATCH(BL11,'inkoop ULL tbv Epacity'!$H:$H,0),0) -> 19.30 | BN11: =BM11/INDEX(Parameters!$B:$B,MATCH("AfschrijftermijnVVE"&12*$C11,Parameters!$A:$A,0)) -> 0.54 | BO11: =INDEX('inkoop ULL tbv Epacity'!$I:$I,MATCH(BL11,'inkoop ULL tbv Epacity'!$H:$H,0),0) -> 9.39 | BP11: 9.92 | BR11: =Parameters!$B$12*AG11 -> 102.78 | BS11: =SUM(Distributievergoedingen!$F$12,Distributievergoedingen!$I$12,Distributievergoedingen!$L$12,Distributievergoedingen!$O$12)*AF11+SUM(Distributievergoedingen!$O$12*AA11+Distributievergoedingen!$R$12+Distributievergoedingen!$U$12+Distributievergoedingen!$X$12)/(MAX(36,12*L11)) -> 112.78 | BU11: 215.56 | BW11: 225.48 | BY11: 802.30 | BZ11: 78% | CA11: FALSE
A12: 1VDSLEntrybestaandshared | B12: 1VDSLEntrybestaandshared | C12: 1 | D12: VDSL | E12: Entry | H12: bestaand | I12: shared | J12: VDSLbestaandshared | L12: =INDEX(Mapping!$J:$J,MATCH(C$3&C12,Mapping!$B:$B,0)) -> 1 | M12: =INDEX(Mapping!$H:$H,MATCH($E12,Mapping!$B:$B,0)) -> WBA CM Ethernet | N12: =INDEX(Mapping!$I:$I,MATCH($D12&$I12,Mapping!$B:$B,0)) -> VDSL | O12: =INDEX(Mapping!$I:$I,MATCH($D12,Mapping!$B:$B,0)) -> VDSL | Q12: =INDEX(Mapping!$H:$H,MATCH($H12,Mapping!$B:$B,0)) -> nvt | R12: nvt | S12: =INDEX(Mapping!$J:$J,MATCH($D12&$I12,Mapping!$B:$B,0)) -> shared | T12: WBA CM EthernetVDSLnvt | U12: WBA CM EthernetVDSLshared | W12: =MATCH($J12,'Tarieven ZM'!$B:$B,0) -> 105 | X12: =INDEX('Tarieven ZM'!$H:$H,$W12) -> 1000 | Y12: =-INDEX(Parameters!$B:$B,MATCH(Y$3,Parameters!$A:$A,0))*$X12 -> 0 | Z12: =-INDEX(Parameters!$B:$B,MATCH(Z$3,Parameters!$A:$A,0))*$X12 -> 0.0 | AA12: 1000 | AB12: =AA12/INDEX(Parameters!$B:$B,MATCH("AfschrijftermijnVVE"&12*$C12,Parameters!$A:$A,0)) -> 27.77777778 | AC12: =INDEX('Tarieven ZM'!$G:$G,$W12) -> 1000 | AD12: =-INDEX(Parameters!$B:$B,MATCH(AD$3,Parameters!$A:$A,0))*$AC12 -> 0 | AE12: =-INDEX(Parameters!$B:$B,MATCH(AE$3,Parameters!$A:$A,0))*$AC12 -> 0 | AF12: 1000 | AG12: 1027.78 | AI12: =IF(Q12<>"nvt",MATCH($T12,'Tarieven W&O'!$B:$B,0),"nvt") -> nvt | AJ12: =IF(AI12<>"nvt",INDEX('Tarieven W&O'!$H:$H,$AI12)+INDEX(Parameters!C:C,MATCH("NLSx "&O12&" "&M12,Parameters!A:A,0)),0) -> 0.00 | AK12: =IF(AI12<>"nvt",INDEX('Tarieven W&O'!$I:$I,$AI12),0) -> 0 | AL12: =IF(AI12<>"nvt",-INDEX(Parameters!$B:$B,MATCH(AL$3&$M12,Parameters!$A:$A,0))*(AJ12+AK12),0) -> 0.0 | AN12: 0 | AO12: =AN12/INDEX(Parameters!$B:$B,MATCH("AfschrijftermijnVVE"&12*$C12,Parameters!$A:$A,0)) -> 0.00 | AP12: =MATCH($U12,'Tarieven W&O'!$B:$B,0) -> 14 | AQ12: =IF(AP12<>"nvt",INDEX('Tarieven W&O'!$G:$G,$AP12),0) -> 5.36 | AR12: =-INDEX(Parameters!$B:$B,MATCH(AR$3&$M12&O12,Parameters!$A:$A,0))*(AQ12) -> -0.5 | AU12: 4.82 | AV12: 4.82 | AX12: =Parameters!$B$6*AV12 -> 0.05 | AY12: 0.00 | BA12: 0.05 | BC12: 4.87 | BE12: 1022.91 | BF12: 100% | BG12: FALSE | BI12: ja | BK12: =VLOOKUP(J12,'Tarieven ZM'!$B$7:$I$146,8,0) -> 0 | BL12: VDSLnvtshared | BM12: =INDEX('inkoop ULL tbv Epacity'!$J:$J,MATCH(BL12,'inkoop ULL tbv Epacity'!$H:$H,0),0) -> 35.00 | BN12: =BM12/INDEX(Parameters!$B:$B,MATCH("AfschrijftermijnVVE"&12*$C12,Parameters!$A:$A,0)) -> 0.97 | BO12: =INDEX('inkoop ULL tbv Epacity'!$I:$I,MATCH(BL12,'inkoop ULL tbv Epacity'!$H:$H,0),0) -> 6.03 | BP12: 7.00 | BR12: =Parameters!$B$12*AG12 -> 102.78 | BS12: =SUM(Distributievergoedingen!$F$12,Distributievergoedingen!$I$12,Distributievergoedingen!$L$12,Distributievergoedingen!$O$12)*AF12+SUM(Distributievergoedingen!$O$12*AA12+Distributievergoedingen!$R$12+Distributievergoedingen!$U$12+Distributievergoedingen!$X$12)/(MAX(36,12*L12)) -> 112.78 | BU12: 215.56 | BW12: 222.56 | BY12: 805.22 | BZ12: 78% | CA12: FALSE
A13: 1ADSLBasicbestaandshared | B13: 1ADSLBasicbestaandshared | C13: 1 | D13: ADSL | E13: Basic | H13: bestaand | I13: shared | J13: ADSLbestaandshared | L13: =INDEX(Mapping!$J:$J,MATCH(C$3&C13,Mapping!$B:$B,0)) -> 1 | M13: =INDEX(Mapping!$H:$H,MATCH($E13,Mapping!$B:$B,0)) -> WBA CM Ethernet | N13: =INDEX(Mapping!$I:$I,MATCH($D13&$I13,Mapping!$B:$B,0)) -> ADSL | O13: =INDEX(Mapping!$I:$I,MATCH($D13,Mapping!$B:$B,0)) -> ADSL | Q13: =INDEX(Mapping!$H:$H,MATCH($H13,Mapping!$B:$B,0)) -> nvt | R13: nvt | S13: =INDEX(Mapping!$J:$J,MATCH($D13&$I13,Mapping!$B:$B,0)) -> shared | T13: WBA CM EthernetADSLnvt | U13: WBA CM EthernetADSLshared | W13: =MATCH($J13,'Tarieven ZM'!$B:$B,0) -> 106 | X13: =INDEX('Tarieven ZM'!$H:$H,$W13) -> 1000 | Y13: =-INDEX(Parameters!$B:$B,MATCH(Y$3,Parameters!$A:$A,0))*$X13 -> 0 | Z13: =-INDEX(Parameters!$B:$B,MATCH(Z$3,Parameters!$A:$A,0))*$X13 -> 0.0 | AA13: 1000 | AB13: =AA13/INDEX(Parameters!$B:$B,MATCH("AfschrijftermijnVVE"&12*$C13,Parameters!$A:$A,0)) -> 27.77777778 | AC13: =INDEX('Tarieven ZM'!$G:$G,$W13) -> 1000 | AD13: =-INDEX(Parameters!$B:$B,MATCH(AD$3,Parameters!$A:$A,0))*$AC13 -> 0 | AE13: =-INDEX(Parameters!$B:$B,MATCH(AE$3,Parameters!$A:$A,0))*$AC13 -> 0 | AF13: 1000 | AG13: 1027.78 | AI13: =IF(Q13<>"nvt",MATCH($T13,'Tarieven W&O'!$B:$B,0),"nvt") -> nvt | AJ13: =IF(AI13<>"nvt",INDEX('Tarieven W&O'!$H:$H,$AI13)+INDEX(Parameters!C:C,MATCH("NLSx "&O13&" "&M13,Parameters!A:A,0)),0) -> 0.00 | AK13: =IF(AI13<>"nvt",INDEX('Tarieven W&O'!$I:$I,$AI13),0) -> 0 | AL13: =IF(AI13<>"nvt",-INDEX(Parameters!$B:$B,MATCH(AL$3&$M13,Parameters!$A:$A,0))*(AJ13+AK13),0) -> 0.0 | AN13: 0 | AO13: =AN13/INDEX(Parameters!$B:$B,MATCH("AfschrijftermijnVVE"&12*$C13,Parameters!$A:$A,0)) -> 0.00 | AP13: =MATCH($U13,'Tarieven W&O'!$B:$B,0) -> 15 | AQ13: =IF(AP13<>"nvt",INDEX('Tarieven W&O'!$G:$G,$AP13),0) -> 5.36 | AR13: =-INDEX(Parameters!$B:$B,MATCH(AR$3&$M13&O13,Parameters!$A:$A,0))*(AQ13) -> -0.5 | AU13: 4.82 | AV13: 4.82 | AX13: =Parameters!$B$6*AV13 -> 0.05 | AY13: 0.00 | BA13: 0.05 | BC13: 4.87 | BE13: 1022.91 | BF13: 100% | BG13: FALSE | BI13: ja | BK13: =VLOOKUP(J13,'Tarieven ZM'!$B$7:$I$146,8,0) -> 0 | BL13: ADSLnvtshared | BM13: =INDEX('inkoop ULL tbv Epacity'!$J:$J,MATCH(BL13,'inkoop ULL tbv Epacity'!$H:$H,0),0) -> 35.00 | BN13: =BM13/INDEX(Parameters!$B:$B,MATCH("AfschrijftermijnVVE"&12*$C13,Parameters!$A:$A,0)) -> 0.97 | BO13: =INDEX('inkoop ULL tbv Epacity'!$I:$I,MATCH(BL13,'inkoop ULL tbv Epacity'!$H:$H,0),0) -> 6.03 | BP13: 7.00 | BR13: =Parameters!$B$12*AG13 -> 102.78 | BS13: =SUM(Distributievergoedingen!$F$12,Distributievergoedingen!$I$12,Distributievergoedingen!$L$12,Distributievergoedingen!$O$12)*AF13+SUM(Distributievergoedingen!$O$12*AA13+Distributievergoedingen!$R$12+Distributievergoedingen!$U$12+Distributievergoedingen!$X$12)/(MAX(36,12*L13)) -> 112.78 | BU13: 215.56 | BW13: 222.56 | BY13: 805.22 | BZ13: 78% | CA13: FALSE
A14: 1ADSLPremiumnieuwunshared | B14: 1ADSLPremiumnieuwunshared | C14: 1 | D14: ADSL | E14: Premium | H14: nieuw | I14: unshared | J14: ADSLnieuwunshared | L14: =INDEX(Mapping!$J:$J,MATCH(C$3&C14,Mapping!$B:$B,0)) -> 1 | M14: =INDEX(Mapping!$H:$H,MATCH($E14,Mapping!$B:$B,0)) -> WBA ZM Ethernet | N14: =INDEX(Mapping!$I:$I,MATCH($D14&$I14,Mapping!$B:$B,0)) -> ADSL | O14: =INDEX(Mapping!$I:$I,MATCH($D14,Mapping!$B:$B,0)) -> ADSL | Q14: =INDEX(Mapping!$H:$H,MATCH($H14,Mapping!$B:$B,0)) -> New line | R14: nvt | S14: =INDEX(Mapping!$J:$J,MATCH($D14&$I14,Mapping!$B:$B,0)) -> unshared | T14: WBA ZM EthernetADSLNew line | U14: WBA ZM EthernetADSLunshared | W14: =MATCH($J14,'Tarieven ZM'!$B:$B,0) -> 97 | X14: =INDEX('Tarieven ZM'!$H:$H,$W14) -> 1000 | Y14: =-INDEX(Parameters!$B:$B,MATCH(Y$3,Parameters!$A:$A,0))*$X14 -> 0 | Z14: =-INDEX(Parameters!$B:$B,MATCH(Z$3,Parameters!$A:$A,0))*$X14 -> 0.0 | AA14: 1000 | AB14: =AA14/INDEX(Parameters!$B:$B,MATCH("AfschrijftermijnVVE"&12*$C14,Parameters!$A:$A,0)) -> 27.77777778 | AC14: =INDEX('Tarieven ZM'!$G:$G,$W14) -> 1000 | AD14: =-INDEX(Parameters!$B:$B,MATCH(AD$3,Parameters!$A:$A,0))*$AC14 -> 0 | AE14: =-INDEX(Parameters!$B:$B,MATCH(AE$3,Parameters!$A:$A,0))*$AC14 -> 0 | AF14: 1000 | AG14: 1027.78 | AI14: =IF(Q14<>"nvt",MATCH($T14,'Tarieven W&O'!$B:$B,0),"nvt") -> 36 | AJ14: =IF(AI14<>"nvt",INDEX('Tarieven W&O'!$H:$H,$AI14)+INDEX(Parameters!C:C,MATCH("NLSx "&O14&" "&M14,Parameters!A:A,0)),0) -> 64.00 | AK14: =IF(AI14<>"nvt",INDEX('Tarieven W&O'!$I:$I,$AI14),0) -> 25 | AL14: =IF(AI14<>"nvt",-INDEX(Parameters!$B:$B,MATCH(AL$3&$M14,Parameters!$A:$A,0))*(AJ14+AK14),0) -> 0.0 | AN14: 89 | AO14: =AN14/INDEX(Parameters!$B:$B,MATCH("AfschrijftermijnVVE"&12*$C14,Parameters!$A:$A,0)) -> 2.47 | AP14: =MATCH($U14,'Tarieven W&O'!$B:$B,0) -> 28 | AQ14: =IF(AP14<>"nvt",INDEX('Tarieven W&O'!$G:$G,$AP14),0) -> 11.20 | AR14: =-INDEX(Parameters!$B:$B,MATCH(AR$3&$M14&O14,Parameters!$A:$A,0))*(AQ14) -> 0.0 | AU14: 11.20 | AV14: 13.67 | AX14: =Parameters!$B$6*AV14 -> 0.14 | AY14: 0.00 | BA14: 0.14 | BC14: 13.81 | BE14: 1013.97 | BF14: 99% | BG14: FALSE | BI14: ja | BK14: =VLOOKUP(J14,'Tarieven ZM'!$B$7:$I$146,8,0) -> 0 | BL14: ADSLNew lineunshared | BM14: =INDEX('inkoop ULL tbv Epacity'!$J:$J,MATCH(BL14,'inkoop ULL tbv Epacity'!$H:$H,0),0) -> 75.00 | BN14: =BM14/INDEX(Parameters!$B:$B,MATCH("AfschrijftermijnVVE"&12*$C14,Parameters!$A:$A,0)) -> 2.08 | BO14: =INDEX('inkoop ULL tbv Epacity'!$I:$I,MATCH(BL14,'inkoop ULL tbv Epacity'!$H:$H,0),0) -> 12.50 | BP14: 14.59 | BR14: =Parameters!$B$12*AG14 -> 102.78 | BS14: =SUM(Distributievergoedingen!$F$12,Distributievergoedingen!$I$12,Distributievergoedingen!$L$12,Distributievergoedingen!$O$12)*AF14+SUM(Distributievergoedingen!$O$12*AA14+Distributievergoedingen!$R$12+Distributievergoedingen!$U$12+Distributievergoedingen!$X$12)/(MAX(36,12*L14)) -> 112.78 | BU14: 215.56 | BW14: 230.14 | BY14: 797.64 | BZ14: 78% | CA14: FALSE
A15: 1VDSLPremiumnieuwunshared | B15: 1VDSLPremiumnieuwunshared | C15: 1 | D15: VDSL | E15: Premium | H15: nieuw | I15: unshared | J15: VDSLnieuwunshared | L15: =INDEX(Mapping!$J:$J,MATCH(C$3&C15,Mapping!$B:$B,0)) -> 1 | M15: =INDEX(Mapping!$H:$H,MATCH($E15,Mapping!$B:$B,0)) -> WBA ZM Ethernet | N15: =INDEX(Mapping!$I:$I,MATCH($D15&$I15,Mapping!$B:$B,0)) -> VDSL | O15: =INDEX(Mapping!$I:$I,MATCH($D15,Mapping!$B:$B,0)) -> VDSL | Q15: =INDEX(Mapping!$H:$H,MATCH($H15,Mapping!$B:$B,0)) -> New line | R15: nvt | S15: =INDEX(Mapping!$J:$J,MATCH($D15&$I15,Mapping!$B:$B,0)) -> unshared | T15: WBA ZM EthernetVDSLNew line | U15: WBA ZM EthernetVDSLunshared | W15: =MATCH($J15,'Tarieven ZM'!$B:$B,0) -> 98 | X15: =INDEX('Tarieven ZM'!$H:$H,$W15) -> 1000 | Y15: =-INDEX(Parameters!$B:$B,MATCH(Y$3,Parameters!$A:$A,0))*$X15 -> 0 | Z15: =-INDEX(Parameters!$B:$B,MATCH(Z$3,Parameters!$A:$A,0))*$X15 -> 0.0 | AA15: 1000 | AB15: =AA15/INDEX(Parameters!$B:$B,MATCH("AfschrijftermijnVVE"&12*$C15,Parameters!$A:$A,0)) -> 27.77777778 | AC15: =INDEX('Tarieven ZM'!$G:$G,$W15) -> 1000 | AD15: =-INDEX(Parameters!$B:$B,MATCH(AD$3,Parameters!$A:$A,0))*$AC15 -> 0 | AE15: =-INDEX(Parameters!$B:$B,MATCH(AE$3,Parameters!$A:$A,0))*$AC15 -> 0 | AF15: 1000 | AG15: 1027.78 | AI15: =IF(Q15<>"nvt",MATCH($T15,'Tarieven W&O'!$B:$B,0),"nvt") -> 37 | AJ15: =IF(AI15<>"nvt",INDEX('Tarieven W&O'!$H:$H,$AI15)+INDEX(Parameters!C:C,MATCH("NLSx "&O15&" "&M15,Parameters!A:A,0)),0) -> 64.00 | AK15: =IF(AI15<>"nvt",INDEX('Tarieven W&O'!$I:$I,$AI15),0) -> 25 | AL15: =IF(AI15<>"nvt",-INDEX(Parameters!$B:$B,MATCH(AL$3&$M15,Parameters!$A:$A,0))*(AJ15+AK15),0) -> 0.0 | AN15: 89 | AO15: =AN15/INDEX(Parameters!$B:$B,MATCH("AfschrijftermijnVVE"&12*$C15,Parameters!$A:$A,0)) -> 2.47 | AP15: =MATCH($U15,'Tarieven W&O'!$B:$B,0) -> 29 | AQ15: =IF(AP15<>"nvt",INDEX('Tarieven W&O'!$G:$G,$AP15),0) -> 11.20 | AR15: =-INDEX(Parameters!$B:$B,MATCH(AR$3&$M15&O15,Parameters!$A:$A,0))*(AQ15) -> 0.0 | AU15: 11.20 | AV15: 13.67 | AX15: =Parameters!$B$6*AV15 -> 0.14 | AY15: 0.00 | BA15: 0.14 | BC15: 13.81 | BE15: 1013.97 | BF15: 99% | BG15: FALSE | BI15: ja | BK15: =VLOOKUP(J15,'Tarieven ZM'!$B$7:$I$146,8,0) -> 0 | BL15: VDSLNew lineunshared | BM15: =INDEX('inkoop ULL tbv Epacity'!$J:$J,MATCH(BL15,'inkoop ULL tbv Epacity'!$H:$H,0),0) -> 75.00 | BN15: =BM15/INDEX(Parameters!$B:$B,MATCH("AfschrijftermijnVVE"&12*$C15,Parameters!$A:$A,0)) -> 2.08 | BO15: =INDEX('inkoop ULL tbv Epacity'!$I:$I,MATCH(BL15,'inkoop ULL tbv Epacity'!$H:$H,0),0) -> 12.50 | BP15: 14.59 | BR15: =Parameters!$B$12*AG15 -> 102.78 | BS15: =SUM(Distributievergoedingen!$F$12,Distributievergoedingen!$I$12,Distributievergoedingen!$L$12,Distributievergoedingen!$O$12)*AF15+SUM(Distributievergoedingen!$O$12*AA15+Distributievergoedingen!$R$12+Distributievergoedingen!$U$12+Distributievergoedingen!$X$12)/(MAX(36,12*L15)) -> 112.78 | BU15: 215.56 | BW15: 230.14 | BY15: 797.64 | BZ15: 78% | CA15: FALSE
A16: 1VDSL bondingPremiumnieuwunshared | B16: 1VDSL bondingPremiumnieuwunshared | C16: 1 | D16: VDSL bonding | E16: Premium | H16: nieuw | I16: unshared | J16: VDSL bondingnieuwunshared | L16: =INDEX(Mapping!$J:$J,MATCH(C$3&C16,Mapping!$B:$B,0)) -> 1 | M16: =INDEX(Mapping!$H:$H,MATCH($E16,Mapping!$B:$B,0)) -> WBA ZM Ethernet | N16: =INDEX(Mapping!$I:$I,MATCH($D16&$I16,Mapping!$B:$B,0)) -> VDSL Bonding | O16: =INDEX(Mapping!$I:$I,MATCH($D16,Mapping!$B:$B,0)) -> VDSL Bonding | Q16: =INDEX(Mapping!$H:$H,MATCH($H16,Mapping!$B:$B,0)) -> New line | R16: nvt | S16: =INDEX(Mapping!$J:$J,MATCH($D16&$I16,Mapping!$B:$B,0)) -> unshared | T16: WBA ZM EthernetVDSL BondingNew line | U16: WBA ZM EthernetVDSL Bondingunshared | W16: =MATCH($J16,'Tarieven ZM'!$B:$B,0) -> 99 | X16: =INDEX('Tarieven ZM'!$H:$H,$W16) -> 1000 | Y16: =-INDEX(Parameters!$B:$B,MATCH(Y$3,Parameters!$A:$A,0))*$X16 -> 0 | Z16: =-INDEX(Parameters!$B:$B,MATCH(Z$3,Parameters!$A:$A,0))*$X16 -> 0.0 | AA16: =SUM(X16:Z16) -> 1000 | AB16: =AA16/INDEX(Parameters!$B:$B,MATCH("AfschrijftermijnVVE"&12*$C16,Parameters!$A:$A,0)) -> 27.77777778 | AC16: =INDEX('Tarieven ZM'!$G:$G,$W16) -> 1000 | AD16: =-INDEX(Parameters!$B:$B,MATCH(AD$3,Parameters!$A:$A,0))*$AC16 -> 0 | AE16: =-INDEX(Parameters!$B:$B,MATCH(AE$3,Parameters!$A:$A,0))*$AC16 -> 0 | AF16: =SUM(AC16:AE16) -> 1000 | AG16: =SUM(AB16,AF16) -> 1027.78 | AI16: =IF(Q16<>"nvt",MATCH($T16,'Tarieven W&O'!$B:$B,0),"nvt") -> 43 | AJ16: =IF(AI16<>"nvt",INDEX('Tarieven W&O'!$H:$H,$AI16)+INDEX(Parameters!C:C,MATCH("NLSx "&O16&" "&M16,Parameters!A:A,0)),0) -> 173.45 | AK16: =IF(AI16<>"nvt",INDEX('Tarieven W&O'!$I:$I,$AI16),0) -> 25 | AL16: =IF(AI16<>"nvt",-INDEX(Parameters!$B:$B,MATCH(AL$3&$M16,Parameters!$A:$A,0))*(AJ16+AK16),0) -> 0.0 | AN16: =SUM(AJ16:AM16) -> 198.45 | AO16: =AN16/INDEX(Parameters!$B:$B,MATCH("AfschrijftermijnVVE"&12*$C16,Parameters!$A:$A,0)) -> 5.51 | AP16: =MATCH($U16,'Tarieven W&O'!$B:$B,0) -> 33 | AQ16: =IF(AP16<>"nvt",INDEX('Tarieven W&O'!$G:$G,$AP16),0) -> 17.34 | AR16: =-INDEX(Parameters!$B:$B,MATCH(AR$3&$M16&O16,Parameters!$A:$A,0))*(AQ16) -> 0.0 | AU16: =SUM(AQ16:AT16) -> 17.34 | AV16: =SUM(AO16,AU16) -> 22.85 | AX16: =Parameters!$B$6*AV16 -> 0.23 | AY16: 0.00 | BA16: =SUM(AX16:AZ16) -> 0.23 | BC16: =SUM(AV16,BA16) -> 23.08 | BE16: =AG16-BC16 -> 1004.70 | BF16: =IF(AG16=0,-999%,BE16/AG16) -> 98% | BG16: =BF16<0 -> FALSE | BI16: ja | BK16: =VLOOKUP(J16,'Tarieven ZM'!$B$7:$I$146,8,0) -> 0 | BL16: VDSL BondingNew lineunshared | BM16: =INDEX('inkoop ULL tbv Epacity'!$J:$J,MATCH(BL16,'inkoop ULL tbv Epacity'!$H:$H,0),0) -> 35.00 | BN16: =BM16/INDEX(Parameters!$B:$B,MATCH("AfschrijftermijnVVE"&12*$C16,Parameters!$A:$A,0)) -> 0.97 | BO16: =INDEX('inkoop ULL tbv Epacity'!$I:$I,MATCH(BL16,'inkoop ULL tbv Epacity'!$H:$H,0),0) -> 16.79 | BP16: =BN16+BO16 -> 17.76 | BR16: =Parameters!$B$12*AG16 -> 102.78 | BS16: =SUM(Distributievergoedingen!$F$12,Distributievergoedingen!$I$12,Distributievergoedingen!$L$12,Distributievergoedingen!$O$12)*AF16+SUM(Distributievergoedingen!$O$12*AA16+Distributievergoedingen!$R$12+Distributievergoedingen!$U$12+Distributievergoedingen!$X$12)/(MAX(36,12*L16)) -> 112.78 | BU16: =SUM(BR16:BT16) -> 215.56 | BW16: =SUM(BP16,BU16) -> 233.32 | BY16: =AG16-BW16 -> 794.46 | BZ16: =IF(AG16=0,-999%,BY16/AG16) -> 77% | CA16: =BZ16<0 -> FALSE
A17: 1SDSLPremiumnieuwunshared | B17: 1SDSLPremiumnieuwunshared | C17: 1 | D17: SDSL | E17: Premium | H17: nieuw | I17: unshared | J17: SDSLnieuwunshared | L17: =INDEX(Mapping!$J:$J,MATCH(C$3&C17,Mapping!$B:$B,0)) -> 1 | M17: =INDEX(Mapping!$H:$H,MATCH($E17,Mapping!$B:$B,0)) -> WBA ZM Ethernet | N17: =INDEX(Mapping!$I:$I,MATCH($D17&$I17,Mapping!$B:$B,0)) -> SDSL | O17: =INDEX(Mapping!$I:$I,MATCH($D17,Mapping!$B:$B,0)) -> SDSL | Q17: =INDEX(Mapping!$H:$H,MATCH($H17,Mapping!$B:$B,0)) -> New line | R17: nvt | S17: =INDEX(Mapping!$J:$J,MATCH($D17&$I17,Mapping!$B:$B,0)) -> unshared | T17: WBA ZM EthernetSDSLNew line | U17: WBA ZM EthernetSDSLunshared | W17: =MATCH($J17,'Tarieven ZM'!$B:$B,0) -> 100 | X17: =INDEX('Tarieven ZM'!$H:$H,$W17) -> 1000 | Y17: =-INDEX(Parameters!$B:$B,MATCH(Y$3,Parameters!$A:$A,0))*$X17 -> 0 | Z17: =-INDEX(Parameters!$B:$B,MATCH(Z$3,Parameters!$A:$A,0))*$X17 -> 0.0 | AA17: 1000 | AB17: =AA17/INDEX(Parameters!$B:$B,MATCH("AfschrijftermijnVVE"&12*$C17,Parameters!$A:$A,0)) -> 27.77777778 | AC17: =INDEX('Tarieven ZM'!$G:$G,$W17) -> 1000 | AD17: =-INDEX(Parameters!$B:$B,MATCH(AD$3,Parameters!$A:$A,0))*$AC17 -> 0 | AE17: =-INDEX(Parameters!$B:$B,MATCH(AE$3,Parameters!$A:$A,0))*$AC17 -> 0 | AF17: 1000 | AG17: 1027.78 | AI17: =IF(Q17<>"nvt",MATCH($T17,'Tarieven W&O'!$B:$B,0),"nvt") -> 38 | AJ17: =IF(AI17<>"nvt",INDEX('Tarieven W&O'!$H:$H,$AI17)+INDEX(Parameters!C:C,MATCH("NLSx "&O17&" "&M17,Parameters!A:A,0)),0) -> 64.00 | AK17: =IF(AI17<>"nvt",INDEX('Tarieven W&O'!$I:$I,$AI17),0) -> 25 | AL17: =IF(AI17<>"nvt",-INDEX(Parameters!$B:$B,MATCH(AL$3&$M17,Parameters!$A:$A,0))*(AJ17+AK17),0) -> 0.0 | AN17: 89 | AO17: =AN17/INDEX(Parameters!$B:$B,MATCH("AfschrijftermijnVVE"&12*$C17,Parameters!$A:$A,0)) -> 2.47 | AP17: =MATCH($U17,'Tarieven W&O'!$B:$B,0) -> 30 | AQ17: =IF(AP17<>"nvt",INDEX('Tarieven W&O'!$G:$G,$AP17),0) -> 22.10 | AR17: =-INDEX(Parameters!$B:$B,MATCH(AR$3&$M17&O17,Parameters!$A:$A,0))*(AQ17) -> 0.0 | AU17: 22.10 | AV17: 24.57 | AX17: =Parameters!$B$6*AV17 -> 0.25 | AY17: 0.00 | BA17: 0.25 | BC17: 24.82 | BE17: 1002.96 | BF17: 98% | BG17: FALSE | BI17: ja | BK17: =VLOOKUP(J17,'Tarieven ZM'!$B$7:$I$146,8,0) -> 0 | BL17: SDSLNew lineunshared | BM17: =INDEX('inkoop ULL tbv Epacity'!$J:$J,MATCH(BL17,'inkoop ULL tbv Epacity'!$H:$H,0),0) -> 76.96 | BN17: =BM17/INDEX(Parameters!$B:$B,MATCH("AfschrijftermijnVVE"&12*$C17,Parameters!$A:$A,0)) -> 2.14 | BO17: =INDEX('inkoop ULL tbv Epacity'!$I:$I,MATCH(BL17,'inkoop ULL tbv Epacity'!$H:$H,0),0) -> 9.39 | BP17: 11.52 | BR17: =Parameters!$B$12*AG17 -> 102.78 | BS17: =SUM(Distributievergoedingen!$F$12,Distributievergoedingen!$I$12,Distributievergoedingen!$L$12,Distributievergoedingen!$O$12)*AF17+SUM(Distributievergoedingen!$O$12*AA17+Distributievergoedingen!$R$12+Distributievergoedingen!$U$12+Distributievergoedingen!$X$12)/(MAX(36,12*L17)) -> 112.78 | BU17: 215.56 | BW17: 227.08 | BY17: 800.70 | BZ17: 78% | CA17: FALSE
A18: 1SA IPVPNPremiumnieuwunshared | B18: 1SA IPVPNPremiumnieuwunshared | C18: 1 | D18: SA IPVPN | E18: Premium | H18: nieuw | I18: unshared | J18: SA IPVPNnieuwunshared | L18: =INDEX(Mapping!$J:$J,MATCH(C$3&C18,Mapping!$B:$B,0)) -> 1 | M18: =INDEX(Mapping!$H:$H,MATCH($E18,Mapping!$B:$B,0)) -> WBA ZM Ethernet | N18: =INDEX(Mapping!$I:$I,MATCH($D18&$I18,Mapping!$B:$B,0)) -> FttH | O18: =INDEX(Mapping!$I:$I,MATCH($D18,Mapping!$B:$B,0)) -> FttH | Q18: =INDEX(Mapping!$H:$H,MATCH($H18,Mapping!$B:$B,0)) -> New line | R18: nvt | S18: =INDEX(Mapping!$J:$J,MATCH($D18&$I18,Mapping!$B:$B,0)) -> unshared | T18: WBA ZM EthernetFttHNew line | U18: WBA ZM EthernetFttHunshared | W18: =MATCH($J18,'Tarieven ZM'!$B:$B,0) -> 101 | X18: =INDEX('Tarieven ZM'!$H:$H,$W18) -> 1000 | Y18: =-INDEX(Parameters!$B:$B,MATCH(Y$3,Parameters!$A:$A,0))*$X18 -> 0 | Z18: =-INDEX(Parameters!$B:$B,MATCH(Z$3,Parameters!$A:$A,0))*$X18 -> 0.0 | AA18: 1000 | AB18: =AA18/INDEX(Parameters!$B:$B,MATCH("AfschrijftermijnVVE"&12*$C18,Parameters!$A:$A,0)) -> 27.77777778 | AC18: =INDEX('Tarieven ZM'!$G:$G,$W18) -> 1000 | AD18: =-INDEX(Parameters!$B:$B,MATCH(AD$3,Parameters!$A:$A,0))*$AC18 -> 0 | AE18: =-INDEX(Parameters!$B:$B,MATCH(AE$3,Parameters!$A:$A,0))*$AC18 -> 0 | AF18: 1000 | AG18: 1027.78 | AI18: =IF(Q18<>"nvt",MATCH($T18,'Tarieven W&O'!$B:$B,0),"nvt") -> 39 | AJ18: =IF(AI18<>"nvt",INDEX('Tarieven W&O'!$H:$H,$AI18)+INDEX(Parameters!C:C,MATCH("NLSx "&O18&" "&M18,Parameters!A:A,0)),0) -> 24.00 | AK18: =IF(AI18<>"nvt",INDEX('Tarieven W&O'!$I:$I,$AI18),0) -> 25 | AL18: =IF(AI18<>"nvt",-INDEX(Parameters!$B:$B,MATCH(AL$3&$M18,Parameters!$A:$A,0))*(AJ18+AK18),0) -> 0.0 | AN18: 49 | AO18: =AN18/INDEX(Parameters!$B:$B,MATCH("AfschrijftermijnVVE"&12*$C18,Parameters!$A:$A,0)) -> 1.36 | AP18: =MATCH($U18,'Tarieven W&O'!$B:$B,0) -> 31 | AQ18: =IF(AP18<>"nvt",INDEX('Tarieven W&O'!$G:$G,$AP18),0) -> 19.00 | AR18: =-INDEX(Parameters!$B:$B,MATCH(AR$3&$M18&O18,Parameters!$A:$A,0))*(AQ18) -> 0.0 | AU18: 19.00 | AV18: 20.36 | AX18: =Parameters!$B$6*AV18 -> 0.20 | AY18: 0.00 | BA18: 0.20 | BC18: 20.56 | BE18: 1007.21 | BF18: 98% | BG18: FALSE | BI18: ja | BK18: =VLOOKUP(J18,'Tarieven ZM'!$B$7:$I$146,8,0) -> 0 | BL18: FttHNew lineunshared | BM18: =INDEX('inkoop ULL tbv Epacity'!$J:$J,MATCH(BL18,'inkoop ULL tbv Epacity'!$H:$H,0),0) -> 114.60 | BN18: =BM18/INDEX(Parameters!$B:$B,MATCH("AfschrijftermijnVVE"&12*$C18,Parameters!$A:$A,0)) -> 3.18 | BO18: =INDEX('inkoop ULL tbv Epacity'!$I:$I,MATCH(BL18,'inkoop ULL tbv Epacity'!$H:$H,0),0) -> 18.27 | BP18: 21.46 | BR18: =Parameters!$B$12*AG18 -> 102.78 | BS18: =SUM(Distributievergoedingen!$F$12,Distributievergoedingen!$I$12,Distributievergoedingen!$L$12,Distributievergoedingen!$O$12)*AF18+SUM(Distributievergoedingen!$O$12*AA18+Distributievergoedingen!$R$12+Distributievergoedingen!$U$12+Distributievergoedingen!$X$12)/(MAX(36,12*L18)) -> 112.78 | BU18: 215.56 | BW18: 237.01 | BY18: 790.77 | BZ18: 77% | CA18: FALSE
A19: 1VDSLPremiumbestaandunshared | B19: 1VDSLPremiumbestaandunshared | C19: 1 | D19: VDSL | E19: Premium | H19: bestaand | I19: unshared | J19: VDSLbestaandunshared | L19: =INDEX(Mapping!$J:$J,MATCH(C$3&C19,Mapping!$B:$B,0)) -> 1 | M19: =INDEX(Mapping!$H:$H,MATCH($E19,Mapping!$B:$B,0)) -> WBA ZM Ethernet | N19: =INDEX(Mapping!$I:$I,MATCH($D19&$I19,Mapping!$B:$B,0)) -> VDSL | O19: =INDEX(Mapping!$I:$I,MATCH($D19,Mapping!$B:$B,0)) -> VDSL | Q19: =INDEX(Mapping!$H:$H,MATCH($H19,Mapping!$B:$B,0)) -> nvt | R19: nvt | S19: =INDEX(Mapping!$J:$J,MATCH($D19&$I19,Mapping!$B:$B,0)) -> unshared | T19: WBA ZM EthernetVDSLnvt | U19: WBA ZM EthernetVDSLunshared | W19: =MATCH($J19,'Tarieven ZM'!$B:$B,0) -> 102 | X19: =INDEX('Tarieven ZM'!$H:$H,$W19) -> 1000 | Y19: =-INDEX(Parameters!$B:$B,MATCH(Y$3,Parameters!$A:$A,0))*$X19 -> 0 | Z19: =-INDEX(Parameters!$B:$B,MATCH(Z$3,Parameters!$A:$A,0))*$X19 -> 0.0 | AA19: 1000 | AB19: =AA19/INDEX(Parameters!$B:$B,MATCH("AfschrijftermijnVVE"&12*$C19,Parameters!$A:$A,0)) -> 27.77777778 | AC19: =INDEX('Tarieven ZM'!$G:$G,$W19) -> 1000 | AD19: =-INDEX(Parameters!$B:$B,MATCH(AD$3,Parameters!$A:$A,0))*$AC19 -> 0 | AE19: =-INDEX(Parameters!$B:$B,MATCH(AE$3,Parameters!$A:$A,0))*$AC19 -> 0 | AF19: 1000 | AG19: 1027.78 | AI19: =IF(Q19<>"nvt",MATCH($T19,'Tarieven W&O'!$B:$B,0),"nvt") -> nvt | AJ19: =IF(AI19<>"nvt",INDEX('Tarieven W&O'!$H:$H,$AI19)+INDEX(Parameters!C:C,MATCH("NLSx "&O19&" "&M19,Parameters!A:A,0)),0) -> 0.00 | AK19: =IF(AI19<>"nvt",INDEX('Tarieven W&O'!$I:$I,$AI19),0) -> 0 | AL19: =IF(AI19<>"nvt",-INDEX(Parameters!$B:$B,MATCH(AL$3&$M19,Parameters!$A:$A,0))*(AJ19+AK19),0) -> 0.0 | AN19: 0 | AO19: =AN19/INDEX(Parameters!$B:$B,MATCH("AfschrijftermijnVVE"&12*$C19,Parameters!$A:$A,0)) -> 0.00 | AP19: =MATCH($U19,'Tarieven W&O'!$B:$B,0) -> 29 | AQ19: =IF(AP19<>"nvt",INDEX('Tarieven W&O'!$G:$G,$AP19),0) -> 11.20 | AR19: =-INDEX(Parameters!$B:$B,MATCH(AR$3&$M19&O19,Parameters!$A:$A,0))*(AQ19) -> 0.0 | AU19: 11.20 | AV19: 11.20 | AX19: =Parameters!$B$6*AV19 -> 0.11 | AY19: 0.00 | BA19: 0.11 | BC19: 11.31 | BE19: 1016.47 | BF19: 99% | BG19: FALSE | BI19: ja | BK19: =VLOOKUP(J19,'Tarieven ZM'!$B$7:$I$146,8,0) -> 0 | BL19: VDSLnvtunshared | BM19: =INDEX('inkoop ULL tbv Epacity'!$J:$J,MATCH(BL19,'inkoop ULL tbv Epacity'!$H:$H,0),0) -> 35.00 | BN19: =BM19/INDEX(Parameters!$B:$B,MATCH("AfschrijftermijnVVE"&12*$C19,Parameters!$A:$A,0)) -> 0.97 | BO19: =INDEX('inkoop ULL tbv Epacity'!$I:$I,MATCH(BL19,'inkoop ULL tbv Epacity'!$H:$H,0),0) -> 12.50 | BP19: 13.47 | BR19: =Parameters!$B$12*AG19 -> 102.78 | BS19: =SUM(Distributievergoedingen!$F$12,Distributievergoedingen!$I$12,Distributievergoedingen!$L$12,Distributievergoedingen!$O$12)*AF19+SUM(Distributievergoedingen!$O$12*AA19+Distributievergoedingen!$R$12+Distributievergoedingen!$U$12+Distributievergoedingen!$X$12)/(MAX(36,12*L19)) -> 112.78 | BU19: 215.56 | BW19: 229.03 | BY19: 798.75 | BZ19: 78% | CA19: FALSE
A20: 1ADSLPremiumbestaandunshared | B20: 1ADSLPremiumbestaandunshared | C20: 1 | D20: ADSL | E20: Premium | H20: bestaand | I20: unshared | J20: ADSLbestaandunshared | L20: =INDEX(Mapping!$J:$J,MATCH(C$3&C20,Mapping!$B:$B,0)) -> 1 | M20: =INDEX(Mapping!$H:$H,MATCH($E20,Mapping!$B:$B,0)) -> WBA ZM Ethernet | N20: =INDEX(Mapping!$I:$I,MATCH($D20&$I20,Mapping!$B:$B,0)) -> ADSL | O20: =INDEX(Mapping!$I:$I,MATCH($D20,Mapping!$B:$B,0)) -> ADSL | Q20: =INDEX(Mapping!$H:$H,MATCH($H20,Mapping!$B:$B,0)) -> nvt | R20: nvt | S20: =INDEX(Mapping!$J:$J,MATCH($D20&$I20,Mapping!$B:$B,0)) -> unshared | T20: WBA ZM EthernetADSLnvt | U20: WBA ZM EthernetADSLunshared | W20: =MATCH($J20,'Tarieven ZM'!$B:$B,0) -> 103 | X20: =INDEX('Tarieven ZM'!$H:$H,$W20) -> 1000 | Y20: =-INDEX(Parameters!$B:$B,MATCH(Y$3,Parameters!$A:$A,0))*$X20 -> 0 | Z20: =-INDEX(Parameters!$B:$B,MATCH(Z$3,Parameters!$A:$A,0))*$X20 -> 0.0 | AA20: 1000 | AB20: =AA20/INDEX(Parameters!$B:$B,MATCH("AfschrijftermijnVVE"&12*$C20,Parameters!$A:$A,0)) -> 27.77777778 | AC20: =INDEX('Tarieven ZM'!$G:$G,$W20) -> 1000 | AD20: =-INDEX(Parameters!$B:$B,MATCH(AD$3,Parameters!$A:$A,0))*$AC20 -> 0 | AE20: =-INDEX(Parameters!$B:$B,MATCH(AE$3,Parameters!$A:$A,0))*$AC20 -> 0 | AF20: 1000 | AG20: 1027.78 | AI20: =IF(Q20<>"nvt",MATCH($T20,'Tarieven W&O'!$B:$B,0),"nvt") -> nvt | AJ20: =IF(AI20<>"nvt",INDEX('Tarieven W&O'!$H:$H,$AI20)+INDEX(Parameters!C:C,MATCH("NLSx "&O20&" "&M20,Parameters!A:A,0)),0) -> 0.00 | AK20: =IF(AI20<>"nvt",INDEX('Tarieven W&O'!$I:$I,$AI20),0) -> 0 | AL20: =IF(AI20<>"nvt",-INDEX(Parameters!$B:$B,MATCH(AL$3&$M20,Parameters!$A:$A,0))*(AJ20+AK20),0) -> 0.0 | AN20: 0 | AO20: =AN20/INDEX(Parameters!$B:$B,MATCH("AfschrijftermijnVVE"&12*$C20,Parameters!$A:$A,0)) -> 0.00 | AP20: =MATCH($U20,'Tarieven W&O'!$B:$B,0) -> 28 | AQ20: =IF(AP20<>"nvt",INDEX('Tarieven W&O'!$G:$G,$AP20),0) -> 11.20 | AR20: =-INDEX(Parameters!$B:$B,MATCH(AR$3&$M20&O20,Parameters!$A:$A,0))*(AQ20) -> 0.0 | AU20: 11.20 | AV20: 11.20 | AX20: =Parameters!$B$6*AV20 -> 0.11 | AY20: 0.00 | BA20: 0.11 | BC20: 11.31 | BE20: 1016.47 | BF20: 99% | BG20: FALSE | BI20: ja | BK20: =VLOOKUP(J20,'Tarieven ZM'!$B$7:$I$146,8,0) -> 0 | BL20: ADSLnvtunshared | BM20: =INDEX('inkoop ULL tbv Epacity'!$J:$J,MATCH(BL20,'inkoop ULL tbv Epacity'!$H:$H,0),0) -> 35.00 | BN20: =BM20/INDEX(Parameters!$B:$B,MATCH("AfschrijftermijnVVE"&12*$C20,Parameters!$A:$A,0)) -> 0.97 | BO20: =INDEX('inkoop ULL tbv Epacity'!$I:$I,MATCH(BL20,'inkoop ULL tbv Epacity'!$H:$H,0),0) -> 12.50 | BP20: 13.47 | BR20: =Parameters!$B$12*AG20 -> 102.78 | BS20: =SUM(Distributievergoedingen!$F$12,Distributievergoedingen!$I$12,Distributievergoedingen!$L$12,Distributievergoedingen!$O$12)*AF20+SUM(Distributievergoedingen!$O$12*AA20+Distributievergoedingen!$R$12+Distributievergoedingen!$U$12+Distributievergoedingen!$X$12)/(MAX(36,12*L20)) -> 112.78 | BU20: 215.56 | BW20: 229.03 | BY20: 798.75 | BZ20: 78% | CA20: FALSE
A21: 1SDSLPremiumbestaandunshared | B21: 1SDSLPremiumbestaandunshared | C21: 1 | D21: SDSL | E21: Premium | H21: bestaand | I21: unshared | J21: SDSLbestaandunshared | L21: =INDEX(Mapping!$J:$J,MATCH(C$3&C21,Mapping!$B:$B,0)) -> 1 | M21: =INDEX(Mapping!$H:$H,MATCH($E21,Mapping!$B:$B,0)) -> WBA ZM Ethernet | N21: =INDEX(Mapping!$I:$I,MATCH($D21&$I21,Mapping!$B:$B,0)) -> SDSL | O21: =INDEX(Mapping!$I:$I,MATCH($D21,Mapping!$B:$B,0)) -> SDSL | Q21: =INDEX(Mapping!$H:$H,MATCH($H21,Mapping!$B:$B,0)) -> nvt | R21: nvt | S21: =INDEX(Mapping!$J:$J,MATCH($D21&$I21,Mapping!$B:$B,0)) -> unshared | T21: WBA ZM EthernetSDSLnvt | U21: WBA ZM EthernetSDSLunshared | W21: =MATCH($J21,'Tarieven ZM'!$B:$B,0) -> 104 | X21: =INDEX('Tarieven ZM'!$H:$H,$W21) -> 1000 | Y21: =-INDEX(Parameters!$B:$B,MATCH(Y$3,Parameters!$A:$A,0))*$X21 -> 0 | Z21: =-INDEX(Parameters!$B:$B,MATCH(Z$3,Parameters!$A:$A,0))*$X21 -> 0.0 | AA21: 1000 | AB21: =AA21/INDEX(Parameters!$B:$B,MATCH("AfschrijftermijnVVE"&12*$C21,Parameters!$A:$A,0)) -> 27.77777778 | AC21: =INDEX('Tarieven ZM'!$G:$G,$W21) -> 1000 | AD21: =-INDEX(Parameters!$B:$B,MATCH(AD$3,Parameters!$A:$A,0))*$AC21 -> 0 | AE21: =-INDEX(Parameters!$B:$B,MATCH(AE$3,Parameters!$A:$A,0))*$AC21 -> 0 | AF21: 1000 | AG21: 1027.78 | AI21: =IF(Q21<>"nvt",MATCH($T21,'Tarieven W&O'!$B:$B,0),"nvt") -> nvt | AJ21: =IF(AI21<>"nvt",INDEX('Tarieven W&O'!$H:$H,$AI21)+INDEX(Parameters!C:C,MATCH("NLSx "&O21&" "&M21,Parameters!A:A,0)),0) -> 0.00 | AK21: =IF(AI21<>"nvt",INDEX('Tarieven W&O'!$I:$I,$AI21),0) -> 0 | AL21: =IF(AI21<>"nvt",-INDEX(Parameters!$B:$B,MATCH(AL$3&$M21,Parameters!$A:$A,0))*(AJ21+AK21),0) -> 0.0 | AN21: 0 | AO21: =AN21/INDEX(Parameters!$B:$B,MATCH("AfschrijftermijnVVE"&12*$C21,Parameters!$A:$A,0)) -> 0.00 | AP21: =MATCH($U21,'Tarieven W&O'!$B:$B,0) -> 30 | AQ21: =IF(AP21<>"nvt",INDEX('Tarieven W&O'!$G:$G,$AP21),0) -> 22.10 | AR21: =-INDEX(Parameters!$B:$B,MATCH(AR$3&$M21&O21,Parameters!$A:$A,0))*(AQ21) -> 0.0 | AU21: 22.10 | AV21: 22.10 | AX21: =Parameters!$B$6*AV21 -> 0.22 | AY21: 0.00 | BA21: 0.22 | BC21: 22.32 | BE21: 1005.46 | BF21: 98% | BG21: FALSE | BI21: ja | BK21: =VLOOKUP(J21,'Tarieven ZM'!$B$7:$I$146,8,0) -> 0 | BL21: SDSLnvtunshared | BM21: =INDEX('inkoop ULL tbv Epacity'!$J:$J,MATCH(BL21,'inkoop ULL tbv Epacity'!$H:$H,0),0) -> 19.30 | BN21: =BM21/INDEX(Parameters!$B:$B,MATCH("AfschrijftermijnVVE"&12*$C21,Parameters!$A:$A,0)) -> 0.54 | BO21: =INDEX('inkoop ULL tbv Epacity'!$I:$I,MATCH(BL21,'inkoop ULL tbv Epacity'!$H:$H,0),0) -> 9.39 | BP21: 9.92 | BR21: =Parameters!$B$12*AG21 -> 102.78 | BS21: =SUM(Distributievergoedingen!$F$12,Distributievergoedingen!$I$12,Distributievergoedingen!$L$12,Distributievergoedingen!$O$12)*AF21+SUM(Distributievergoedingen!$O$12*AA21+Distributievergoedingen!$R$12+Distributievergoedingen!$U$12+Distributievergoedingen!$X$12)/(MAX(36,12*L21)) -> 112.78 | BU21: 215.56 | BW21: 225.48 | BY21: 802.30 | BZ21: 78% | CA21: FALSE
A22: 1VDSLPremiumbestaandshared | B22: 1VDSLPremiumbestaandshared | C22: 1 | D22: VDSL | E22: Premium | H22: bestaand | I22: shared | J22: VDSLbestaandshared | L22: =INDEX(Mapping!$J:$J,MATCH(C$3&C22,Mapping!$B:$B,0)) -> 1 | M22: =INDEX(Mapping!$H:$H,MATCH($E22,Mapping!$B:$B,0)) -> WBA ZM Ethernet | N22: =INDEX(Mapping!$I:$I,MATCH($D22&$I22,Mapping!$B:$B,0)) -> VDSL | O22: =INDEX(Mapping!$I:$I,MATCH($D22,Mapping!$B:$B,0)) -> VDSL | Q22: =INDEX(Mapping!$H:$H,MATCH($H22,Mapping!$B:$B,0)) -> nvt | R22: nvt | S22: =INDEX(Mapping!$J:$J,MATCH($D22&$I22,Mapping!$B:$B,0)) -> shared | T22: WBA ZM EthernetVDSLnvt | U22: WBA ZM EthernetVDSLshared | W22: =MATCH($J22,'Tarieven ZM'!$B:$B,0) -> 105 | X22: =INDEX('Tarieven ZM'!$H:$H,$W22) -> 1000 | Y22: =-INDEX(Parameters!$B:$B,MATCH(Y$3,Parameters!$A:$A,0))*$X22 -> 0 | Z22: =-INDEX(Parameters!$B:$B,MATCH(Z$3,Parameters!$A:$A,0))*$X22 -> 0.0 | AA22: 1000 | AB22: =AA22/INDEX(Parameters!$B:$B,MATCH("AfschrijftermijnVVE"&12*$C22,Parameters!$A:$A,0)) -> 27.77777778 | AC22: =INDEX('Tarieven ZM'!$G:$G,$W22) -> 1000 | AD22: =-INDEX(Parameters!$B:$B,MATCH(AD$3,Parameters!$A:$A,0))*$AC22 -> 0 | AE22: =-INDEX(Parameters!$B:$B,MATCH(AE$3,Parameters!$A:$A,0))*$AC22 -> 0 | AF22: 1000 | AG22: 1027.78 | AI22: =IF(Q22<>"nvt",MATCH($T22,'Tarieven W&O'!$B:$B,0),"nvt") -> nvt | AJ22: =IF(AI22<>"nvt",INDEX('Tarieven W&O'!$H:$H,$AI22)+INDEX(Parameters!C:C,MATCH("NLSx "&O22&" "&M22,Parameters!A:A,0)),0) -> 0.00 | AK22: =IF(AI22<>"nvt",INDEX('Tarieven W&O'!$I:$I,$AI22),0) -> 0 | AL22: =IF(AI22<>"nvt",-INDEX(Parameters!$B:$B,MATCH(AL$3&$M22,Parameters!$A:$A,0))*(AJ22+AK22),0) -> 0.0 | AN22: 0 | AO22: =AN22/INDEX(Parameters!$B:$B,MATCH("AfschrijftermijnVVE"&12*$C22,Parameters!$A:$A,0)) -> 0.00 | AP22: =MATCH($U22,'Tarieven W&O'!$B:$B,0) -> 34 | AQ22: =IF(AP22<>"nvt",INDEX('Tarieven W&O'!$G:$G,$AP22),0) -> 2.88 | AR22: =-INDEX(Parameters!$B:$B,MATCH(AR$3&$M22&O22,Parameters!$A:$A,0))*(AQ22) -> 0.0 | AU22: 2.88 | AV22: 2.88 | AX22: =Parameters!$B$6*AV22 -> 0.03 | AY22: 0.00 | BA22: 0.03 | BC22: 2.91 | BE22: 1024.87 | BF22: 100% | BG22: FALSE | BI22: ja | BK22: =VLOOKUP(J22,'Tarieven ZM'!$B$7:$I$146,8,0) -> 0 | BL22: VDSLnvtshared | BM22: =INDEX('inkoop ULL tbv Epacity'!$J:$J,MATCH(BL22,'inkoop ULL tbv Epacity'!$H:$H,0),0) -> 35.00 | BN22: =BM22/INDEX(Parameters!$B:$B,MATCH("AfschrijftermijnVVE"&12*$C22,Parameters!$A:$A,0)) -> 0.97 | BO22: =INDEX('inkoop ULL tbv Epacity'!$I:$I,MATCH(BL22,'inkoop ULL tbv Epacity'!$H:$H,0),0) -> 6.03 | BP22: 7.00 | BR22: =Parameters!$B$12*AG22 -> 102.78 | BS22: =SUM(Distributievergoedingen!$F$12,Distributievergoedingen!$I$12,Distributievergoedingen!$L$12,Distributievergoedingen!$O$12)*AF22+SUM(Distributievergoedingen!$O$12*AA22+Distributievergoedingen!$R$12+Distributievergoedingen!$U$12+Distributievergoedingen!$X$12)/(MAX(36,12*L22)) -> 112.78 | BU22: 215.56 | BW22: 222.56 | BY22: 805.22 | BZ22: 78% | CA22: FALSE
A23: 1ADSLPremiumbestaandshared | B23: 1ADSLPremiumbestaandshared | C23: 1 | D23: ADSL | E23: Premium | H23: bestaand | I23: shared | J23: ADSLbestaandshared | L23: =INDEX(Mapping!$J:$J,MATCH(C$3&C23,Mapping!$B:$B,0)) -> 1 | M23: =INDEX(Mapping!$H:$H,MATCH($E23,Mapping!$B:$B,0)) -> WBA ZM Ethernet | N23: =INDEX(Mapping!$I:$I,MATCH($D23&$I23,Mapping!$B:$B,0)) -> ADSL | O23: =INDEX(Mapping!$I:$I,MATCH($D23,Mapping!$B:$B,0)) -> ADSL | Q23: =INDEX(Mapping!$H:$H,MATCH($H23,Mapping!$B:$B,0)) -> nvt | R23: nvt | S23: =INDEX(Mapping!$J:$J,MATCH($D23&$I23,Mapping!$B:$B,0)) -> shared | T23: WBA ZM EthernetADSLnvt | U23: WBA ZM EthernetADSLshared | W23: =MATCH($J23,'Tarieven ZM'!$B:$B,0) -> 106 | X23: =INDEX('Tarieven ZM'!$H:$H,$W23) -> 1000 | Y23: =-INDEX(Parameters!$B:$B,MATCH(Y$3,Parameters!$A:$A,0))*$X23 -> 0 | Z23: =-INDEX(Parameters!$B:$B,MATCH(Z$3,Parameters!$A:$A,0))*$X23 -> 0.0 | AA23: 1000 | AB23: =AA23/INDEX(Parameters!$B:$B,MATCH("AfschrijftermijnVVE"&12*$C23,Parameters!$A:$A,0)) -> 27.77777778 | AC23: =INDEX('Tarieven ZM'!$G:$G,$W23) -> 1000 | AD23: =-INDEX(Parameters!$B:$B,MATCH(AD$3,Parameters!$A:$A,0))*$AC23 -> 0 | AE23: =-INDEX(Parameters!$B:$B,MATCH(AE$3,Parameters!$A:$A,0))*$AC23 -> 0 | AF23: 1000 | AG23: 1027.78 | AI23: =IF(Q23<>"nvt",MATCH($T23,'Tarieven W&O'!$B:$B,0),"nvt") -> nvt | AJ23: =IF(AI23<>"nvt",INDEX('Tarieven W&O'!$H:$H,$AI23)+INDEX(Parameters!C:C,MATCH("NLSx "&O23&" "&M23,Parameters!A:A,0)),0) -> 0.00 | AK23: =IF(AI23<>"nvt",INDEX('Tarieven W&O'!$I:$I,$AI23),0) -> 0 | AL23: =IF(AI23<>"nvt",-INDEX(Parameters!$B:$B,MATCH(AL$3&$M23,Parameters!$A:$A,0))*(AJ23+AK23),0) -> 0.0 | AN23: 0 | AO23: =AN23/INDEX(Parameters!$B:$B,MATCH("AfschrijftermijnVVE"&12*$C23,Parameters!$A:$A,0)) -> 0.00 | AP23: =MATCH($U23,'Tarieven W&O'!$B:$B,0) -> 35 | AQ23: =IF(AP23<>"nvt",INDEX('Tarieven W&O'!$G:$G,$AP23),0) -> 2.88 | AR23: =-INDEX(Parameters!$B:$B,MATCH(AR$3&$M23&O23,Parameters!$A:$A,0))*(AQ23) -> 0.0 | AU23: 2.88 | AV23: 2.88 | AX23: =Parameters!$B$6*AV23 -> 0.03 | AY23: 0.00 | BA23: 0.03 | BC23: 2.91 | BE23: 1024.87 | BF23: 100% | BG23: FALSE | BI23: ja | BK23: =VLOOKUP(J23,'Tarieven ZM'!$B$7:$I$146,8,0) -> 0 | BL23: ADSLnvtshared | BM23: =INDEX('inkoop ULL tbv Epacity'!$J:$J,MATCH(BL23,'inkoop ULL tbv Epacity'!$H:$H,0),0) -> 35.00 | BN23: =BM23/INDEX(Parameters!$B:$B,MATCH("AfschrijftermijnVVE"&12*$C23,Parameters!$A:$A,0)) -> 0.97 | BO23: =INDEX('inkoop ULL tbv Epacity'!$I:$I,MATCH(BL23,'inkoop ULL tbv Epacity'!$H:$H,0),0) -> 6.03 | BP23: 7.00 | BR23: =Parameters!$B$12*AG23 -> 102.78 | BS23: =SUM(Distributievergoedingen!$F$12,Distributievergoedingen!$I$12,Distributievergoedingen!$L$12,Distributievergoedingen!$O$12)*AF23+SUM(Distributievergoedingen!$O$12*AA23+Distributievergoedingen!$R$12+Distributievergoedingen!$U$12+Distributievergoedingen!$X$12)/(MAX(36,12*L23)) -> 112.78 | BU23: 215.56 | BW23: 222.56 | BY23: 805.22 | BZ23: 78% | CA23: FALSE
A24: =C24&D24&E24&H24&I24 -> 2ADSLBasicnieuwunshared | B24: 2ADSLBasicnieuwunshared | C24: 2 | D24: ADSL | E24: Basic | H24: nieuw | I24: unshared | J24: =D24&H24&I24 -> ADSLnieuwunshared | L24: =INDEX(Mapping!$J:$J,MATCH(C$3&C24,Mapping!$B:$B,0)) -> 1 | M24: =INDEX(Mapping!$H:$H,MATCH($E24,Mapping!$B:$B,0)) -> WBA CM Ethernet | N24: =INDEX(Mapping!$I:$I,MATCH($D24&$I24,Mapping!$B:$B,0)) -> ADSL | O24: =INDEX(Mapping!$I:$I,MATCH($D24,Mapping!$B:$B,0)) -> ADSL | Q24: =INDEX(Mapping!$H:$H,MATCH($H24,Mapping!$B:$B,0)) -> New line | R24: nvt | S24: =INDEX(Mapping!$J:$J,MATCH($D24&$I24,Mapping!$B:$B,0)) -> unshared | T24: WBA CM EthernetADSLNew line | U24: WBA CM EthernetADSLunshared | W24: =MATCH($J24,'Tarieven ZM'!$B:$B,0) -> 97 | X24: =INDEX('Tarieven ZM'!$H:$H,$W24) -> 1000 | Y24: =-INDEX(Parameters!$B:$B,MATCH(Y$3,Parameters!$A:$A,0))*$X24 -> 0 | Z24: =-INDEX(Parameters!$B:$B,MATCH(Z$3,Parameters!$A:$A,0))*$X24 -> 0.0 | AA24: =SUM(X24:Z24) -> 1000 | AB24: =AA24/INDEX(Parameters!$B:$B,MATCH("AfschrijftermijnVVE"&12*$C24,Parameters!$A:$A,0)) -> 27.77777778 | AC24: =INDEX('Tarieven ZM'!$G:$G,$W24) -> 1000 | AD24: =-INDEX(Parameters!$B:$B,MATCH(AD$3,Parameters!$A:$A,0))*$AC24 -> 0 | AE24: =-INDEX(Parameters!$B:$B,MATCH(AE$3,Parameters!$A:$A,0))*$AC24 -> 0 | AF24: =SUM(AC24:AE24) -> 1000 | AG24: 1027.78 | AI24: =IF(Q24<>"nvt",MATCH($T24,'Tarieven W&O'!$B:$B,0),"nvt") -> 16 | AJ24: =IF(AI24<>"nvt",INDEX('Tarieven W&O'!$H:$H,$AI24)+INDEX(Parameters!C:C,MATCH("NLSx "&O24&" "&M24,Parameters!A:A,0)),0) -> 65.00 | AK24: =IF(AI24<>"nvt",INDEX('Tarieven W&O'!$I:$I,$AI24),0) -> 25 | AL24: =IF(AI24<>"nvt",-INDEX(Parameters!$B:$B,MATCH(AL$3&$M24,Parameters!$A:$A,0))*(AJ24+AK24),0) -> 0.0 | AN24: 90 | AO24: =AN24/INDEX(Parameters!$B:$B,MATCH("AfschrijftermijnVVE"&12*$C24,Parameters!$A:$A,0)) -> 2.50 | AP24: =MATCH($U24,'Tarieven W&O'!$B:$B,0) -> 8 | AQ24: =IF(AP24<>"nvt",INDEX('Tarieven W&O'!$G:$G,$AP24),0) -> 13.09 | AR24: =-INDEX(Parameters!$B:$B,MATCH(AR$3&$M24&O24,Parameters!$A:$A,0))*(AQ24) -> -1.3 | AU24: 11.78 | AV24: 14.28 | AX24: =Parameters!$B$6*AV24 -> 0.14 | AY24: 0.00 | BA24: 0.14 | BC24: 14.42 | BE24: 1013.35 | BF24: 99% | BG24: =BF24<0 -> FALSE | BI24: ja | BK24: =VLOOKUP(J24,'Tarieven ZM'!$B$7:$I$146,8,0) -> 0 | BL24: ADSLNew lineunshared | BM24: =INDEX('inkoop ULL tbv Epacity'!$J:$J,MATCH(BL24,'inkoop ULL tbv Epacity'!$H:$H,0),0) -> 75.00 | BN24: =BM24/INDEX(Parameters!$B:$B,MATCH("AfschrijftermijnVVE"&12*$C24,Parameters!$A:$A,0)) -> 2.08 | BO24: =INDEX('inkoop ULL tbv Epacity'!$I:$I,MATCH(BL24,'inkoop ULL tbv Epacity'!$H:$H,0),0) -> 12.50 | BP24: 14.59 | BR24: =Parameters!$B$12*AG24 -> 102.78 | BS24: =SUM(Distributievergoedingen!$F$12,Distributievergoedingen!$I$12,Distributievergoedingen!$L$12,Distributievergoedingen!$O$12)*AF24+SUM(Distributievergoedingen!$O$12*AA24+Distributievergoedingen!$R$12+Distributievergoedingen!$U$12+Distributievergoedingen!$X$12)/(MAX(36,12*L24)) -> 112.78 | BU24: 215.56 | BW24: 230.14 | BY24: 797.64 | BZ24: 78% | CA24: FALSE
A25: =C25&D25&E25&H25&I25 -> 2VDSLEntrynieuwunshared | B25: 2VDSLEntrynieuwunshared | C25: 2 | D25: VDSL | E25: Entry | H25: nieuw | I25: unshared | J25: =D25&H25&I25 -> VDSLnieuwunshared | L25: =INDEX(Mapping!$J:$J,MATCH(C$3&C25,Mapping!$B:$B,0)) -> 1 | M25: =INDEX(Mapping!$H:$H,MATCH($E25,Mapping!$B:$B,0)) -> WBA CM Ethernet | N25: =INDEX(Mapping!$I:$I,MATCH($D25&$I25,Mapping!$B:$B,0)) -> VDSL | O25: =INDEX(Mapping!$I:$I,MATCH($D25,Mapping!$B:$B,0)) -> VDSL | Q25: =INDEX(Mapping!$H:$H,MATCH($H25,Mapping!$B:$B,0)) -> New line | R25: nvt | S25: =INDEX(Mapping!$J:$J,MATCH($D25&$I25,Mapping!$B:$B,0)) -> unshared | T25: WBA CM EthernetVDSLNew line | U25: WBA CM EthernetVDSLunshared | W25: =MATCH($J25,'Tarieven ZM'!$B:$B,0) -> 98 | X25: =INDEX('Tarieven ZM'!$H:$H,$W25) -> 1000 | Y25: =-INDEX(Parameters!$B:$B,MATCH(Y$3,Parameters!$A:$A,0))*$X25 -> 0 | Z25: =-INDEX(Parameters!$B:$B,MATCH(Z$3,Parameters!$A:$A,0))*$X25 -> 0.0 | AA25: =SUM(X25:Z25) -> 1000 | AB25: =AA25/INDEX(Parameters!$B:$B,MATCH("AfschrijftermijnVVE"&12*$C25,Parameters!$A:$A,0)) -> 27.77777778 | AC25: =INDEX('Tarieven ZM'!$G:$G,$W25) -> 1000 | AD25: =-INDEX(Parameters!$B:$B,MATCH(AD$3,Parameters!$A:$A,0))*$AC25 -> 0 | AE25: =-INDEX(Parameters!$B:$B,MATCH(AE$3,Parameters!$A:$A,0))*$AC25 -> 0 | AF25: =SUM(AC25:AE25) -> 1000 | AG25: 1027.78 | AI25: =IF(Q25<>"nvt",MATCH($T25,'Tarieven W&O'!$B:$B,0),"nvt") -> 17 | AJ25: =IF(AI25<>"nvt",INDEX('Tarieven W&O'!$H:$H,$AI25)+INDEX(Parameters!C:C,MATCH("NLSx "&O25&" "&M25,Parameters!A:A,0)),0) -> 65.00 | AK25: =IF(AI25<>"nvt",INDEX('Tarieven W&O'!$I:$I,$AI25),0) -> 25 | AL25: =IF(AI25<>"nvt",-INDEX(Parameters!$B:$B,MATCH(AL$3&$M25,Parameters!$A:$A,0))*(AJ25+AK25),0) -> 0.0 | AN25: 90 | AO25: =AN25/INDEX(Parameters!$B:$B,MATCH("AfschrijftermijnVVE"&12*$C25,Parameters!$A:$A,0)) -> 2.50 | AP25: =MATCH($U25,'Tarieven W&O'!$B:$B,0) -> 9 | AQ25: =IF(AP25<>"nvt",INDEX('Tarieven W&O'!$G:$G,$AP25),0) -> 13.09 | AR25: =-INDEX(Parameters!$B:$B,MATCH(AR$3&$M25&O25,Parameters!$A:$A,0))*(AQ25) -> -1.3 | AU25: 11.78 | AV25: 14.28 | AX25: =Parameters!$B$6*AV25 -> 0.14 | AY25: 0.00 | BA25: 0.14 | BC25: 14.42 | BE25: 1013.35 | BF25: 99% | BG25: FALSE | BI25: ja | BK25: =VLOOKUP(J25,'Tarieven ZM'!$B$7:$I$146,8,0) -> 0 | BL25: VDSLNew lineunshared | BM25: =INDEX('inkoop ULL tbv Epacity'!$J:$J,MATCH(BL25,'inkoop ULL tbv Epacity'!$H:$H,0),0) -> 75.00 | BN25: =BM25/INDEX(Parameters!$B:$B,MATCH("AfschrijftermijnVVE"&12*$C25,Parameters!$A:$A,0)) -> 2.08 | BO25: =INDEX('inkoop ULL tbv Epacity'!$I:$I,MATCH(BL25,'inkoop ULL tbv Epacity'!$H:$H,0),0) -> 12.50 | BP25: 14.59 | BR25: =Parameters!$B$12*AG25 -> 102.78 | BS25: =SUM(Distributievergoedingen!$F$12,Distributievergoedingen!$I$12,Distributievergoedingen!$L$12,Distributievergoedingen!$O$12)*AF25+SUM(Distributievergoedingen!$O$12*AA25+Distributievergoedingen!$R$12+Distributievergoedingen!$U$12+Distributievergoedingen!$X$12)/(MAX(36,12*L25)) -> 112.78 | BU25: 215.56 | BW25: 230.14 | BY25: 797.64 | BZ25: 78% | CA25: FALSE
